Workbook

Sheet CV Rotina <2A - procedência
E1: AO NASCER | I1: MENOR DE 1 ANO | U1: 1 ANO
A2: Regional | B2: Município | C2: ¹População < 1 ano e 1 ano anual | D2: ²População < 1 ano e 1 ano proporcional | E2: Doses Aplicadas HB < 30 dias | F2: Cobertura Vacinal HB até 30 dias | G2: Doses Aplicadas BCG | H2: Cobertura Vacinal BCG | I2: Doses Aplicadas Pentavalente | J2: Cobertura Vacinal Pentavalente | K2: Doses Aplicadas Poliomielite | L2: Cobertura Vacinal Poliomielite | M2: Doses Aplicadas Pneumo 10 | N2: Cobertura Vacinal Pneumo 10 | O2: Doses Aplicadas Rotavírus | P2: Cobertura Vacinal Rotavírus | Q2: Doses Aplicadas Meningo C | R2: Cobertura Vacinal Meningo C | S2: Doses Aplicadas Febre Amarela | T2: Cobertura Vacinal Febre Amarela | U2: Doses Aplicadas Hepatite A | V2: Cobertura Vacinal Hepatite A | W2: Doses Aplicadas de Tríplice Viral | X2: Cobertura Vacinal Tríplice Viral | Y2: Doses Aplicadas Varicela | Z2: Cobertura Varicela | AC2: VACINAS QUE ATINGIRAM A META DE CV | AD2: HOMOGENEIDADE ENTRE AS 10 VACINAS | AE2: VACINAS DO PQA-VS QUE ATINGIRAM A META DE CV | AF2: HOMOGENEIDADE ENTRE AS VACINAS DO PQA-VS
A3: Metropolitana | B3: Afonso Cláudio | C3: 374 | D3: 146 | E3: 102 | F3: =E3/D3 -> 0.698630137 | G3: 127 | H3: =G3/D3 -> 0.8698630137 | I3: 147 | J3: =I3/D3 -> 1.006849315 | K3: 147 | L3: =K3/D3 -> 1.006849315 | M3: 138 | N3: =M3/D3 -> 0.9452054795 | O3: 141 | P3: =O3/D3 -> 0.9657534247 | Q3: 151 | R3: =Q3/D3 -> 1.034246575 | S3: 144 | T3: =S3/D3 -> 0.9863013699 | U3: 146 | V3: =U3/D3 -> 1 | W3: 170 | X3: =W3/D3 -> 1.164383562 | Y3: 71 | Z3: =Y3/D3 -> 0.4863013699 | AC3: =cálculos1!P2 -> 7 | AD3: =AC3*0.1 -> 0.7 | AE3: =cálculos1!Q2 -> 3 | AF3: =AE3*0.25 -> 0.75 | AH3: LEGENDA / HOMOGENEIDADE PQA-VS
A4: Norte | B4: Água Doce do Norte | C4: 185 | D4: 90 | E4: 19 | F4: 0.2111111111 | G4: 36 | H4: 0.4 | I4: 65 | J4: 0.7222222222 | K4: 65 | L4: 0.7222222222 | M4: 71 | N4: 0.7888888889 | O4: 67 | P4: 0.7444444444 | Q4: 62 | R4: 0.6888888889 | S4: 55 | T4: 0.6111111111 | U4: 59 | V4: 0.6555555556 | W4: 56 | X4: 0.6222222222 | Y4: 28 | Z4: 0.3111111111 | AC4: =cálculos1!P3 -> 0 | AD4: =AC4*0.1 -> 0 | AE4: =cálculos1!Q3 -> 0 | AF4: =AE4*0.25 -> 0 | AH4: PERCENTUAL | AI4: Nº DE MUNICÍPIOS
A5: Central | B5: Águia Branca | C5: 165 | D5: 67 | E5: 31 | F5: 0.4626865672 | G5: 43 | H5: 0.6417910448 | I5: 73 | J5: 1.089552239 | K5: 72 | L5: 1.074626866 | M5: 66 | N5: 0.9850746269 | O5: 66 | P5: 0.9850746269 | Q5: 77 | R5: 1.149253731 | S5: 60 | T5: 0.8955223881 | U5: 46 | V5: 0.6865671642 | W5: 47 | X5: 0.7014925373 | Y5: 23 | Z5: 0.3432835821 | AC5: =cálculos1!P4 -> 5 | AD5: 0.5 | AE5: =cálculos1!Q4 -> 3 | AF5: 0.75 | AH5: 0 | AI5: =COUNTIF($AF$3:$AF$80,"=0") -> 29
A6: Sul | B6: Alegre | C6: 330 | D6: 135 | E6: 72 | F6: 0.5333333333 | G6: 91 | H6: 0.6740740741 | I6: 140 | J6: 1.037037037 | K6: 148 | L6: 1.096296296 | M6: 137 | N6: 1.014814815 | O6: 133 | P6: 0.9851851852 | Q6: 136 | R6: 1.007407407 | S6: 138 | T6: 1.022222222 | U6: 110 | V6: 0.8148148148 | W6: 125 | X6: 0.9259259259 | Y6: 53 | Z6: 0.3925925926 | AC6: =cálculos1!P5 -> 6 | AD6: 0.6 | AE6: =cálculos1!Q5 -> 3 | AF6: 0.75 | AH6: 0.25 | AI6: =COUNTIF($AF$3:$AF$80,"=0,25") -> 10
A7: Sul | B7: Alfredo Chaves | C7: 148 | D7: 59 | E7: 10 | F7: 0.1694915254 | G7: 31 | H7: 0.5254237288 | I7: 68 | J7: 1.152542373 | K7: 67 | L7: 1.13559322 | M7: 76 | N7: 1.288135593 | O7: 78 | P7: 1.322033898 | Q7: 69 | R7: 1.169491525 | S7: 57 | T7: 0.9661016949 | U7: 59 | V7: 1 | W7: 71 | X7: 1.203389831 | Y7: 49 | Z7: 0.8305084746 | AC7: =cálculos1!P6 -> 8 | AD7: 0.8 | AE7: =cálculos1!Q6 -> 4 | AF7: 1 | AH7: 0.5 | AI7: =COUNTIF($AF$3:$AF$80,"=0,5") -> 6
A8: Central | B8: Alto Rio Novo | C8: 84 | D8: 27 | E8: 4 | F8: 0.1481481481 | G8: 12 | H8: 0.4444444444 | I8: 41 | J8: 1.518518519 | K8: 40 | L8: 1.481481481 | M8: 39 | N8: 1.444444444 | O8: 40 | P8: 1.481481481 | Q8: 45 | R8: 1.666666667 | S8: 34 | T8: 1.259259259 | U8: 42 | V8: 1.555555556 | W8: 39 | X8: 1.444444444 | Y8: 22 | Z8: 0.8148148148 | AC8: =cálculos1!P7 -> 8 | AD8: 0.8 | AE8: =cálculos1!Q7 -> 4 | AF8: 1 | AH8: 0.75 | AI8: =COUNTIF($AF$3:$AF$80,"=0,75") -> 10
A9: Sul | B9: Anchieta | C9: 389 | D9: 169 | E9: 10 | F9: 0.05917159763 | G9: 91 | H9: 0.5384615385 | I9: 165 | J9: 0.9763313609 | K9: 167 | L9: 0.9881656805 | M9: 163 | N9: 0.9644970414 | O9: 161 | P9: 0.9526627219 | Q9: 167 | R9: 0.9881656805 | S9: 117 | T9: 0.6923076923 | U9: 144 | V9: 0.8520710059 | W9: 161 | X9: 0.9526627219 | Y9: 84 | Z9: 0.4970414201 | AC9: =cálculos1!P8 -> 6 | AD9: 0.6 | AE9: =cálculos1!Q8 -> 4 | AF9: 1 | AH9: 1 | AI9: =COUNTIF($AF$3:$AF$80,"=1,0") -> 23
A10: Sul | B10: Apiacá | C10: 71 | D10: 37 | E10: 11 | F10: 0.2972972973 | G10: 23 | H10: 0.6216216216 | I10: 22 | J10: 0.5945945946 | K10: 23 | L10: 0.6216216216 | M10: 25 | N10: 0.6756756757 | O10: 24 | P10: 0.6486486486 | Q10: 23 | R10: 0.6216216216 | S10: 24 | T10: 0.6486486486 | U10: 15 | V10: 0.4054054054 | W10: 27 | X10: 0.7297297297 | Y10: 8 | Z10: 0.2162162162 | AC10: =cálculos1!P9 -> 0 | AD10: 0 | AE10: =cálculos1!Q9 -> 0 | AF10: 0
A11: Metropolitana | B11: Aracruz | C11: 1465 | D11: 634 | E11: 464 | F11: 0.7318611987 | G11: 580 | H11: 0.9148264984 | I11: 545 | J11: 0.8596214511 | K11: 541 | L11: 0.8533123028 | M11: 555 | N11: 0.8753943218 | O11: 551 | P11: 0.8690851735 | Q11: 565 | R11: 0.8911671924 | S11: 516 | T11: 0.8138801262 | U11: 625 | V11: 0.9858044164 | W11: 652 | X11: 1.028391167 | Y11: 380 | Z11: 0.5993690852 | AC11: =cálculos1!P10 -> 3 | AD11: 0.3 | AE11: =cálculos1!Q10 -> 1 | AF11: 0.25
A12: Sul | B12: Atilio Vivacqua | C12: 138 | D12: 64 | E12: 0 | F12: 0 | G12: 0 | H12: 0 | I12: 52 | J12: 0.8125 | K12: 51 | L12: 0.796875 | M12: 52 | N12: 0.8125 | O12: 52 | P12: 0.8125 | Q12: 46 | R12: 0.71875 | S12: 48 | T12: 0.75 | U12: 57 | V12: 0.890625 | W12: 68 | X12: 1.0625 | Y12: 35 | Z12: 0.546875 | AC12: =cálculos1!P11 -> 1 | AD12: 0.1 | AE12: =cálculos1!Q11 -> 1 | AF12: 0.25 | AH12: LEGENDA / HOMOGENEIDADE 10 VACINAS
A13: Central | B13: Baixo Guandu | C13: 388 | D13: 163 | E13: 27 | F13: 0.1656441718 | G13: 83 | H13: 0.509202454 | I13: 158 | J13: 0.9693251534 | K13: 159 | L13: 0.9754601227 | M13: 174 | N13: 1.067484663 | O13: 167 | P13: 1.024539877 | Q13: 174 | R13: 1.067484663 | S13: 127 | T13: 0.7791411043 | U13: 160 | V13: 0.981595092 | W13: 191 | X13: 1.171779141 | Y13: 96 | Z13: 0.5889570552 | AC13: =cálculos1!P12 -> 7 | AD13: 0.7 | AE13: =cálculos1!Q12 -> 4 | AF13: 1 | AH13: PERCENTUAL | AI13: Nº DE MUNICÍPIOS
A14: Norte | B14: Barra de São Francisco | C14: 553 | D14: 241 | E14: 121 | F14: 0.5020746888 | G14: 217 | H14: 0.9004149378 | I14: 201 | J14: 0.8340248963 | K14: 199 | L14: 0.8257261411 | M14: 225 | N14: 0.9336099585 | O14: 220 | P14: 0.9128630705 | Q14: 213 | R14: 0.8838174274 | S14: 194 | T14: 0.8049792531 | U14: 178 | V14: 0.7385892116 | W14: 228 | X14: 0.9460580913 | Y14: 147 | Z14: 0.6099585062 | AC14: =cálculos1!P13 -> 2 | AD14: 0.2 | AE14: =cálculos1!Q13 -> 0 | AF14: 0 | AH14: 0 | AI14: =COUNTIF($AD$3:$AD$80,"=0") -> 22
A15: Norte | B15: Boa Esperança | C15: 189 | D15: 77 | E15: 5 | F15: 0.06493506494 | G15: 31 | H15: 0.4025974026 | I15: 67 | J15: 0.8701298701 | K15: 74 | L15: 0.961038961 | M15: 72 | N15: 0.9350649351 | O15: 76 | P15: 0.987012987 | Q15: 77 | R15: 1 | S15: 69 | T15: 0.8961038961 | U15: 63 | V15: 0.8181818182 | W15: 91 | X15: 1.181818182 | Y15: 57 | Z15: 0.7402597403 | AC15: =cálculos1!P14 -> 4 | AD15: 0.4 | AE15: =cálculos1!Q14 -> 2 | AF15: 0.5 | AH15: 0.1 | AI15: =COUNTIFS($AD$3:$AD$80,">=0,10",$AD$3:$AD$80,"<0,20") -> 9
A16: Sul | B16: Bom Jesus do Norte | C16: 84 | D16: 37 | E16: 21 | F16: 0.5675675676 | G16: 40 | H16: 1.081081081 | I16: 56 | J16: 1.513513514 | K16: 54 | L16: 1.459459459 | M16: 46 | N16: 1.243243243 | O16: 44 | P16: 1.189189189 | Q16: 46 | R16: 1.243243243 | S16: 45 | T16: 1.216216216 | U16: 16 | V16: 0.4324324324 | W16: 54 | X16: 1.459459459 | Y16: 17 | Z16: 0.4594594595 | AC16: =cálculos1!P15 -> 8 | AD16: 0.8 | AE16: =cálculos1!Q15 -> 4 | AF16: 1 | AH16: 0.2 | AI16: =COUNTIFS($AD$3:$AD$80,">=0,20",$AD$3:$AD$80,"<0,30") -> 4
A17: Metropolitana | B17: Brejetuba | C17: 214 | D17: 87 | E17: 13 | F17: 0.1494252874 | G17: 71 | H17: 0.816091954 | I17: 81 | J17: 0.9310344828 | K17: 81 | L17: 0.9310344828 | M17: 83 | N17: 0.9540229885 | O17: 89 | P17: 1.022988506 | Q17: 73 | R17: 0.8390804598 | S17: 87 | T17: 1 | U17: 71 | V17: 0.816091954 | W17: 76 | X17: 0.8735632184 | Y17: 43 | Z17: 0.4942528736 | AC17: =cálculos1!P16 -> 3 | AD17: 0.3 | AE17: =cálculos1!Q16 -> 1 | AF17: 0.25 | AH17: 0.3 | AI17: =COUNTIFS($AD$3:$AD$80,">=0,30",$AD$3:$AD$80,"<0,40") -> 5
A18: Sul | B18: Cachoeiro de Itapemirim | C18: 2460 | D18: 1105 | E18: 1695 | F18: 1.533936652 | G18: 2136 | H18: 1.933031674 | I18: 902 | J18: 0.8162895928 | K18: 890 | L18: 0.8054298643 | M18: 886 | N18: 0.8018099548 | O18: 877 | P18: 0.7936651584 | Q18: 852 | R18: 0.771040724 | S18: 690 | T18: 0.6244343891 | U18: 760 | V18: 0.6877828054 | W18: 951 | X18: 0.8606334842 | Y18: 398 | Z18: 0.3601809955 | AC18: =cálculos1!P17 -> 1 | AD18: 0.1 | AE18: =cálculos1!Q17 -> 0 | AF18: 0 | AH18: 0.4 | AI18: =COUNTIFS($AD$3:$AD$80,">=0,40",$AD$3:$AD$80,"<0,50") -> 7
A19: Metropolitana | B19: Cariacica | C19: 4873 | D19: 2069 | E19: 811 | F19: 0.3919768004 | G19: 1043 | H19: 0.5041082649 | I19: 1765 | J19: 0.8530691155 | K19: 1741 | L19: 0.8414693088 | M19: 1791 | N19: 0.8656355727 | O19: 1711 | P19: 0.8269695505 | Q19: 1737 | R19: 0.8395360077 | S19: 1468 | T19: 0.709521508 | U19: 1161 | V19: 0.5611406477 | W19: 1896 | X19: 0.9163847269 | Y19: 809 | Z19: 0.3910101498 | AC19: =cálculos1!P18 -> 0 | AD19: 0 | AE19: =cálculos1!Q18 -> 0 | AF19: 0 | AH19: 0.5 | AI19: =COUNTIFS($AD$3:$AD$80,">=0,50",$AD$3:$AD$80,"<0,60") -> 5
A20: Sul | B20: Castelo | C20: 443 | D20: 192 | E20: 85 | F20: 0.4427083333 | G20: 110 | H20: 0.5729166667 | I20: 166 | J20: 0.8645833333 | K20: 166 | L20: 0.8645833333 | M20: 166 | N20: 0.8645833333 | O20: 162 | P20: 0.84375 | Q20: 161 | R20: 0.8385416667 | S20: 160 | T20: 0.8333333333 | U20: 133 | V20: 0.6927083333 | W20: 202 | X20: 1.052083333 | Y20: 94 | Z20: 0.4895833333 | AC20: =cálculos1!P19 -> 1 | AD20: 0.1 | AE20: =cálculos1!Q19 -> 1 | AF20: 0.25 | AH20: 0.6 | AI20: =COUNTIFS($AD$3:$AD$80,">=0,60",$AD$3:$AD$80,"<0,70") -> 7
A21: Central | B21: Colatina | C21: 1561 | D21: 669 | E21: 1397 | F21: 2.08819133 | G21: 1473 | H21: 2.201793722 | I21: 584 | J21: 0.8729446936 | K21: 572 | L21: 0.8550074738 | M21: 564 | N21: 0.8430493274 | O21: 550 | P21: 0.822122571 | Q21: 538 | R21: 0.8041853513 | S21: 518 | T21: 0.7742899851 | U21: 289 | V21: 0.4319880419 | W21: 585 | X21: 0.8744394619 | Y21: 290 | Z21: 0.4334828102 | AC21: =cálculos1!P20 -> 1 | AD21: 0.1 | AE21: =cálculos1!Q20 -> 0 | AF21: 0 | AH21: 0.7 | AI21: =COUNTIFS($AD$3:$AD$80,">=0,70",$AD$3:$AD$80,"<0,80") -> 12
A22: Norte | B22: Conceição da Barra | C22: 342 | D22: 131 | E22: 6 | F22: 0.04580152672 | G22: 13 | H22: 0.09923664122 | I22: 143 | J22: 1.091603053 | K22: 145 | L22: 1.106870229 | M22: 152 | N22: 1.160305344 | O22: 150 | P22: 1.145038168 | Q22: 153 | R22: 1.167938931 | S22: 145 | T22: 1.106870229 | U22: 111 | V22: 0.8473282443 | W22: 155 | X22: 1.183206107 | Y22: 88 | Z22: 0.6717557252 | AC22: =cálculos1!P21 -> 7 | AD22: 0.7 | AE22: =cálculos1!Q21 -> 4 | AF22: 1 | AH22: 0.8 | AI22: =COUNTIFS($AD$3:$AD$80,">=0,80",$AD$3:$AD$80,"<0,90") -> 7
A23: Metropolitana | B23: Conceição do Castelo | C23: 169 | D23: 78 | E23: 0 | F23: 0 | G23: 0 | H23: 0 | I23: 62 | J23: 0.7948717949 | K23: 60 | L23: 0.7692307692 | M23: 52 | N23: 0.6666666667 | O23: 51 | P23: 0.6538461538 | Q23: 54 | R23: 0.6923076923 | S23: 65 | T23: 0.8333333333 | U23: 59 | V23: 0.7564102564 | W23: 54 | X23: 0.6923076923 | Y23: 45 | Z23: 0.5769230769 | AC23: =cálculos1!P22 -> 0 | AD23: 0 | AE23: =cálculos1!Q22 -> 0 | AF23: 0 | AH23: 0.9 | AI23: =COUNTIFS($AD$3:$AD$80,">=0,90",$AD$3:$AD$80,"<1,0") -> 0
A24: Sul | B24: Divino de São Lourenço | C24: 65 | D24: 25 | E24: 23 | F24: 0.92 | G24: 25 | H24: 1 | I24: 32 | J24: 1.28 | K24: 32 | L24: 1.28 | M24: 32 | N24: 1.28 | O24: 32 | P24: 1.28 | Q24: 35 | R24: 1.4 | S24: 27 | T24: 1.08 | U24: 23 | V24: 0.92 | W24: 18 | X24: 0.72 | Y24: 22 | Z24: 0.88 | AC24: =cálculos1!P23 -> 7 | AD24: 0.7 | AE24: =cálculos1!Q23 -> 3 | AF24: 0.75 | AH24: 1 | AI24: =COUNTIF($AD$3:$AD$80,">=1,0") -> 0
A25: Metropolitana | B25: Domingos Martins | C25: 417 | D25: 186 | E25: 8 | F25: 0.04301075269 | G25: 28 | H25: 0.1505376344 | I25: 149 | J25: 0.8010752688 | K25: 150 | L25: 0.8064516129 | M25: 175 | N25: 0.9408602151 | O25: 169 | P25: 0.9086021505 | Q25: 161 | R25: 0.8655913978 | S25: 146 | T25: 0.7849462366 | U25: 131 | V25: 0.7043010753 | W25: 176 | X25: 0.9462365591 | Y25: 144 | Z25: 0.7741935484 | AC25: =cálculos1!P24 -> 1 | AD25: 0.1 | AE25: =cálculos1!Q24 -> 0 | AF25: 0
A26: Sul | B26: Dores do Rio Preto | C26: 89 | D26: 34 | E26: 11 | F26: 0.3235294118 | G26: 28 | H26: 0.8235294118 | I26: 42 | J26: 1.235294118 | K26: 45 | L26: 1.323529412 | M26: 48 | N26: 1.411764706 | O26: 46 | P26: 1.352941176 | Q26: 46 | R26: 1.352941176 | S26: 38 | T26: 1.117647059 | U26: 29 | V26: 0.8529411765 | W26: 50 | X26: 1.470588235 | Y26: 18 | Z26: 0.5294117647 | AC26: =cálculos1!P25 -> 7 | AD26: 0.7 | AE26: =cálculos1!Q25 -> 4 | AF26: 1
A27: Norte | B27: Ecoporanga | C27: 266 | D27: 125 | E27: 51 | F27: 0.408 | G27: 59 | H27: 0.472 | I27: 101 | J27: 0.808 | K27: 100 | L27: 0.8 | M27: 92 | N27: 0.736 | O27: 88 | P27: 0.704 | Q27: 95 | R27: 0.76 | S27: 96 | T27: 0.768 | U27: 90 | V27: 0.72 | W27: 110 | X27: 0.88 | Y27: 76 | Z27: 0.608 | AC27: =cálculos1!P26 -> 0 | AD27: 0 | AE27: =cálculos1!Q26 -> 0 | AF27: 0
A28: Metropolitana | B28: Fundão | C28: 221 | D28: 94 | E28: 4 | F28: 0.04255319149 | G28: 39 | H28: 0.414893617 | I28: 96 | J28: 1.021276596 | K28: 94 | L28: 1 | M28: 93 | N28: 0.9893617021 | O28: 95 | P28: 1.010638298 | Q28: 89 | R28: 0.9468085106 | S28: 83 | T28: 0.8829787234 | U28: 84 | V28: 0.8936170213 | W28: 78 | X28: 0.829787234 | Y28: 66 | Z28: 0.7021276596 | AC28: =cálculos1!P27 -> 4 | AD28: 0.4 | AE28: =cálculos1!Q27 -> 3 | AF28: 0.75
A29: Central | B29: Governador Lindenberg | C29: 150 | D29: 72 | E29: 8 | F29: 0.1111111111 | G29: 15 | H29: 0.2083333333 | I29: 49 | J29: 0.6805555556 | K29: 46 | L29: 0.6388888889 | M29: 51 | N29: 0.7083333333 | O29: 53 | P29: 0.7361111111 | Q29: 51 | R29: 0.7083333333 | S29: 53 | T29: 0.7361111111 | U29: 45 | V29: 0.625 | W29: 59 | X29: 0.8194444444 | Y29: 34 | Z29: 0.4722222222 | AC29: =cálculos1!P28 -> 0 | AD29: 0 | AE29: =cálculos1!Q28 -> 0 | AF29: 0
A30: Sul | B30: Guaçuí | C30: 396 | D30: 150 | E30: 62 | F30: 0.4133333333 | G30: 98 | H30: 0.6533333333 | I30: 173 | J30: 1.153333333 | K30: 164 | L30: 1.093333333 | M30: 157 | N30: 1.046666667 | O30: 144 | P30: 0.96 | Q30: 151 | R30: 1.006666667 | S30: 137 | T30: 0.9133333333 | U30: 135 | V30: 0.9 | W30: 179 | X30: 1.193333333 | Y30: 73 | Z30: 0.4866666667 | AC30: =cálculos1!P29 -> 6 | AD30: 0.6 | AE30: =cálculos1!Q29 -> 4 | AF30: 1
A31: Metropolitana | B31: Guarapari | C31: 1732 | D31: 752 | E31: 419 | F31: 0.5571808511 | G31: 607 | H31: 0.8071808511 | I31: 604 | J31: 0.8031914894 | K31: 582 | L31: 0.7739361702 | M31: 618 | N31: 0.8218085106 | O31: 592 | P31: 0.7872340426 | Q31: 612 | R31: 0.8138297872 | S31: 456 | T31: 0.6063829787 | U31: 511 | V31: 0.6795212766 | W31: 618 | X31: 0.8218085106 | Y31: 383 | Z31: 0.5093085106 | AC31: =cálculos1!P30 -> 0 | AD31: 0 | AE31: =cálculos1!Q30 -> 0 | AF31: 0
A32: Metropolitana | B32: Ibatiba | C32: 362 | D32: 153 | E32: 61 | F32: 0.3986928105 | G32: 136 | H32: 0.8888888889 | I32: 154 | J32: 1.006535948 | K32: 155 | L32: 1.013071895 | M32: 147 | N32: 0.9607843137 | O32: 142 | P32: 0.9281045752 | Q32: 160 | R32: 1.045751634 | S32: 140 | T32: 0.9150326797 | U32: 122 | V32: 0.7973856209 | W32: 138 | X32: 0.9019607843 | Y32: 29 | Z32: 0.1895424837 | AC32: =cálculos1!P31 -> 5 | AD32: 0.5 | AE32: =cálculos1!Q31 -> 3 | AF32: 0.75
A33: Metropolitana | B33: Ibiraçu | C33: 154 | D33: 70 | E33: 12 | F33: 0.1714285714 | G33: 13 | H33: 0.1857142857 | I33: 53 | J33: 0.7571428571 | K33: 52 | L33: 0.7428571429 | M33: 50 | N33: 0.7142857143 | O33: 49 | P33: 0.7 | Q33: 54 | R33: 0.7714285714 | S33: 60 | T33: 0.8571428571 | U33: 37 | V33: 0.5285714286 | W33: 56 | X33: 0.8 | Y33: 29 | Z33: 0.4142857143 | AC33: =cálculos1!P32 -> 0 | AD33: 0 | AE33: =cálculos1!Q32 -> 0 | AF33: 0
A34: Sul | B34: Ibitirama | C34: 127 | D34: 52 | E34: 20 | F34: 0.3846153846 | G34: 33 | H34: 0.6346153846 | I34: 45 | J34: 0.8653846154 | K34: 42 | L34: 0.8076923077 | M34: 49 | N34: 0.9423076923 | O34: 50 | P34: 0.9615384615 | Q34: 41 | R34: 0.7884615385 | S34: 36 | T34: 0.6923076923 | U34: 41 | V34: 0.7884615385 | W34: 64 | X34: 1.230769231 | Y34: 37 | Z34: 0.7115384615 | AC34: =cálculos1!P33 -> 2 | AD34: 0.2 | AE34: =cálculos1!Q33 -> 1 | AF34: 0.25
A35: Sul | B35: Iconha | C35: 118 | D35: 47 | E35: 3 | F35: =E35/D35 -> 0.06382978723 | G35: 17 | H35: =G35/D35 -> 0.3617021277 | I35: 47 | J35: =I35/D35 -> 1 | K35: 45 | L35: =K35/D35 -> 0.9574468085 | M35: 46 | N35: =M35/D35 -> 0.9787234043 | O35: 47 | P35: =O35/D35 -> 1 | Q35: 46 | R35: =Q35/D35 -> 0.9787234043 | S35: 58 | T35: =S35/D35 -> 1.234042553 | U35: 44 | V35: =U35/D35 -> 0.9361702128 | W35: 65 | X35: =W35/D35 -> 1.382978723 | Y35: 18 | Z35: =Y35/D35 -> 0.3829787234 | AC35: =cálculos1!P34 -> 7 | AD35: 0.7 | AE35: =cálculos1!Q34 -> 4 | AF35: 1
A36: Sul | B36: Irupi | C36: 197 | D36: 75 | E36: 33 | F36: 0.44 | G36: 53 | H36: 0.7066666667 | I36: 86 | J36: 1.146666667 | K36: 85 | L36: 1.133333333 | M36: 98 | N36: 1.306666667 | O36: 93 | P36: 1.24 | Q36: 94 | R36: 1.253333333 | S36: 72 | T36: 0.96 | U36: 79 | V36: 1.053333333 | W36: 114 | X36: 1.52 | Y36: 23 | Z36: 0.3066666667 | AC36: =cálculos1!P35 -> 8 | AD36: 0.8 | AE36: =cálculos1!Q35 -> 4 | AF36: 1
A37: Metropolitana | B37: Itaguaçu | C37: 135 | D37: 59 | E37: 2 | F37: 0.03389830508 | G37: 44 | H37: 0.7457627119 | I37: 51 | J37: 0.8644067797 | K37: 51 | L37: 0.8644067797 | M37: 50 | N37: 0.8474576271 | O37: 50 | P37: 0.8474576271 | Q37: 53 | R37: 0.8983050847 | S37: 60 | T37: 1.016949153 | U37: 62 | V37: 1.050847458 | W37: 56 | X37: 0.9491525424 | Y37: 46 | Z37: 0.7796610169 | AC37: =cálculos1!P36 -> 2 | AD37: 0.2 | AE37: =cálculos1!Q36 -> 0 | AF37: 0
A38: Sul | B38: Itapemirim | C38: 541 | D38: 201 | E38: 339 | F38: 1.686567164 | G38: 107 | H38: 0.5323383085 | I38: 180 | J38: 0.8955223881 | K38: 175 | L38: 0.8706467662 | M38: 216 | N38: 1.074626866 | O38: 192 | P38: 0.9552238806 | Q38: 191 | R38: 0.9502487562 | S38: 119 | T38: 0.592039801 | U38: 171 | V38: 0.8507462687 | W38: 196 | X38: 0.9751243781 | Y38: 108 | Z38: 0.5373134328 | AC38: =cálculos1!P37 -> 4 | AD38: 0.4 | AE38: =cálculos1!Q37 -> 2 | AF38: 0.5
A39: Metropolitana | B39: Itarana | C39: 140 | D39: 65 | E39: 4 | F39: 0.06153846154 | G39: 56 | H39: 0.8615384615 | I39: 49 | J39: 0.7538461538 | K39: 49 | L39: 0.7538461538 | M39: 47 | N39: 0.7230769231 | O39: 49 | P39: 0.7538461538 | Q39: 47 | R39: 0.7230769231 | S39: 61 | T39: 0.9384615385 | U39: 23 | V39: 0.3538461538 | W39: 51 | X39: 0.7846153846 | Y39: 38 | Z39: 0.5846153846 | AC39: =cálculos1!P38 -> 0 | AD39: 0 | AE39: =cálculos1!Q38 -> 0 | AF39: 0
A40: Sul | B40: Iúna | C40: 474 | D40: 189 | E40: 91 | F40: 0.4814814815 | G40: 132 | H40: 0.6984126984 | I40: 197 | J40: 1.042328042 | K40: 196 | L40: 1.037037037 | M40: 188 | N40: 0.9947089947 | O40: 187 | P40: 0.9894179894 | Q40: 190 | R40: 1.005291005 | S40: 176 | T40: 0.9312169312 | U40: 132 | V40: 0.6984126984 | W40: 180 | X40: 0.9523809524 | Y40: 93 | Z40: 0.4920634921 | AC40: =cálculos1!P39 -> 6 | AD40: 0.6 | AE40: =cálculos1!Q39 -> 4 | AF40: 1
A41: Norte | B41: Jaguaré | C41: 489 | D41: 212 | E41: 133 | F41: 0.6273584906 | G41: 156 | H41: 0.7358490566 | I41: 201 | J41: 0.9481132075 | K41: 211 | L41: 0.9952830189 | M41: 177 | N41: 0.8349056604 | O41: 176 | P41: 0.8301886792 | Q41: 184 | R41: 0.8679245283 | S41: 183 | T41: 0.8632075472 | U41: 146 | V41: 0.6886792453 | W41: 192 | X41: 0.9056603774 | Y41: 103 | Z41: 0.4858490566 | AC41: =cálculos1!P40 -> 1 | AD41: 0.1 | AE41: =cálculos1!Q40 -> 1 | AF41: 0.25
A42: Sul | B42: Jerônimo Monteiro | C42: 156 | D42: 59 | E42: 5 | F42: 0.08474576271 | G42: 7 | H42: 0.1186440678 | I42: 72 | J42: 1.220338983 | K42: 74 | L42: 1.254237288 | M42: 65 | N42: 1.101694915 | O42: 65 | P42: 1.101694915 | Q42: 60 | R42: 1.016949153 | S42: 62 | T42: 1.050847458 | U42: 53 | V42: 0.8983050847 | W42: 59 | X42: 1 | Y42: 19 | Z42: 0.3220338983 | AC42: =cálculos1!P41 -> 7 | AD42: 0.7 | AE42: =cálculos1!Q41 -> 4 | AF42: 1
A43: Metropolitana | B43: João Neiva | C43: 178 | D43: 70 | E43: 10 | F43: 0.1428571429 | G43: 23 | H43: 0.3285714286 | I43: 72 | J43: 1.028571429 | K43: 71 | L43: 1.014285714 | M43: 70 | N43: 1 | O43: 67 | P43: 0.9571428571 | Q43: 66 | R43: 0.9428571429 | S43: 76 | T43: 1.085714286 | U43: 61 | V43: 0.8714285714 | W43: 83 | X43: 1.185714286 | Y43: 32 | Z43: 0.4571428571 | AC43: =cálculos1!P42 -> 6 | AD43: 0.6 | AE43: =cálculos1!Q42 -> 4 | AF43: 1
A44: Metropolitana | B44: Laranja da Terra | C44: 96 | D44: 43 | E44: 0 | F44: 0 | G44: 30 | H44: 0.6976744186 | I44: 42 | J44: 0.976744186 | K44: 42 | L44: 0.976744186 | M44: 32 | N44: 0.7441860465 | O44: 32 | P44: 0.7441860465 | Q44: 43 | R44: 1 | S44: 58 | T44: 1.348837209 | U44: 45 | V44: 1.046511628 | W44: 66 | X44: 1.534883721 | Y44: 45 | Z44: 1.046511628 | AC44: =cálculos1!P43 -> 7 | AD44: 0.7 | AE44: =cálculos1!Q43 -> 3 | AF44: 0.75
A45: Central | B45: Linhares | C45: 2598 | D45: 1125 | E45: 931 | F45: 0.8275555556 | G45: 1129 | H45: 1.003555556 | I45: 908 | J45: 0.8071111111 | K45: 894 | L45: 0.7946666667 | M45: 904 | N45: 0.8035555556 | O45: 905 | P45: 0.8044444444 | Q45: 878 | R45: 0.7804444444 | S45: 783 | T45: 0.696 | U45: 684 | V45: 0.608 | W45: 890 | X45: 0.7911111111 | Y45: 467 | Z45: 0.4151111111 | AC45: =cálculos1!P44 -> 1 | AD45: 0.1 | AE45: =cálculos1!Q44 -> 0 | AF45: 0
A46: Central | B46: Mantenópolis | C46: 161 | D46: 78 | E46: 15 | F46: 0.1923076923 | G46: 30 | H46: 0.3846153846 | I46: 58 | J46: 0.7435897436 | K46: 64 | L46: 0.8205128205 | M46: 52 | N46: 0.6666666667 | O46: 50 | P46: 0.641025641 | Q46: 47 | R46: 0.6025641026 | S46: 64 | T46: 0.8205128205 | U46: 54 | V46: 0.6923076923 | W46: 60 | X46: 0.7692307692 | Y46: 38 | Z46: 0.4871794872 | AC46: =cálculos1!P45 -> 0 | AD46: 0 | AE46: =cálculos1!Q45 -> 0 | AF46: 0
A47: Sul | B47: Marataízes | C47: 570 | D47: 266 | E47: 6 | F47: 0.02255639098 | G47: 103 | H47: 0.3872180451 | I47: 223 | J47: 0.8383458647 | K47: 225 | L47: 0.8458646617 | M47: 229 | N47: 0.8609022556 | O47: 219 | P47: 0.8233082707 | Q47: 224 | R47: 0.8421052632 | S47: 170 | T47: 0.6390977444 | U47: 218 | V47: 0.8195488722 | W47: 247 | X47: 0.9285714286 | Y47: 116 | Z47: 0.4360902256 | AC47: =cálculos1!P46 -> 0 | AD47: 0 | AE47: =cálculos1!Q46 -> 0 | AF47: 0
A48: Metropolitana | B48: Marechal Floriano | C48: 227 | D48: 102 | E48: 18 | F48: 0.1764705882 | G48: 22 | H48: 0.2156862745 | I48: 77 | J48: 0.7549019608 | K48: 77 | L48: 0.7549019608 | M48: 92 | N48: 0.9019607843 | O48: 90 | P48: 0.8823529412 | Q48: 95 | R48: 0.931372549 | S48: 68 | T48: 0.6666666667 | U48: 82 | V48: 0.8039215686 | W48: 96 | X48: 0.9411764706 | Y48: 67 | Z48: 0.6568627451 | AC48: =cálculos1!P47 -> 0 | AD48: 0 | AE48: =cálculos1!Q47 -> 0 | AF48: 0
A49: Central | B49: Marilândia | C49: 167 | D49: 61 | E49: 12 | F49: 0.1967213115 | G49: 26 | H49: 0.4262295082 | I49: 59 | J49: 0.9672131148 | K49: 59 | L49: 0.9672131148 | M49: 51 | N49: 0.8360655738 | O49: 58 | P49: 0.9508196721 | Q49: 67 | R49: 1.098360656 | S49: 64 | T49: 1.049180328 | U49: 55 | V49: 0.9016393443 | W49: 52 | X49: 0.8524590164 | Y49: 45 | Z49: 0.737704918 | AC49: =cálculos1!P48 -> 5 | AD49: 0.5 | AE49: =cálculos1!Q48 -> 2 | AF49: 0.5
A50: Sul | B50: Mimoso do Sul | C50: 262 | D50: 105 | E50: 15 | F50: 0.1428571429 | G50: 19 | H50: 0.180952381 | I50: 84 | J50: 0.8 | K50: 83 | L50: 0.7904761905 | M50: 77 | N50: 0.7333333333 | O50: 73 | P50: 0.6952380952 | Q50: 85 | R50: 0.8095238095 | S50: 82 | T50: 0.780952381 | U50: 66 | V50: 0.6285714286 | W50: 90 | X50: 0.8571428571 | Y50: 57 | Z50: 0.5428571429 | AC50: =cálculos1!P49 -> 0 | AD50: 0 | AE50: =cálculos1!Q49 -> 0 | AF50: 0
A51: Norte | B51: Montanha | C51: 233 | D51: 76 | E51: 23 | F51: 0.3026315789 | G51: 36 | H51: 0.4736842105 | I51: 124 | J51: 1.631578947 | K51: 126 | L51: 1.657894737 | M51: 101 | N51: 1.328947368 | O51: 103 | P51: 1.355263158 | Q51: 111 | R51: 1.460526316 | S51: 108 | T51: 1.421052632 | U51: 103 | V51: 1.355263158 | W51: 104 | X51: 1.368421053 | Y51: 71 | Z51: 0.9342105263 | AC51: =cálculos1!P50 -> 8 | AD51: 0.8 | AE51: =cálculos1!Q50 -> 4 | AF51: 1
A52: Norte | B52: Mucurici | C52: 68 | D52: 21 | E52: 4 | F52: 0.1904761905 | G52: 4 | H52: 0.1904761905 | I52: 36 | J52: 1.714285714 | K52: 36 | L52: 1.714285714 | M52: 36 | N52: 1.714285714 | O52: 35 | P52: 1.666666667 | Q52: 38 | R52: 1.80952381 | S52: 37 | T52: 1.761904762 | U52: 19 | V52: 0.9047619048 | W52: 38 | X52: 1.80952381 | Y52: 17 | Z52: 0.8095238095 | AC52: =cálculos1!P51 -> 7 | AD52: 0.7 | AE52: =cálculos1!Q51 -> 4 | AF52: 1
A53: Sul | B53: Muniz Freire | C53: 210 | D53: 86 | E53: 45 | F53: 0.523255814 | G53: 66 | H53: 0.7674418605 | I53: 97 | J53: 1.127906977 | K53: 91 | L53: 1.058139535 | M53: 98 | N53: 1.139534884 | O53: 98 | P53: 1.139534884 | Q53: 90 | R53: 1.046511628 | S53: 90 | T53: 1.046511628 | U53: 82 | V53: 0.9534883721 | W53: 113 | X53: 1.313953488 | Y53: 49 | Z53: 0.5697674419 | AC53: =cálculos1!P52 -> 8 | AD53: 0.8 | AE53: =cálculos1!Q52 -> 4 | AF53: 1
A54: Sul | B54: Muqui | C54: 163 | D54: 60 | E54: 2 | F54: 0.03333333333 | G54: 9 | H54: 0.15 | I54: 80 | J54: 1.333333333 | K54: 81 | L54: 1.35 | M54: 60 | N54: 1 | O54: 59 | P54: 0.9833333333 | Q54: 70 | R54: 1.166666667 | S54: 70 | T54: 1.166666667 | U54: 53 | V54: 0.8833333333 | W54: 61 | X54: 1.016666667 | Y54: 37 | Z54: 0.6166666667 | AC54: =cálculos1!P53 -> 7 | AD54: 0.7 | AE54: =cálculos1!Q53 -> 4 | AF54: 1
A55: Norte | B55: Nova Venécia | C55: 681 | D55: 301 | E55: 28 | F55: 0.09302325581 | G55: 163 | H55: 0.5415282392 | I55: 269 | J55: 0.8936877076 | K55: 269 | L55: 0.8936877076 | M55: 240 | N55: 0.7973421927 | O55: 235 | P55: 0.780730897 | Q55: 246 | R55: 0.8172757475 | S55: 270 | T55: 0.8970099668 | U55: 219 | V55: 0.7275747508 | W55: 275 | X55: 0.9136212625 | Y55: 166 | Z55: 0.5514950166 | AC55: =cálculos1!P54 -> 0 | AD55: 0 | AE55: =cálculos1!Q54 -> 0 | AF55: 0
A56: Central | B56: Pancas | C56: 216 | D56: 91 | E56: 14 | F56: 0.1538461538 | G56: 45 | H56: 0.4945054945 | I56: 90 | J56: 0.989010989 | K56: 89 | L56: 0.978021978 | M56: 83 | N56: 0.9120879121 | O56: 82 | P56: 0.9010989011 | Q56: 93 | R56: 1.021978022 | S56: 86 | T56: 0.9450549451 | U56: 83 | V56: 0.9120879121 | W56: 80 | X56: 0.8791208791 | Y56: 73 | Z56: 0.8021978022 | AC56: =cálculos1!P55 -> 4 | AD56: 0.4 | AE56: =cálculos1!Q55 -> 2 | AF56: 0.5
A57: Norte | B57: Pedro Canário | C57: 305 | D57: 132 | E57: 7 | F57: 0.05303030303 | G57: 7 | H57: 0.05303030303 | I57: 141 | J57: 1.068181818 | K57: 140 | L57: 1.060606061 | M57: 115 | N57: 0.8712121212 | O57: 111 | P57: 0.8409090909 | Q57: 134 | R57: 1.015151515 | S57: 132 | T57: 1 | U57: 91 | V57: 0.6893939394 | W57: 154 | X57: 1.166666667 | Y57: 93 | Z57: 0.7045454545 | AC57: =cálculos1!P56 -> 5 | AD57: 0.5 | AE57: =cálculos1!Q56 -> 3 | AF57: 0.75
A58: Norte | B58: Pinheiros | C58: 301 | D58: 109 | E58: 5 | F58: 0.04587155963 | G58: 8 | H58: 0.07339449541 | I58: 141 | J58: 1.293577982 | K58: 140 | L58: 1.28440367 | M58: 135 | N58: 1.23853211 | O58: 133 | P58: 1.220183486 | Q58: 123 | R58: 1.128440367 | S58: 128 | T58: 1.174311927 | U58: 92 | V58: 0.8440366972 | W58: 131 | X58: 1.201834862 | Y58: 48 | Z58: 0.4403669725 | AC58: =cálculos1!P57 -> 7 | AD58: 0.7 | AE58: =cálculos1!Q57 -> 4 | AF58: 1
A59: Sul | B59: Piúma | C59: 309 | D59: 122 | E59: 3 | F59: 0.02459016393 | G59: 80 | H59: 0.6557377049 | I59: 120 | J59: 0.9836065574 | K59: 119 | L59: 0.9754098361 | M59: 117 | N59: 0.9590163934 | O59: 108 | P59: 0.8852459016 | Q59: 93 | R59: 0.762295082 | S59: 83 | T59: 0.6803278689 | U59: 89 | V59: 0.7295081967 | W59: 121 | X59: 0.9918032787 | Y59: 55 | Z59: 0.4508196721 | AC59: =cálculos1!P58 -> 4 | AD59: 0.4 | AE59: =cálculos1!Q58 -> 4 | AF59: 1
A60: Norte | B60: Ponto Belo | C60: 75 | D60: 25 | E60: 6 | F60: 0.24 | G60: 4 | H60: 0.16 | I60: 17 | J60: 0.68 | K60: 17 | L60: 0.68 | M60: 24 | N60: 0.96 | O60: 23 | P60: 0.92 | Q60: 15 | R60: 0.6 | S60: 27 | T60: 1.08 | U60: 13 | V60: 0.52 | W60: 27 | X60: 1.08 | Y60: 16 | Z60: 0.64 | AC60: =cálculos1!P59 -> 4 | AD60: 0.4 | AE60: =cálculos1!Q59 -> 2 | AF60: 0.5
A61: Sul | B61: Presidente Kennedy | C61: 194 | D61: 94 | E61: 3 | F61: 0.03191489362 | G61: 9 | H61: 0.09574468085 | I61: 66 | J61: 0.7021276596 | K61: 69 | L61: 0.7340425532 | M61: 59 | N61: 0.6276595745 | O61: 58 | P61: 0.6170212766 | Q61: 59 | R61: 0.6276595745 | S61: 66 | T61: 0.7021276596 | U61: 65 | V61: 0.6914893617 | W61: 100 | X61: 1.063829787 | Y61: 43 | Z61: 0.4574468085 | AC61: =cálculos1!P60 -> 1 | AD61: 0.1 | AE61: =cálculos1!Q60 -> 1 | AF61: 0.25
A62: Central | B62: Rio Bananal | C62: 299 | D62: 130 | E62: 30 | F62: 0.2307692308 | G62: 27 | H62: 0.2076923077 | I62: 115 | J62: 0.8846153846 | K62: 115 | L62: 0.8846153846 | M62: 102 | N62: 0.7846153846 | O62: 108 | P62: 0.8307692308 | Q62: 104 | R62: 0.8 | S62: 124 | T62: 0.9538461538 | U62: 109 | V62: 0.8384615385 | W62: 131 | X62: 1.007692308 | Y62: 75 | Z62: 0.5769230769 | AC62: =cálculos1!P61 -> 2 | AD62: 0.2 | AE62: =cálculos1!Q61 -> 1 | AF62: 0.25
A63: Sul | B63: Rio Novo do Sul | C63: 120 | D63: 47 | E63: 2 | F63: 0.04255319149 | G63: 18 | H63: 0.3829787234 | I63: 58 | J63: 1.234042553 | K63: 57 | L63: 1.212765957 | M63: 49 | N63: 1.042553191 | O63: 50 | P63: 1.063829787 | Q63: 50 | R63: 1.063829787 | S63: 42 | T63: 0.8936170213 | U63: 44 | V63: 0.9361702128 | W63: 46 | X63: 0.9787234043 | Y63: 40 | Z63: 0.8510638298 | AC63: =cálculos1!P62 -> 6 | AD63: 0.6 | AE63: =cálculos1!Q62 -> 4 | AF63: 1
A64: Metropolitana | B64: Santa Leopoldina | C64: 93 | D64: 32 | E64: 1 | F64: 0.03125 | G64: 12 | H64: 0.375 | I64: 43 | J64: 1.34375 | K64: 42 | L64: 1.3125 | M64: 40 | N64: 1.25 | O64: 42 | P64: 1.3125 | Q64: 50 | R64: 1.5625 | S64: 41 | T64: 1.28125 | U64: 48 | V64: 1.5 | W64: 53 | X64: 1.65625 | Y64: 13 | Z64: 0.40625 | AC64: =cálculos1!P63 -> 8 | AD64: 0.8 | AE64: =cálculos1!Q63 -> 4 | AF64: 1
A65: Metropolitana | B65: Santa Maria de Jetibá | C65: 682 | D65: 302 | E65: 139 | F65: 0.4602649007 | G65: 197 | H65: 0.6523178808 | I65: 241 | J65: 0.798013245 | K65: 240 | L65: 0.7947019868 | M65: 242 | N65: 0.8013245033 | O65: 248 | P65: 0.821192053 | Q65: 237 | R65: 0.7847682119 | S65: 227 | T65: 0.7516556291 | U65: 262 | V65: 0.8675496689 | W65: 274 | X65: 0.9072847682 | Y65: 128 | Z65: 0.4238410596 | AC65: =cálculos1!P64 -> 0 | AD65: 0 | AE65: =cálculos1!Q64 -> 0 | AF65: 0
A66: Metropolitana | B66: Santa Teresa | C66: 299 | D66: 120 | E66: 225 | F66: 1.875 | G66: 95 | H66: 0.7916666667 | I66: 117 | J66: 0.975 | K66: 118 | L66: 0.9833333333 | M66: 119 | N66: 0.9916666667 | O66: 115 | P66: 0.9583333333 | Q66: 104 | R66: 0.8666666667 | S66: 96 | T66: 0.8 | U66: 87 | V66: 0.725 | W66: 103 | X66: 0.8583333333 | Y66: 80 | Z66: 0.6666666667 | AC66: =cálculos1!P65 -> 4 | AD66: 0.4 | AE66: =cálculos1!Q65 -> 3 | AF66: 0.75
A67: Central | B67: São Domingos do Norte | C67: 126 | D67: 58 | E67: 9 | F67: =E67/D67 -> 0.1551724138 | G67: 19 | H67: =G67/D67 -> 0.3275862069 | I67: 44 | J67: =I67/D67 -> 0.7586206897 | K67: 45 | L67: =K67/D67 -> 0.775862069 | M67: 47 | N67: =M67/D67 -> 0.8103448276 | O67: 48 | P67: =O67/D67 -> 0.8275862069 | Q67: 48 | R67: =Q67/D67 -> 0.8275862069 | S67: 50 | T67: =S67/D67 -> 0.8620689655 | U67: 27 | V67: =U67/D67 -> 0.4655172414 | W67: 40 | X67: =W67/D67 -> 0.6896551724 | Y67: 24 | Z67: =Y67/D67 -> 0.4137931034 | AC67: =cálculos1!P66 -> 0 | AD67: 0 | AE67: =cálculos1!Q66 -> 0 | AF67: 0
A68: Central | B68: São Gabriel da Palha | C68: 440 | D68: 172 | E68: 36 | F68: 0.2093023256 | G68: 102 | H68: 0.5930232558 | I68: 161 | J68: 0.9360465116 | K68: 163 | L68: 0.9476744186 | M68: 170 | N68: 0.988372093 | O68: 162 | P68: 0.9418604651 | Q68: 169 | R68: 0.9825581395 | S68: 146 | T68: 0.8488372093 | U68: 115 | V68: 0.6686046512 | W68: 153 | X68: 0.8895348837 | Y68: 84 | Z68: 0.488372093 | AC68: =cálculos1!P67 -> 3 | AD68: =AC68*0.1 -> 0.3 | AE68: =cálculos1!Q67 -> 1 | AF68: =AE68*0.25 -> 0.25
A69: Sul | B69: São José do Calçado | C69: 101 | D69: 44 | E69: 26 | F69: 0.5909090909 | G69: 33 | H69: 0.75 | I69: 58 | J69: 1.318181818 | K69: 57 | L69: 1.295454545 | M69: 45 | N69: 1.022727273 | O69: 39 | P69: 0.8863636364 | Q69: 52 | R69: 1.181818182 | S69: 39 | T69: 0.8863636364 | U69: 40 | V69: 0.9090909091 | W69: 57 | X69: 1.295454545 | Y69: 34 | Z69: 0.7727272727 | AC69: =cálculos1!P68 -> 5 | AD69: 0.5 | AE69: =cálculos1!Q68 -> 4 | AF69: 1
A70: Norte | B70: São Mateus | C70: 1742 | D70: 613 | E70: 921 | F70: 1.502446982 | G70: 1104 | H70: 1.800978793 | I70: 727 | J70: 1.185970636 | K70: 715 | L70: 1.16639478 | M70: 709 | N70: 1.156606852 | O70: 658 | P70: 1.073409462 | Q70: 658 | R70: 1.073409462 | S70: 537 | T70: 0.8760195759 | U70: 527 | V70: 0.8597063622 | W70: 644 | X70: 1.050570962 | Y70: 330 | Z70: 0.5383360522 | AC70: =cálculos1!P69 -> 7 | AD70: 0.7 | AE70: =cálculos1!Q69 -> 4 | AF70: 1
A71: Central | B71: São Roque do Canaã | C71: 131 | D71: 77 | E71: 18 | F71: 0.2337662338 | G71: 22 | H71: 0.2857142857 | I71: 39 | J71: 0.5064935065 | K71: 38 | L71: 0.4935064935 | M71: 38 | N71: 0.4935064935 | O71: 43 | P71: 0.5584415584 | Q71: 41 | R71: 0.5324675325 | S71: 54 | T71: 0.7012987013 | U71: 43 | V71: 0.5584415584 | W71: 64 | X71: 0.8311688312 | Y71: 28 | Z71: 0.3636363636 | AC71: =cálculos1!P70 -> 0 | AD71: 0 | AE71: =cálculos1!Q70 -> 0 | AF71: 0
A72: Metropolitana | B72: Serra | C72: 7393 | D72: 3287 | E72: 3023 | F72: 0.9196836021 | G72: 3412 | H72: 1.038028598 | I72: 2600 | J72: 0.7909948281 | K72: 2585 | L72: 0.7864313964 | M72: 2507 | N72: 0.7627015516 | O72: 2458 | P72: 0.7477943413 | Q72: 2481 | R72: 0.7547916033 | S72: 2159 | T72: 0.6568299361 | U72: 1081 | V72: 0.3288713112 | W72: 2536 | X72: 0.7715241862 | Y72: 841 | Z72: 0.255856404 | AC72: =cálculos1!P71 -> 1 | AD72: 0.1 | AE72: =cálculos1!Q71 -> 0 | AF72: 0
A73: Central | B73: Sooretama | C73: 439 | D73: 196 | E73: 9 | F73: 0.04591836735 | G73: 10 | H73: 0.05102040816 | I73: 166 | J73: 0.8469387755 | K73: 169 | L73: 0.862244898 | M73: 152 | N73: 0.7755102041 | O73: 150 | P73: 0.7653061224 | Q73: 140 | R73: 0.7142857143 | S73: 158 | T73: 0.806122449 | U73: 160 | V73: 0.8163265306 | W73: 163 | X73: 0.8316326531 | Y73: 72 | Z73: 0.3673469388 | AC73: =cálculos1!P72 -> 0 | AD73: 0 | AE73: =cálculos1!Q72 -> 0 | AF73: 0
A74: Sul | B74: Vargem Alta | C74: 265 | D74: 121 | E74: 2 | F74: 0.01652892562 | G74: 10 | H74: 0.0826446281 | I74: 90 | J74: 0.7438016529 | K74: 90 | L74: 0.7438016529 | M74: 98 | N74: 0.8099173554 | O74: 102 | P74: 0.8429752066 | Q74: 100 | R74: 0.826446281 | S74: 94 | T74: 0.7768595041 | U74: 94 | V74: 0.7768595041 | W74: 112 | X74: 0.9256198347 | Y74: 55 | Z74: 0.4545454545 | AC74: =cálculos1!P73 -> 0 | AD74: 0 | AE74: =cálculos1!Q73 -> 0 | AF74: 0
A75: Metropolitana | B75: Venda Nova do Imigrante | C75: 392 | D75: 162 | E75: 15 | F75: 0.09259259259 | G75: 172 | H75: 1.061728395 | I75: 168 | J75: 1.037037037 | K75: 168 | L75: 1.037037037 | M75: 149 | N75: 0.9197530864 | O75: 145 | P75: 0.8950617284 | Q75: 155 | R75: 0.9567901235 | S75: 164 | T75: 1.012345679 | U75: 106 | V75: 0.6543209877 | W75: 173 | X75: 1.067901235 | Y75: 65 | Z75: 0.4012345679 | AC75: =cálculos1!P74 -> 6 | AD75: 0.6 | AE75: =cálculos1!Q74 -> 3 | AF75: 0.75
A76: Metropolitana | B76: Viana | C76: 980 | D76: 430 | E76: 69 | F76: 0.1604651163 | G76: 81 | H76: 0.188372093 | I76: 369 | J76: 0.8581395349 | K76: 356 | L76: 0.8279069767 | M76: 373 | N76: 0.8674418605 | O76: 355 | P76: 0.8255813953 | Q76: 371 | R76: 0.8627906977 | S76: 265 | T76: 0.6162790698 | U76: 286 | V76: 0.6651162791 | W76: 368 | X76: 0.8558139535 | Y76: 134 | Z76: 0.311627907 | AC76: =cálculos1!P75 -> 0 | AD76: 0 | AE76: =cálculos1!Q75 -> 0 | AF76: 0
A77: Norte | B77: Vila Pavão | C77: 91 | D77: 43 | E77: 9 | F77: 0.2093023256 | G77: 26 | H77: 0.6046511628 | I77: 37 | J77: 0.8604651163 | K77: 36 | L77: 0.8372093023 | M77: 33 | N77: 0.7674418605 | O77: 33 | P77: 0.7674418605 | Q77: 35 | R77: 0.8139534884 | S77: 47 | T77: 1.093023256 | U77: 46 | V77: 1.069767442 | W77: 61 | X77: 1.418604651 | Y77: 29 | Z77: 0.6744186047 | AC77: =cálculos1!P76 -> 3 | AD77: 0.3 | AE77: =cálculos1!Q76 -> 1 | AF77: 0.25
A78: Central | B78: Vila Valério | C78: 259 | D78: 121 | E78: 11 | F78: 0.09090909091 | G78: 28 | H78: 0.2314049587 | I78: 86 | J78: 0.7107438017 | K78: 80 | L78: 0.6611570248 | M78: 81 | N78: 0.6694214876 | O78: 89 | P78: 0.7355371901 | Q78: 93 | R78: 0.7685950413 | S78: 87 | T78: 0.7190082645 | U78: 79 | V78: 0.652892562 | W78: 86 | X78: 0.7107438017 | Y78: 53 | Z78: 0.4380165289 | AC78: =cálculos1!P77 -> 0 | AD78: 0 | AE78: =cálculos1!Q77 -> 0 | AF78: 0
A79: Metropolitana | B79: Vila Velha | C79: 5698 | D79: 2372 | E79: 1504 | F79: 0.6340640809 | G79: 1819 | H79: 0.7668634064 | I79: 1876 | J79: 0.7908937605 | K79: 1874 | L79: 0.7900505902 | M79: 1870 | N79: 0.7883642496 | O79: 1903 | P79: 0.8022765599 | Q79: 1907 | R79: 0.8039629005 | S79: 1598 | T79: 0.673693086 | U79: 1321 | V79: 0.5569139966 | W79: 1959 | X79: 0.8258853288 | Y79: 853 | Z79: 0.3596121417 | AC79: =cálculos1!P78 -> 0 | AD79: 0 | AE79: =cálculos1!Q78 -> 0 | AF79: 0
A80: Metropolitana | B80: Vitória | C80: 3748 | D80: 1596 | E80: 2063 | F80: 1.292606516 | G80: 2814 | H80: 1.763157895 | I80: 1598 | J80: 1.001253133 | K80: 1599 | L80: 1.001879699 | M80: 1389 | N80: 0.8703007519 | O80: 1426 | P80: 0.8934837093 | Q80: 1492 | R80: 0.9348370927 | S80: 1146 | T80: 0.7180451128 | U80: 1509 | V80: 0.9454887218 | W80: 1424 | X80: 0.8922305764 | Y80: 719 | Z80: 0.4505012531 | AC80: =cálculos1!P79 -> 3 | AD80: 0.3 | AE80: =cálculos1!Q79 -> 2 | AF80: 0.5
B82: Total Norte | C82: =SUMIF($A$3:$A$80,"Norte",C$3:C$80) -> 5520 | D82: =SUMIF($A$3:$A$80,"Norte",D$3:D$80) -> 2196 | E82: =SUMIF($A$3:$A$80,"Norte",E$3:E$80) -> 1338 | F82: =E82/D82 -> 0.6092896175 | G82: =SUMIF($A$3:$A$80,"Norte",G$3:G$80) -> 1864 | H82: =G82/D82 -> 0.8488160291 | I82: =SUMIF($A$3:$A$80,"Norte",I$3:I$80) -> 2270 | J82: =I82/D82 -> 1.033697632 | K82: =SUMIF($A$3:$A$80,"Norte",K$3:K$80) -> 2273 | L82: =K82/D82 -> 1.035063752 | M82: =SUMIF($A$3:$A$80,"Norte",M$3:M$80) -> 2182 | N82: =M82/D82 -> 0.9936247723 | O82: =SUMIF($A$3:$A$80,"Norte",O$3:O$80) -> 2108 | P82: =O82/D82 -> 0.9599271403 | Q82: =SUMIF($A$3:$A$80,"Norte",Q$3:Q$80) -> 2144 | R82: =Q82/D82 -> 0.9763205829 | S82: =SUMIF($A$3:$A$80,"Norte",S$3:S$80) -> 2028 | T82: =S82/D82 -> 0.9234972678 | U82: =SUMIF($A$3:$A$80,"Norte",U$3:U$80) -> 1757 | V82: =U82/D82 -> 0.8000910747 | W82: =SUMIF($A$3:$A$80,"Norte",W$3:W$80) -> 2266 | X82: =W82/D82 -> 1.031876138 | Y82: =SUMIF($A$3:$A$80,"Norte",Y$3:Y$80) -> 1269 | Z82: =Y82/D82 -> 0.5778688525 | AC82: =cálculos1!P81 -> 6 | AD82: =AC82*0.1 -> 0.6 | AE82: =cálculos1!Q81 -> 4 | AF82: 1
B83: Total Central | C83: =SUMIF($A$3:$A$80,"Central",C$3:C$80) -> 7184 | D83: =SUMIF($A$3:$A$80,"Central",D$3:D$80) -> 3107 | E83: =SUMIF($A$3:$A$80,"Central",E$3:E$80) -> 2552 | F83: =E83/D83 -> 0.8213710975 | G83: =SUMIF($A$3:$A$80,"Central",G$3:G$80) -> 3064 | H83: =G83/D83 -> 0.9861602832 | I83: =SUMIF($A$3:$A$80,"Central",I$3:I$80) -> 2631 | J83: =I83/D83 -> 0.8467975539 | K83: =SUMIF($A$3:$A$80,"Central",K$3:K$80) -> 2605 | L83: =K83/D83 -> 0.8384293531 | M83: =SUMIF($A$3:$A$80,"Central",M$3:M$80) -> 2574 | N83: =M83/D83 -> 0.8284518828 | O83: =SUMIF($A$3:$A$80,"Central",O$3:O$80) -> 2571 | P83: =O83/D83 -> 0.8274863212 | Q83: =SUMIF($A$3:$A$80,"Central",Q$3:Q$80) -> 2565 | R83: =Q83/D83 -> 0.8255551979 | S83: =SUMIF($A$3:$A$80,"Central",S$3:S$80) -> 2408 | T83: =S83/D83 -> 0.775024139 | U83: =SUMIF($A$3:$A$80,"Central",U$3:U$80) -> 1991 | V83: =U83/D83 -> 0.6408110718 | W83: =SUMIF($A$3:$A$80,"Central",W$3:W$80) -> 2640 | X83: =W83/D83 -> 0.8496942388 | Y83: =SUMIF($A$3:$A$80,"Central",Y$3:Y$80) -> 1424 | Z83: =Y83/D83 -> 0.4583199228 | AC83: =cálculos1!P82 -> 1 | AD83: =AC83*0.1 -> 0.1 | AE83: =cálculos1!Q82 -> 0 | AF83: 0
B84: Total Metropolitana | C84: =SUMIF($A$3:$A$80,"Metropolitana",C$3:C$80) -> 30042 | D84: =SUMIF($A$3:$A$80,"Metropolitana",D$3:D$80) -> 12909 | E84: =SUMIF($A$3:$A$80,"Metropolitana",E$3:E$80) -> 8967 | F84: =E84/D84 -> 0.6946316523 | G84: =SUMIF($A$3:$A$80,"Metropolitana",G$3:G$80) -> 11421 | H84: =G84/D84 -> 0.8847315826 | I84: =SUMIF($A$3:$A$80,"Metropolitana",I$3:I$80) -> 10959 | J84: =I84/D84 -> 0.8489425982 | K84: =SUMIF($A$3:$A$80,"Metropolitana",K$3:K$80) -> 10875 | L84: =K84/D84 -> 0.8424355101 | M84: =SUMIF($A$3:$A$80,"Metropolitana",M$3:M$80) -> 10682 | N84: =M84/D84 -> 0.8274847006 | O84: =SUMIF($A$3:$A$80,"Metropolitana",O$3:O$80) -> 10570 | P84: =O84/D84 -> 0.8188085832 | Q84: =SUMIF($A$3:$A$80,"Metropolitana",Q$3:Q$80) -> 10757 | R84: =Q84/D84 -> 0.8332946007 | S84: =SUMIF($A$3:$A$80,"Metropolitana",S$3:S$80) -> 9184 | T84: =S84/D84 -> 0.7114416299 | U84: =SUMIF($A$3:$A$80,"Metropolitana",U$3:U$80) -> 7920 | V84: =U84/D84 -> 0.6135254474 | W84: =SUMIF($A$3:$A$80,"Metropolitana",W$3:W$80) -> 11156 | X84: =W84/D84 -> 0.864203269 | Y84: =SUMIF($A$3:$A$80,"Metropolitana",Y$3:Y$80) -> 5060 | Z84: =Y84/D84 -> 0.3919745914 | AC84: =cálculos1!P83 -> 0 | AD84: 0 | AE84: =cálculos1!Q83 -> 0 | AF84: 0
B85: Total Sul | C85: =SUMIF($A$3:$A$80,"sul",C$3:C$80) -> 8420 | D85: =SUMIF($A$3:$A$80,"sul",D$3:D$80) -> 3575 | E85: =SUMIF($A$3:$A$80,"Sul",E$3:E$80) -> 2595 | F85: =E85/D85 -> 0.7258741259 | G85: =SUMIF($A$3:$A$80,"Sul",G$3:G$80) -> 3369 | H85: =G85/D85 -> 0.9423776224 | I85: =SUMIF($A$3:$A$80,"Sul",I$3:I$80) -> 3321 | J85: =I85/D85 -> 0.928951049 | K85: =SUMIF($A$3:$A$80,"Sul",K$3:K$80) -> 3296 | L85: =K85/D85 -> 0.921958042 | M85: =SUMIF($A$3:$A$80,"Sul",M$3:M$80) -> 3282 | N85: =M85/D85 -> 0.918041958 | O85: =SUMIF($A$3:$A$80,"Sul",O$3:O$80) -> 3193 | P85: =O85/D85 -> 0.8931468531 | Q85: =SUMIF($A$3:$A$80,"Sul",Q$3:Q$80) -> 3177 | R85: =Q85/D85 -> 0.8886713287 | S85: =SUMIF($A$3:$A$80,"Sul",S$3:S$80) -> 2740 | T85: =S85/D85 -> 0.7664335664 | U85: =SUMIF($A$3:$A$80,"Sul",U$3:U$80) -> 2752 | V85: =U85/D85 -> 0.7697902098 | W85: =SUMIF($A$3:$A$80,"Sul",W$3:W$80) -> 3531 | X85: =W85/D85 -> 0.9876923077 | Y85: =SUMIF($A$3:$A$80,"Sul",Y$3:Y$80) -> 1635 | Z85: =Y85/D85 -> 0.4573426573 | AC85: =cálculos1!P84 -> 2 | AD85: 0.2 | AE85: =cálculos1!Q84 -> 1 | AF85: 0.25
B86: Total Espírito Santo | C86: =SUM(C3:C80) -> 51166 | D86: =SUM(D3:D80) -> 21787 | E86: =SUM(E82:E85) -> 15452 | F86: =E86/D86 -> 0.7092302749 | G86: =SUM(G82:G85) -> 19718 | H86: =G86/D86 -> 0.9050351127 | I86: =SUM(I82:I85) -> 19181 | J86: =I86/D86 -> 0.880387387 | K86: =SUM(K82:K85) -> 19049 | L86: =K86/D86 -> 0.8743287281 | M86: =SUM(M82:M85) -> 18720 | N86: =M86/D86 -> 0.85922798 | O86: =SUM(O82:O85) -> 18442 | P86: =O86/D86 -> 0.8464680773 | Q86: =SUM(Q82:Q85) -> 18643 | R86: =Q86/D86 -> 0.8556937623 | S86: =SUM(S82:S85) -> 16360 | T86: =S86/D86 -> 0.7509065039 | U86: =SUM(U82:U85) -> 14420 | V86: =U86/D86 -> 0.6618625786 | W86: =SUM(W82:W85) -> 19593 | X86: =W86/D86 -> 0.8992977464 | Y86: =SUM(Y82:Y85) -> 9388 | Z86: =Y86/D86 -> 0.43089916 | AC86: =cálculos1!P85 -> 1 | AD86: 0.1 | AE86: =cálculos1!Q85 -> 0 | AF86: 0
E87: =COUNTIF(F3:F80,">=0,95") -> 6 | G87: =COUNTIF(H3:H80,">=0,9") -> 11 | I87: =COUNTIF(J3:J80,">=0,95") -> 36 | K87: =COUNTIF(L3:L80,">=0,95") -> 38 | M87: =COUNTIF(N3:N80,">=0,95") -> 33 | O87: =COUNTIF(P3:P80,">=0,9") -> 38 | Q87: =COUNTIF(R3:R80,">=0,95") -> 34 | S87: =COUNTIF(T3:T80,">=0,95") -> 27 | U87: =COUNTIF(V3:V80,">=0,95") -> 12 | W87: =COUNTIF(X3:X80,">=0,95") -> 37 | Y87: =COUNTIF(Z3:Z80,">=0,95") -> 1
B88: HOMOGENEIDADE ENTRE MUNICÍPIOS | E88: =E87/78 -> 0.07692307692 | G88: =G87/78 -> 0.141025641 | I88: =I87/78 -> 0.4615384615 | K88: =K87/78 -> 0.4871794872 | M88: =M87/78 -> 0.4230769231 | O88: =O87/78 -> 0.4871794872 | Q88: =Q87/78 -> 0.4358974359 | S88: =S87/78 -> 0.3461538462 | U88: =U87/78 -> 0.1538461538 | W88: =W87/78 -> 0.4743589744 | Y88: =Y87/78 -> 0.01282051282
A90: FonteVacina e Confia, em 04 de Junho de 2024.**
A91: **Dados referente às doses aplicadas no período de Maio de 2024
A92: Cobertura Calculada por município de procedência da vacinação
A93: 1 População anual extraída do MS/SVS/DASIS - SINASC/DASIS/SVS/MS 2023 (hoje preliminares) referente ao período de março a dezembro de 2023 e SINASC/DASIS/SVS/MS 2024 referente ao período de janeiro a fevereiro de 2024.
A95: ² População proporcional extraída do MS/SVS/DASIS - SINASC/DASIS/SVS/MS 2023 (hoje preliminares) referente ao período de março e abril de 2023 somada a população extraída do SINASC/DASIS/SVS/MS 2024 referente ao período de janeiro e fevereiro de 2024.
A97: Observações:
A98: Imunobiológicos que foram recebidos parcialmente pelo estado no mês da análise, sendo distribuídos em quantidades reduzidas às regionais e municípios: Varicela, Febre Amarela e HPV Quadrivalente.
A99: Imunobiológicos que não foram recebidos pelo estado no mês da análise, não sendo possível a distribuição às regionais e municípios: Meningo C, Hepatite A (CRIE), HIB, Hepatite A Rotina Pediátrica, DTPa (CRIE).
A100: Imunobiológicos com indisponibilidade de aquisição e distribuição no mês da análise: Tetra Viral.

Sheet CV Rotina <2A - residência
E1: AO NASCER | I1: MENOR DE 1 ANO | U1: 1 ANO
A2: Regional | B2: Município | C2: ¹População < 1 ano e 1 ano anual | D2: ²População < 1 ano e 1 ano proporcional | E2: Doses Aplicadas HB < 30 dias | F2: Cobertura Vacinal HB até 30 dias | G2: Doses Aplicadas BCG | H2: Cobertura Vacinal BCG | I2: Doses Aplicadas Pentavalente | J2: Cobertura Vacinal Pentavalente | K2: Doses Aplicadas Poliomielite | L2: Cobertura Vacinal Poliomielite | M2: Doses Aplicadas Pneumo 10 | N2: Cobertura Vacinal Pneumo 10 | O2: Doses Aplicadas Rotavírus | P2: Cobertura Vacinal Rotavírus | Q2: Doses Aplicadas Meningo C | R2: Cobertura Vacinal Meningo C | S2: Doses Aplicadas Febre Amarela | T2: Cobertura Vacinal Febre Amarela | U2: Doses Aplicadas Hepatite A | V2: Cobertura Vacinal Hepatite A | W2: Doses Aplicadas de Tríplice Viral | X2: Cobertura Vacinal Tríplice Viral | Y2: Doses Aplicadas Varicela | Z2: Cobertura Varicela | AC2: VACINAS QUE ATINGIRAM A META DE CV | AD2: HOMOGENEIDADE ENTRE AS 10 VACINAS | AE2: VACINAS DO PQA-VS QUE ATINGIRAM A META DE CV | AF2: HOMOGENEIDADE ENTRE AS VACINAS DO PQA-VS
A3: Metropolitana | B3: Afonso Cláudio | C3: 374 | D3: 146 | E3: 101 | F3: =E3/D3 -> 0.6917808219 | G3: 135 | H3: =G3/D3 -> 0.9246575342 | I3: 159 | J3: =I3/D3 -> 1.089041096 | K3: 160 | L3: =K3/D3 -> 1.095890411 | M3: 153 | N3: =M3/D3 -> 1.047945205 | O3: 155 | P3: =O3/D3 -> 1.061643836 | Q3: 160 | R3: =Q3/D3 -> 1.095890411 | S3: 149 | T3: =S3/D3 -> 1.020547945 | U3: 152 | V3: =U3/D3 -> 1.04109589 | W3: 180 | X3: =W3/D3 -> 1.232876712 | Y3: 77 | Z3: =Y3/D3 -> 0.5273972603 | AC3: =cálculos2!P2 -> 9 | AD3: =AC3*0.1 -> 0.9 | AE3: =cálculos2!Q2 -> 4 | AF3: =AE3*0.25 -> 1 | AH3: LEGENDA / HOMOGENEIDADE PQA-VS
A4: Norte | B4: Água Doce do Norte | C4: 185 | D4: 90 | E4: 68 | F4: 0.7555555556 | G4: 97 | H4: =G4/D4 -> 1.077777778 | I4: 69 | J4: =I4/D4 -> 0.7666666667 | K4: 70 | L4: =K4/D4 -> 0.7777777778 | M4: 74 | N4: =M4/D4 -> 0.8222222222 | O4: 73 | P4: =O4/D4 -> 0.8111111111 | Q4: 68 | R4: =Q4/D4 -> 0.7555555556 | S4: 57 | T4: =S4/D4 -> 0.6333333333 | U4: 54 | V4: 0.6 | W4: 55 | X4: 0.6111111111 | Y4: 24 | Z4: 0.2666666667 | AC4: =cálculos2!P3 -> 1 | AD4: =AC4*0.1 -> 0.1 | AE4: =cálculos2!Q3 -> 0 | AF4: =AE4*0.25 -> 0 | AH4: PERCENTUAL | AI4: Nº DE MUNICÍPIOS
A5: Central | B5: Águia Branca | C5: 165 | D5: 67 | E5: 51 | F5: 0.7611940299 | G5: 73 | H5: 1.089552239 | I5: 72 | J5: 1.074626866 | K5: 72 | L5: 1.074626866 | M5: 70 | N5: 1.044776119 | O5: 68 | P5: 1.014925373 | Q5: 73 | R5: 1.089552239 | S5: 60 | T5: 0.8955223881 | U5: 47 | V5: 0.7014925373 | W5: 49 | X5: 0.7313432836 | Y5: 23 | Z5: 0.3432835821 | AC5: =cálculos2!P4 -> 6 | AD5: 0.6 | AE5: =cálculos2!Q4 -> 3 | AF5: 0.75 | AH5: 0 | AI5: =COUNTIF($AF$3:$AF$80,"=0") -> 29
A6: Sul | B6: Alegre | C6: 330 | D6: 135 | E6: 103 | F6: 0.762962963 | G6: 125 | H6: 0.9259259259 | I6: 130 | J6: 0.962962963 | K6: 138 | L6: 1.022222222 | M6: 133 | N6: 0.9851851852 | O6: 130 | P6: 0.962962963 | Q6: 133 | R6: 0.9851851852 | S6: 135 | T6: 1 | U6: 105 | V6: 0.7777777778 | W6: 132 | X6: 0.9777777778 | Y6: 50 | Z6: 0.3703703704 | AC6: =cálculos2!P5 -> 8 | AD6: 0.8 | AE6: =cálculos2!Q5 -> 4 | AF6: 1 | AH6: 0.25 | AI6: =COUNTIF($AF$3:$AF$80,"=0,25") -> 8
A7: Sul | B7: Alfredo Chaves | C7: 148 | D7: 59 | E7: 30 | F7: 0.5084745763 | G7: 44 | H7: 0.7457627119 | I7: 67 | J7: 1.13559322 | K7: 66 | L7: 1.118644068 | M7: 72 | N7: 1.220338983 | O7: 74 | P7: 1.254237288 | Q7: 66 | R7: 1.118644068 | S7: 60 | T7: 1.016949153 | U7: 50 | V7: 0.8474576271 | W7: 71 | X7: 1.203389831 | Y7: 41 | Z7: 0.6949152542 | AC7: =cálculos2!P6 -> 7 | AD7: 0.7 | AE7: =cálculos2!Q6 -> 4 | AF7: 1 | AH7: 0.5 | AI7: =COUNTIF($AF$3:$AF$80,"=0,5") -> 9
A8: Central | B8: Alto Rio Novo | C8: 84 | D8: 27 | E8: 21 | F8: 0.7777777778 | G8: 33 | H8: 1.222222222 | I8: 40 | J8: 1.481481481 | K8: 40 | L8: 1.481481481 | M8: 37 | N8: 1.37037037 | O8: 38 | P8: 1.407407407 | Q8: 39 | R8: 1.444444444 | S8: 31 | T8: 1.148148148 | U8: 33 | V8: 1.222222222 | W8: 37 | X8: 1.37037037 | Y8: 16 | Z8: 0.5925925926 | AC8: =cálculos2!P7 -> 9 | AD8: 0.9 | AE8: =cálculos2!Q7 -> 4 | AF8: 1 | AH8: 0.75 | AI8: =COUNTIF($AF$3:$AF$80,"=0,75") -> 6
A9: Sul | B9: Anchieta | C9: 389 | D9: 169 | E9: 114 | F9: 0.674556213 | G9: 144 | H9: 0.8520710059 | I9: 182 | J9: 1.076923077 | K9: 184 | L9: 1.088757396 | M9: 165 | N9: 0.9763313609 | O9: 165 | P9: 0.9763313609 | Q9: 176 | R9: 1.041420118 | S9: 128 | T9: 0.7573964497 | U9: 142 | V9: 0.8402366864 | W9: 165 | X9: 0.9763313609 | Y9: 84 | Z9: 0.4970414201 | AC9: =cálculos2!P8 -> 6 | AD9: 0.6 | AE9: =cálculos2!Q8 -> 4 | AF9: 1 | AH9: 1 | AI9: =COUNTIF($AF$3:$AF$80,"=1,0") -> 26
A10: Sul | B10: Apiacá | C10: 71 | D10: 37 | E10: 14 | F10: 0.3783783784 | G10: 31 | H10: 0.8378378378 | I10: 23 | J10: 0.6216216216 | K10: 23 | L10: 0.6216216216 | M10: 24 | N10: 0.6486486486 | O10: 23 | P10: 0.6216216216 | Q10: 23 | R10: 0.6216216216 | S10: 23 | T10: 0.6216216216 | U10: 10 | V10: 0.2702702703 | W10: 25 | X10: 0.6756756757 | Y10: 6 | Z10: 0.1621621622 | AC10: =cálculos2!P9 -> 0 | AD10: 0 | AE10: =cálculos2!Q9 -> 0 | AF10: 0
A11: Metropolitana | B11: Aracruz | C11: 1465 | D11: 634 | E11: 484 | F11: 0.7634069401 | G11: 590 | H11: 0.9305993691 | I11: 534 | J11: 0.8422712934 | K11: 531 | L11: 0.8375394322 | M11: 549 | N11: 0.8659305994 | O11: 546 | P11: 0.8611987382 | Q11: 553 | R11: 0.8722397476 | S11: 494 | T11: 0.7791798107 | U11: 592 | V11: 0.9337539432 | W11: 635 | X11: 1.001577287 | Y11: 363 | Z11: 0.572555205 | AC11: =cálculos2!P10 -> 2 | AD11: 0.2 | AE11: =cálculos2!Q10 -> 1 | AF11: 0.25
A12: Sul | B12: Atilio Vivacqua | C12: 138 | D12: 64 | E12: 40 | F12: 0.625 | G12: 51 | H12: 0.796875 | I12: 48 | J12: 0.75 | K12: 47 | L12: 0.734375 | M12: 50 | N12: 0.78125 | O12: 50 | P12: 0.78125 | Q12: 46 | R12: 0.71875 | S12: 40 | T12: 0.625 | U12: 49 | V12: 0.765625 | W12: 63 | X12: 0.984375 | Y12: 31 | Z12: 0.484375 | AC12: =cálculos2!P11 -> 1 | AD12: 0.1 | AE12: =cálculos2!Q11 -> 1 | AF12: 0.25 | AH12: LEGENDA / HOMOGENEIDADE 10 VACINAS
A13: Central | B13: Baixo Guandu | C13: 388 | D13: 163 | E13: 103 | F13: 0.6319018405 | G13: 156 | H13: 0.9570552147 | I13: 153 | J13: 0.9386503067 | K13: 154 | L13: 0.9447852761 | M13: 164 | N13: 1.006134969 | O13: 159 | P13: 0.9754601227 | Q13: 171 | R13: 1.049079755 | S13: 130 | T13: 0.7975460123 | U13: 157 | V13: 0.963190184 | W13: 186 | X13: 1.141104294 | Y13: 97 | Z13: 0.5950920245 | AC13: =cálculos2!P12 -> 6 | AD13: 0.6 | AE13: =cálculos2!Q12 -> 2 | AF13: 0.5 | AH13: PERCENTUAL | AI13: Nº DE MUNICÍPIOS
A14: Norte | B14: Barra de São Francisco | C14: 553 | D14: 241 | E14: 162 | F14: 0.6721991701 | G14: 219 | H14: 0.9087136929 | I14: 209 | J14: 0.867219917 | K14: 204 | L14: 0.846473029 | M14: 216 | N14: 0.8962655602 | O14: 207 | P14: 0.8589211618 | Q14: 218 | R14: 0.9045643154 | S14: 200 | T14: 0.8298755187 | U14: 182 | V14: 0.755186722 | W14: 225 | X14: 0.9336099585 | Y14: 148 | Z14: 0.6141078838 | AC14: =cálculos2!P13 -> 1 | AD14: 0.1 | AE14: =cálculos2!Q13 -> 0 | AF14: 0 | AH14: 0 | AI14: =COUNTIF($AD$3:$AD$80,"=0") -> 19
A15: Norte | B15: Boa Esperança | C15: 189 | D15: 77 | E15: 40 | F15: 0.5194805195 | G15: 68 | H15: 0.8831168831 | I15: 69 | J15: 0.8961038961 | K15: 77 | L15: 1 | M15: 79 | N15: 1.025974026 | O15: 82 | P15: 1.064935065 | Q15: 82 | R15: 1.064935065 | S15: 74 | T15: 0.961038961 | U15: 61 | V15: 0.7922077922 | W15: 90 | X15: 1.168831169 | Y15: 53 | Z15: 0.6883116883 | AC15: =cálculos2!P14 -> 6 | AD15: 0.6 | AE15: =cálculos2!Q14 -> 3 | AF15: 0.75 | AH15: 0.1 | AI15: =COUNTIFS($AD$3:$AD$80,">=0,10",$AD$3:$AD$80,"<0,20") -> 9
A16: Sul | B16: Bom Jesus do Norte | C16: 84 | D16: 37 | E16: 22 | F16: 0.5945945946 | G16: 33 | H16: 0.8918918919 | I16: 52 | J16: 1.405405405 | K16: 50 | L16: 1.351351351 | M16: 42 | N16: 1.135135135 | O16: 40 | P16: 1.081081081 | Q16: 40 | R16: 1.081081081 | S16: 43 | T16: 1.162162162 | U16: 8 | V16: 0.2162162162 | W16: 39 | X16: 1.054054054 | Y16: 5 | Z16: 0.1351351351 | AC16: =cálculos2!P15 -> 7 | AD16: 0.7 | AE16: =cálculos2!Q15 -> 4 | AF16: 1 | AH16: 0.2 | AI16: =COUNTIFS($AD$3:$AD$80,">=0,20",$AD$3:$AD$80,"<0,30") -> 7
A17: Metropolitana | B17: Brejetuba | C17: 214 | D17: 87 | E17: 26 | F17: 0.2988505747 | G17: 82 | H17: 0.9425287356 | I17: 78 | J17: 0.8965517241 | K17: 78 | L17: 0.8965517241 | M17: 77 | N17: 0.8850574713 | O17: 82 | P17: 0.9425287356 | Q17: 70 | R17: 0.8045977011 | S17: 84 | T17: 0.9655172414 | U17: 74 | V17: 0.8505747126 | W17: 77 | X17: 0.8850574713 | Y17: 41 | Z17: 0.4712643678 | AC17: =cálculos2!P16 -> 3 | AD17: 0.3 | AE17: =cálculos2!Q16 -> 0 | AF17: 0 | AH17: 0.3 | AI17: =COUNTIFS($AD$3:$AD$80,">=0,30",$AD$3:$AD$80,"<0,40") -> 3
A18: Sul | B18: Cachoeiro de Itapemirim | C18: 2460 | D18: 1105 | E18: 947 | F18: 0.8570135747 | G18: 1169 | H18: 1.057918552 | I18: 900 | J18: 0.814479638 | K18: 886 | L18: 0.8018099548 | M18: 877 | N18: 0.7936651584 | O18: 870 | P18: 0.7873303167 | Q18: 834 | R18: 0.7547511312 | S18: 717 | T18: 0.6488687783 | U18: 777 | V18: 0.7031674208 | W18: 977 | X18: 0.8841628959 | Y18: 416 | Z18: 0.3764705882 | AC18: =cálculos2!P17 -> 1 | AD18: 0.1 | AE18: =cálculos2!Q17 -> 0 | AF18: 0 | AH18: 0.4 | AI18: =COUNTIFS($AD$3:$AD$80,">=0,40",$AD$3:$AD$80,"<0,50") -> 6
A19: Metropolitana | B19: Cariacica | C19: 4873 | D19: 2069 | E19: 1458 | F19: 0.7046882552 | G19: 1728 | H19: 0.8351860802 | I19: 1809 | J19: 0.8743354277 | K19: 1783 | L19: 0.8617689705 | M19: 1819 | N19: 0.8791686805 | O19: 1742 | P19: 0.8419526341 | Q19: 1754 | R19: 0.8477525375 | S19: 1461 | T19: 0.706138231 | U19: 1236 | V19: 0.5973900435 | W19: 1901 | X19: 0.9188013533 | Y19: 830 | Z19: 0.4011599807 | AC19: =cálculos2!P18 -> 0 | AD19: 0 | AE19: =cálculos2!Q18 -> 0 | AF19: 0 | AH19: 0.5 | AI19: =COUNTIFS($AD$3:$AD$80,">=0,50",$AD$3:$AD$80,"<0,60") -> 3
A20: Sul | B20: Castelo | C20: 443 | D20: 192 | E20: 132 | F20: 0.6875 | G20: 156 | H20: 0.8125 | I20: 173 | J20: 0.9010416667 | K20: 174 | L20: 0.90625 | M20: 174 | N20: 0.90625 | O20: 169 | P20: 0.8802083333 | Q20: 167 | R20: 0.8697916667 | S20: 159 | T20: 0.828125 | U20: 134 | V20: 0.6979166667 | W20: 196 | X20: 1.020833333 | Y20: 92 | Z20: 0.4791666667 | AC20: =cálculos2!P19 -> 1 | AD20: 0.1 | AE20: =cálculos2!Q19 -> 1 | AF20: 0.25 | AH20: 0.6 | AI20: =COUNTIFS($AD$3:$AD$80,">=0,60",$AD$3:$AD$80,"<0,70") -> 10
A21: Central | B21: Colatina | C21: 1561 | D21: 669 | E21: 538 | F21: 0.8041853513 | G21: 680 | H21: 1.016442451 | I21: 581 | J21: 0.8684603886 | K21: 567 | L21: 0.8475336323 | M21: 560 | N21: 0.8370702541 | O21: 560 | P21: 0.8370702541 | Q21: 560 | R21: 0.8370702541 | S21: 531 | T21: 0.7937219731 | U21: 322 | V21: 0.4813153961 | W21: 595 | X21: 0.889387145 | Y21: 309 | Z21: 0.4618834081 | AC21: =cálculos2!P20 -> 1 | AD21: 0.1 | AE21: =cálculos2!Q20 -> 0 | AF21: 0 | AH21: 0.7 | AI21: =COUNTIFS($AD$3:$AD$80,">=0,70",$AD$3:$AD$80,"<0,80") -> 9
A22: Norte | B22: Conceição da Barra | C22: 342 | D22: 131 | E22: 68 | F22: 0.5190839695 | G22: 78 | H22: 0.5954198473 | I22: 145 | J22: 1.106870229 | K22: 149 | L22: 1.13740458 | M22: 154 | N22: 1.175572519 | O22: 148 | P22: 1.129770992 | Q22: 156 | R22: 1.190839695 | S22: 147 | T22: 1.122137405 | U22: 113 | V22: 0.8625954198 | W22: 160 | X22: 1.221374046 | Y22: 87 | Z22: 0.6641221374 | AC22: =cálculos2!P21 -> 7 | AD22: 0.7 | AE22: =cálculos2!Q21 -> 4 | AF22: 1 | AH22: 0.8 | AI22: =COUNTIFS($AD$3:$AD$80,">=0,80",$AD$3:$AD$80,"<0,90") -> 6
A23: Metropolitana | B23: Conceição do Castelo | C23: 169 | D23: 78 | E23: 13 | F23: 0.1666666667 | G23: 56 | H23: 0.7179487179 | I23: 55 | J23: 0.7051282051 | K23: 52 | L23: 0.6666666667 | M23: 45 | N23: 0.5769230769 | O23: 44 | P23: 0.5641025641 | Q23: 45 | R23: 0.5769230769 | S23: 56 | T23: 0.7179487179 | U23: 54 | V23: 0.6923076923 | W23: 54 | X23: 0.6923076923 | Y23: 41 | Z23: 0.5256410256 | AC23: =cálculos2!P22 -> 0 | AD23: 0 | AE23: =cálculos2!Q22 -> 0 | AF23: 0 | AH23: 0.9 | AI23: =COUNTIFS($AD$3:$AD$80,">=0,90",$AD$3:$AD$80,"<1,0") -> 6
A24: Sul | B24: Divino de São Lourenço | C24: 65 | D24: 25 | E24: 26 | F24: 1.04 | G24: 35 | H24: 1.4 | I24: 30 | J24: 1.2 | K24: 29 | L24: 1.16 | M24: 32 | N24: 1.28 | O24: 32 | P24: 1.28 | Q24: 34 | R24: 1.36 | S24: 23 | T24: 0.92 | U24: 21 | V24: 0.84 | W24: 18 | X24: 0.72 | Y24: 18 | Z24: 0.72 | AC24: =cálculos2!P23 -> 6 | AD24: 0.6 | AE24: =cálculos2!Q23 -> 3 | AF24: 0.75 | AH24: 1 | AI24: =COUNTIF($AD$3:$AD$80,">=1,0") -> 0
A25: Metropolitana | B25: Domingos Martins | C25: 417 | D25: 186 | E25: 102 | F25: 0.5483870968 | G25: 146 | H25: 0.7849462366 | I25: 152 | J25: 0.8172043011 | K25: 151 | L25: 0.811827957 | M25: 169 | N25: 0.9086021505 | O25: 164 | P25: 0.8817204301 | Q25: 155 | R25: 0.8333333333 | S25: 140 | T25: 0.752688172 | U25: 134 | V25: 0.7204301075 | W25: 173 | X25: 0.9301075269 | Y25: 145 | Z25: 0.7795698925 | AC25: =cálculos2!P24 -> 0 | AD25: 0 | AE25: =cálculos2!Q24 -> 0 | AF25: 0
A26: Sul | B26: Dores do Rio Preto | C26: 89 | D26: 34 | E26: 16 | F26: 0.4705882353 | G26: 26 | H26: 0.7647058824 | I26: 36 | J26: 1.058823529 | K26: 39 | L26: 1.147058824 | M26: 43 | N26: 1.264705882 | O26: 41 | P26: 1.205882353 | Q26: 41 | R26: 1.205882353 | S26: 35 | T26: 1.029411765 | U26: 25 | V26: 0.7352941176 | W26: 44 | X26: 1.294117647 | Y26: 13 | Z26: 0.3823529412 | AC26: =cálculos2!P25 -> 7 | AD26: 0.7 | AE26: =cálculos2!Q25 -> 4 | AF26: 1
A27: Norte | B27: Ecoporanga | C27: 266 | D27: 125 | E27: 105 | F27: 0.84 | G27: 130 | H27: 1.04 | I27: 102 | J27: 0.816 | K27: 100 | L27: 0.8 | M27: 95 | N27: 0.76 | O27: 91 | P27: 0.728 | Q27: 95 | R27: 0.76 | S27: 97 | T27: 0.776 | U27: 91 | V27: 0.728 | W27: 107 | X27: 0.856 | Y27: 75 | Z27: 0.6 | AC27: =cálculos2!P26 -> 1 | AD27: 0.1 | AE27: =cálculos2!Q26 -> 0 | AF27: 0
A28: Metropolitana | B28: Fundão | C28: 221 | D28: 94 | E28: 60 | F28: 0.6382978723 | G28: 73 | H28: 0.7765957447 | I28: 99 | J28: 1.053191489 | K28: 96 | L28: 1.021276596 | M28: 82 | N28: 0.8723404255 | O28: 83 | P28: 0.8829787234 | Q28: 82 | R28: 0.8723404255 | S28: 85 | T28: 0.9042553191 | U28: 74 | V28: 0.7872340426 | W28: 85 | X28: 0.9042553191 | Y28: 59 | Z28: 0.6276595745 | AC28: =cálculos2!P27 -> 2 | AD28: 0.2 | AE28: =cálculos2!Q27 -> 2 | AF28: 0.5
A29: Central | B29: Governador Lindenberg | C29: 150 | D29: 72 | E29: 36 | F29: 0.5 | G29: 46 | H29: 0.6388888889 | I29: 54 | J29: 0.75 | K29: 52 | L29: 0.7222222222 | M29: 55 | N29: 0.7638888889 | O29: 56 | P29: 0.7777777778 | Q29: 51 | R29: 0.7083333333 | S29: 60 | T29: 0.8333333333 | U29: 41 | V29: 0.5694444444 | W29: 53 | X29: 0.7361111111 | Y29: 36 | Z29: 0.5 | AC29: =cálculos2!P28 -> 0 | AD29: 0 | AE29: =cálculos2!Q28 -> 0 | AF29: 0
A30: Sul | B30: Guaçuí | C30: 396 | D30: 150 | E30: 103 | F30: 0.6866666667 | G30: 140 | H30: 0.9333333333 | I30: 180 | J30: 1.2 | K30: 172 | L30: 1.146666667 | M30: 163 | N30: 1.086666667 | O30: 149 | P30: 0.9933333333 | Q30: 160 | R30: 1.066666667 | S30: 137 | T30: 0.9133333333 | U30: 141 | V30: 0.94 | W30: 177 | X30: 1.18 | Y30: 82 | Z30: 0.5466666667 | AC30: =cálculos2!P29 -> 7 | AD30: 0.7 | AE30: =cálculos2!Q29 -> 4 | AF30: 1
A31: Metropolitana | B31: Guarapari | C31: 1732 | D31: 752 | E31: 480 | F31: 0.6382978723 | G31: 673 | H31: 0.8949468085 | I31: 621 | J31: 0.8257978723 | K31: 601 | L31: 0.7992021277 | M31: 639 | N31: 0.8497340426 | O31: 617 | P31: 0.8204787234 | Q31: 633 | R31: 0.8417553191 | S31: 481 | T31: 0.6396276596 | U31: 514 | V31: 0.6835106383 | W31: 624 | X31: 0.829787234 | Y31: 371 | Z31: 0.4933510638 | AC31: =cálculos2!P30 -> 0 | AD31: 0 | AE31: =cálculos2!Q30 -> 0 | AF31: 0
A32: Metropolitana | B32: Ibatiba | C32: 362 | D32: 153 | E32: 68 | F32: 0.4444444444 | G32: 146 | H32: 0.954248366 | I32: 153 | J32: 1 | K32: 153 | L32: 1 | M32: 144 | N32: 0.9411764706 | O32: 139 | P32: 0.908496732 | Q32: 159 | R32: 1.039215686 | S32: 138 | T32: 0.9019607843 | U32: 118 | V32: 0.7712418301 | W32: 138 | X32: 0.9019607843 | Y32: 33 | Z32: 0.2156862745 | AC32: =cálculos2!P31 -> 5 | AD32: 0.5 | AE32: =cálculos2!Q31 -> 2 | AF32: 0.5
A33: Metropolitana | B33: Ibiraçu | C33: 154 | D33: 70 | E33: 44 | F33: 0.6285714286 | G33: 56 | H33: 0.8 | I33: 55 | J33: 0.7857142857 | K33: 53 | L33: 0.7571428571 | M33: 50 | N33: 0.7142857143 | O33: 49 | P33: 0.7 | Q33: 53 | R33: 0.7571428571 | S33: 57 | T33: 0.8142857143 | U33: 36 | V33: 0.5142857143 | W33: 53 | X33: 0.7571428571 | Y33: 22 | Z33: 0.3142857143 | AC33: =cálculos2!P32 -> 0 | AD33: 0 | AE33: =cálculos2!Q32 -> 0 | AF33: 0
A34: Sul | B34: Ibitirama | C34: 127 | D34: 52 | E34: 37 | F34: 0.7115384615 | G34: 47 | H34: 0.9038461538 | I34: 46 | J34: 0.8846153846 | K34: 43 | L34: 0.8269230769 | M34: 50 | N34: 0.9615384615 | O34: 51 | P34: 0.9807692308 | Q34: 43 | R34: 0.8269230769 | S34: 35 | T34: 0.6730769231 | U34: 39 | V34: 0.75 | W34: 56 | X34: 1.076923077 | Y34: 31 | Z34: 0.5961538462 | AC34: =cálculos2!P33 -> 4 | AD34: 0.4 | AE34: =cálculos2!Q33 -> 2 | AF34: 0.5
A35: Sul | B35: Iconha | C35: 118 | D35: 47 | E35: 31 | F35: =E35/D35 -> 0.6595744681 | G35: 33 | H35: 0.7021276596 | I35: 48 | J35: 1.021276596 | K35: 45 | L35: 0.9574468085 | M35: 47 | N35: 1 | O35: 48 | P35: 1.021276596 | Q35: 42 | R35: 0.8936170213 | S35: 48 | T35: 1.021276596 | U35: 46 | V35: =U35/D35 -> 0.9787234043 | W35: 67 | X35: =W35/D35 -> 1.425531915 | Y35: 24 | Z35: =Y35/D35 -> 0.5106382979 | AC35: =cálculos2!P34 -> 7 | AD35: 0.7 | AE35: =cálculos2!Q34 -> 4 | AF35: 1
A36: Sul | B36: Irupi | C36: 197 | D36: 75 | E36: 48 | F36: 0.64 | G36: 69 | H36: 0.92 | I36: 81 | J36: 1.08 | K36: 80 | L36: 1.066666667 | M36: 91 | N36: 1.213333333 | O36: 86 | P36: 1.146666667 | Q36: 87 | R36: 1.16 | S36: 72 | T36: 0.96 | U36: 74 | V36: 0.9866666667 | W36: 113 | X36: 1.506666667 | Y36: 29 | Z36: 0.3866666667 | AC36: =cálculos2!P35 -> 9 | AD36: 0.9 | AE36: =cálculos2!Q35 -> 4 | AF36: 1
A37: Metropolitana | B37: Itaguaçu | C37: 135 | D37: 59 | E37: 48 | F37: 0.813559322 | G37: 63 | H37: 1.06779661 | I37: 54 | J37: 0.9152542373 | K37: 52 | L37: 0.8813559322 | M37: 51 | N37: 0.8644067797 | O37: 51 | P37: 0.8644067797 | Q37: 53 | R37: 0.8983050847 | S37: 55 | T37: 0.9322033898 | U37: 60 | V37: 1.016949153 | W37: 56 | X37: 0.9491525424 | Y37: 43 | Z37: 0.7288135593 | AC37: =cálculos2!P36 -> 2 | AD37: 0.2 | AE37: =cálculos2!Q36 -> 0 | AF37: 0
A38: Sul | B38: Itapemirim | C38: 541 | D38: 201 | E38: 142 | F38: 0.7064676617 | G38: 183 | H38: 0.9104477612 | I38: 189 | J38: 0.9402985075 | K38: 186 | L38: 0.9253731343 | M38: 218 | N38: 1.084577114 | O38: 192 | P38: 0.9552238806 | Q38: 200 | R38: 0.9950248756 | S38: 128 | T38: 0.6368159204 | U38: 190 | V38: 0.9452736318 | W38: 201 | X38: 1 | Y38: 112 | Z38: 0.5572139303 | AC38: =cálculos2!P37 -> 5 | AD38: 0.5 | AE38: =cálculos2!Q37 -> 2 | AF38: 0.5
A39: Metropolitana | B39: Itarana | C39: 140 | D39: 65 | E39: 51 | F39: 0.7846153846 | G39: 69 | H39: 1.061538462 | I39: 49 | J39: 0.7538461538 | K39: 49 | L39: 0.7538461538 | M39: 48 | N39: 0.7384615385 | O39: 46 | P39: 0.7076923077 | Q39: 46 | R39: 0.7076923077 | S39: 64 | T39: 0.9846153846 | U39: 27 | V39: 0.4153846154 | W39: 49 | X39: 0.7538461538 | Y39: 37 | Z39: 0.5692307692 | AC39: =cálculos2!P38 -> 2 | AD39: 0.2 | AE39: =cálculos2!Q38 -> 0 | AF39: 0
A40: Sul | B40: Iúna | C40: 474 | D40: 189 | E40: 104 | F40: 0.5502645503 | G40: 135 | H40: 0.7142857143 | I40: 191 | J40: 1.010582011 | K40: 190 | L40: 1.005291005 | M40: 190 | N40: 1.005291005 | O40: 188 | P40: 0.9947089947 | Q40: 188 | R40: 0.9947089947 | S40: 175 | T40: 0.9259259259 | U40: 136 | V40: 0.7195767196 | W40: 183 | X40: 0.9682539683 | Y40: 87 | Z40: 0.4603174603 | AC40: =cálculos2!P39 -> 6 | AD40: 0.6 | AE40: =cálculos2!Q39 -> 4 | AF40: 1
A41: Norte | B41: Jaguaré | C41: 489 | D41: 212 | E41: 161 | F41: 0.7594339623 | G41: 195 | H41: 0.9198113208 | I41: 211 | J41: 0.9952830189 | K41: 223 | L41: 1.051886792 | M41: 188 | N41: 0.8867924528 | O41: 184 | P41: 0.8679245283 | Q41: 190 | R41: 0.8962264151 | S41: 182 | T41: 0.858490566 | U41: 145 | V41: 0.6839622642 | W41: 185 | X41: 0.8726415094 | Y41: 103 | Z41: 0.4858490566 | AC41: =cálculos2!P40 -> 3 | AD41: 0.3 | AE41: =cálculos2!Q40 -> 2 | AF41: 0.5
A42: Sul | B42: Jerônimo Monteiro | C42: 156 | D42: 59 | E42: 50 | F42: 0.8474576271 | G42: 65 | H42: 1.101694915 | I42: 71 | J42: 1.203389831 | K42: 73 | L42: 1.237288136 | M42: 70 | N42: 1.186440678 | O42: 69 | P42: 1.169491525 | Q42: 58 | R42: 0.9830508475 | S42: 64 | T42: 1.084745763 | U42: 49 | V42: 0.8305084746 | W42: 62 | X42: 1.050847458 | Y42: 20 | Z42: 0.3389830508 | AC42: =cálculos2!P41 -> 8 | AD42: 0.8 | AE42: =cálculos2!Q41 -> 4 | AF42: 1
A43: Metropolitana | B43: João Neiva | C43: 178 | D43: 70 | E43: 45 | F43: 0.6428571429 | G43: 56 | H43: 0.8 | I43: 70 | J43: 1 | K43: 68 | L43: 0.9714285714 | M43: 70 | N43: 1 | O43: 69 | P43: 0.9857142857 | Q43: 65 | R43: 0.9285714286 | S43: 69 | T43: 0.9857142857 | U43: 57 | V43: 0.8142857143 | W43: 84 | X43: 1.2 | Y43: 31 | Z43: 0.4428571429 | AC43: =cálculos2!P42 -> 6 | AD43: 0.6 | AE43: =cálculos2!Q42 -> 4 | AF43: 1
A44: Metropolitana | B44: Laranja da Terra | C44: 96 | D44: 43 | E44: 27 | F44: 0.6279069767 | G44: 34 | H44: 0.7906976744 | I44: 36 | J44: 0.8372093023 | K44: 36 | L44: 0.8372093023 | M44: 29 | N44: 0.6744186047 | O44: 29 | P44: 0.6744186047 | Q44: 39 | R44: 0.9069767442 | S44: 51 | T44: 1.186046512 | U44: 44 | V44: 1.023255814 | W44: 63 | X44: 1.465116279 | Y44: 43 | Z44: 1 | AC44: =cálculos2!P43 -> 4 | AD44: 0.4 | AE44: =cálculos2!Q43 -> 1 | AF44: 0.25
A45: Central | B45: Linhares | C45: 2598 | D45: 1125 | E45: 720 | F45: 0.64 | G45: 880 | H45: 0.7822222222 | I45: 922 | J45: 0.8195555556 | K45: 910 | L45: 0.8088888889 | M45: 893 | N45: 0.7937777778 | O45: 909 | P45: 0.808 | Q45: 890 | R45: 0.7911111111 | S45: 809 | T45: 0.7191111111 | U45: 698 | V45: 0.6204444444 | W45: 927 | X45: 0.824 | Y45: 465 | Z45: 0.4133333333 | AC45: =cálculos2!P44 -> 0 | AD45: 0 | AE45: =cálculos2!Q44 -> 0 | AF45: 0
A46: Central | B46: Mantenópolis | C46: 161 | D46: 78 | E46: 46 | F46: 0.5897435897 | G46: 65 | H46: 0.8333333333 | I46: 56 | J46: 0.7179487179 | K46: 61 | L46: 0.7820512821 | M46: 53 | N46: 0.6794871795 | O46: 51 | P46: 0.6538461538 | Q46: 49 | R46: 0.6282051282 | S46: 65 | T46: 0.8333333333 | U46: 51 | V46: 0.6538461538 | W46: 58 | X46: 0.7435897436 | Y46: 36 | Z46: 0.4615384615 | AC46: =cálculos2!P45 -> 0 | AD46: 0 | AE46: =cálculos2!Q45 -> 0 | AF46: 0
A47: Sul | B47: Marataízes | C47: 570 | D47: 266 | E47: 191 | F47: 0.7180451128 | G47: 220 | H47: 0.8270676692 | I47: 210 | J47: 0.7894736842 | K47: 211 | L47: 0.7932330827 | M47: 224 | N47: 0.8421052632 | O47: 215 | P47: 0.8082706767 | Q47: 219 | R47: 0.8233082707 | S47: 155 | T47: 0.5827067669 | U47: 189 | V47: 0.7105263158 | W47: 233 | X47: 0.8759398496 | Y47: 103 | Z47: 0.3872180451 | AC47: =cálculos2!P46 -> 0 | AD47: 0 | AE47: =cálculos2!Q46 -> 0 | AF47: 0
A48: Metropolitana | B48: Marechal Floriano | C48: 227 | D48: 102 | E48: 56 | F48: 0.5490196078 | G48: 69 | H48: 0.6764705882 | I48: 80 | J48: 0.7843137255 | K48: 80 | L48: 0.7843137255 | M48: 93 | N48: 0.9117647059 | O48: 93 | P48: 0.9117647059 | Q48: 94 | R48: 0.9215686275 | S48: 67 | T48: 0.6568627451 | U48: 74 | V48: 0.7254901961 | W48: 97 | X48: 0.9509803922 | Y48: 61 | Z48: 0.5980392157 | AC48: =cálculos2!P47 -> 2 | AD48: 0.2 | AE48: =cálculos2!Q47 -> 1 | AF48: 0.25
A49: Central | B49: Marilândia | C49: 167 | D49: 61 | E49: 48 | F49: 0.7868852459 | G49: 61 | H49: 1 | I49: 72 | J49: 1.180327869 | K49: 72 | L49: 1.180327869 | M49: 59 | N49: 0.9672131148 | O49: 62 | P49: 1.016393443 | Q49: 73 | R49: 1.196721311 | S49: 68 | T49: 1.114754098 | U49: 59 | V49: 0.9672131148 | W49: 58 | X49: 0.9508196721 | Y49: 46 | Z49: 0.7540983607 | AC49: =cálculos2!P48 -> 9 | AD49: 0.9 | AE49: =cálculos2!Q48 -> 4 | AF49: 1
A50: Sul | B50: Mimoso do Sul | C50: 262 | D50: 105 | E50: 68 | F50: 0.6476190476 | G50: 90 | H50: 0.8571428571 | I50: 102 | J50: 0.9714285714 | K50: 101 | L50: 0.9619047619 | M50: 89 | N50: 0.8476190476 | O50: 86 | P50: 0.819047619 | Q50: 100 | R50: 0.9523809524 | S50: 82 | T50: 0.780952381 | U50: 73 | V50: 0.6952380952 | W50: 95 | X50: 0.9047619048 | Y50: 58 | Z50: 0.5523809524 | AC50: =cálculos2!P49 -> 3 | AD50: 0.3 | AE50: =cálculos2!Q49 -> 2 | AF50: 0.5
A51: Norte | B51: Montanha | C51: 233 | D51: 76 | E51: 47 | F51: 0.6184210526 | G51: 56 | H51: 0.7368421053 | I51: 117 | J51: 1.539473684 | K51: 118 | L51: 1.552631579 | M51: 96 | N51: 1.263157895 | O51: 97 | P51: 1.276315789 | Q51: 100 | R51: 1.315789474 | S51: 101 | T51: 1.328947368 | U51: 96 | V51: 1.263157895 | W51: 99 | X51: 1.302631579 | Y51: 68 | Z51: 0.8947368421 | AC51: =cálculos2!P50 -> 8 | AD51: 0.8 | AE51: =cálculos2!Q50 -> 4 | AF51: 1
A52: Norte | B52: Mucurici | C52: 68 | D52: 21 | E52: 11 | F52: 0.5238095238 | G52: 15 | H52: 0.7142857143 | I52: 34 | J52: 1.619047619 | K52: 34 | L52: 1.619047619 | M52: 36 | N52: 1.714285714 | O52: 36 | P52: 1.714285714 | Q52: 34 | R52: 1.619047619 | S52: 36 | T52: 1.714285714 | U52: 21 | V52: 1 | W52: 37 | X52: 1.761904762 | Y52: 20 | Z52: 0.9523809524 | AC52: =cálculos2!P51 -> 9 | AD52: 0.9 | AE52: =cálculos2!Q51 -> 4 | AF52: 1
A53: Sul | B53: Muniz Freire | C53: 210 | D53: 86 | E53: 61 | F53: 0.7093023256 | G53: 89 | H53: 1.034883721 | I53: 100 | J53: 1.162790698 | K53: 95 | L53: 1.104651163 | M53: 99 | N53: 1.151162791 | O53: 97 | P53: 1.127906977 | Q53: 91 | R53: 1.058139535 | S53: 91 | T53: 1.058139535 | U53: 82 | V53: 0.9534883721 | W53: 101 | X53: 1.174418605 | Y53: 45 | Z53: 0.523255814 | AC53: =cálculos2!P52 -> 9 | AD53: 0.9 | AE53: =cálculos2!Q52 -> 4 | AF53: 1
A54: Sul | B54: Muqui | C54: 163 | D54: 60 | E54: 43 | F54: 0.7166666667 | G54: 64 | H54: 1.066666667 | I54: 74 | J54: 1.233333333 | K54: 75 | L54: 1.25 | M54: 57 | N54: 0.95 | O54: 55 | P54: 0.9166666667 | Q54: 64 | R54: 1.066666667 | S54: 72 | T54: 1.2 | U54: 53 | V54: 0.8833333333 | W54: 63 | X54: 1.05 | Y54: 34 | Z54: 0.5666666667 | AC54: =cálculos2!P53 -> 8 | AD54: 0.8 | AE54: =cálculos2!Q53 -> 4 | AF54: 1
A55: Norte | B55: Nova Venécia | C55: 681 | D55: 301 | E55: 112 | F55: 0.3720930233 | G55: 264 | H55: 0.877076412 | I55: 288 | J55: 0.9568106312 | K55: 289 | L55: 0.9601328904 | M55: 258 | N55: 0.8571428571 | O55: 247 | P55: 0.8205980066 | Q55: 264 | R55: 0.877076412 | S55: 269 | T55: 0.8936877076 | U55: 224 | V55: 0.7441860465 | W55: 271 | X55: 0.9003322259 | Y55: 169 | Z55: 0.561461794 | AC55: =cálculos2!P54 -> 2 | AD55: 0.2 | AE55: =cálculos2!Q54 -> 2 | AF55: 0.5
A56: Central | B56: Pancas | C56: 216 | D56: 91 | E56: 68 | F56: 0.7472527473 | G56: 87 | H56: 0.956043956 | I56: 101 | J56: 1.10989011 | K56: 100 | L56: 1.098901099 | M56: 92 | N56: 1.010989011 | O56: 90 | P56: 0.989010989 | Q56: 100 | R56: 1.098901099 | S56: 87 | T56: 0.956043956 | U56: 84 | V56: 0.9230769231 | W56: 88 | X56: 0.967032967 | Y56: 76 | Z56: 0.8351648352 | AC56: =cálculos2!P55 -> 8 | AD56: 0.8 | AE56: =cálculos2!Q55 -> 4 | AF56: 1
A57: Norte | B57: Pedro Canário | C57: 305 | D57: 132 | E57: 62 | F57: 0.4696969697 | G57: 72 | H57: 0.5454545455 | I57: 141 | J57: 1.068181818 | K57: 138 | L57: 1.045454545 | M57: 113 | N57: 0.8560606061 | O57: 108 | P57: 0.8181818182 | Q57: 126 | R57: 0.9545454545 | S57: 127 | T57: 0.9621212121 | U57: 98 | V57: 0.7424242424 | W57: 163 | X57: 1.234848485 | Y57: 97 | Z57: 0.7348484848 | AC57: =cálculos2!P56 -> 5 | AD57: 0.5 | AE57: =cálculos2!Q56 -> 3 | AF57: 0.75
A58: Norte | B58: Pinheiros | C58: 301 | D58: 109 | E58: 49 | F58: 0.4495412844 | G58: 53 | H58: 0.4862385321 | I58: 134 | J58: 1.229357798 | K58: 133 | L58: 1.220183486 | M58: 122 | N58: 1.119266055 | O58: 117 | P58: 1.073394495 | Q58: 116 | R58: 1.064220183 | S58: 119 | T58: 1.091743119 | U58: 95 | V58: 0.871559633 | W58: 137 | X58: 1.256880734 | Y58: 51 | Z58: 0.4678899083 | AC58: =cálculos2!P57 -> 7 | AD58: 0.7 | AE58: =cálculos2!Q57 -> 4 | AF58: 1
A59: Sul | B59: Piúma | C59: 309 | D59: 122 | E59: 85 | F59: 0.6967213115 | G59: 106 | H59: 0.868852459 | I59: 119 | J59: 0.9754098361 | K59: 118 | L59: 0.9672131148 | M59: 117 | N59: 0.9590163934 | O59: 108 | P59: 0.8852459016 | Q59: 99 | R59: 0.8114754098 | S59: 87 | T59: 0.7131147541 | U59: 92 | V59: 0.7540983607 | W59: 129 | X59: 1.057377049 | Y59: 62 | Z59: 0.5081967213 | AC59: =cálculos2!P58 -> 4 | AD59: 0.4 | AE59: =cálculos2!Q58 -> 4 | AF59: 1
A60: Norte | B60: Ponto Belo | C60: 75 | D60: 25 | E60: 13 | F60: 0.52 | G60: 19 | H60: 0.76 | I60: 18 | J60: 0.72 | K60: 18 | L60: 0.72 | M60: 26 | N60: 1.04 | O60: 25 | P60: 1 | Q60: 23 | R60: 0.92 | S60: 28 | T60: 1.12 | U60: 15 | V60: 0.6 | W60: 26 | X60: 1.04 | Y60: 15 | Z60: 0.6 | AC60: =cálculos2!P59 -> 4 | AD60: 0.4 | AE60: =cálculos2!Q59 -> 2 | AF60: 0.5
A61: Sul | B61: Presidente Kennedy | C61: 194 | D61: 94 | E61: 76 | F61: 0.8085106383 | G61: 94 | H61: 1 | I61: 68 | J61: 0.7234042553 | K61: 72 | L61: 0.7659574468 | M61: 60 | N61: 0.6382978723 | O61: 61 | P61: 0.6489361702 | Q61: 60 | R61: 0.6382978723 | S61: 66 | T61: 0.7021276596 | U61: 68 | V61: 0.7234042553 | W61: 95 | X61: 1.010638298 | Y61: 47 | Z61: 0.5 | AC61: =cálculos2!P60 -> 2 | AD61: 0.2 | AE61: =cálculos2!Q60 -> 1 | AF61: 0.25
A62: Central | B62: Rio Bananal | C62: 299 | D62: 130 | E62: 86 | F62: 0.6615384615 | G62: 102 | H62: 0.7846153846 | I62: 106 | J62: 0.8153846154 | K62: 106 | L62: 0.8153846154 | M62: 95 | N62: 0.7307692308 | O62: 101 | P62: 0.7769230769 | Q62: 101 | R62: 0.7769230769 | S62: 120 | T62: 0.9230769231 | U62: 107 | V62: 0.8230769231 | W62: 122 | X62: 0.9384615385 | Y62: 70 | Z62: 0.5384615385 | AC62: =cálculos2!P61 -> 0 | AD62: 0 | AE62: =cálculos2!Q61 -> 0 | AF62: 0
A63: Sul | B63: Rio Novo do Sul | C63: 120 | D63: 47 | E63: 30 | F63: 0.6382978723 | G63: 34 | H63: 0.7234042553 | I63: 49 | J63: 1.042553191 | K63: 47 | L63: 1 | M63: 49 | N63: 1.042553191 | O63: 51 | P63: 1.085106383 | Q63: 47 | R63: 1 | S63: 47 | T63: 1 | U63: 36 | V63: 0.7659574468 | W63: 45 | X63: 0.9574468085 | Y63: 31 | Z63: 0.6595744681 | AC63: =cálculos2!P62 -> 7 | AD63: 0.7 | AE63: =cálculos2!Q62 -> 4 | AF63: 1
A64: Metropolitana | B64: Santa Leopoldina | C64: 93 | D64: 32 | E64: 15 | F64: 0.46875 | G64: 22 | H64: 0.6875 | I64: 44 | J64: 1.375 | K64: 43 | L64: 1.34375 | M64: 38 | N64: 1.1875 | O64: 40 | P64: 1.25 | Q64: 49 | R64: 1.53125 | S64: 40 | T64: 1.25 | U64: 47 | V64: 1.46875 | W64: 57 | X64: 1.78125 | Y64: 14 | Z64: 0.4375 | AC64: =cálculos2!P63 -> 8 | AD64: 0.8 | AE64: =cálculos2!Q63 -> 4 | AF64: 1
A65: Metropolitana | B65: Santa Maria de Jetibá | C65: 682 | D65: 302 | E65: 183 | F65: 0.6059602649 | G65: 225 | H65: 0.7450331126 | I65: 226 | J65: 0.7483443709 | K65: 226 | L65: 0.7483443709 | M65: 240 | N65: 0.7947019868 | O65: 245 | P65: 0.8112582781 | Q65: 227 | R65: 0.7516556291 | S65: 216 | T65: 0.7152317881 | U65: 249 | V65: 0.8245033113 | W65: 264 | X65: 0.8741721854 | Y65: 126 | Z65: 0.417218543 | AC65: =cálculos2!P64 -> 0 | AD65: 0 | AE65: =cálculos2!Q64 -> 0 | AF65: 0
A66: Metropolitana | B66: Santa Teresa | C66: 299 | D66: 120 | E66: 91 | F66: 0.7583333333 | G66: 116 | H66: 0.9666666667 | I66: 124 | J66: 1.033333333 | K66: 124 | L66: 1.033333333 | M66: 127 | N66: 1.058333333 | O66: 128 | P66: 1.066666667 | Q66: 115 | R66: 0.9583333333 | S66: 113 | T66: 0.9416666667 | U66: 92 | V66: 0.7666666667 | W66: 110 | X66: 0.9166666667 | Y66: 81 | Z66: 0.675 | AC66: =cálculos2!P65 -> 6 | AD66: 0.6 | AE66: =cálculos2!Q65 -> 3 | AF66: 0.75
A67: Central | B67: São Domingos do Norte | C67: 126 | D67: 58 | E67: 40 | F67: =E67/D67 -> 0.6896551724 | G67: 46 | H67: 0.7931034483 | I67: 46 | J67: 0.7931034483 | K67: 47 | L67: 0.8103448276 | M67: 48 | N67: 0.8275862069 | O67: 46 | P67: 0.7931034483 | Q67: 52 | R67: 0.8965517241 | S67: 46 | T67: 0.7931034483 | U67: 26 | V67: =U67/D67 -> 0.4482758621 | W67: 39 | X67: =W67/D67 -> 0.6724137931 | Y67: 24 | Z67: =Y67/D67 -> 0.4137931034 | AC67: =cálculos2!P66 -> 0 | AD67: 0 | AE67: =cálculos2!Q66 -> 0 | AF67: 0
A68: Central | B68: São Gabriel da Palha | C68: 440 | D68: 172 | E68: 128 | F68: 0.7441860465 | G68: 188 | H68: =G68/D68 -> 1.093023256 | I68: 159 | J68: =I68/D68 -> 0.9244186047 | K68: 159 | L68: =K68/D68 -> 0.9244186047 | M68: 167 | N68: =M68/D68 -> 0.9709302326 | O68: 168 | P68: =O68/D68 -> 0.976744186 | Q68: 171 | R68: =Q68/D68 -> 0.9941860465 | S68: 142 | T68: =S68/D68 -> 0.8255813953 | U68: 106 | V68: 0.6162790698 | W68: 150 | X68: 0.8720930233 | Y68: 75 | Z68: 0.4360465116 | AC68: =cálculos2!P67 -> 4 | AD68: =AC68*0.1 -> 0.4 | AE68: =cálculos2!Q67 -> 1 | AF68: =AE68*0.25 -> 0.25
A69: Sul | B69: São José do Calçado | C69: 101 | D69: 44 | E69: 40 | F69: 0.9090909091 | G69: 46 | H69: 1.045454545 | I69: 56 | J69: 1.272727273 | K69: 55 | L69: 1.25 | M69: 45 | N69: 1.022727273 | O69: 39 | P69: 0.8863636364 | Q69: 50 | R69: 1.136363636 | S69: 40 | T69: 0.9090909091 | U69: 41 | V69: 0.9318181818 | W69: 54 | X69: 1.227272727 | Y69: 36 | Z69: 0.8181818182 | AC69: =cálculos2!P68 -> 6 | AD69: 0.6 | AE69: =cálculos2!Q68 -> 4 | AF69: 1
A70: Norte | B70: São Mateus | C70: 1742 | D70: 613 | E70: 730 | F70: 1.1908646 | G70: 896 | H70: 1.461663948 | I70: 718 | J70: 1.171288744 | K70: 705 | L70: 1.150081566 | M70: 716 | N70: 1.168026101 | O70: 678 | P70: 1.106035889 | Q70: 662 | R70: 1.079934747 | S70: 541 | T70: 0.8825448613 | U70: 522 | V70: 0.8515497553 | W70: 642 | X70: 1.04730832 | Y70: 321 | Z70: 0.5236541599 | AC70: =cálculos2!P69 -> 7 | AD70: 0.7 | AE70: =cálculos2!Q69 -> 4 | AF70: 1
A71: Central | B71: São Roque do Canaã | C71: 131 | D71: 77 | E71: 58 | F71: 0.7532467532 | G71: 62 | H71: 0.8051948052 | I71: 35 | J71: 0.4545454545 | K71: 34 | L71: 0.4415584416 | M71: 37 | N71: 0.4805194805 | O71: 39 | P71: 0.5064935065 | Q71: 37 | R71: 0.4805194805 | S71: 47 | T71: 0.6103896104 | U71: 42 | V71: 0.5454545455 | W71: 59 | X71: 0.7662337662 | Y71: 27 | Z71: 0.3506493506 | AC71: =cálculos2!P70 -> 0 | AD71: 0 | AE71: =cálculos2!Q70 -> 0 | AF71: 0
A72: Metropolitana | B72: Serra | C72: 7393 | D72: 3287 | E72: 2325 | F72: 0.7073319136 | G72: 2783 | H72: 0.8466686949 | I72: 2646 | J72: 0.804989352 | K72: 2628 | L72: 0.799513234 | M72: 2535 | N72: 0.7712199574 | O72: 2481 | P72: 0.7547916033 | Q72: 2518 | R72: 0.7660480681 | S72: 2160 | T72: 0.6571341649 | U72: 1231 | V72: 0.3745056282 | W72: 2603 | X72: 0.7919075145 | Y72: 935 | Z72: 0.2844539093 | AC72: =cálculos2!P71 -> 0 | AD72: 0 | AE72: =cálculos2!Q71 -> 0 | AF72: 0
A73: Central | B73: Sooretama | C73: 439 | D73: 196 | E73: 124 | F73: 0.6326530612 | G73: 139 | H73: 0.7091836735 | I73: 166 | J73: 0.8469387755 | K73: 170 | L73: 0.8673469388 | M73: 152 | N73: 0.7755102041 | O73: 149 | P73: 0.7602040816 | Q73: 139 | R73: 0.7091836735 | S73: 150 | T73: 0.7653061224 | U73: 146 | V73: 0.7448979592 | W73: 153 | X73: 0.7806122449 | Y73: 80 | Z73: 0.4081632653 | AC73: =cálculos2!P72 -> 0 | AD73: 0 | AE73: =cálculos2!Q72 -> 0 | AF73: 0
A74: Sul | B74: Vargem Alta | C74: 265 | D74: 121 | E74: 86 | F74: 0.7107438017 | G74: 109 | H74: 0.9008264463 | I74: 90 | J74: 0.7438016529 | K74: 90 | L74: 0.7438016529 | M74: 98 | N74: 0.8099173554 | O74: 101 | P74: 0.8347107438 | Q74: 98 | R74: 0.8099173554 | S74: 88 | T74: 0.7272727273 | U74: 96 | V74: 0.7933884298 | W74: 113 | X74: 0.9338842975 | Y74: 60 | Z74: 0.4958677686 | AC74: =cálculos2!P73 -> 1 | AD74: 0.1 | AE74: =cálculos2!Q73 -> 0 | AF74: 0
A75: Metropolitana | B75: Venda Nova do Imigrante | C75: 392 | D75: 162 | E75: 31 | F75: 0.1913580247 | G75: 133 | H75: 0.8209876543 | I75: 162 | J75: 1 | K75: 163 | L75: 1.00617284 | M75: 147 | N75: 0.9074074074 | O75: 147 | P75: 0.9074074074 | Q75: 160 | R75: 0.987654321 | S75: 166 | T75: 1.024691358 | U75: 116 | V75: 0.7160493827 | W75: 159 | X75: 0.9814814815 | Y75: 71 | Z75: 0.4382716049 | AC75: =cálculos2!P74 -> 6 | AD75: 0.6 | AE75: =cálculos2!Q74 -> 3 | AF75: 0.75
A76: Metropolitana | B76: Viana | C76: 980 | D76: 430 | E76: 270 | F76: 0.6279069767 | G76: 311 | H76: 0.723255814 | I76: 379 | J76: 0.8813953488 | K76: 371 | L76: 0.8627906977 | M76: 371 | N76: 0.8627906977 | O76: 351 | P76: 0.8162790698 | Q76: 357 | R76: 0.8302325581 | S76: 269 | T76: 0.6255813953 | U76: 286 | V76: 0.6651162791 | W76: 377 | X76: 0.876744186 | Y76: 138 | Z76: 0.3209302326 | AC76: =cálculos2!P75 -> 0 | AD76: 0 | AE76: =cálculos2!Q75 -> 0 | AF76: 0
A77: Norte | B77: Vila Pavão | C77: 91 | D77: 43 | E77: 27 | F77: 0.6279069767 | G77: 48 | H77: 1.11627907 | I77: 35 | J77: 0.8139534884 | K77: 35 | L77: 0.8139534884 | M77: 34 | N77: 0.7906976744 | O77: 33 | P77: 0.7674418605 | Q77: 32 | R77: 0.7441860465 | S77: 43 | T77: 1 | U77: 41 | V77: 0.9534883721 | W77: 52 | X77: 1.209302326 | Y77: 23 | Z77: 0.5348837209 | AC77: =cálculos2!P76 -> 4 | AD77: 0.4 | AE77: =cálculos2!Q76 -> 1 | AF77: 0.25
A78: Central | B78: Vila Valério | C78: 259 | D78: 121 | E78: 64 | F78: 0.5289256198 | G78: 87 | H78: 0.7190082645 | I78: 89 | J78: 0.7355371901 | K78: 85 | L78: 0.7024793388 | M78: 81 | N78: 0.6694214876 | O78: 87 | P78: 0.7190082645 | Q78: 90 | R78: 0.7438016529 | S78: 86 | T78: 0.7107438017 | U78: 77 | V78: 0.6363636364 | W78: 83 | X78: 0.6859504132 | Y78: 51 | Z78: 0.4214876033 | AC78: =cálculos2!P77 -> 0 | AD78: 0 | AE78: =cálculos2!Q77 -> 0 | AF78: 0
A79: Metropolitana | B79: Vila Velha | C79: 5698 | D79: 2372 | E79: 1612 | F79: 0.6795952782 | G79: 1984 | H79: 0.8364249578 | I79: 1935 | J79: 0.815767285 | K79: 1934 | L79: 0.8153456998 | M79: 1892 | N79: 0.7976391231 | O79: 1912 | P79: 0.8060708263 | Q79: 1943 | R79: 0.8191399663 | S79: 1630 | T79: 0.6871838111 | U79: 1359 | V79: 0.5729342327 | W79: 1980 | X79: 0.8347386172 | Y79: 861 | Z79: 0.3629848229 | AC79: =cálculos2!P78 -> 0 | AD79: 0 | AE79: =cálculos2!Q78 -> 0 | AF79: 0
A80: Metropolitana | B80: Vitória | C80: 3748 | D80: 1596 | E80: 1396 | F80: 0.8746867168 | G80: 1854 | H80: 1.161654135 | I80: 1339 | J80: 0.8389724311 | K80: 1342 | L80: 0.8408521303 | M80: 1245 | N80: 0.780075188 | O80: 1272 | P80: 0.7969924812 | Q80: 1322 | R80: 0.828320802 | S80: 1064 | T80: 0.6666666667 | U80: 1231 | V80: 0.7713032581 | W80: 1256 | X80: 0.7869674185 | Y80: 587 | Z80: 0.3677944862 | AC80: =cálculos2!P79 -> 1 | AD80: 0.1 | AE80: =cálculos2!Q79 -> 0 | AF80: 0
B82: Total Norte | C82: =SUMIF($A$3:$A$80,"Norte",C$3:C$80) -> 5520 | D82: =SUMIF($A$3:$A$80,"Norte",D$3:D$80) -> 2196 | E82: =SUMIF($A$3:$A$80,"Norte",E$3:E$80) -> 1655 | F82: =E82/D82 -> 0.7536429872 | G82: =SUMIF($A$3:$A$80,"Norte",G$3:G$80) -> 2210 | H82: =G82/D82 -> 1.006375228 | I82: =SUMIF($A$3:$A$80,"Norte",I$3:I$80) -> 2290 | J82: =I82/D82 -> 1.0428051 | K82: =SUMIF($A$3:$A$80,"Norte",K$3:K$80) -> 2293 | L82: =K82/D82 -> 1.04417122 | M82: =SUMIF($A$3:$A$80,"Norte",M$3:M$80) -> 2207 | N82: =M82/D82 -> 1.005009107 | O82: =SUMIF($A$3:$A$80,"Norte",O$3:O$80) -> 2126 | P82: =O82/D82 -> 0.9681238616 | Q82: =SUMIF($A$3:$A$80,"Norte",Q$3:Q$80) -> 2166 | R82: =Q82/D82 -> 0.9863387978 | S82: =SUMIF($A$3:$A$80,"Norte",S$3:S$80) -> 2021 | T82: =S82/D82 -> 0.9203096539 | U82: =SUMIF($A$3:$A$80,"Norte",U$3:U$80) -> 1758 | V82: =U82/D82 -> 0.8005464481 | W82: =SUMIF($A$3:$A$80,"Norte",W$3:W$80) -> 2249 | X82: =W82/D82 -> 1.024134791 | Y82: =SUMIF($A$3:$A$80,"Norte",Y$3:Y$80) -> 1254 | Z82: =Y82/D82 -> 0.5710382514 | AC82: =cálculos1!P81 -> 6 | AD82: =AC82*0.1 -> 0.6 | AE82: =cálculos1!Q81 -> 4 | AF82: 1
B83: Total Central | C83: =SUMIF($A$3:$A$80,"Central",C$3:C$80) -> 7184 | D83: =SUMIF($A$3:$A$80,"Central",D$3:D$80) -> 3107 | E83: =SUMIF($A$3:$A$80,"Central",E$3:E$80) -> 2131 | F83: =E83/D83 -> 0.6858706147 | G83: =SUMIF($A$3:$A$80,"Central",G$3:G$80) -> 2705 | H83: =G83/D83 -> 0.8706147409 | I83: =SUMIF($A$3:$A$80,"Central",I$3:I$80) -> 2652 | J83: =I83/D83 -> 0.8535564854 | K83: =SUMIF($A$3:$A$80,"Central",K$3:K$80) -> 2629 | L83: =K83/D83 -> 0.8461538462 | M83: =SUMIF($A$3:$A$80,"Central",M$3:M$80) -> 2563 | N83: =M83/D83 -> 0.8249114902 | O83: =SUMIF($A$3:$A$80,"Central",O$3:O$80) -> 2583 | P83: =O83/D83 -> 0.8313485678 | Q83: =SUMIF($A$3:$A$80,"Central",Q$3:Q$80) -> 2596 | R83: =Q83/D83 -> 0.8355326682 | S83: =SUMIF($A$3:$A$80,"Central",S$3:S$80) -> 2432 | T83: =S83/D83 -> 0.7827486321 | U83: =SUMIF($A$3:$A$80,"Central",U$3:U$80) -> 1996 | V83: =U83/D83 -> 0.6424203412 | W83: =SUMIF($A$3:$A$80,"Central",W$3:W$80) -> 2657 | X83: =W83/D83 -> 0.8551657547 | Y83: =SUMIF($A$3:$A$80,"Central",Y$3:Y$80) -> 1431 | Z83: =Y83/D83 -> 0.4605728999 | AC83: =cálculos1!P82 -> 1 | AD83: 0.1 | AE83: =cálculos1!Q82 -> 0 | AF83: 0
B84: Total Metropolitana | C84: =SUMIF($A$3:$A$80,"Metropolitana",C$3:C$80) -> 30042 | D84: =SUMIF($A$3:$A$80,"Metropolitana",D$3:D$80) -> 12909 | E84: =SUMIF($A$3:$A$80,"Metropolitana",E$3:E$80) -> 8986 | F84: =E84/D84 -> 0.6961034937 | G84: =SUMIF($A$3:$A$80,"Metropolitana",G$3:G$80) -> 11404 | H84: =G84/D84 -> 0.8834146719 | I84: =SUMIF($A$3:$A$80,"Metropolitana",I$3:I$80) -> 10859 | J84: =I84/D84 -> 0.8411960648 | K84: =SUMIF($A$3:$A$80,"Metropolitana",K$3:K$80) -> 10774 | L84: =K84/D84 -> 0.8346115113 | M84: =SUMIF($A$3:$A$80,"Metropolitana",M$3:M$80) -> 10613 | N84: =M84/D84 -> 0.8221395925 | O84: =SUMIF($A$3:$A$80,"Metropolitana",O$3:O$80) -> 10485 | P84: =O84/D84 -> 0.8122240297 | Q84: =SUMIF($A$3:$A$80,"Metropolitana",Q$3:Q$80) -> 10652 | R84: =Q84/D84 -> 0.8251607406 | S84: =SUMIF($A$3:$A$80,"Metropolitana",S$3:S$80) -> 9109 | T84: =S84/D84 -> 0.7056317298 | U84: =SUMIF($A$3:$A$80,"Metropolitana",U$3:U$80) -> 7857 | V84: =U84/D84 -> 0.6086451313 | W84: =SUMIF($A$3:$A$80,"Metropolitana",W$3:W$80) -> 11075 | X84: =W84/D84 -> 0.857928577 | Y84: =SUMIF($A$3:$A$80,"Metropolitana",Y$3:Y$80) -> 5010 | Z84: =Y84/D84 -> 0.3881013247 | AC84: =cálculos1!P83 -> 0 | AD84: 0 | AE84: =cálculos1!Q83 -> 0 | AF84: 0
B85: Total Sul | C85: =SUMIF($A$3:$A$80,"sul",C$3:C$80) -> 8420 | D85: =SUMIF($A$3:$A$80,"sul",D$3:D$80) -> 3575 | E85: =SUMIF($A$3:$A$80,"Sul",E$3:E$80) -> 2639 | F85: =E85/D85 -> 0.7381818182 | G85: =SUMIF($A$3:$A$80,"Sul",G$3:G$80) -> 3338 | H85: =G85/D85 -> 0.9337062937 | I85: =SUMIF($A$3:$A$80,"Sul",I$3:I$80) -> 3315 | J85: =I85/D85 -> 0.9272727273 | K85: =SUMIF($A$3:$A$80,"Sul",K$3:K$80) -> 3289 | L85: =K85/D85 -> 0.92 | M85: =SUMIF($A$3:$A$80,"Sul",M$3:M$80) -> 3279 | N85: =M85/D85 -> 0.9172027972 | O85: =SUMIF($A$3:$A$80,"Sul",O$3:O$80) -> 3190 | P85: =O85/D85 -> 0.8923076923 | Q85: =SUMIF($A$3:$A$80,"Sul",Q$3:Q$80) -> 3166 | R85: =Q85/D85 -> 0.8855944056 | S85: =SUMIF($A$3:$A$80,"Sul",S$3:S$80) -> 2750 | T85: =S85/D85 -> 0.7692307692 | U85: =SUMIF($A$3:$A$80,"Sul",U$3:U$80) -> 2726 | V85: =U85/D85 -> 0.7625174825 | W85: =SUMIF($A$3:$A$80,"Sul",W$3:W$80) -> 3517 | X85: =W85/D85 -> 0.9837762238 | Y85: =SUMIF($A$3:$A$80,"Sul",Y$3:Y$80) -> 1617 | Z85: =Y85/D85 -> 0.4523076923 | AC85: =cálculos1!P84 -> 2 | AD85: 0.2 | AE85: =cálculos1!Q84 -> 1 | AF85: 0.25
B86: Total Espírito Santo | C86: =SUM(C3:C80) -> 51166 | D86: =SUM(D3:D80) -> 21787 | E86: =SUM(E82:E85) -> 15411 | F86: =E86/D86 -> 0.7073484188 | G86: =SUM(G82:G85) -> 19657 | H86: =G86/D86 -> 0.9022352779 | I86: =SUM(I82:I85) -> 19116 | J86: =I86/D86 -> 0.8774039565 | K86: =SUM(K82:K85) -> 18985 | L86: =K86/D86 -> 0.8713911966 | M86: =SUM(M82:M85) -> 18662 | N86: =M86/D86 -> 0.856565842 | O86: =SUM(O82:O85) -> 18384 | P86: =O86/D86 -> 0.8438059393 | Q86: =SUM(Q82:Q85) -> 18580 | R86: =Q86/D86 -> 0.8528021297 | S86: =SUM(S82:S85) -> 16312 | T86: =S86/D86 -> 0.7487033552 | U86: =SUM(U82:U85) -> 14337 | V86: =U86/D86 -> 0.6580529674 | W86: =SUM(W82:W85) -> 19498 | X86: =W86/D86 -> 0.894937348 | Y86: =SUM(Y82:Y85) -> 9312 | Z86: =Y86/D86 -> 0.4274108413 | AC86: =cálculos1!P85 -> 1 | AD86: 0.1 | AE86: =cálculos1!Q85 -> 0 | AF86: 0
E87: =COUNTIF(F3:F80,">=0,95") -> 2 | G87: =COUNTIF(H3:H80,">=0,9") -> 34 | I87: =COUNTIF(J3:J80,">=0,95") -> 36 | K87: =COUNTIF(L3:L80,">=0,95") -> 37 | M87: =COUNTIF(N3:N80,">=0,95") -> 35 | O87: =COUNTIF(P3:P80,">=0,9") -> 37 | Q87: =COUNTIF(R3:R80,">=0,95") -> 34 | S87: =COUNTIF(T3:T80,">=0,95") -> 28 | U87: =COUNTIF(V3:V80,">=0,95") -> 13 | W87: =COUNTIF(X3:X80,">=0,95") -> 40 | Y87: =COUNTIF(Z3:Z80,">=0,95") -> 2
B88: HOMOGENEIDADE ENTRE MUNICÍPIOS | E88: =E87/78 -> 0.02564102564 | G88: =G87/78 -> 0.4358974359 | I88: =I87/78 -> 0.4615384615 | K88: =K87/78 -> 0.4743589744 | M88: =M87/78 -> 0.4487179487 | O88: =O87/78 -> 0.4743589744 | Q88: =Q87/78 -> 0.4358974359 | S88: =S87/78 -> 0.358974359 | U88: =U87/78 -> 0.1666666667 | W88: =W87/78 -> 0.5128205128 | Y88: =Y87/78 -> 0.02564102564
A90: FonteVacina e Confia, em 04 de Junho de 2024.**
A91: **Dados referente às doses aplicadas no período de Maio de 2024
A92: Cobertura Calculada por município de residência do cidadão (no Vacina e Confia, a origem da informação é o endereço que consta no cadastro do cidadão preenchido manualmente por meio do autocadastro ou pelo cadastro realizado por um profissional de saúde no momento do atendimento).
A94: 1 População anual extraída do MS/SVS/DASIS - SINASC/DASIS/SVS/MS 2023 (hoje preliminares) referente ao período de março a dezembro de 2023 e SINASC/DASIS/SVS/MS 2024 referente ao período de janeiro a fevereiro de 2024.
A96: ² População proporcional extraída do MS/SVS/DASIS - SINASC/DASIS/SVS/MS 2023 (hoje preliminares) referente ao período de março e abril de 2023 somada a população extraída do SINASC/DASIS/SVS/MS 2024 referente ao período de janeiro e fevereiro de 2024.
A98: Observações:
A99: Imunobiológicos que foram recebidos parcialmente pelo estado no mês da análise, sendo distribuídos em quantidades reduzidas às regionais e municípios: Varicela, Haemophilus influenzae tipo B, Soro Antirrábico Humano.
A100: Imunobiológicos que não foram recebidos pelo estado no mês da análise, não sendo possível a distribuição às regionais e municípios: Meningo C, Tetra viral, Sars-cov-10 Bivalente, DTPa (CRIE) e Sars-Cov2-10 Doses Pediátricas.
A101: Imunobiológicos com indisponibilidade de aquisição e distribuição no mês da análise:

Sheet CV REF 1A e 4A - procedência
G1: D2 | K1: REFORÇOS 1 ANO | S1: REFORÇOS 4 ANOS
A2: Regional | B2: Município | C2: ¹População 1 ano anual | D2: ²População 1 ano proporcional | E2: ³População 4 anos anual | F2: ³População 4 anos proporcional | G2: DOSES APLICADAS D2 TRÍPLICE VIRAL | H2: COBERTURA D2 TRÍPLICE VIRAL | I2: DOSES APLICADAS D2 VARICELA | J2: COBERTURA D2 VARICELA | K2: DOSES APLICADAS REF PNEUMO | L2: COBERTURA REF PNEUMO | M2: DOSES APLICADAS REF MENINGO | N2: COBERTURA REF MENINGO | O2: DOSES APLICADAS R1 POLIO | P2: COBERTURA R1 POLIO | Q2: DOSES APLICADAS R1 TRÍPLICE BACTERIANA | R2: COBERTURA R1 TRÍPLICE BACTERIANA | S2: DOSES APLICADAS REF FEBRE AMARELA | T2: COBERTURA REF FEBRE AMARELA | U2: DOSES APLICADAS R2 POLIO | V2: COBERTURA R2 POLIO | W2: DOSES APLICADAS R2 TRÍPLICE BACTERIANA | X2: COBERTURA R2 TRÍPLICE BACTERIANA
A3: Metropolitana | B3: Afonso Cláudio | C3: 374 | D3: 146 | E3: 416 | F3: =E3/12*5 -> 173.3333333 | G3: 140 | H3: =G3/D3 -> 0.9589041096 | I3: 65 | J3: =I3/F3 -> 0.375 | K3: 159 | L3: =K3/D3 -> 1.089041096 | M3: 159 | N3: =M3/D3 -> 1.089041096 | O3: 205 | P3: =O3/D3 -> 1.404109589 | Q3: 152 | R3: =Q3/D3 -> 1.04109589 | S3: 105 | T3: =S3/F3 -> 0.6057692308 | U3: 109 | V3: =U3/F3 -> 0.6288461538 | W3: 114 | X3: =W3/F3 -> 0.6576923077
A4: Norte | B4: Água Doce do Norte | C4: 185 | D4: 90 | E4: 151 | F4: =E4/12*5 -> 62.91666667 | G4: 49 | H4: 0.5444444444 | I4: 33 | J4: 0.5245033113 | K4: 60 | L4: 0.6666666667 | M4: 61 | N4: 0.6777777778 | O4: 56 | P4: 0.6222222222 | Q4: 57 | R4: 0.6333333333 | S4: 45 | T4: 0.7152317881 | U4: 56 | V4: 0.8900662252 | W4: 52 | X4: 0.8264900662
A5: Central | B5: Águia Branca | C5: 165 | D5: 67 | E5: 129 | F5: 53.75 | G5: 32 | H5: 0.4776119403 | I5: 21 | J5: 0.3906976744 | K5: 45 | L5: 0.671641791 | M5: 47 | N5: 0.7014925373 | O5: 45 | P5: 0.671641791 | Q5: 46 | R5: 0.6865671642 | S5: 35 | T5: 0.6511627907 | U5: 44 | V5: 0.8186046512 | W5: 46 | X5: 0.8558139535
A6: Sul | B6: Alegre | C6: 330 | D6: 135 | E6: 372 | F6: 155 | G6: 107 | H6: 0.7925925926 | I6: 95 | J6: 0.6129032258 | K6: 123 | L6: 0.9111111111 | M6: 123 | N6: 0.9111111111 | O6: 128 | P6: 0.9481481481 | Q6: 113 | R6: 0.837037037 | S6: 138 | T6: 0.8903225806 | U6: 142 | V6: 0.9161290323 | W6: 150 | X6: 0.9677419355
A7: Sul | B7: Alfredo Chaves | C7: 148 | D7: 59 | E7: 138 | F7: 57.5 | G7: 54 | H7: 0.9152542373 | I7: 38 | J7: 0.6608695652 | K7: 65 | L7: 1.101694915 | M7: 68 | N7: 1.152542373 | O7: 85 | P7: 1.440677966 | Q7: 53 | R7: 0.8983050847 | S7: 49 | T7: 0.852173913 | U7: 59 | V7: 1.026086957 | W7: 59 | X7: 1.026086957
A8: Central | B8: Alto Rio Novo | C8: 84 | D8: 27 | E8: 102 | F8: 42.5 | G8: 37 | H8: 1.37037037 | I8: 17 | J8: 0.4 | K8: 39 | L8: 1.444444444 | M8: 39 | N8: 1.444444444 | O8: 55 | P8: 2.037037037 | Q8: 39 | R8: 1.444444444 | S8: 26 | T8: 0.6117647059 | U8: 24 | V8: 0.5647058824 | W8: 25 | X8: 0.5882352941
A9: Sul | B9: Anchieta | C9: 389 | D9: 169 | E9: 390 | F9: 162.5 | G9: 128 | H9: 0.7573964497 | I9: 87 | J9: 0.5353846154 | K9: 166 | L9: 0.9822485207 | M9: 171 | N9: 1.01183432 | O9: 174 | P9: 1.029585799 | Q9: 164 | R9: 0.9704142012 | S9: 142 | T9: 0.8738461538 | U9: 181 | V9: 1.113846154 | W9: 187 | X9: 1.150769231
A10: Sul | B10: Apiacá | C10: 71 | D10: 37 | E10: 90 | F10: 37.5 | G10: 14 | H10: 0.3783783784 | I10: 23 | J10: 0.6133333333 | K10: 27 | L10: 0.7297297297 | M10: 29 | N10: 0.7837837838 | O10: 22 | P10: 0.5945945946 | Q10: 15 | R10: 0.4054054054 | S10: 3 | T10: 0.08 | U10: 33 | V10: 0.88 | W10: 32 | X10: 0.8533333333
A11: Metropolitana | B11: Aracruz | C11: 1465 | D11: 634 | E11: 1420 | F11: 591.6666667 | G11: 561 | H11: 0.8848580442 | I11: 344 | J11: 0.5814084507 | K11: 641 | L11: 1.011041009 | M11: 680 | N11: 1.072555205 | O11: 708 | P11: 1.116719243 | Q11: 621 | R11: 0.9794952681 | S11: 420 | T11: 0.7098591549 | U11: 508 | V11: 0.8585915493 | W11: 536 | X11: 0.905915493
A12: Sul | B12: Atilio Vivacqua | C12: 138 | D12: 64 | E12: 138 | F12: 57.5 | G12: 40 | H12: 0.625 | I12: 20 | J12: 0.347826087 | K12: 67 | L12: 1.046875 | M12: 69 | N12: 1.078125 | O12: 77 | P12: 1.203125 | Q12: 67 | R12: 1.046875 | S12: 40 | T12: 0.6956521739 | U12: 45 | V12: 0.7826086957 | W12: 45 | X12: 0.7826086957
A13: Central | B13: Baixo Guandu | C13: 388 | D13: 163 | E13: 427 | F13: 177.9166667 | G13: 133 | H13: 0.8159509202 | I13: 70 | J13: 0.393442623 | K13: 167 | L13: 1.024539877 | M13: 172 | N13: 1.055214724 | O13: 177 | P13: 1.085889571 | Q13: 167 | R13: 1.024539877 | S13: 133 | T13: 0.7475409836 | U13: 165 | V13: 0.9274004684 | W13: 157 | X13: 0.8824355972
A14: Norte | B14: Barra de São Francisco | C14: 553 | D14: 241 | E14: 589 | F14: 245.4166667 | G14: 182 | H14: 0.755186722 | I14: 126 | J14: 0.5134125637 | K14: 217 | L14: 0.9004149378 | M14: 220 | N14: 0.9128630705 | O14: 215 | P14: 0.8921161826 | Q14: 203 | R14: 0.8423236515 | S14: 174 | T14: 0.7089983022 | U14: 181 | V14: 0.7375212224 | W14: 187 | X14: 0.7619694397
A15: Norte | B15: Boa Esperança | C15: 189 | D15: 77 | E15: 200 | F15: 83.33333333 | G15: 57 | H15: 0.7402597403 | I15: 49 | J15: 0.588 | K15: 94 | L15: 1.220779221 | M15: 97 | N15: 1.25974026 | O15: 91 | P15: 1.181818182 | Q15: 75 | R15: 0.974025974 | S15: 48 | T15: 0.576 | U15: 59 | V15: 0.708 | W15: 62 | X15: 0.744
A16: Sul | B16: Bom Jesus do Norte | C16: 84 | D16: 37 | E16: 146 | F16: 60.83333333 | G16: 31 | H16: 0.8378378378 | I16: 17 | J16: 0.2794520548 | K16: 55 | L16: 1.486486486 | M16: 56 | N16: 1.513513514 | O16: 60 | P16: 1.621621622 | Q16: 44 | R16: 1.189189189 | S16: 38 | T16: 0.6246575342 | U16: 52 | V16: 0.8547945205 | W16: 52 | X16: 0.8547945205
A17: Metropolitana | B17: Brejetuba | C17: 214 | D17: 87 | E17: 169 | F17: 70.41666667 | G17: 74 | H17: 0.8505747126 | I17: 46 | J17: 0.6532544379 | K17: 71 | L17: 0.816091954 | M17: 75 | N17: 0.8620689655 | O17: 82 | P17: 0.9425287356 | Q17: 73 | R17: 0.8390804598 | S17: 83 | T17: 1.178698225 | U17: 83 | V17: 1.178698225 | W17: 83 | X17: 1.178698225
A18: Sul | B18: Cachoeiro de Itapemirim | C18: 2460 | D18: 1105 | E18: 2417 | F18: 1007.083333 | G18: 723 | H18: 0.6542986425 | I18: 390 | J18: 0.3872569301 | K18: 956 | L18: 0.865158371 | M18: 1000 | N18: 0.9049773756 | O18: 971 | P18: 0.8787330317 | Q18: 863 | R18: 0.7809954751 | S18: 535 | T18: 0.5312370707 | U18: 723 | V18: 0.7179147704 | W18: 756 | X18: 0.7506826645
A19: Metropolitana | B19: Cariacica | C19: 4873 | D19: 2069 | E19: 5005 | F19: 2085.416667 | G19: 1290 | H19: 0.6234896085 | I19: 907 | J19: 0.4349250749 | K19: 1911 | L19: 0.9236346061 | M19: 1961 | N19: 0.94780087 | O19: 1829 | P19: 0.8840019333 | Q19: 1654 | R19: 0.7994200097 | S19: 1457 | T19: 0.6986613387 | U19: 1894 | V19: 0.9082117882 | W19: 1856 | X19: 0.88999001
A20: Sul | B20: Castelo | C20: 443 | D20: 192 | E20: 399 | F20: 166.25 | G20: 156 | H20: 0.8125 | I20: 70 | J20: 0.4210526316 | K20: 199 | L20: 1.036458333 | M20: 194 | N20: 1.010416667 | O20: 218 | P20: 1.135416667 | Q20: 176 | R20: 0.9166666667 | S20: 108 | T20: 0.6496240602 | U20: 146 | V20: 0.8781954887 | W20: 146 | X20: 0.8781954887
A21: Central | B21: Colatina | C21: 1561 | D21: 669 | E21: 1561 | F21: 650.4166667 | G21: 412 | H21: 0.6158445441 | I21: 200 | J21: 0.3074951954 | K21: 561 | L21: 0.8385650224 | M21: 606 | N21: 0.9058295964 | O21: 481 | P21: 0.7189835575 | Q21: 492 | R21: 0.735426009 | S21: 331 | T21: 0.5089045484 | U21: 426 | V21: 0.6549647662 | W21: 433 | X21: 0.665727098
A22: Norte | B22: Conceição da Barra | C22: 342 | D22: 131 | E22: 391 | F22: 162.9166667 | G22: 127 | H22: 0.9694656489 | I22: 100 | J22: 0.6138107417 | K22: 157 | L22: 1.198473282 | M22: 159 | N22: 1.213740458 | O22: 167 | P22: 1.27480916 | Q22: 145 | R22: 1.106870229 | S22: 137 | T22: 0.8409207161 | U22: 173 | V22: 1.061892583 | W22: 177 | X22: 1.086445013
A23: Metropolitana | B23: Conceição do Castelo | C23: 169 | D23: 78 | E23: 144 | F23: 60 | G23: 56 | H23: 0.7179487179 | I23: 37 | J23: 0.6166666667 | K23: 45 | L23: 0.5769230769 | M23: 48 | N23: 0.6153846154 | O23: 79 | P23: 1.012820513 | Q23: 57 | R23: 0.7307692308 | S23: 44 | T23: 0.7333333333 | U23: 51 | V23: 0.85 | W23: 52 | X23: 0.8666666667
A24: Sul | B24: Divino de São Lourenço | C24: 65 | D24: 25 | E24: 68 | F24: 28.33333333 | G24: 22 | H24: 0.88 | I24: 16 | J24: 0.5647058824 | K24: 20 | L24: 0.8 | M24: 20 | N24: 0.8 | O24: 23 | P24: 0.92 | Q24: 22 | R24: 0.88 | S24: 32 | T24: 1.129411765 | U24: 25 | V24: 0.8823529412 | W24: 25 | X24: 0.8823529412
A25: Metropolitana | B25: Domingos Martins | C25: 417 | D25: 186 | E25: 411 | F25: 171.25 | G25: 164 | H25: 0.8817204301 | I25: 121 | J25: 0.7065693431 | K25: 175 | L25: 0.9408602151 | M25: 166 | N25: 0.8924731183 | O25: 202 | P25: 1.086021505 | Q25: 178 | R25: 0.9569892473 | S25: 133 | T25: 0.7766423358 | U25: 165 | V25: 0.9635036496 | W25: 170 | X25: 0.9927007299
A26: Sul | B26: Dores do Rio Preto | C26: 89 | D26: 34 | E26: 92 | F26: 38.33333333 | G26: 24 | H26: 0.7058823529 | I26: 16 | J26: 0.4173913043 | K26: 55 | L26: 1.617647059 | M26: 56 | N26: 1.647058824 | O26: 40 | P26: 1.176470588 | Q26: 33 | R26: 0.9705882353 | S26: 28 | T26: 0.7304347826 | U26: 34 | V26: 0.8869565217 | W26: 34 | X26: 0.8869565217
A27: Norte | B27: Ecoporanga | C27: 266 | D27: 125 | E27: 283 | F27: 117.9166667 | G27: 81 | H27: 0.648 | I27: 68 | J27: 0.5766784452 | K27: 104 | L27: 0.832 | M27: 108 | N27: 0.864 | O27: 99 | P27: 0.792 | Q27: 85 | R27: 0.68 | S27: 85 | T27: 0.7208480565 | U27: 89 | V27: 0.754770318 | W27: 94 | X27: 0.7971731449
A28: Metropolitana | B28: Fundão | C28: 221 | D28: 94 | E28: 218 | F28: 90.83333333 | G28: 69 | H28: 0.7340425532 | I28: 55 | J28: 0.6055045872 | K28: 91 | L28: 0.9680851064 | M28: 96 | N28: 1.021276596 | O28: 92 | P28: 0.9787234043 | Q28: 76 | R28: 0.8085106383 | S28: 73 | T28: 0.8036697248 | U28: 81 | V28: 0.8917431193 | W28: 78 | X28: 0.8587155963
A29: Central | B29: Governador Lindenberg | C29: 150 | D29: 72 | E29: 142 | F29: 59.16666667 | G29: 38 | H29: 0.5277777778 | I29: 32 | J29: 0.5408450704 | K29: 58 | L29: 0.8055555556 | M29: 63 | N29: 0.875 | O29: 61 | P29: 0.8472222222 | Q29: 44 | R29: 0.6111111111 | S29: 35 | T29: 0.5915492958 | U29: 39 | V29: 0.6591549296 | W29: 44 | X29: 0.7436619718
A30: Sul | B30: Guaçuí | C30: 396 | D30: 150 | E30: 407 | F30: 169.5833333 | G30: 157 | H30: 1.046666667 | I30: 43 | J30: 0.2535626536 | K30: 170 | L30: 1.133333333 | M30: 175 | N30: 1.166666667 | O30: 157 | P30: 1.046666667 | Q30: 150 | R30: 1 | S30: 119 | T30: 0.7017199017 | U30: 119 | V30: 0.7017199017 | W30: 120 | X30: 0.7076167076
A31: Metropolitana | B31: Guarapari | C31: 1732 | D31: 752 | E31: 1557 | F31: 648.75 | G31: 448 | H31: 0.5957446809 | I31: 305 | J31: 0.4701348748 | K31: 679 | L31: 0.9029255319 | M31: 674 | N31: 0.8962765957 | O31: 613 | P31: 0.8151595745 | Q31: 576 | R31: 0.7659574468 | S31: 379 | T31: 0.5842003854 | U31: 521 | V31: 0.8030828516 | W31: 561 | X31: 0.8647398844
A32: Metropolitana | B32: Ibatiba | C32: 362 | D32: 153 | E32: 354 | F32: 147.5 | G32: 109 | H32: 0.7124183007 | I32: 38 | J32: 0.2576271186 | K32: 139 | L32: 0.908496732 | M32: 147 | N32: 0.9607843137 | O32: 151 | P32: 0.9869281046 | Q32: 135 | R32: 0.8823529412 | S32: 95 | T32: 0.6440677966 | U32: 111 | V32: 0.7525423729 | W32: 116 | X32: 0.786440678
A33: Metropolitana | B33: Ibiraçu | C33: 154 | D33: 70 | E33: 160 | F33: 66.66666667 | G33: 34 | H33: 0.4857142857 | I33: 40 | J33: 0.6 | K33: 53 | L33: 0.7571428571 | M33: 55 | N33: 0.7857142857 | O33: 45 | P33: 0.6428571429 | Q33: 34 | R33: 0.4857142857 | S33: 47 | T33: 0.705 | U33: 47 | V33: 0.705 | W33: 49 | X33: 0.735
A34: Sul | B34: Ibitirama | C34: 127 | D34: 52 | E34: 148 | F34: 61.66666667 | G34: 47 | H34: 0.9038461538 | I34: 13 | J34: 0.2108108108 | K34: 56 | L34: 1.076923077 | M34: 59 | N34: 1.134615385 | O34: 50 | P34: 0.9615384615 | Q34: 47 | R34: 0.9038461538 | S34: 10 | T34: 0.1621621622 | U34: 17 | V34: 0.2756756757 | W34: 12 | X34: 0.1945945946
A35: Sul | B35: Iconha | C35: 118 | D35: 47 | E35: 156 | F35: 65 | G35: 58 | H35: =G35/D35 -> 1.234042553 | I35: 21 | J35: =I35/F35 -> 0.3230769231 | K35: 65 | L35: =K35/D35 -> 1.382978723 | M35: 67 | N35: =M35/D35 -> 1.425531915 | O35: 55 | P35: =O35/D35 -> 1.170212766 | Q35: 46 | R35: =Q35/D35 -> 0.9787234043 | S35: 55 | T35: =S35/F35 -> 0.8461538462 | U35: 55 | V35: =U35/F35 -> 0.8461538462 | W35: 53 | X35: =W35/F35 -> 0.8153846154
A36: Sul | B36: Irupi | C36: 197 | D36: 75 | E36: 200 | F36: 83.33333333 | G36: 60 | H36: 0.8 | I36: 41 | J36: 0.492 | K36: 107 | L36: 1.426666667 | M36: 108 | N36: 1.44 | O36: 81 | P36: 1.08 | Q36: 78 | R36: 1.04 | S36: 76 | T36: 0.912 | U36: 81 | V36: 0.972 | W36: 92 | X36: 1.104
A37: Metropolitana | B37: Itaguaçu | C37: 135 | D37: 59 | E37: 154 | F37: 64.16666667 | G37: 68 | H37: 1.152542373 | I37: 22 | J37: 0.3428571429 | K37: 52 | L37: 0.8813559322 | M37: 55 | N37: 0.9322033898 | O37: 64 | P37: 1.084745763 | Q37: 59 | R37: 1 | S37: 40 | T37: 0.6233766234 | U37: 45 | V37: 0.7012987013 | W37: 48 | X37: 0.7480519481
A38: Sul | B38: Itapemirim | C38: 541 | D38: 201 | E38: 556 | F38: 231.6666667 | G38: 128 | H38: 0.6368159204 | I38: 85 | J38: 0.3669064748 | K38: 203 | L38: 1.009950249 | M38: 218 | N38: 1.084577114 | O38: 200 | P38: 0.9950248756 | Q38: 193 | R38: 0.960199005 | S38: 89 | T38: 0.3841726619 | U38: 190 | V38: 0.8201438849 | W38: 185 | X38: 0.7985611511
A39: Metropolitana | B39: Itarana | C39: 140 | D39: 65 | E39: 128 | F39: 53.33333333 | G39: 36 | H39: 0.5538461538 | I39: 41 | J39: 0.76875 | K39: 49 | L39: 0.7538461538 | M39: 49 | N39: 0.7538461538 | O39: 44 | P39: 0.6769230769 | Q39: 38 | R39: 0.5846153846 | S39: 43 | T39: 0.80625 | U39: 47 | V39: 0.88125 | W39: 45 | X39: 0.84375
A40: Sul | B40: Iúna | C40: 474 | D40: 189 | E40: 410 | F40: 170.8333333 | G40: 141 | H40: 0.746031746 | I40: 86 | J40: 0.5034146341 | K40: 185 | L40: 0.9788359788 | M40: 197 | N40: 1.042328042 | O40: 195 | P40: 1.031746032 | Q40: 152 | R40: 0.8042328042 | S40: 127 | T40: 0.7434146341 | U40: 159 | V40: 0.9307317073 | W40: 161 | X40: 0.9424390244
A41: Norte | B41: Jaguaré | C41: 489 | D41: 212 | E41: 445 | F41: 185.4166667 | G41: 162 | H41: 0.7641509434 | I41: 89 | J41: 0.48 | K41: 205 | L41: 0.9669811321 | M41: 204 | N41: 0.9622641509 | O41: 201 | P41: 0.9481132075 | Q41: 186 | R41: 0.8773584906 | S41: 154 | T41: 0.8305617978 | U41: 172 | V41: 0.9276404494 | W41: 204 | X41: 1.100224719
A42: Sul | B42: Jerônimo Monteiro | C42: 156 | D42: 59 | E42: 157 | F42: 65.41666667 | G42: 53 | H42: 0.8983050847 | I42: 15 | J42: 0.2292993631 | K42: 67 | L42: 1.13559322 | M42: 67 | N42: 1.13559322 | O42: 71 | P42: 1.203389831 | Q42: 64 | R42: 1.084745763 | S42: 44 | T42: 0.672611465 | U42: 50 | V42: 0.7643312102 | W42: 55 | X42: 0.8407643312
A43: Metropolitana | B43: João Neiva | C43: 178 | D43: 70 | E43: 142 | F43: 59.16666667 | G43: 55 | H43: 0.7857142857 | I43: 25 | J43: 0.4225352113 | K43: 75 | L43: 1.071428571 | M43: 83 | N43: 1.185714286 | O43: 77 | P43: 1.1 | Q43: 58 | R43: 0.8285714286 | S43: 50 | T43: 0.8450704225 | U43: 48 | V43: 0.8112676056 | W43: 48 | X43: 0.8112676056
A44: Metropolitana | B44: Laranja da Terra | C44: 96 | D44: 43 | E44: 133 | F44: 55.41666667 | G44: 46 | H44: 1.069767442 | I44: 43 | J44: 0.7759398496 | K44: 63 | L44: 1.465116279 | M44: 64 | N44: 1.488372093 | O44: 55 | P44: 1.279069767 | Q44: 46 | R44: 1.069767442 | S44: 41 | T44: 0.7398496241 | U44: 43 | V44: 0.7759398496 | W44: 42 | X44: 0.7578947368
A45: Central | B45: Linhares | C45: 2598 | D45: 1125 | E45: 2452 | F45: 1021.666667 | G45: 694 | H45: 0.6168888889 | I45: 393 | J45: 0.3846655791 | K45: 865 | L45: 0.7688888889 | M45: 893 | N45: 0.7937777778 | O45: 917 | P45: 0.8151111111 | Q45: 887 | R45: 0.7884444444 | S45: 649 | T45: 0.6352365416 | U45: 811 | V45: 0.7938009788 | W45: 868 | X45: 0.8495921697
A46: Central | B46: Mantenópolis | C46: 161 | D46: 78 | E46: 166 | F46: 69.16666667 | G46: 49 | H46: 0.6282051282 | I46: 36 | J46: 0.5204819277 | K46: 66 | L46: 0.8461538462 | M46: 63 | N46: 0.8076923077 | O46: 57 | P46: 0.7307692308 | Q46: 61 | R46: 0.7820512821 | S46: 46 | T46: 0.665060241 | U46: 55 | V46: 0.7951807229 | W46: 58 | X46: 0.8385542169
A47: Sul | B47: Marataízes | C47: 570 | D47: 266 | E47: 579 | F47: 241.25 | G47: 182 | H47: 0.6842105263 | I47: 104 | J47: 0.4310880829 | K47: 260 | L47: 0.977443609 | M47: 260 | N47: 0.977443609 | O47: 237 | P47: 0.8909774436 | Q47: 224 | R47: 0.8421052632 | S47: 118 | T47: 0.489119171 | U47: 203 | V47: 0.8414507772 | W47: 210 | X47: 0.8704663212
A48: Metropolitana | B48: Marechal Floriano | C48: 227 | D48: 102 | E48: 236 | F48: 98.33333333 | G48: 71 | H48: 0.6960784314 | I48: 71 | J48: 0.7220338983 | K48: 96 | L48: 0.9411764706 | M48: 93 | N48: 0.9117647059 | O48: 90 | P48: 0.8823529412 | Q48: 73 | R48: 0.7156862745 | S48: 64 | T48: 0.6508474576 | U48: 73 | V48: 0.7423728814 | W48: 69 | X48: 0.7016949153
A49: Central | B49: Marilândia | C49: 167 | D49: 61 | E49: 164 | F49: 68.33333333 | G49: 53 | H49: 0.868852459 | I49: 36 | J49: 0.5268292683 | K49: 48 | L49: 0.7868852459 | M49: 50 | N49: 0.8196721311 | O49: 71 | P49: 1.163934426 | Q49: 54 | R49: 0.8852459016 | S49: 51 | T49: 0.7463414634 | U49: 51 | V49: 0.7463414634 | W49: 53 | X49: 0.7756097561
A50: Sul | B50: Mimoso do Sul | C50: 262 | D50: 105 | E50: 276 | F50: 115 | G50: 55 | H50: 0.5238095238 | I50: 69 | J50: 0.6 | K50: 83 | L50: 0.7904761905 | M50: 87 | N50: 0.8285714286 | O50: 73 | P50: 0.6952380952 | Q50: 69 | R50: 0.6571428571 | S50: 74 | T50: 0.6434782609 | U50: 80 | V50: 0.6956521739 | W50: 80 | X50: 0.6956521739
A51: Norte | B51: Montanha | C51: 233 | D51: 76 | E51: 278 | F51: 115.8333333 | G51: 96 | H51: 1.263157895 | I51: 65 | J51: 0.5611510791 | K51: 99 | L51: 1.302631579 | M51: 102 | N51: 1.342105263 | O51: 117 | P51: 1.539473684 | Q51: 104 | R51: 1.368421053 | S51: 88 | T51: 0.7597122302 | U51: 98 | V51: 0.8460431655 | W51: 100 | X51: 0.8633093525
A52: Norte | B52: Mucurici | C52: 68 | D52: 21 | E52: 97 | F52: 40.41666667 | G52: 20 | H52: 0.9523809524 | I52: 23 | J52: 0.5690721649 | K52: 37 | L52: 1.761904762 | M52: 38 | N52: 1.80952381 | O52: 19 | P52: 0.9047619048 | Q52: 19 | R52: 0.9047619048 | S52: 24 | T52: 0.593814433 | U52: 27 | V52: 0.6680412371 | W52: 27 | X52: 0.6680412371
A53: Sul | B53: Muniz Freire | C53: 210 | D53: 86 | E53: 275 | F53: 114.5833333 | G53: 94 | H53: 1.093023256 | I53: 27 | J53: 0.2356363636 | K53: 110 | L53: 1.279069767 | M53: 109 | N53: 1.26744186 | O53: 121 | P53: 1.406976744 | Q53: 95 | R53: 1.104651163 | S53: 83 | T53: 0.7243636364 | U53: 92 | V53: 0.8029090909 | W53: 86 | X53: 0.7505454545
A54: Sul | B54: Muqui | C54: 163 | D54: 60 | E54: 152 | F54: 63.33333333 | G54: 58 | H54: 0.9666666667 | I54: 43 | J54: 0.6789473684 | K54: 61 | L54: 1.016666667 | M54: 60 | N54: 1 | O54: 80 | P54: 1.333333333 | Q54: 53 | R54: 0.8833333333 | S54: 56 | T54: 0.8842105263 | U54: 57 | V54: 0.9 | W54: 58 | X54: 0.9157894737
A55: Norte | B55: Nova Venécia | C55: 681 | D55: 301 | E55: 656 | F55: 273.3333333 | G55: 256 | H55: 0.8504983389 | I55: 115 | J55: 0.4207317073 | K55: 256 | L55: 0.8504983389 | M55: 271 | N55: 0.9003322259 | O55: 266 | P55: 0.8837209302 | Q55: 251 | R55: 0.8338870432 | S55: 183 | T55: 0.6695121951 | U55: 212 | V55: 0.7756097561 | W55: 216 | X55: 0.7902439024
A56: Central | B56: Pancas | C56: 216 | D56: 91 | E56: 244 | F56: 101.6666667 | G56: 90 | H56: 0.989010989 | I56: 39 | J56: 0.3836065574 | K56: 84 | L56: 0.9230769231 | M56: 88 | N56: 0.967032967 | O56: 167 | P56: 1.835164835 | Q56: 95 | R56: 1.043956044 | S56: 81 | T56: 0.7967213115 | U56: 86 | V56: 0.8459016393 | W56: 86 | X56: 0.8459016393
A57: Norte | B57: Pedro Canário | C57: 305 | D57: 132 | E57: 338 | F57: 140.8333333 | G57: 120 | H57: 0.9090909091 | I57: 89 | J57: 0.6319526627 | K57: 156 | L57: 1.181818182 | M57: 156 | N57: 1.181818182 | O57: 156 | P57: 1.181818182 | Q57: 149 | R57: 1.128787879 | S57: 115 | T57: 0.8165680473 | U57: 128 | V57: 0.9088757396 | W57: 131 | X57: 0.9301775148
A58: Norte | B58: Pinheiros | C58: 301 | D58: 109 | E58: 383 | F58: 159.5833333 | G58: 69 | H58: 0.6330275229 | I58: 74 | J58: 0.4637075718 | K58: 124 | L58: 1.137614679 | M58: 122 | N58: 1.119266055 | O58: 102 | P58: 0.9357798165 | Q58: 88 | R58: 0.8073394495 | S58: 103 | T58: 0.6454308094 | U58: 121 | V58: 0.7582245431 | W58: 122 | X58: 0.7644908616
A59: Sul | B59: Piúma | C59: 309 | D59: 122 | E59: 311 | F59: 129.5833333 | G59: 64 | H59: 0.5245901639 | I59: 46 | J59: 0.3549839228 | K59: 119 | L59: 0.9754098361 | M59: 108 | N59: 0.8852459016 | O59: 105 | P59: 0.8606557377 | Q59: 102 | R59: 0.8360655738 | S59: 71 | T59: 0.5479099678 | U59: 98 | V59: 0.7562700965 | W59: 109 | X59: 0.8411575563
A60: Norte | B60: Ponto Belo | C60: 75 | D60: 25 | E60: 85 | F60: 35.41666667 | G60: 17 | H60: 0.68 | I60: 16 | J60: 0.4517647059 | K60: 25 | L60: 1 | M60: 26 | N60: 1.04 | O60: 26 | P60: 1.04 | Q60: 17 | R60: 0.68 | S60: 19 | T60: 0.5364705882 | U60: 16 | V60: 0.4517647059 | W60: 20 | X60: 0.5647058824
A61: Sul | B61: Presidente Kennedy | C61: 194 | D61: 94 | E61: 239 | F61: 99.58333333 | G61: 77 | H61: 0.8191489362 | I61: 40 | J61: 0.4016736402 | K61: 98 | L61: 1.042553191 | M61: 98 | N61: 1.042553191 | O61: 79 | P61: 0.8404255319 | Q61: 75 | R61: 0.7978723404 | S61: 72 | T61: 0.7230125523 | U61: 88 | V61: 0.8836820084 | W61: 86 | X61: 0.8635983264
A62: Central | B62: Rio Bananal | C62: 299 | D62: 130 | E62: 229 | F62: 95.41666667 | G62: 115 | H62: 0.8846153846 | I62: 62 | J62: 0.6497816594 | K62: 118 | L62: 0.9076923077 | M62: 134 | N62: 1.030769231 | O62: 152 | P62: 1.169230769 | Q62: 116 | R62: 0.8923076923 | S62: 108 | T62: 1.131877729 | U62: 105 | V62: 1.100436681 | W62: 102 | X62: 1.068995633
A63: Sul | B63: Rio Novo do Sul | C63: 120 | D63: 47 | E63: 144 | F63: 60 | G63: 40 | H63: 0.8510638298 | I63: 37 | J63: 0.6166666667 | K63: 48 | L63: 1.021276596 | M63: 50 | N63: 1.063829787 | O63: 49 | P63: 1.042553191 | Q63: 47 | R63: 1 | S63: 39 | T63: 0.65 | U63: 51 | V63: 0.85 | W63: 53 | X63: 0.8833333333
A64: Metropolitana | B64: Santa Leopoldina | C64: 93 | D64: 32 | E64: 155 | F64: 64.58333333 | G64: 25 | H64: 0.78125 | I64: 15 | J64: 0.2322580645 | K64: 53 | L64: 1.65625 | M64: 53 | N64: 1.65625 | O64: 44 | P64: 1.375 | Q64: 44 | R64: 1.375 | S64: 34 | T64: 0.5264516129 | U64: 37 | V64: 0.5729032258 | W64: 41 | X64: 0.6348387097
A65: Metropolitana | B65: Santa Maria de Jetibá | C65: 682 | D65: 302 | E65: 685 | F65: 285.4166667 | G65: 227 | H65: 0.7516556291 | I65: 103 | J65: 0.3608759124 | K65: 275 | L65: 0.9105960265 | M65: 290 | N65: 0.9602649007 | O65: 290 | P65: 0.9602649007 | Q65: 260 | R65: 0.8609271523 | S65: 192 | T65: 0.6727007299 | U65: 230 | V65: 0.8058394161 | W65: 234 | X65: 0.8198540146
A66: Metropolitana | B66: Santa Teresa | C66: 299 | D66: 120 | E66: 260 | F66: 108.3333333 | G66: 80 | H66: 0.6666666667 | I66: 77 | J66: 0.7107692308 | K66: 101 | L66: 0.8416666667 | M66: 109 | N66: 0.9083333333 | O66: 96 | P66: 0.8 | Q66: 84 | R66: 0.7 | S66: 89 | T66: 0.8215384615 | U66: 89 | V66: 0.8215384615 | W66: 82 | X66: 0.7569230769
A67: Central | B67: São Domingos do Norte | C67: 126 | D67: 58 | E67: 117 | F67: 48.75 | G67: 27 | H67: =G67/D67 -> 0.4655172414 | I67: 17 | J67: =I67/F67 -> 0.3487179487 | K67: 40 | L67: =K67/D67 -> 0.6896551724 | M67: 42 | N67: =M67/D67 -> 0.724137931 | O67: 31 | P67: =O67/D67 -> 0.5344827586 | Q67: 27 | R67: =Q67/D67 -> 0.4655172414 | S67: 33 | T67: =S67/F67 -> 0.6769230769 | U67: 32 | V67: =U67/F67 -> 0.6564102564 | W67: 33 | X67: =W67/F67 -> 0.6769230769
A68: Central | B68: São Gabriel da Palha | C68: 440 | D68: 172 | E68: 426 | F68: =E68/12*5 -> 177.5 | G68: 127 | H68: 0.738372093 | I68: 78 | J68: 0.4394366197 | K68: 149 | L68: 0.8662790698 | M68: 152 | N68: 0.8837209302 | O68: 160 | P68: 0.9302325581 | Q68: 137 | R68: 0.7965116279 | S68: 154 | T68: 0.8676056338 | U68: 154 | V68: 0.8676056338 | W68: 154 | X68: 0.8676056338
A69: Sul | B69: São José do Calçado | C69: 101 | D69: 44 | E69: 150 | F69: 62.5 | G69: 45 | H69: 1.022727273 | I69: 21 | J69: 0.336 | K69: 57 | L69: 1.295454545 | M69: 57 | N69: 1.295454545 | O69: 53 | P69: 1.204545455 | Q69: 46 | R69: 1.045454545 | S69: 54 | T69: 0.864 | U69: 56 | V69: 0.896 | W69: 54 | X69: 0.864
A70: Norte | B70: São Mateus | C70: 1742 | D70: 613 | E70: 1766 | F70: 735.8333333 | G70: 417 | H70: 0.6802610114 | I70: 358 | J70: 0.4865232163 | K70: 672 | L70: 1.096247961 | M70: 674 | N70: 1.099510604 | O70: 592 | P70: 0.9657422512 | Q70: 562 | R70: 0.9168026101 | S70: 466 | T70: 0.6332955832 | U70: 579 | V70: 0.7868629672 | W70: 576 | X70: 0.782785957
A71: Central | B71: São Roque do Canaã | C71: 131 | D71: 77 | E71: 100 | F71: 41.66666667 | G71: 45 | H71: 0.5844155844 | I71: 34 | J71: 0.816 | K71: 56 | L71: 0.7272727273 | M71: 62 | N71: 0.8051948052 | O71: 59 | P71: 0.7662337662 | Q71: 45 | R71: 0.5844155844 | S71: 37 | T71: 0.888 | U71: 42 | V71: 1.008 | W71: 43 | X71: 1.032
A72: Metropolitana | B72: Serra | C72: 7393 | D72: 3287 | E72: 7550 | F72: 3145.833333 | G72: 1833 | H72: 0.5576513538 | I72: 1017 | J72: 0.3232847682 | K72: 2609 | L72: 0.7937328871 | M72: 2649 | N72: 0.8059020383 | O72: 2564 | P72: 0.780042592 | Q72: 2326 | R72: 0.7076361424 | S72: 2377 | T72: 0.755602649 | U72: 2733 | V72: 0.8687682119 | W72: 2701 | X72: 0.8585960265
A73: Central | B73: Sooretama | C73: 439 | D73: 196 | E73: 415 | F73: 172.9166667 | G73: 124 | H73: 0.6326530612 | I73: 88 | J73: 0.5089156627 | K73: 169 | L73: 0.862244898 | M73: 173 | N73: 0.8826530612 | O73: 203 | P73: 1.035714286 | Q73: 164 | R73: 0.8367346939 | S73: 184 | T73: 1.064096386 | U73: 175 | V73: 1.012048193 | W73: 182 | X73: 1.05253012
A74: Sul | B74: Vargem Alta | C74: 265 | D74: 121 | E74: 278 | F74: 115.8333333 | G74: 91 | H74: 0.7520661157 | I74: 53 | J74: 0.4575539568 | K74: 117 | L74: 0.9669421488 | M74: 116 | N74: 0.958677686 | O74: 108 | P74: 0.8925619835 | Q74: 100 | R74: 0.826446281 | S74: 77 | T74: 0.6647482014 | U74: 90 | V74: 0.7769784173 | W74: 92 | X74: 0.7942446043
A75: Metropolitana | B75: Venda Nova do Imigrante | C75: 392 | D75: 162 | E75: 328 | F75: 136.6666667 | G75: 131 | H75: 0.8086419753 | I75: 48 | J75: 0.3512195122 | K75: 177 | L75: 1.092592593 | M75: 182 | N75: 1.12345679 | O75: 165 | P75: 1.018518519 | Q75: 138 | R75: 0.8518518519 | S75: 86 | T75: 0.6292682927 | U75: 87 | V75: 0.6365853659 | W75: 93 | X75: 0.6804878049
A76: Metropolitana | B76: Viana | C76: 980 | D76: 430 | E76: 1064 | F76: 443.3333333 | G76: 162 | H76: 0.376744186 | I76: 145 | J76: 0.3270676692 | K76: 391 | L76: 0.9093023256 | M76: 400 | N76: 0.9302325581 | O76: 335 | P76: 0.7790697674 | Q76: 316 | R76: 0.7348837209 | S76: 288 | T76: 0.6496240602 | U76: 355 | V76: 0.8007518797 | W76: 367 | X76: 0.8278195489
A77: Norte | B77: Vila Pavão | C77: 91 | D77: 43 | E77: 127 | F77: 52.91666667 | G77: 39 | H77: 0.9069767442 | I77: 24 | J77: 0.4535433071 | K77: 53 | L77: 1.23255814 | M77: 56 | N77: 1.302325581 | O77: 57 | P77: 1.325581395 | Q77: 42 | R77: 0.976744186 | S77: 53 | T77: 1.001574803 | U77: 54 | V77: 1.020472441 | W77: 53 | X77: 1.001574803
A78: Central | B78: Vila Valério | C78: 259 | D78: 121 | E78: 169 | F78: 70.41666667 | G78: 69 | H78: 0.5702479339 | I78: 41 | J78: 0.5822485207 | K78: 89 | L78: 0.7355371901 | M78: 76 | N78: 0.6280991736 | O78: 111 | P78: 0.9173553719 | Q78: 93 | R78: 0.7685950413 | S78: 67 | T78: 0.9514792899 | U78: 98 | V78: 1.391715976 | W78: 90 | X78: 1.278106509
A79: Metropolitana | B79: Vila Velha | C79: 5698 | D79: 2372 | E79: 5675 | F79: 2364.583333 | G79: 1474 | H79: 0.6214165261 | I79: 793 | J79: 0.3353656388 | K79: 1873 | L79: 0.7896290051 | M79: 1976 | N79: 0.8330522766 | O79: 1881 | P79: 0.7930016863 | Q79: 1694 | R79: 0.7141652614 | S79: 1609 | T79: 0.6804581498 | U79: 1786 | V79: 0.7553127753 | W79: 1747 | X79: 0.7388193833
A80: Metropolitana | B80: Vitória | C80: 3748 | D80: 1596 | E80: 3833 | F80: 1597.083333 | G80: 864 | H80: 0.5413533835 | I80: 587 | J80: 0.3675450039 | K80: 1322 | L80: 0.828320802 | M80: 1397 | N80: 0.8753132832 | O80: 1475 | P80: 0.9241854637 | Q80: 1308 | R80: 0.8195488722 | S80: 1085 | T80: 0.6793634229 | U80: 1396 | V80: 0.8740933994 | W80: 1432 | X80: 0.89663449
B82: Total Norte | C82: =SUMIF($A$3:$A$80,"Norte",C$3:C$80) -> 5520 | D82: =SUMIF($A$3:$A$80,"Norte",D$3:D$80) -> 2196 | E82: =SUMIF($A$3:$A$80,"Norte",E$3:E$80) -> 5789 | F82: =SUMIF($A$3:$A$80,"Norte",F$3:F$80) -> 2412.083333 | G82: =SUMIF($A$3:$A$80,"Norte",G$3:G$80) -> 1692 | H82: =G82/D82 -> 0.7704918033 | I82: =SUMIF($A$3:$A$80,"Norte",I$3:I$80) -> 1229 | J82: =I82/F82 -> 0.5095180515 | K82: =SUMIF($A$3:$A$80,"Norte",K$3:K$80) -> 2259 | L82: =K82/D82 -> 1.028688525 | M82: =SUMIF($A$3:$A$80,"Norte",M$3:M$80) -> 2294 | N82: =M82/D82 -> 1.044626594 | O82: =SUMIF($A$3:$A$80,"Norte",O$3:O$80) -> 2164 | P82: =O82/D82 -> 0.985428051 | Q82: =SUMIF($A$3:$A$80,"Norte",Q$3:Q$80) -> 1983 | R82: =Q82/D82 -> 0.9030054645 | S82: =SUMIF($A$3:$A$80,"Norte",S$3:S$80) -> 1694 | T82: =S82/F82 -> 0.7022974607 | U82: =SUMIF($A$3:$A$80,"Norte",U$3:U$80) -> 1965 | V82: =U82/F82 -> 0.8146484712 | W82: =SUMIF($A$3:$A$80,"Norte",W$3:W$80) -> 2021 | X82: =W82/F82 -> 0.8378649162
B83: Total Central | C83: =SUMIF($A$3:$A$80,"Central",C$3:C$80) -> 7184 | D83: =SUMIF($A$3:$A$80,"Central",D$3:D$80) -> 3107 | E83: =SUMIF($A$3:$A$80,"Central",E$3:E$80) -> 6843 | F83: =SUMIF($A$3:$A$80,"Central",F$3:F$80) -> 2851.25 | G83: =SUMIF($A$3:$A$80,"Central",G$3:G$80) -> 2045 | H83: =G83/D83 -> 0.6581911812 | I83: =SUMIF($A$3:$A$80,"Central",I$3:I$80) -> 1164 | J83: =I83/F83 -> 0.4082419991 | K83: =SUMIF($A$3:$A$80,"Central",K$3:K$80) -> 2554 | L83: =K83/D83 -> 0.8220148053 | M83: =SUMIF($A$3:$A$80,"Central",M$3:M$80) -> 2660 | N83: =M83/D83 -> 0.8561313164 | O83: =SUMIF($A$3:$A$80,"Central",O$3:O$80) -> 2747 | P83: =O83/D83 -> 0.8841326038 | Q83: =SUMIF($A$3:$A$80,"Central",Q$3:Q$80) -> 2467 | R83: =Q83/D83 -> 0.7940135179 | S83: =SUMIF($A$3:$A$80,"Central",S$3:S$80) -> 1970 | T83: =S83/F83 -> 0.6909250329 | U83: =SUMIF($A$3:$A$80,"Central",U$3:U$80) -> 2307 | V83: =U83/F83 -> 0.8091188075 | W83: =SUMIF($A$3:$A$80,"Central",W$3:W$80) -> 2374 | X83: =W83/F83 -> 0.8326172731
B84: Total Metropolitana | C84: =SUMIF($A$3:$A$80,"Metropolitana",C$3:C$80) -> 30042 | D84: =SUMIF($A$3:$A$80,"Metropolitana",D$3:D$80) -> 12909 | E84: =SUMIF($A$3:$A$80,"Metropolitana",E$3:E$80) -> 30197 | F84: =SUMIF($A$3:$A$80,"Metropolitana",F$3:F$80) -> 12582.08333 | G84: =SUMIF($A$3:$A$80,"Metropolitana",G$3:G$80) -> 8017 | H84: =G84/D84 -> 0.6210395848 | I84: =SUMIF($A$3:$A$80,"Metropolitana",I$3:I$80) -> 4945 | J84: =I84/F84 -> 0.3930191741 | K84: =SUMIF($A$3:$A$80,"Metropolitana",K$3:K$80) -> 11100 | L84: =K84/D84 -> 0.8598652103 | M84: =SUMIF($A$3:$A$80,"Metropolitana",M$3:M$80) -> 11461 | N84: =M84/D84 -> 0.887830196 | O84: =SUMIF($A$3:$A$80,"Metropolitana",O$3:O$80) -> 11186 | P84: =O84/D84 -> 0.8665272291 | Q84: =SUMIF($A$3:$A$80,"Metropolitana",Q$3:Q$80) -> 10000 | R84: =Q84/D84 -> 0.7746533426 | S84: =SUMIF($A$3:$A$80,"Metropolitana",S$3:S$80) -> 8834 | T84: =S84/F84 -> 0.7021094811 | U84: =SUMIF($A$3:$A$80,"Metropolitana",U$3:U$80) -> 10539 | V84: =U84/F84 -> 0.8376196311 | W84: =SUMIF($A$3:$A$80,"Metropolitana",W$3:W$80) -> 10564 | X84: =W84/F84 -> 0.8396065834
B85: Total Sul | C85: =SUMIF($A$3:$A$80,"sul",C$3:C$80) -> 8420 | D85: =SUMIF($A$3:$A$80,"sul",D$3:D$80) -> 3575 | E85: =SUMIF($A$3:$A$80,"sul",E$3:E$80) -> 8688 | F85: =SUMIF($A$3:$A$80,"sul",F$3:F$80) -> 3620 | G85: =SUMIF($A$3:$A$80,"sul",G$3:G$80) -> 2649 | H85: =G85/D85 -> 0.740979021 | I85: =SUMIF($A$3:$A$80,"sul",I$3:I$80) -> 1516 | J85: =I85/F85 -> 0.4187845304 | K85: =SUMIF($A$3:$A$80,"sul",K$3:K$80) -> 3539 | L85: =K85/D85 -> 0.9899300699 | M85: =SUMIF($A$3:$A$80,"sul",M$3:M$80) -> 3622 | N85: =M85/D85 -> 1.013146853 | O85: =SUMIF($A$3:$A$80,"sul",O$3:O$80) -> 3512 | P85: =O85/D85 -> 0.9823776224 | Q85: =SUMIF($A$3:$A$80,"sul",Q$3:Q$80) -> 3091 | R85: =Q85/D85 -> 0.8646153846 | S85: =SUMIF($A$3:$A$80,"sul",S$3:S$80) -> 2277 | T85: =S85/F85 -> 0.6290055249 | U85: =SUMIF($A$3:$A$80,"sul",U$3:U$80) -> 2926 | V85: =U85/F85 -> 0.8082872928 | W85: =SUMIF($A$3:$A$80,"sul",W$3:W$80) -> 2992 | X85: =W85/F85 -> 0.826519337
B86: Total Espírito Santo | C86: =SUM(C3:C80) -> 51166 | D86: =SUM(D3:D80) -> 21787 | E86: =SUM(E3:E80) -> 51517 | F86: =SUM(F3:F80) -> 21465.41667 | G86: =SUM(G3:G80) -> 14403 | H86: =G86/D86 -> 0.6610822968 | I86: =SUM(I3:I80) -> 8854 | J86: =I86/F86 -> 0.4124774346 | K86: =SUM(K3:K80) -> 19452 | L86: =K86/D86 -> 0.8928259972 | M86: =SUM(M3:M80) -> 20037 | N86: =M86/D86 -> 0.9196768715 | O86: =SUM(O3:O80) -> 19609 | P86: =O86/D86 -> 0.9000321293 | Q86: =SUM(Q3:Q80) -> 17541 | R86: =Q86/D86 -> 0.8051131409 | S86: =SUM(S3:S80) -> 14775 | T86: =S86/F86 -> 0.6883164781 | U86: =SUM(U3:U80) -> 17737 | V86: =U86/F86 -> 0.8263058796 | W86: =SUM(W3:W80) -> 17951 | X86: =W86/F86 -> 0.8362754042
A90: FonteVacina e Confia, em 04 de Junho de 2024.**
A91: **Dados referente às doses aplicadas no período de Maio de 2024
A92: Cobertura Calculada por município de procedência da vacinação
A93: 1 População anual extraída do MS/SVS/DASIS - SINASC/DASIS/SVS/MS 2023 (hoje preliminares) referente ao período de março a dezembro de 2023 e SINASC/DASIS/SVS/MS 2024 referente ao período de janeiro a fevereiro de 2024.
A95: ² População proporcional extraída do MS/SVS/DASIS - SINASC/DASIS/SVS/MS 2023 (hoje preliminares) referente ao período de março e abril de 2023 somada a população extraída do SINASC/DASIS/SVS/MS 2024 referente ao período de janeiro e fevereiro de 2024.
A96: ³ População anual e proporcional extraída do Censo IBGE 2022.
A98: Observações:
A99: Imunobiológicos que foram recebidos parcialmente pelo estado no mês da análise, sendo distribuídos em quantidades reduzidas às regionais e municípios: Varicela, Haemophilus influenzae tipo B, Soro Antirrábico Humano.
A100: Imunobiológicos que não foram recebidos pelo estado no mês da análise, não sendo possível a distribuição às regionais e municípios: Meningo C, Tetra viral, Sars-cov-10 Bivalente, DTPa (CRIE) e Sars-Cov2-10 Doses Pediátricas.
A101: Imunobiológicos com indisponibilidade de aquisição e distribuição no mês da análise:

Sheet CV REF 1A e 4A - residência
G1: D2 | K1: REFORÇOS 1 ANO | S1: REFORÇOS 4 ANOS
A2: Regional | B2: Município | C2: ¹População 1 ano anual | D2: ²População 1 ano proporcional | E2: ³População 4 anos anual | F2: ³População 4 anos proporcional | G2: DOSES APLICADAS D2 TRÍPLICE VIRAL | H2: COBERTURA D2 TRÍPLICE VIRAL | I2: DOSES APLICADAS D2 VARICELA | J2: COBERTURA D2 VARICELA | K2: DOSES APLICADAS REF PNEUMO | L2: COBERTURA REF PNEUMO | M2: DOSES APLICADAS REF MENINGO | N2: COBERTURA REF MENINGO | O2: DOSES APLICADAS R1 POLIO | P2: COBERTURA R1 POLIO | Q2: DOSES APLICADAS R1 TRÍPLICE BACTERIANA | R2: COBERTURA R1 TRÍPLICE BACTERIANA | S2: DOSES APLICADAS REF FEBRE AMARELA | T2: COBERTURA REF FEBRE AMARELA | U2: DOSES APLICADAS R2 POLIO | V2: COBERTURA R2 POLIO | W2: DOSES APLICADAS R2 TRÍPLICE BACTERIANA | X2: COBERTURA R2 TRÍPLICE BACTERIANA
A3: Metropolitana | B3: Afonso Cláudio | C3: 374 | D3: 146 | E3: 416 | F3: =E3/12*5 -> 173.3333333 | G3: 148 | H3: =G3/D3 -> 1.01369863 | I3: 71 | J3: =I3/F3 -> 0.4096153846 | K3: 172 | L3: =K3/D3 -> 1.178082192 | M3: 171 | N3: =M3/D3 -> 1.171232877 | O3: 213 | P3: =O3/D3 -> 1.45890411 | Q3: 164 | R3: =Q3/D3 -> 1.123287671 | S3: 109 | T3: =S3/F3 -> 0.6288461538 | U3: 155 | V3: =U3/F3 -> 0.8942307692 | W3: 122 | X3: =W3/F3 -> 0.7038461538
A4: Norte | B4: Água Doce do Norte | C4: 185 | D4: 90 | E4: 151 | F4: =E4/12*5 -> 62.91666667 | G4: 43 | H4: 0.4777777778 | I4: 30 | J4: 0.4768211921 | K4: 60 | L4: 0.6666666667 | M4: 60 | N4: 0.6666666667 | O4: 53 | P4: 0.5888888889 | Q4: 51 | R4: 0.5666666667 | S4: 42 | T4: 0.6675496689 | U4: 53 | V4: 0.842384106 | W4: 48 | X4: 0.7629139073
A5: Central | B5: Águia Branca | C5: 165 | D5: 67 | E5: 129 | F5: 53.75 | G5: 36 | H5: 0.5373134328 | I5: 21 | J5: 0.3906976744 | K5: 48 | L5: 0.7164179104 | M5: 49 | N5: 0.7313432836 | O5: 48 | P5: 0.7164179104 | Q5: 48 | R5: 0.7164179104 | S5: 28 | T5: 0.5209302326 | U5: 40 | V5: 0.7441860465 | W5: 39 | X5: 0.7255813953
A6: Sul | B6: Alegre | C6: 330 | D6: 135 | E6: 372 | F6: 155 | G6: 104 | H6: 0.7703703704 | I6: 91 | J6: 0.5870967742 | K6: 128 | L6: 0.9481481481 | M6: 129 | N6: 0.9555555556 | O6: 124 | P6: 0.9185185185 | Q6: 109 | R6: 0.8074074074 | S6: 141 | T6: 0.9096774194 | U6: 155 | V6: 1 | W6: 151 | X6: 0.9741935484
A7: Sul | B7: Alfredo Chaves | C7: 148 | D7: 59 | E7: 138 | F7: 57.5 | G7: 47 | H7: 0.7966101695 | I7: 40 | J7: 0.6956521739 | K7: 66 | L7: 1.118644068 | M7: 69 | N7: 1.169491525 | O7: 86 | P7: 1.457627119 | Q7: 52 | R7: 0.8813559322 | S7: 54 | T7: 0.9391304348 | U7: 105 | V7: 1.826086957 | W7: 62 | X7: 1.07826087
A8: Central | B8: Alto Rio Novo | C8: 84 | D8: 27 | E8: 102 | F8: 42.5 | G8: 30 | H8: 1.111111111 | I8: 17 | J8: 0.4 | K8: 37 | L8: 1.37037037 | M8: 36 | N8: 1.333333333 | O8: 42 | P8: 1.555555556 | Q8: 30 | R8: 1.111111111 | S8: 29 | T8: 0.6823529412 | U8: 37 | V8: 0.8705882353 | W8: 27 | X8: 0.6352941176
A9: Sul | B9: Anchieta | C9: 389 | D9: 169 | E9: 390 | F9: 162.5 | G9: 123 | H9: 0.7278106509 | I9: 88 | J9: 0.5415384615 | K9: 171 | L9: 1.01183432 | M9: 171 | N9: 1.01183432 | O9: 171 | P9: 1.01183432 | Q9: 158 | R9: 0.9349112426 | S9: 140 | T9: 0.8615384615 | U9: 178 | V9: 1.095384615 | W9: 181 | X9: 1.113846154
A10: Sul | B10: Apiacá | C10: 71 | D10: 37 | E10: 90 | F10: 37.5 | G10: 9 | H10: 0.2432432432 | I10: 23 | J10: 0.6133333333 | K10: 24 | L10: 0.6486486486 | M10: 26 | N10: 0.7027027027 | O10: 18 | P10: 0.4864864865 | Q10: 11 | R10: 0.2972972973 | S10: 9 | T10: 0.24 | U10: 40 | V10: 1.066666667 | W10: 32 | X10: 0.8533333333
A11: Metropolitana | B11: Aracruz | C11: 1465 | D11: 634 | E11: 1420 | F11: 591.6666667 | G11: 526 | H11: 0.8296529968 | I11: 317 | J11: 0.5357746479 | K11: 616 | L11: 0.9716088328 | M11: 661 | N11: 1.042586751 | O11: 683 | P11: 1.077287066 | Q11: 598 | R11: 0.9432176656 | S11: 392 | T11: 0.6625352113 | U11: 533 | V11: 0.9008450704 | W11: 507 | X11: 0.8569014085
A12: Sul | B12: Atilio Vivacqua | C12: 138 | D12: 64 | E12: 138 | F12: 57.5 | G12: 37 | H12: 0.578125 | I12: 20 | J12: 0.347826087 | K12: 61 | L12: 0.953125 | M12: 63 | N12: 0.984375 | O12: 69 | P12: 1.078125 | Q12: 59 | R12: 0.921875 | S12: 41 | T12: 0.7130434783 | U12: 51 | V12: 0.8869565217 | W12: 45 | X12: 0.7826086957
A13: Central | B13: Baixo Guandu | C13: 388 | D13: 163 | E13: 427 | F13: 177.9166667 | G13: 137 | H13: 0.8404907975 | I13: 70 | J13: 0.393442623 | K13: 162 | L13: 0.9938650307 | M13: 169 | N13: 1.036809816 | O13: 173 | P13: 1.061349693 | Q13: 165 | R13: 1.012269939 | S13: 126 | T13: 0.7081967213 | U13: 177 | V13: 0.9948477752 | W13: 152 | X13: 0.8543325527
A14: Norte | B14: Barra de São Francisco | C14: 553 | D14: 241 | E14: 589 | F14: 245.4166667 | G14: 181 | H14: 0.7510373444 | I14: 116 | J14: 0.4726655348 | K14: 215 | L14: 0.8921161826 | M14: 217 | N14: 0.9004149378 | O14: 211 | P14: 0.8755186722 | Q14: 199 | R14: 0.8257261411 | S14: 171 | T14: 0.6967741935 | U14: 179 | V14: 0.7293718166 | W14: 180 | X14: 0.7334465195
A15: Norte | B15: Boa Esperança | C15: 189 | D15: 77 | E15: 200 | F15: 83.33333333 | G15: 56 | H15: 0.7272727273 | I15: 49 | J15: 0.588 | K15: 91 | L15: 1.181818182 | M15: 94 | N15: 1.220779221 | O15: 91 | P15: 1.181818182 | Q15: 74 | R15: 0.961038961 | S15: 48 | T15: 0.576 | U15: 65 | V15: 0.78 | W15: 62 | X15: 0.744
A16: Sul | B16: Bom Jesus do Norte | C16: 84 | D16: 37 | E16: 146 | F16: 60.83333333 | G16: 14 | H16: 0.3783783784 | I16: 8 | J16: 0.1315068493 | K16: 41 | L16: 1.108108108 | M16: 41 | N16: 1.108108108 | O16: 36 | P16: 0.972972973 | Q16: 22 | R16: 0.5945945946 | S16: 19 | T16: 0.3123287671 | U16: 44 | V16: 0.7232876712 | W16: 25 | X16: 0.4109589041
A17: Metropolitana | B17: Brejetuba | C17: 214 | D17: 87 | E17: 169 | F17: 70.41666667 | G17: 82 | H17: 0.9425287356 | I17: 42 | J17: 0.5964497041 | K17: 73 | L17: 0.8390804598 | M17: 75 | N17: 0.8620689655 | O17: 90 | P17: 1.034482759 | Q17: 81 | R17: 0.9310344828 | S17: 80 | T17: 1.136094675 | U17: 97 | V17: 1.377514793 | W17: 81 | X17: 1.150295858
A18: Sul | B18: Cachoeiro de Itapemirim | C18: 2460 | D18: 1105 | E18: 2417 | F18: 1007.083333 | G18: 727 | H18: 0.657918552 | I18: 399 | J18: 0.3961936285 | K18: 987 | L18: 0.8932126697 | M18: 1017 | N18: 0.920361991 | O18: 996 | P18: 0.9013574661 | Q18: 882 | R18: 0.7981900452 | S18: 544 | T18: 0.5401737691 | U18: 802 | V18: 0.7963591229 | W18: 777 | X18: 0.7715349607
A19: Metropolitana | B19: Cariacica | C19: 4873 | D19: 2069 | E19: 5005 | F19: 2085.416667 | G19: 1293 | H19: 0.6249395843 | I19: 905 | J19: 0.433966034 | K19: 1922 | L19: 0.9289511841 | M19: 1960 | N19: 0.9473175447 | O19: 1880 | P19: 0.9086515225 | Q19: 1694 | R19: 0.8187530208 | S19: 1461 | T19: 0.7005794206 | U19: 2006 | V19: 0.9619180819 | W19: 1851 | X19: 0.8875924076
A20: Sul | B20: Castelo | C20: 443 | D20: 192 | E20: 399 | F20: 166.25 | G20: 155 | H20: 0.8072916667 | I20: 72 | J20: 0.4330827068 | K20: 190 | L20: 0.9895833333 | M20: 186 | N20: 0.96875 | O20: 206 | P20: 1.072916667 | Q20: 172 | R20: 0.8958333333 | S20: 104 | T20: 0.6255639098 | U20: 171 | V20: 1.028571429 | W20: 142 | X20: 0.8541353383
A21: Central | B21: Colatina | C21: 1561 | D21: 669 | E21: 1561 | F21: 650.4166667 | G21: 438 | H21: 0.6547085202 | I21: 196 | J21: 0.3013452915 | K21: 559 | L21: 0.8355754858 | M21: 611 | N21: 0.913303438 | O21: 500 | P21: 0.7473841555 | Q21: 501 | R21: 0.7488789238 | S21: 318 | T21: 0.4889173607 | U21: 425 | V21: 0.6534272902 | W21: 422 | X21: 0.6488148623
A22: Norte | B22: Conceição da Barra | C22: 342 | D22: 131 | E22: 391 | F22: 162.9166667 | G22: 125 | H22: 0.9541984733 | I22: 93 | J22: 0.5708439898 | K22: 162 | L22: 1.236641221 | M22: 164 | N22: 1.251908397 | O22: 173 | P22: 1.320610687 | Q22: 147 | R22: 1.122137405 | S22: 133 | T22: 0.8163682864 | U22: 183 | V22: 1.123273657 | W22: 177 | X22: 1.086445013
A23: Metropolitana | B23: Conceição do Castelo | C23: 169 | D23: 78 | E23: 144 | F23: 60 | G23: 49 | H23: 0.6282051282 | I23: 34 | J23: 0.5666666667 | K23: 45 | L23: 0.5769230769 | M23: 49 | N23: 0.6282051282 | O23: 72 | P23: 0.9230769231 | Q23: 52 | R23: 0.6666666667 | S23: 40 | T23: 0.6666666667 | U23: 64 | V23: 1.066666667 | W23: 48 | X23: 0.8
A24: Sul | B24: Divino de São Lourenço | C24: 65 | D24: 25 | E24: 68 | F24: 28.33333333 | G24: 18 | H24: 0.72 | I24: 13 | J24: 0.4588235294 | K24: 19 | L24: 0.76 | M24: 20 | N24: 0.8 | O24: 21 | P24: 0.84 | Q24: 21 | R24: 0.84 | S24: 29 | T24: 1.023529412 | U24: 26 | V24: 0.9176470588 | W24: 25 | X24: 0.8823529412
A25: Metropolitana | B25: Domingos Martins | C25: 417 | D25: 186 | E25: 411 | F25: 171.25 | G25: 161 | H25: 0.8655913978 | I25: 110 | J25: 0.6423357664 | K25: 177 | L25: 0.9516129032 | M25: 168 | N25: 0.9032258065 | O25: 193 | P25: 1.037634409 | Q25: 173 | R25: 0.9301075269 | S25: 125 | T25: 0.7299270073 | U25: 177 | V25: 1.033576642 | W25: 157 | X25: 0.9167883212
A26: Sul | B26: Dores do Rio Preto | C26: 89 | D26: 34 | E26: 92 | F26: 38.33333333 | G26: 21 | H26: 0.6176470588 | I26: 11 | J26: 0.2869565217 | K26: 49 | L26: 1.441176471 | M26: 50 | N26: 1.470588235 | O26: 34 | P26: 1 | Q26: 28 | R26: 0.8235294118 | S26: 22 | T26: 0.5739130435 | U26: 29 | V26: 0.7565217391 | W26: 25 | X26: 0.652173913
A27: Norte | B27: Ecoporanga | C27: 266 | D27: 125 | E27: 283 | F27: 117.9166667 | G27: 85 | H27: 0.68 | I27: 69 | J27: 0.5851590106 | K27: 107 | L27: 0.856 | M27: 110 | N27: 0.88 | O27: 106 | P27: 0.848 | Q27: 93 | R27: 0.744 | S27: 81 | T27: 0.6869257951 | U27: 94 | V27: 0.7971731449 | W27: 91 | X27: 0.7717314488
A28: Metropolitana | B28: Fundão | C28: 221 | D28: 94 | E28: 218 | F28: 90.83333333 | G28: 68 | H28: 0.7234042553 | I28: 40 | J28: 0.4403669725 | K28: 90 | L28: 0.9574468085 | M28: 95 | N28: 1.010638298 | O28: 87 | P28: 0.9255319149 | Q28: 75 | R28: 0.7978723404 | S28: 58 | T28: 0.6385321101 | U28: 75 | V28: 0.8256880734 | W28: 65 | X28: 0.7155963303
A29: Central | B29: Governador Lindenberg | C29: 150 | D29: 72 | E29: 142 | F29: 59.16666667 | G29: 37 | H29: 0.5138888889 | I29: 30 | J29: 0.5070422535 | K29: 51 | L29: 0.7083333333 | M29: 54 | N29: 0.75 | O29: 55 | P29: 0.7638888889 | Q29: 42 | R29: 0.5833333333 | S29: 34 | T29: 0.5746478873 | U29: 49 | V29: 0.8281690141 | W29: 46 | X29: 0.7774647887
A30: Sul | B30: Guaçuí | C30: 396 | D30: 150 | E30: 407 | F30: 169.5833333 | G30: 162 | H30: 1.08 | I30: 44 | J30: 0.2594594595 | K30: 177 | L30: 1.18 | M30: 180 | N30: 1.2 | O30: 164 | P30: 1.093333333 | Q30: 156 | R30: 1.04 | S30: 112 | T30: 0.6604422604 | U30: 113 | V30: 0.6663390663 | W30: 114 | X30: 0.6722358722
A31: Metropolitana | B31: Guarapari | C31: 1732 | D31: 752 | E31: 1557 | F31: 648.75 | G31: 448 | H31: 0.5957446809 | I31: 293 | J31: 0.4516377649 | K31: 676 | L31: 0.8989361702 | M31: 684 | N31: 0.9095744681 | O31: 624 | P31: 0.829787234 | Q31: 578 | R31: 0.7686170213 | S31: 372 | T31: 0.5734104046 | U31: 524 | V31: 0.8077071291 | W31: 540 | X31: 0.8323699422
A32: Metropolitana | B32: Ibatiba | C32: 362 | D32: 153 | E32: 354 | F32: 147.5 | G32: 108 | H32: 0.7058823529 | I32: 40 | J32: 0.2711864407 | K32: 141 | L32: 0.9215686275 | M32: 149 | N32: 0.9738562092 | O32: 149 | P32: 0.9738562092 | Q32: 130 | R32: 0.8496732026 | S32: 89 | T32: 0.6033898305 | U32: 117 | V32: 0.793220339 | W32: 115 | X32: 0.7796610169
A33: Metropolitana | B33: Ibiraçu | C33: 154 | D33: 70 | E33: 160 | F33: 66.66666667 | G33: 29 | H33: 0.4142857143 | I33: 39 | J33: 0.585 | K33: 55 | L33: 0.7857142857 | M33: 55 | N33: 0.7857142857 | O33: 45 | P33: 0.6428571429 | Q33: 36 | R33: 0.5142857143 | S33: 48 | T33: 0.72 | U33: 55 | V33: 0.825 | W33: 52 | X33: 0.78
A34: Sul | B34: Ibitirama | C34: 127 | D34: 52 | E34: 148 | F34: 61.66666667 | G34: 45 | H34: 0.8653846154 | I34: 20 | J34: 0.3243243243 | K34: 53 | L34: 1.019230769 | M34: 54 | N34: 1.038461538 | O34: 48 | P34: 0.9230769231 | Q34: 45 | R34: 0.8653846154 | S34: 19 | T34: 0.3081081081 | U34: 24 | V34: 0.3891891892 | W34: 24 | X34: 0.3891891892
A35: Sul | B35: Iconha | C35: 118 | D35: 47 | E35: 156 | F35: 65 | G35: 55 | H35: =G35/D35 -> 1.170212766 | I35: 21 | J35: =I35/F35 -> 0.3230769231 | K35: 66 | L35: =K35/D35 -> 1.404255319 | M35: 71 | N35: =M35/D35 -> 1.510638298 | O35: 56 | P35: =O35/D35 -> 1.191489362 | Q35: 47 | R35: =Q35/D35 -> 1 | S35: 53 | T35: =S35/F35 -> 0.8153846154 | U35: 57 | V35: =U35/F35 -> 0.8769230769 | W35: 49 | X35: =W35/F35 -> 0.7538461538
A36: Sul | B36: Irupi | C36: 197 | D36: 75 | E36: 200 | F36: 83.33333333 | G36: 63 | H36: 0.84 | I36: 43 | J36: 0.516 | K36: 108 | L36: 1.44 | M36: 108 | N36: 1.44 | O36: 82 | P36: 1.093333333 | Q36: 79 | R36: 1.053333333 | S36: 78 | T36: 0.936 | U36: 81 | V36: 0.972 | W36: 89 | X36: 1.068
A37: Metropolitana | B37: Itaguaçu | C37: 135 | D37: 59 | E37: 154 | F37: 64.16666667 | G37: 67 | H37: 1.13559322 | I37: 20 | J37: 0.3116883117 | K37: 59 | L37: 1 | M37: 60 | N37: 1.016949153 | O37: 65 | P37: 1.101694915 | Q37: 61 | R37: 1.033898305 | S37: 41 | T37: 0.638961039 | U37: 46 | V37: 0.7168831169 | W37: 45 | X37: 0.7012987013
A38: Sul | B38: Itapemirim | C38: 541 | D38: 201 | E38: 556 | F38: 231.6666667 | G38: 148 | H38: 0.736318408 | I38: 88 | J38: 0.3798561151 | K38: 213 | L38: 1.059701493 | M38: 225 | N38: 1.119402985 | O38: 215 | P38: 1.069651741 | Q38: 211 | R38: 1.049751244 | S38: 107 | T38: 0.4618705036 | U38: 210 | V38: 0.9064748201 | W38: 199 | X38: 0.8589928058
A39: Metropolitana | B39: Itarana | C39: 140 | D39: 65 | E39: 128 | F39: 53.33333333 | G39: 36 | H39: 0.5538461538 | I39: 38 | J39: 0.7125 | K39: 46 | L39: 0.7076923077 | M39: 45 | N39: 0.6923076923 | O39: 44 | P39: 0.6769230769 | Q39: 39 | R39: 0.6 | S39: 38 | T39: 0.7125 | U39: 52 | V39: 0.975 | W39: 46 | X39: 0.8625
A40: Sul | B40: Iúna | C40: 474 | D40: 189 | E40: 410 | F40: 170.8333333 | G40: 139 | H40: 0.7354497354 | I40: 76 | J40: 0.4448780488 | K40: 183 | L40: 0.9682539683 | M40: 199 | N40: 1.052910053 | O40: 192 | P40: 1.015873016 | Q40: 153 | R40: 0.8095238095 | S40: 110 | T40: 0.643902439 | U40: 187 | V40: 1.094634146 | W40: 146 | X40: 0.8546341463
A41: Norte | B41: Jaguaré | C41: 489 | D41: 212 | E41: 445 | F41: 185.4166667 | G41: 160 | H41: 0.7547169811 | I41: 85 | J41: 0.4584269663 | K41: 197 | L41: 0.929245283 | M41: 195 | N41: 0.9198113208 | O41: 201 | P41: 0.9481132075 | Q41: 187 | R41: 0.8820754717 | S41: 153 | T41: 0.8251685393 | U41: 183 | V41: 0.9869662921 | W41: 196 | X41: 1.057078652
A42: Sul | B42: Jerônimo Monteiro | C42: 156 | D42: 59 | E42: 157 | F42: 65.41666667 | G42: 50 | H42: 0.8474576271 | I42: 22 | J42: 0.3363057325 | K42: 65 | L42: 1.101694915 | M42: 66 | N42: 1.118644068 | O42: 67 | P42: 1.13559322 | Q42: 57 | R42: 0.9661016949 | S42: 43 | T42: 0.6573248408 | U42: 54 | V42: 0.825477707 | W42: 53 | X42: 0.8101910828
A43: Metropolitana | B43: João Neiva | C43: 178 | D43: 70 | E43: 142 | F43: 59.16666667 | G43: 56 | H43: 0.8 | I43: 28 | J43: 0.4732394366 | K43: 74 | L43: 1.057142857 | M43: 82 | N43: 1.171428571 | O43: 73 | P43: 1.042857143 | Q43: 58 | R43: 0.8285714286 | S43: 51 | T43: 0.861971831 | U43: 59 | V43: 0.9971830986 | W43: 52 | X43: 0.8788732394
A44: Metropolitana | B44: Laranja da Terra | C44: 96 | D44: 43 | E44: 133 | F44: 55.41666667 | G44: 43 | H44: 1 | I44: 37 | J44: 0.6676691729 | K44: 60 | L44: 1.395348837 | M44: 61 | N44: 1.418604651 | O44: 54 | P44: 1.255813953 | Q44: 45 | R44: 1.046511628 | S44: 40 | T44: 0.7218045113 | U44: 52 | V44: 0.9383458647 | W44: 40 | X44: 0.7218045113
A45: Central | B45: Linhares | C45: 2598 | D45: 1125 | E45: 2452 | F45: 1021.666667 | G45: 711 | H45: 0.632 | I45: 433 | J45: 0.423817292 | K45: 905 | L45: 0.8044444444 | M45: 930 | N45: 0.8266666667 | O45: 933 | P45: 0.8293333333 | Q45: 893 | R45: 0.7937777778 | S45: 697 | T45: 0.6822185971 | U45: 939 | V45: 0.91908646 | W45: 931 | X45: 0.9112561175
A46: Central | B46: Mantenópolis | C46: 161 | D46: 78 | E46: 166 | F46: 69.16666667 | G46: 46 | H46: 0.5897435897 | I46: 35 | J46: 0.5060240964 | K46: 64 | L46: 0.8205128205 | M46: 59 | N46: 0.7564102564 | O46: 57 | P46: 0.7307692308 | Q46: 59 | R46: 0.7564102564 | S46: 42 | T46: 0.6072289157 | U46: 56 | V46: 0.8096385542 | W46: 53 | X46: 0.7662650602
A47: Sul | B47: Marataízes | C47: 570 | D47: 266 | E47: 579 | F47: 241.25 | G47: 165 | H47: 0.6203007519 | I47: 93 | J47: 0.385492228 | K47: 239 | L47: 0.8984962406 | M47: 245 | N47: 0.9210526316 | O47: 213 | P47: 0.8007518797 | Q47: 198 | R47: 0.7443609023 | S47: 108 | T47: 0.4476683938 | U47: 190 | V47: 0.7875647668 | W47: 190 | X47: 0.7875647668
A48: Metropolitana | B48: Marechal Floriano | C48: 227 | D48: 102 | E48: 236 | F48: 98.33333333 | G48: 70 | H48: 0.6862745098 | I48: 58 | J48: 0.5898305085 | K48: 97 | L48: 0.9509803922 | M48: 94 | N48: 0.9215686275 | O48: 84 | P48: 0.8235294118 | Q48: 72 | R48: 0.7058823529 | S48: 60 | T48: 0.6101694915 | U48: 72 | V48: 0.7322033898 | W48: 67 | X48: 0.6813559322
A49: Central | B49: Marilândia | C49: 167 | D49: 61 | E49: 164 | F49: 68.33333333 | G49: 55 | H49: 0.9016393443 | I49: 38 | J49: 0.556097561 | K49: 56 | L49: 0.9180327869 | M49: 58 | N49: 0.9508196721 | O49: 80 | P49: 1.31147541 | Q49: 63 | R49: 1.032786885 | S49: 50 | T49: 0.7317073171 | U49: 60 | V49: 0.8780487805 | W49: 52 | X49: 0.7609756098
A50: Sul | B50: Mimoso do Sul | C50: 262 | D50: 105 | E50: 276 | F50: 115 | G50: 63 | H50: 0.6 | I50: 77 | J50: 0.6695652174 | K50: 86 | L50: 0.819047619 | M50: 91 | N50: 0.8666666667 | O50: 80 | P50: 0.7619047619 | Q50: 76 | R50: 0.7238095238 | S50: 86 | T50: 0.747826087 | U50: 94 | V50: 0.8173913043 | W50: 94 | X50: 0.8173913043
A51: Norte | B51: Montanha | C51: 233 | D51: 76 | E51: 278 | F51: 115.8333333 | G51: 92 | H51: 1.210526316 | I51: 61 | J51: 0.526618705 | K51: 94 | L51: 1.236842105 | M51: 98 | N51: 1.289473684 | O51: 112 | P51: 1.473684211 | Q51: 103 | R51: 1.355263158 | S51: 86 | T51: 0.7424460432 | U51: 101 | V51: 0.871942446 | W51: 96 | X51: 0.8287769784
A52: Norte | B52: Mucurici | C52: 68 | D52: 21 | E52: 97 | F52: 40.41666667 | G52: 22 | H52: 1.047619048 | I52: 26 | J52: 0.6432989691 | K52: 37 | L52: 1.761904762 | M52: 37 | N52: 1.761904762 | O52: 22 | P52: 1.047619048 | Q52: 21 | R52: 1 | S52: 26 | T52: 0.6432989691 | U52: 30 | V52: 0.7422680412 | W52: 30 | X52: 0.7422680412
A53: Sul | B53: Muniz Freire | C53: 210 | D53: 86 | E53: 275 | F53: 114.5833333 | G53: 93 | H53: 1.081395349 | I53: 34 | J53: 0.2967272727 | K53: 99 | L53: 1.151162791 | M53: 98 | N53: 1.139534884 | O53: 116 | P53: 1.348837209 | Q53: 93 | R53: 1.081395349 | S53: 87 | T53: 0.7592727273 | U53: 105 | V53: 0.9163636364 | W53: 93 | X53: 0.8116363636
A54: Sul | B54: Muqui | C54: 163 | D54: 60 | E54: 152 | F54: 63.33333333 | G54: 57 | H54: 0.95 | I54: 35 | J54: 0.5526315789 | K54: 61 | L54: 1.016666667 | M54: 62 | N54: 1.033333333 | O54: 76 | P54: 1.266666667 | Q54: 54 | R54: 0.9 | S54: 45 | T54: 0.7105263158 | U54: 68 | V54: 1.073684211 | W54: 50 | X54: 0.7894736842
A55: Norte | B55: Nova Venécia | C55: 681 | D55: 301 | E55: 656 | F55: 273.3333333 | G55: 247 | H55: 0.8205980066 | I55: 107 | J55: 0.3914634146 | K55: 264 | L55: 0.877076412 | M55: 265 | N55: 0.8803986711 | O55: 269 | P55: 0.8936877076 | Q55: 251 | R55: 0.8338870432 | S55: 185 | T55: 0.6768292683 | U55: 229 | V55: 0.837804878 | W55: 220 | X55: 0.8048780488
A56: Central | B56: Pancas | C56: 216 | D56: 91 | E56: 244 | F56: 101.6666667 | G56: 94 | H56: 1.032967033 | I56: 46 | J56: 0.4524590164 | K56: 97 | L56: 1.065934066 | M56: 98 | N56: 1.076923077 | O56: 164 | P56: 1.802197802 | Q56: 98 | R56: 1.076923077 | S56: 90 | T56: 0.8852459016 | U56: 143 | V56: 1.406557377 | W56: 93 | X56: 0.9147540984
A57: Norte | B57: Pedro Canário | C57: 305 | D57: 132 | E57: 338 | F57: 140.8333333 | G57: 121 | H57: 0.9166666667 | I57: 90 | J57: 0.6390532544 | K57: 165 | L57: 1.25 | M57: 165 | N57: 1.25 | O57: 156 | P57: 1.181818182 | Q57: 148 | R57: 1.121212121 | S57: 109 | T57: 0.773964497 | U57: 130 | V57: 0.9230769231 | W57: 134 | X57: 0.9514792899
A58: Norte | B58: Pinheiros | C58: 301 | D58: 109 | E58: 383 | F58: 159.5833333 | G58: 69 | H58: 0.6330275229 | I58: 71 | J58: 0.4449086162 | K58: 125 | L58: 1.146788991 | M58: 119 | N58: 1.091743119 | O58: 110 | P58: 1.009174312 | Q58: 97 | R58: 0.8899082569 | S58: 103 | T58: 0.6454308094 | U58: 126 | V58: 0.7895561358 | W58: 118 | X58: 0.7394255875
A59: Sul | B59: Piúma | C59: 309 | D59: 122 | E59: 311 | F59: 129.5833333 | G59: 64 | H59: 0.5245901639 | I59: 43 | J59: 0.3318327974 | K59: 123 | L59: 1.008196721 | M59: 114 | N59: 0.9344262295 | O59: 104 | P59: 0.8524590164 | Q59: 103 | R59: 0.8442622951 | S59: 60 | T59: 0.463022508 | U59: 92 | V59: 0.7099678457 | W59: 98 | X59: 0.7562700965
A60: Norte | B60: Ponto Belo | C60: 75 | D60: 25 | E60: 85 | F60: 35.41666667 | G60: 17 | H60: 0.68 | I60: 15 | J60: 0.4235294118 | K60: 25 | L60: 1 | M60: 26 | N60: 1.04 | O60: 28 | P60: 1.12 | Q60: 18 | R60: 0.72 | S60: 17 | T60: 0.48 | U60: 22 | V60: 0.6211764706 | W60: 20 | X60: 0.5647058824
A61: Sul | B61: Presidente Kennedy | C61: 194 | D61: 94 | E61: 239 | F61: 99.58333333 | G61: 75 | H61: 0.7978723404 | I61: 40 | J61: 0.4016736402 | K61: 95 | L61: 1.010638298 | M61: 96 | N61: 1.021276596 | O61: 78 | P61: 0.829787234 | Q61: 74 | R61: 0.7872340426 | S61: 77 | T61: 0.7732217573 | U61: 93 | V61: 0.9338912134 | W61: 88 | X61: 0.8836820084
A62: Central | B62: Rio Bananal | C62: 299 | D62: 130 | E62: 229 | F62: 95.41666667 | G62: 105 | H62: 0.8076923077 | I62: 61 | J62: 0.63930131 | K62: 113 | L62: 0.8692307692 | M62: 129 | N62: 0.9923076923 | O62: 144 | P62: 1.107692308 | Q62: 112 | R62: 0.8615384615 | S62: 115 | T62: 1.205240175 | U62: 144 | V62: 1.509170306 | W62: 111 | X62: 1.163318777
A63: Sul | B63: Rio Novo do Sul | C63: 120 | D63: 47 | E63: 144 | F63: 60 | G63: 29 | H63: 0.6170212766 | I63: 38 | J63: 0.6333333333 | K63: 43 | L63: 0.914893617 | M63: 46 | N63: 0.9787234043 | O63: 37 | P63: 0.7872340426 | Q63: 36 | R63: 0.7659574468 | S63: 43 | T63: 0.7166666667 | U63: 64 | V63: 1.066666667 | W63: 54 | X63: 0.9
A64: Metropolitana | B64: Santa Leopoldina | C64: 93 | D64: 32 | E64: 155 | F64: 64.58333333 | G64: 23 | H64: 0.71875 | I64: 17 | J64: 0.2632258065 | K64: 56 | L64: 1.75 | M64: 58 | N64: 1.8125 | O64: 44 | P64: 1.375 | Q64: 45 | R64: 1.40625 | S64: 40 | T64: 0.6193548387 | U64: 45 | V64: 0.6967741935 | W64: 45 | X64: 0.6967741935
A65: Metropolitana | B65: Santa Maria de Jetibá | C65: 682 | D65: 302 | E65: 685 | F65: 285.4166667 | G65: 217 | H65: 0.7185430464 | I65: 106 | J65: 0.3713868613 | K65: 263 | L65: 0.8708609272 | M65: 275 | N65: 0.9105960265 | O65: 282 | P65: 0.9337748344 | Q65: 251 | R65: 0.8311258278 | S65: 187 | T65: 0.6551824818 | U65: 245 | V65: 0.8583941606 | W65: 232 | X65: 0.8128467153
A66: Metropolitana | B66: Santa Teresa | C66: 299 | D66: 120 | E66: 260 | F66: 108.3333333 | G66: 86 | H66: 0.7166666667 | I66: 74 | J66: 0.6830769231 | K66: 104 | L66: 0.8666666667 | M66: 116 | N66: 0.9666666667 | O66: 103 | P66: 0.8583333333 | Q66: 91 | R66: 0.7583333333 | S66: 92 | T66: 0.8492307692 | U66: 104 | V66: 0.96 | W66: 86 | X66: 0.7938461538
A67: Central | B67: São Domingos do Norte | C67: 126 | D67: 58 | E67: 117 | F67: 48.75 | G67: 27 | H67: =G67/D67 -> 0.4655172414 | I67: 16 | J67: =I67/F67 -> 0.3282051282 | K67: 38 | L67: =K67/D67 -> 0.6551724138 | M67: 40 | N67: =M67/D67 -> 0.6896551724 | O67: 34 | P67: =O67/D67 -> 0.5862068966 | Q67: 29 | R67: =Q67/D67 -> 0.5 | S67: 33 | T67: =S67/F67 -> 0.6769230769 | U67: 38 | V67: =U67/F67 -> 0.7794871795 | W67: 37 | X67: =W67/F67 -> 0.758974359
A68: Central | B68: São Gabriel da Palha | C68: 440 | D68: 172 | E68: 426 | F68: =E68/12*5 -> 177.5 | G68: 113 | H68: 0.6569767442 | I68: 78 | J68: 0.4394366197 | K68: 145 | L68: 0.8430232558 | M68: 150 | N68: 0.8720930233 | O68: 153 | P68: 0.8895348837 | Q68: 130 | R68: 0.7558139535 | S68: 138 | T68: 0.7774647887 | U68: 157 | V68: 0.8845070423 | W68: 138 | X68: 0.7774647887
A69: Sul | B69: São José do Calçado | C69: 101 | D69: 44 | E69: 150 | F69: 62.5 | G69: 45 | H69: 1.022727273 | I69: 16 | J69: 0.256 | K69: 54 | L69: 1.227272727 | M69: 54 | N69: 1.227272727 | O69: 55 | P69: 1.25 | Q69: 49 | R69: 1.113636364 | S69: 50 | T69: 0.8 | U69: 52 | V69: 0.832 | W69: 50 | X69: 0.8
A70: Norte | B70: São Mateus | C70: 1742 | D70: 613 | E70: 1766 | F70: 735.8333333 | G70: 438 | H70: 0.7145187602 | I70: 370 | J70: 0.5028312571 | K70: 665 | L70: 1.084828711 | M70: 692 | N70: 1.128874388 | O70: 597 | P70: 0.9738988581 | Q70: 562 | R70: 0.9168026101 | S70: 475 | T70: 0.6455266138 | U70: 593 | V70: 0.8058890147 | W70: 570 | X70: 0.7746319366
A71: Central | B71: São Roque do Canaã | C71: 131 | D71: 77 | E71: 100 | F71: 41.66666667 | G71: 39 | H71: 0.5064935065 | I71: 30 | J71: 0.72 | K71: 53 | L71: 0.6883116883 | M71: 57 | N71: 0.7402597403 | O71: 57 | P71: 0.7402597403 | Q71: 45 | R71: 0.5844155844 | S71: 32 | T71: 0.768 | U71: 48 | V71: 1.152 | W71: 39 | X71: 0.936
A72: Metropolitana | B72: Serra | C72: 7393 | D72: 3287 | E72: 7550 | F72: 3145.833333 | G72: 1875 | H72: 0.5704289626 | I72: 1021 | J72: 0.3245562914 | K72: 2644 | L72: 0.8043808944 | M72: 2678 | N72: 0.814724673 | O72: 2631 | P72: 0.8004259203 | Q72: 2382 | R72: 0.7246729541 | S72: 2325 | T72: 0.7390728477 | U72: 2789 | V72: 0.8865695364 | W72: 2649 | X72: 0.8420662252
A73: Central | B73: Sooretama | C73: 439 | D73: 196 | E73: 415 | F73: 172.9166667 | G73: 121 | H73: 0.6173469388 | I73: 92 | J73: 0.5320481928 | K73: 157 | L73: 0.8010204082 | M73: 156 | N73: 0.7959183673 | O73: 195 | P73: 0.9948979592 | Q73: 158 | R73: 0.806122449 | S73: 180 | T73: 1.040963855 | U73: 219 | V73: 1.266506024 | W73: 184 | X73: 1.064096386
A74: Sul | B74: Vargem Alta | C74: 265 | D74: 121 | E74: 278 | F74: 115.8333333 | G74: 94 | H74: 0.7768595041 | I74: 56 | J74: 0.4834532374 | K74: 118 | L74: 0.9752066116 | M74: 118 | N74: 0.9752066116 | O74: 115 | P74: 0.9504132231 | Q74: 106 | R74: 0.8760330579 | S74: 73 | T74: 0.6302158273 | U74: 100 | V74: 0.8633093525 | W74: 95 | X74: 0.8201438849
A75: Metropolitana | B75: Venda Nova do Imigrante | C75: 392 | D75: 162 | E75: 328 | F75: 136.6666667 | G75: 141 | H75: 0.8703703704 | I75: 49 | J75: 0.3585365854 | K75: 158 | L75: 0.975308642 | M75: 164 | N75: 1.012345679 | O75: 178 | P75: 1.098765432 | Q75: 145 | R75: 0.8950617284 | S75: 85 | T75: 0.6219512195 | U75: 110 | V75: 0.8048780488 | W75: 94 | X75: 0.687804878
A76: Metropolitana | B76: Viana | C76: 980 | D76: 430 | E76: 1064 | F76: 443.3333333 | G76: 176 | H76: 0.4093023256 | I76: 159 | J76: 0.3586466165 | K76: 402 | L76: 0.9348837209 | M76: 409 | N76: 0.9511627907 | O76: 340 | P76: 0.7906976744 | Q76: 321 | R76: 0.7465116279 | S76: 313 | T76: 0.7060150376 | U76: 418 | V76: 0.9428571429 | W76: 381 | X76: 0.8593984962
A77: Norte | B77: Vila Pavão | C77: 91 | D77: 43 | E77: 127 | F77: 52.91666667 | G77: 32 | H77: 0.7441860465 | I77: 23 | J77: 0.4346456693 | K77: 49 | L77: 1.139534884 | M77: 49 | N77: 1.139534884 | O77: 46 | P77: 1.069767442 | Q77: 34 | R77: 0.7906976744 | S77: 51 | T77: 0.9637795276 | U77: 62 | V77: 1.171653543 | W77: 52 | X77: 0.9826771654
A78: Central | B78: Vila Valério | C78: 259 | D78: 121 | E78: 169 | F78: 70.41666667 | G78: 72 | H78: 0.5950413223 | I78: 32 | J78: 0.4544378698 | K78: 90 | L78: 0.7438016529 | M78: 76 | N78: 0.6280991736 | O78: 104 | P78: 0.8595041322 | Q78: 91 | R78: 0.7520661157 | S78: 58 | T78: 0.8236686391 | U78: 89 | V78: 1.263905325 | W78: 81 | X78: 1.150295858
A79: Metropolitana | B79: Vila Velha | C79: 5698 | D79: 2372 | E79: 5675 | F79: 2364.583333 | G79: 1455 | H79: 0.6134064081 | I79: 787 | J79: 0.3328281938 | K79: 1908 | L79: 0.8043844857 | M79: 2007 | N79: 0.8461214165 | O79: 1899 | P79: 0.8005902192 | Q79: 1698 | R79: 0.715851602 | S79: 1585 | T79: 0.67030837 | U79: 1915 | V79: 0.8098678414 | W79: 1757 | X79: 0.7430484581
A80: Metropolitana | B80: Vitória | C80: 3748 | D80: 1596 | E80: 3833 | F80: 1597.083333 | G80: 797 | H80: 0.4993734336 | I80: 551 | J80: 0.3450039134 | K80: 1175 | L80: 0.7362155388 | M80: 1266 | N80: 0.7932330827 | O80: 1273 | P80: 0.7976190476 | Q80: 1131 | R80: 0.7086466165 | S80: 1034 | T80: 0.6474302113 | U80: 1389 | V80: 0.8697104096 | W80: 1316 | X80: 0.8240020871
B82: Total Norte | C82: =SUMIF($A$3:$A$80,"Norte",C$3:C$80) -> 5520 | D82: =SUMIF($A$3:$A$80,"Norte",D$3:D$80) -> 2196 | E82: =SUMIF($A$3:$A$80,"Norte",E$3:E$80) -> 5789 | F82: =SUMIF($A$3:$A$80,"Norte",F$3:F$80) -> 2412.083333 | G82: =SUMIF($A$3:$A$80,"Norte",G$3:G$80) -> 1688 | H82: =G82/D82 -> 0.7686703097 | I82: =SUMIF($A$3:$A$80,"Norte",I$3:I$80) -> 1205 | J82: =I82/F82 -> 0.4995681465 | K82: =SUMIF($A$3:$A$80,"Norte",K$3:K$80) -> 2256 | L82: =K82/D82 -> 1.027322404 | M82: =SUMIF($A$3:$A$80,"Norte",M$3:M$80) -> 2291 | N82: =M82/D82 -> 1.043260474 | O82: =SUMIF($A$3:$A$80,"Norte",O$3:O$80) -> 2175 | P82: =O82/D82 -> 0.9904371585 | Q82: =SUMIF($A$3:$A$80,"Norte",Q$3:Q$80) -> 1985 | R82: =Q82/D82 -> 0.9039162113 | S82: =SUMIF($A$3:$A$80,"Norte",S$3:S$80) -> 1680 | T82: =S82/F82 -> 0.6964933495 | U82: =SUMIF($A$3:$A$80,"Norte",U$3:U$80) -> 2050 | V82: =U82/F82 -> 0.8498877181 | W82: =SUMIF($A$3:$A$80,"Norte",W$3:W$80) -> 1994 | X82: =W82/F82 -> 0.8266712731
B83: Total Central | C83: =SUMIF($A$3:$A$80,"Central",C$3:C$80) -> 7184 | D83: =SUMIF($A$3:$A$80,"Central",D$3:D$80) -> 3107 | E83: =SUMIF($A$3:$A$80,"Central",E$3:E$80) -> 6843 | F83: =SUMIF($A$3:$A$80,"Central",F$3:F$80) -> 2851.25 | G83: =SUMIF($A$3:$A$80,"Central",G$3:G$80) -> 2061 | H83: =G83/D83 -> 0.6633408433 | I83: =SUMIF($A$3:$A$80,"Central",I$3:I$80) -> 1195 | J83: =I83/F83 -> 0.4191144235 | K83: =SUMIF($A$3:$A$80,"Central",K$3:K$80) -> 2575 | L83: =K83/D83 -> 0.8287737367 | M83: =SUMIF($A$3:$A$80,"Central",M$3:M$80) -> 2672 | N83: =M83/D83 -> 0.8599935629 | O83: =SUMIF($A$3:$A$80,"Central",O$3:O$80) -> 2739 | P83: =O83/D83 -> 0.8815577728 | Q83: =SUMIF($A$3:$A$80,"Central",Q$3:Q$80) -> 2464 | R83: =Q83/D83 -> 0.7930479562 | S83: =SUMIF($A$3:$A$80,"Central",S$3:S$80) -> 1970 | T83: =S83/F83 -> 0.6909250329 | U83: =SUMIF($A$3:$A$80,"Central",U$3:U$80) -> 2621 | V83: =U83/F83 -> 0.9192459448 | W83: =SUMIF($A$3:$A$80,"Central",W$3:W$80) -> 2405 | X83: =W83/F83 -> 0.8434896975
B84: Total Metropolitana | C84: =SUMIF($A$3:$A$80,"Metropolitana",C$3:C$80) -> 30042 | D84: =SUMIF($A$3:$A$80,"Metropolitana",D$3:D$80) -> 12909 | E84: =SUMIF($A$3:$A$80,"Metropolitana",E$3:E$80) -> 30197 | F84: =SUMIF($A$3:$A$80,"Metropolitana",F$3:F$80) -> 12582.08333 | G84: =SUMIF($A$3:$A$80,"Metropolitana",G$3:G$80) -> 7954 | H84: =G84/D84 -> 0.6161592687 | I84: =SUMIF($A$3:$A$80,"Metropolitana",I$3:I$80) -> 4836 | J84: =I84/F84 -> 0.3843560619 | K84: =SUMIF($A$3:$A$80,"Metropolitana",K$3:K$80) -> 11013 | L84: =K84/D84 -> 0.8531257262 | M84: =SUMIF($A$3:$A$80,"Metropolitana",M$3:M$80) -> 11382 | N84: =M84/D84 -> 0.8817104346 | O84: =SUMIF($A$3:$A$80,"Metropolitana",O$3:O$80) -> 11106 | P84: =O84/D84 -> 0.8603300023 | Q84: =SUMIF($A$3:$A$80,"Metropolitana",Q$3:Q$80) -> 9920 | R84: =Q84/D84 -> 0.7684561159 | S84: =SUMIF($A$3:$A$80,"Metropolitana",S$3:S$80) -> 8665 | T84: =S84/F84 -> 0.6886776832 | U84: =SUMIF($A$3:$A$80,"Metropolitana",U$3:U$80) -> 11099 | V84: =U84/F84 -> 0.8821273636 | W84: =SUMIF($A$3:$A$80,"Metropolitana",W$3:W$80) -> 10348 | X84: =W84/F84 -> 0.8224393152
B85: Total Sul | C85: =SUMIF($A$3:$A$80,"sul",C$3:C$80) -> 8420 | D85: =SUMIF($A$3:$A$80,"sul",D$3:D$80) -> 3575 | E85: =SUMIF($A$3:$A$80,"sul",E$3:E$80) -> 8688 | F85: =SUMIF($A$3:$A$80,"sul",F$3:F$80) -> 3620 | G85: =SUMIF($A$3:$A$80,"sul",G$3:G$80) -> 2602 | H85: =G85/D85 -> 0.7278321678 | I85: =SUMIF($A$3:$A$80,"sul",I$3:I$80) -> 1511 | J85: =I85/F85 -> 0.4174033149 | K85: =SUMIF($A$3:$A$80,"sul",K$3:K$80) -> 3519 | L85: =K85/D85 -> 0.9843356643 | M85: =SUMIF($A$3:$A$80,"sul",M$3:M$80) -> 3599 | N85: =M85/D85 -> 1.006713287 | O85: =SUMIF($A$3:$A$80,"sul",O$3:O$80) -> 3459 | P85: =O85/D85 -> 0.9675524476 | Q85: =SUMIF($A$3:$A$80,"sul",Q$3:Q$80) -> 3051 | R85: =Q85/D85 -> 0.8534265734 | S85: =SUMIF($A$3:$A$80,"sul",S$3:S$80) -> 2254 | T85: =S85/F85 -> 0.6226519337 | U85: =SUMIF($A$3:$A$80,"sul",U$3:U$80) -> 3185 | V85: =U85/F85 -> 0.8798342541 | W85: =SUMIF($A$3:$A$80,"sul",W$3:W$80) -> 2951 | X85: =W85/F85 -> 0.8151933702
B86: Total Espírito Santo | C86: =SUM(C3:C80) -> 51166 | D86: =SUM(D3:D80) -> 21787 | E86: =SUM(E3:E80) -> 51517 | F86: =SUM(F3:F80) -> 21465.41667 | G86: =SUM(G3:G80) -> 14305 | H86: =G86/D86 -> 0.6565842016 | I86: =SUM(I3:I80) -> 8747 | J86: =I86/F86 -> 0.4074926723 | K86: =SUM(K3:K80) -> 19363 | L86: =K86/D86 -> 0.8887409923 | M86: =SUM(M3:M80) -> 19944 | N86: =M86/D86 -> 0.915408271 | O86: =SUM(O3:O80) -> 19479 | P86: =O86/D86 -> 0.8940652683 | Q86: =SUM(Q3:Q80) -> 17420 | R86: =Q86/D86 -> 0.7995593703 | S86: =SUM(S3:S80) -> 14569 | T86: =S86/F86 -> 0.6787196459 | U86: =SUM(U3:U80) -> 18955 | V86: =U86/F86 -> 0.8830483141 | W86: =SUM(W3:W80) -> 17698 | X86: =W86/F86 -> 0.8244890036
A90: FonteVacina e Confia, em 04 de Junho de 2024.**
A91: **Dados referente às doses aplicadas no período de Maio de 2024
A92: Cobertura Calculada por município de residência do cidadão (no Vacina e Confia, a origem da informação é o endereço que consta no cadastro do cidadão preenchido manualmente por meio do autocadastro ou pelo cadastro realizado por um profissional de saúde no momento do atendimento).
A94: 1 População anual extraída do MS/SVS/DASIS - SINASC/DASIS/SVS/MS 2023 (hoje preliminares) referente ao período de março a dezembro de 2023 e SINASC/DASIS/SVS/MS 2024 referente ao período de janeiro a fevereiro de 2024.
A96: ² População proporcional extraída do MS/SVS/DASIS - SINASC/DASIS/SVS/MS 2023 (hoje preliminares) referente ao período de março e abril de 2023 somada a população extraída do SINASC/DASIS/SVS/MS 2024 referente ao período de janeiro e fevereiro de 2024.
A98: Observações:
A99: Imunobiológicos que foram recebidos parcialmente pelo estado no mês da análise, sendo distribuídos em quantidades reduzidas às regionais e municípios: Varicela, Haemophilus influenzae tipo B, Soro Antirrábico Humano.
A100: Imunobiológicos que não foram recebidos pelo estado no mês da análise, não sendo possível a distribuição às regionais e municípios: Meningo C, Tetra viral, Sars-cov-10 Bivalente, DTPa (CRIE) e Sars-Cov2-10 Doses Pediátricas.
A101: Imunobiológicos com indisponibilidade de aquisição e distribuição no mês da análise:
A102: Imunobiológicos com indisponibilidade de aquisição e distribuição no mês da análise: Tetra Viral.

Sheet Cobert. COVID-19 Menores 4 anos (hidden)
A1: Regional | B1: Município | C1: Série Histórica
A2: Região Metropolitana | B2: Afonso Cláudio
A3: Região Norte | B3: Água Doce do Norte
A4: Região Central | B4: Águia Branca
A5: Região Sul | B5: Alegre
A6: Região Sul | B6: Alfredo Chaves
A7: Região Central | B7: Alto Rio Novo
A8: Região Sul | B8: Anchieta
A9: Região Sul | B9: Apiacá
A10: Região Metropolitana | B10: Aracruz
A11: Região Sul | B11: Atilio Vivacqua
A12: Região Central | B12: Baixo Guandu
A13: Região Norte | B13: Barra de São Francisco
A14: Região Norte | B14: Boa Esperança
A15: Região Sul | B15: Bom Jesus do Norte
A16: Região Metropolitana | B16: Brejetuba
A17: Região Sul | B17: Cachoeiro de Itapemirim
A18: Região Metropolitana | B18: Cariacica
A19: Região Sul | B19: Castelo
A20: Região Central | B20: Colatina
A21: Região Norte | B21: Conceição da Barra
A22: Região Metropolitana | B22: Conceição do Castelo
A23: Região Sul | B23: Divino de São Lourenço
A24: Região Metropolitana | B24: Domingos Martins
A25: Região Sul | B25: Dores do Rio Preto
A26: Região Norte | B26: Ecoporanga
A27: Região Metropolitana | B27: Fundão
A28: Região Central | B28: Governador Lindenberg
A29: Região Sul | B29: Guaçuí
A30: Região Metropolitana | B30: Guarapari
A31: Região Metropolitana | B31: Ibatiba
A32: Região Metropolitana | B32: Ibiraçu
A33: Região Sul | B33: Ibitirama
A34: Região Sul | B34: Iconha
A35: Região Sul | B35: Irupi
A36: Região Metropolitana | B36: Itaguaçu
A37: Região Sul | B37: Itapemirim
A38: Região Metropolitana | B38: Itarana
A39: Região Sul | B39: Iúna
A40: Região Norte | B40: Jaguaré
A41: Região Sul | B41: Jerônimo Monteiro
A42: Região Metropolitana | B42: João Neiva
A43: Região Metropolitana | B43: Laranja da Terra
A44: Região Central | B44: Linhares
A45: Região Central | B45: Mantenópolis
A46: Região Sul | B46: Marataízes
A47: Região Metropolitana | B47: Marechal Floriano
A48: Região Central | B48: Marilândia
A49: Região Sul | B49: Mimoso do Sul
A50: Região Norte | B50: Montanha
A51: Região Norte | B51: Mucurici
A52: Região Sul | B52: Muniz Freire
A53: Região Sul | B53: Muqui
A54: Região Norte | B54: Nova Venécia
A55: Região Central | B55: Pancas
A56: Região Norte | B56: Pedro Canário
A57: Região Norte | B57: Pinheiros
A58: Região Sul | B58: Piúma
A59: Região Norte | B59: Ponto Belo
A60: Região Sul | B60: Presidente Kennedy
A61: Região Central | B61: Rio Bananal
A62: Região Sul | B62: Rio Novo do Sul
A63: Região Metropolitana | B63: Santa Leopoldina
A64: Região Metropolitana | B64: Santa Maria de Jetibá
A65: Região Metropolitana | B65: Santa Teresa
A66: Região Central | B66: São Domingos do Norte
A67: Região Central | B67: São Gabriel da Palha
A68: Região Sul | B68: São José do Calçado
A69: Região Norte | B69: São Mateus
A70: Região Central | B70: São Roque do Canaã
A71: Região Metropolitana | B71: Serra
A72: Região Central | B72: Sooretama
A73: Região Sul | B73: Vargem Alta
A74: Região Metropolitana | B74: Venda Nova do Imigrante
A75: Região Metropolitana | B75: Viana
A76: Região Norte | B76: Vila Pavão
A77: Região Central | B77: Vila Valério
A78: Região Metropolitana | B78: Vila Velha
A79: Região Metropolitana | B79: Vitória
B81: Espírito Santo
B82: Região Norte
B83: Região Central
B84: Região Metropolitana
B85: Região Sul
A87: Pfizer Pediátrica Menor de 5 anos e Coronavac
A88: Período avaliado: 2021-2024
A89: Fonte: https://www.vacinaeconfia.es.gov.br
A90: *Dados de janeiro/2024 extraídos do Vacina e Confia em 04/01/2024
A91: População proporcional extraída do SINASC 2022 (menores de 1 ano) e Censo IBGE 2022 (demais idades)
A92: Cobertura Calculada por município de procedência da vacinação

Sheet Cobert. Meningo C Adolescentes
A1: Regional | B1: Município | C1: Série Histórica
A2: Metropolitana | B2: Afonso Cláudio | C2: 55.93116165
A3: Central Norte | B3: Água Doce do Norte | C3: 63.40361446
A4: Central Norte | B4: Águia Branca | C4: 58.13492063
A5: Sul | B5: Alegre | C5: 68.0977054
A6: Sul | B6: Alfredo Chaves | C6: 39.39873418
A7: Central Norte | B7: Alto Rio Novo | C7: 83.73786408
A8: Sul | B8: Anchieta | C8: 73.80952381
A9: Sul | B9: Apiacá | C9: 29.3956044
A10: Metropolitana | B10: Aracruz | C10: 74.97221193
A11: Sul | B11: Atilio Vivacqua | C11: 73.6328125
A12: Central Norte | B12: Baixo Guandu | C12: 60.18396846
A13: Central Norte | B13: Barra de São Francisco | C13: 63.18300087
A14: Central Norte | B14: Boa Esperança | C14: 56.52173913
A15: Sul | B15: Bom Jesus do Norte | C15: 49.32821497
A16: Metropolitana | B16: Brejetuba | C16: 78.6188579
A17: Sul | B17: Cachoeiro de Itapemirim | C17: 74.1621502
A18: Metropolitana | B18: Cariacica | C18: 68.35449441
A19: Sul | B19: Castelo | C19: 75.50377834
A20: Central Norte | B20: Colatina | C20: 58.39626034
A21: Central Norte | B21: Conceição da Barra | C21: 52.81285878
A22: Metropolitana | B22: Conceição do Castelo | C22: 72.63513514
A23: Sul | B23: Divino de São Lourenço | C23: 56.25
A24: Metropolitana | B24: Domingos Martins | C24: 74.68060395
A25: Sul | B25: Dores do Rio Preto | C25: 72.44094488
A26: Central Norte | B26: Ecoporanga | C26: 59.10290237
A27: Metropolitana | B27: Fundão | C27: 72.53668763
A28: Central Norte | B28: Governador Lindenberg | C28: 70.36363636
A29: Sul | B29: Guaçuí | C29: 64.38992042
A30: Metropolitana | B30: Guarapari | C30: 65.20079401
A31: Metropolitana | B31: Ibatiba | C31: 68.73198847
A32: Metropolitana | B32: Ibiraçu | C32: 72.12543554
A33: Sul | B33: Ibitirama | C33: 65.09598604
A34: Sul | B34: Iconha | C34: 71.06299213
A35: Sul | B35: Irupi | C35: 63.0810093
A36: Metropolitana | B36: Itaguaçu | C36: 62.17532468
A37: Sul | B37: Itapemirim | C37: 55.62687206
A38: Metropolitana | B38: Itarana | C38: 61.91588785
A39: Sul | B39: Iúna | C39: 59.84654731
A40: Central Norte | B40: Jaguaré | C40: 58.30546265
A41: Sul | B41: Jerônimo Monteiro | C41: 78.68561279
A42: Metropolitana | B42: João Neiva | C42: 69.80273141
A43: Metropolitana | B43: Laranja da Terra | C43: 63.52459016
A44: Central Norte | B44: Linhares | C44: 66.87754664
A45: Central Norte | B45: Mantenópolis | C45: 76.1971831
A46: Sul | B46: Marataízes | C46: 78.11523001
A47: Metropolitana | B47: Marechal Floriano | C47: 73.96963124
A48: Central Norte | B48: Marilândia | C48: 68.90909091
A49: Sul | B49: Mimoso do Sul | C49: 63.6755824
A50: Central Norte | B50: Montanha | C50: 71.23809524
A51: Central Norte | B51: Mucurici | C51: 62.45059289
A52: Sul | B52: Muniz Freire | C52: 62.01298701
A53: Sul | B53: Muqui | C53: 63.89728097
A54: Central Norte | B54: Nova Venécia | C54: 48.53608247
A55: Central Norte | B55: Pancas | C55: 64.4820296
A56: Central Norte | B56: Pedro Canário | C56: 68.95450918
A57: Central Norte | B57: Pinheiros | C57: 58.92731122
A58: Sul | B58: Piúma | C58: 63.62799263
A59: Central Norte | B59: Ponto Belo | C59: 55.55555556
A60: Sul | B60: Presidente Kennedy | C60: 83.42465753
A61: Central Norte | B61: Rio Bananal | C61: 74.74747475
A62: Sul | B62: Rio Novo do Sul | C62: 56.1302682
A63: Metropolitana | B63: Santa Leopoldina | C63: 47.4015748
A64: Metropolitana | B64: Santa Maria de Jetibá | C64: 70.43641483
A65: Metropolitana | B65: Santa Teresa | C65: 73.4345351
A66: Central Norte | B66: São Domingos do Norte | C66: 68.04878049
A67: Central Norte | B67: São Gabriel da Palha | C67: 53.27970297
A68: Sul | B68: São José do Calçado | C68: 63.4057971
A69: Central Norte | B69: São Mateus | C69: 57.08232446
A70: Central Norte | B70: São Roque do Canaã | C70: 76.34408602
A71: Metropolitana | B71: Serra | C71: 64.73016201
A72: Central Norte | B72: Sooretama | C72: 75.80174927
A73: Sul | B73: Vargem Alta | C73: 69.98069498
A74: Metropolitana | B74: Venda Nova do Imigrante | C74: 68.00356506
A75: Metropolitana | B75: Viana | C75: 68.17496229
A76: Central Norte | B76: Vila Pavão | C76: 80.34934498
A77: Central Norte | B77: Vila Valério | C77: 83.18584071
A78: Metropolitana | B78: Vila Velha | C78: 71.58176944
A79: Metropolitana | B79: Vitória | C79: 75.39021488
A80: Total | C80: 72.74859951
A82: Meningocócica Conjudada C e Meningocócica ACWY
A83: Período avaliado: 2016-2024
A84: Fonte: http://tabnet.datasus.gov.br/ e https://www.vacinaeconfia.es.gov.br
A85: *Dados parciais. Dados de janeiro/2022 a abril/2022 extraídos do TABNET em 10/05/2024
A86: *Dados de Maio/2024 extraídos do Vacina e Confia em Junho/2024
A87: População proporcional extraída do Censo IBGE 2022
A88: Cobertura Calculada por município de procedência da vacinação
A90: Observações:
A91: Imunobiológicos que foram recebidos parcialmente pelo estado no mês da análise, sendo distribuídos em quantidades reduzidas às regionais e municípios: Varicela, Febre Amarela e HPV Quadrivalente.
A92: Imunobiológicos que não foram recebidos pelo estado no mês da análise, não sendo possível a distribuição às regionais e municípios: Meningo C, Hepatite A (CRIE), HIB, Hepatite A Rotina Pediátrica, DTPa (CRIE).
A93: Imunobiológicos com indisponibilidade de aquisição e distribuição no mês da análise: Tetra Viral.
A98: Observações:
A99: Imunobiológicos que foram recebidos parcialmente pelo estado no mês da análise, sendo distribuídos em quantidades reduzidas às regionais e municípios: Varicela, Haemophilus influenzae tipo B, Soro Antirrábico Humano.
A100: Imunobiológicos que não foram recebidos pelo estado no mês da análise, não sendo possível a distribuição às regionais e municípios: Meningo C, Tetra viral, Sars-cov-10 Bivalente, DTPa (CRIE) e Sars-Cov2-10 Doses Pediátricas.
A101: Imunobiológicos com indisponibilidade de aquisição e distribuição no mês da análise:

Sheet Cobert. HPV
A1: REGIONAL | B1: MUNICÍPIO | C1: HPV* Quadrivalente D1 Total - Feminino | D1: HPV* Quadrivalente D1 Total - Masculino
A2: METROPOLITANA | B2: Afonso Cláudio | C2: 83.95475492 | D2: 78.92752409
A3: CENTRAL-NORTE | B3: Água Doce do Norte | C3: ='[1]Água Doce do Norte'!$H$23 -> 85.51165147 | D3: ='[1]Água Doce do Norte'!$H$47 -> 59.97973658
A4: CENTRAL-NORTE | B4: Águia Branca | C4: ='[1]Águia Branca'!$H$23 -> 70.58823529 | D4: ='[1]Águia Branca'!$H$47 -> 75.23939808
A5: SUL | B5: Alegre | C5: =[2]Alegre!$H$23 -> 82.1341165 | D5: =[2]Alegre!$H$47 -> 63.14243759
A6: SUL | B6: Alfredo Chaves | C6: ='[2]Alfredo Chaves'!$H$23 -> 81.57349896 | D6: ='[2]Alfredo Chaves'!$H$47 -> 58.59213251
A7: CENTRAL-NORTE | B7: Alto Rio Novo | C7: ='[1]Alto Rio Novo'!$H$23 -> 101.4925373 | D7: ='[1]Alto Rio Novo'!$H$47 -> 88.88888889
A8: SUL | B8: Anchieta | C8: =[2]Anchieta!$H$23 -> 92.77993947 | D8: =[2]Anchieta!$H$47 -> 81.62559447
A9: SUL | B9: Apiacá | C9: =[2]Apiacá!$H$23 -> 69.41838649 | D9: =[2]Apiacá!$H$47 -> 50.28142589
A10: METROPOLITANA | B10: Aracruz | C10: 84.59657702 | D10: 71.95599022
A11: SUL | B11: Atílio Vivácqua | C11: ='[2]Atílio Vivácqua'!$H$23 -> 101.758794 | D11: ='[2]Atílio Vivácqua'!$H$47 -> 91.70854271
A12: CENTRAL-NORTE | B12: Baixo Guandu | C12: ='[1]Baixo Guandu'!$H$23 -> 81.98866114 | D12: ='[1]Baixo Guandu'!$H$47 -> 65.85259485
A13: CENTRAL-NORTE | B13: Barra de São Francisco | C13: ='[1]Barra de São Francisco'!$H$23 -> 74.662065 | D13: ='[1]Barra de São Francisco'!$H$47 -> 58.44118493
A14: CENTRAL-NORTE | B14: Boa Esperança | C14: ='[1]Boa Esperança'!$H$23 -> 86.9399428 | D14: ='[1]Boa Esperança'!$H$47 -> 48.99904671
A15: SUL | B15: Bom Jesus do Norte | C15: ='[2]Bom Jesus do Norte'!$H$23 -> 83.07291667 | D15: ='[2]Bom Jesus do Norte'!$H$47 -> 64.0625
A16: METROPOLITANA | B16: Brejetuba | C16: 91.06830123 | D16: 74.43082312
A17: SUL | B17: Cachoeiro de Itapemirim | C17: ='[2]Cachoeiro de Itapemirim'!$H$23 -> 87.28769943 | D17: ='[2]Cachoeiro de Itapemirim'!$H$47 -> 85.69958091
A18: METROPOLITANA | B18: Cariacica | C18: 82.31201499 | D18: 49.29756489
A19: SUL | B19: Castelo | C19: =[2]Castelo!$H$23 -> 93.42762063 | D19: =[2]Castelo!$H$47 -> 86.10648918
A20: CENTRAL-NORTE | B20: Colatina | C20: =[1]Colatina!$H$23 -> 53.16274064 | D20: =[1]Colatina!$H$47 -> 43.76419945
A21: CENTRAL-NORTE | B21: Conceição da Barra | C21: ='[1]Conceição da Barra'!$H$23 -> 81.66926677 | D21: ='[1]Conceição da Barra'!$H$47 -> 67.78471139
A22: METROPOLITANA | B22: Conceição do Castelo | C22: 97.91894852 | D22: 84.3373494
A23: SUL | B23: Divino de São Lourenço | C23: ='[2]Divino São Lourenço'!$H$23 -> 76.76767677 | D23: ='[2]Divino São Lourenço'!$H$47 -> 84.84848485
A24: METROPOLITANA | B24: Domingos Martins | C24: 91.65705498 | D24: 78.27758554
A25: SUL | B25: Dores do Rio Preto | C25: ='[2]Dores do Rio Preto'!$H$23 -> 95.04587156 | D25: ='[2]Dores do Rio Preto'!$H$47 -> 84.7706422
A26: CENTRAL-NORTE | B26: Ecoporanga | C26: =[1]Ecoporanga!$H$23 -> 83.15018315 | D26: =[1]Ecoporanga!$H$47 -> 66.54456654
A27: METROPOLITANA | B27: Fundão | C27: 82.55080589 | D27: 65.17168886
A28: CENTRAL-NORTE | B28: Governador Lindenberg | C28: ='[1]Governador Lindenberg'!$H$23 -> 89.16256158 | D28: ='[1]Governador Lindenberg'!$H$47 -> 81.5270936
A29: SUL | B29: Guaçuí | C29: =[2]Guaçuí!$H$23 -> 87.81346238 | D29: =[2]Guaçuí!$H$47 -> 70.5675319
A30: METROPOLITANA | B30: Guarapari | C30: 76.29455623 | D30: 44.3059953
A31: METROPOLITANA | B31: Ibatiba | C31: 88.0742913 | D31: 77.90811339
A32: METROPOLITANA | B32: Ibiraçu | C32: 90.43869516 | D32: 67.0416198
A33: SUL | B33: Ibitirama | C33: =[2]Ibitirama!$H$23 -> 49.46996466 | D33: =[2]Ibitirama!$H$47 -> 60.07067138
A34: SUL | B34: Iconha | C34: =[2]Iconha!$H$23 -> 93.83033419 | D34: =[2]Iconha!$H$47 -> 88.1748072
A35: SUL | B35: Irupi | C35: =[2]Irupi!$H$23 -> 69.27175844 | D35: =[2]Irupi!$H$47 -> 82.77087034
A36: METROPOLITANA | B36: Itaguaçu | C36: 93.66515837 | D36: 47.28506787
A37: SUL | B37: Itapemirim | C37: =[2]Itapemirim!$H$23 -> 68.31108532 | D37: =[2]Itapemirim!$H$47 -> 67.84677887
A38: METROPOLITANA | B38: Itarana | C38: 84.47204969 | D38: 78.26086957
A39: SUL | B39: Iúna | C39: =[2]Iúna!$H$23 -> 76.38234033 | D39: =[2]Iúna!$H$47 -> 80.49721389
A40: CENTRAL-NORTE | B40: Jaguaré | C40: =[1]Jaguaré!$H$23 -> 91.48618372 | D40: =[1]Jaguaré!$H$47 -> 75.87752054
A41: SUL | B41: Jerônimo Monteiro | C41: ='[2]Jerônimo Monteiro'!$H$23 -> 93.30085262 | D41: ='[2]Jerônimo Monteiro'!$H$47 -> 84.04384896
A42: METROPOLITANA | B42: João Neiva | C42: 96.05809129 | D42: 75.10373444
A43: METROPOLITANA | B43: Laranja da Terra | C43: 79.78436658 | D43: 64.95956873
A44: CENTRAL-NORTE | B44: Linhares | C44: =[1]Linhares!$H$23 -> 76.82970368 | D44: =[1]Linhares!$H$47 -> 60.66404855
A45: CENTRAL-NORTE | B45: Mantenópolis | C45: =[1]Mantenópolis!$H$23 -> 89.91354467 | D45: =[1]Mantenópolis!$H$47 -> 59.36599424
A46: SUL | B46: Marataízes | C46: =[2]Marataízes!$H$23 -> 95.34953495 | D46: =[2]Marataízes!$H$47 -> 96.30963096
A47: METROPOLITANA | B47: Marechal Floriano | C47: 96.26865672 | D47: 67.91044776
A48: CENTRAL-NORTE | B48: Marilândia | C48: =[1]Marilândia!$H$23 -> 100.9975062 | D48: =[1]Marilândia!$H$47 -> 89.52618454
A49: SUL | B49: Mimoso do Sul | C49: ='[2]Mimoso do Sul'!$H$23 -> 79.78596908 | D49: ='[2]Mimoso do Sul'!$H$47 -> 70.63020214
A50: CENTRAL-NORTE | B50: Montanha | C50: =[1]Montanha!$H$23 -> 93.72599232 | D50: =[1]Montanha!$H$47 -> 85.01920615
A51: CENTRAL-NORTE | B51: Mucurici | C51: =[1]Mucurici!$H$23 -> 96.64804469 | D51: =[1]Mucurici!$H$47 -> 75.41899441
A52: SUL | B52: Muniz Freire | C52: ='[2]Muniz Freire'!$H$23 -> 91.4244186 | D52: ='[2]Muniz Freire'!$H$47 -> 91.13372093
A53: SUL | B53: Muqui | C53: =[2]Muqui!$H$23 -> 82.56513026 | D53: =[2]Muqui!$H$47 -> 72.74549098
A54: CENTRAL-NORTE | B54: Nova Venécia | C54: ='[1]Nova Venécia'!$H$23 -> 87.97589701 | D54: ='[1]Nova Venécia'!$H$47 -> 78.11558477
A55: CENTRAL-NORTE | B55: Pancas | C55: =[1]Pancas!$H$23 -> 87.53541076 | D55: =[1]Pancas!$H$47 -> 77.47875354
A56: CENTRAL-NORTE | B56: Pedro Canário | C56: ='[1]Pedro Canário'!$H$23 -> 90.66523605 | D56: ='[1]Pedro Canário'!$H$47 -> 75.8583691
A57: CENTRAL-NORTE | B57: Pinheiros | C57: =[1]Pinheiros!$H$23 -> 78.85714286 | D57: =[1]Pinheiros!$H$47 -> 59.04761905
A58: SUL | B58: Piúma | C58: =[2]Piúma!$H$23 -> 71.80385289 | D58: =[2]Piúma!$H$47 -> 62.23000584
A59: CENTRAL-NORTE | B59: Ponto Belo | C59: ='[1]Ponto Belo'!$H$23 -> 91.57894737 | D59: ='[1]Ponto Belo'!$H$47 -> 77.19298246
A60: SUL | B60: Presidente Kennedy | C60: ='[2]Presidente Kennedy'!$H$23 -> 85.31951641 | D60: ='[2]Presidente Kennedy'!$H$47 -> 84.62867012
A61: CENTRAL-NORTE | B61: Rio Bananal | C61: ='[1]Rio Bananal'!$H$23 -> 99.80171844 | D61: ='[1]Rio Bananal'!$H$47 -> 98.34765367
A62: SUL | B62: Rio Novo do Sul | C62: ='[2]Rio Novo do Sul'!$H$23 -> 73.60406091 | D62: ='[2]Rio Novo do Sul'!$H$47 -> 82.48730964
A63: METROPOLITANA | B63: Santa Leopoldina | C63: 63.28042328 | D63: 37.24867725
A64: METROPOLITANA | B64: Santa Maria de Jetibá | C64: 89.80871747 | D64: 54.9388523
A65: METROPOLITANA | B65: Santa Teresa | C65: 102.3011177 | D65: 74.42472058
A66: CENTRAL-NORTE | B66: São Domingos do Norte | C66: ='[1]São Domingos do Norte'!$H$23 -> 98.18181818 | D66: ='[1]São Domingos do Norte'!$H$47 -> 79.33884298
A67: CENTRAL-NORTE | B67: São Gabriel da Palha | C67: ='[1]São Gabriel da Palha'!$H$23 -> 81.06508876 | D67: ='[1]São Gabriel da Palha'!$H$47 -> 71.93575655
A68: SUL | B68: São José do Calçado | C68: ='[2]São José do Calçado'!$H$23 -> 81.85140073 | D68: ='[2]São José do Calçado'!$H$47 -> 84.28745432
A69: CENTRAL-NORTE | B69: São Mateus | C69: ='[1]São Mateus'!$H$23 -> 83.47878423 | D69: ='[1]São Mateus'!$H$47 -> 61.65111847
A70: CENTRAL-NORTE | B70: São Roque do Canaã | C70: ='[1]São Roque do Canaã'!$H$23 -> 104.6242775 | D70: ='[1]São Roque do Canaã'!$H$47 -> 74.85549133
A71: METROPOLITANA | B71: Serra | C71: 80.04803879 | D71: 41.81641023
A72: CENTRAL-NORTE | B72: Sooretama | C72: =[1]Sooretama!$H$23 -> 82.98949007 | D72: =[1]Sooretama!$H$47 -> 77.92915531
A73: SUL | B73: Vargem Alta | C73: ='[2]Vargem Alta'!$H$23 -> 86.85258964 | D73: ='[2]Vargem Alta'!$H$47 -> 86.45418327
A74: METROPOLITANA | B74: Venda Nova do Imigrante | C74: 98.33846154 | D74: 88.61538462
A75: METROPOLITANA | B75: Viana | C75: 89.37457969 | D75: 68.76260928
A76: CENTRAL-NORTE | B76: Vila Pavão | C76: ='[1]Vila Pavão'!$H$23 -> 95.96541787 | D76: ='[1]Vila Pavão'!$H$47 -> 70.02881844
A77: CENTRAL-NORTE | B77: Vila Valério | C77: ='[1]Vila Valério'!$H$23 -> 103.7848606 | D77: ='[1]Vila Valério'!$H$47 -> 83.46613546
A78: METROPOLITANA | B78: Vila Velha | C78: 88.54386494 | D78: 64.88996081
A79: METROPOLITANA | B79: Vitória | C79: 99.32779386 | D79: 66.04425357
A80: TOTAL | C80: 83.03902267 | D80: 76.66683494
A83: Cobertura Vacinal HPV 2024
A84: Período avaliado: 2013-2024
A85: Fonte: http://tabnet.datasus.gov.br/
A86: Fonte: https://www.vacinaeconfia.es.gov.br
A87: *Dados parciais gerados em 10/05/2024 (TABNET) e Junho/2024 (VeC)
A88: População proporcional extraída do Censo IBGE 2022
A89: Cobertura Calculada por município de procedência da vacinação
A91: Observações:
A92: Imunobiológicos que foram recebidos parcialmente pelo estado no mês da análise, sendo distribuídos em quantidades reduzidas às regionais e municípios: Varicela, Haemophilus influenzae tipo B, Soro Antirrábico Humano.
A93: Imunobiológicos que não foram recebidos pelo estado no mês da análise, não sendo possível a distribuição às regionais e municípios: Meningo C, Tetra viral, Sars-cov-10 Bivalente, DTPa (CRIE) e Sars-Cov2-10 Doses Pediátricas.
A94: Imunobiológicos com indisponibilidade de aquisição e distribuição no mês da análise:

Sheet dTpa gestantes - procedência
A1: REGIONAL | B1: MUNICÍPIO | C1: ¹POPULAÇÃO GESTANTE ANUAL | D1: ²POPULAÇÃO PROPORCIONAL | E1: DOSES APLICADAS dTpa GESTANTES | F1: COBERTURA VACINAL dTpa GESTANTES
A2: Metropolitana | B2: Afonso Cláudio | C2: 374 | D2: 146 | E2: 120 | F2: =E2/D2 -> 0.8219178082
A3: Norte | B3: Água Doce do Norte | C3: 185 | D3: 90 | E3: 78 | F3: =E3/D3 -> 0.8666666667
A4: Central | B4: Águia Branca | C4: 165 | D4: 67 | E4: 54 | F4: 0.8059701493
A5: Sul | B5: Alegre | C5: 330 | D5: 135 | E5: 136 | F5: 1.007407407
A6: Sul | B6: Alfredo Chaves | C6: 148 | D6: 59 | E6: 51 | F6: 0.8644067797
A7: Central | B7: Alto Rio Novo | C7: 84 | D7: 27 | E7: 38 | F7: 1.407407407
A8: Sul | B8: Anchieta | C8: 389 | D8: 169 | E8: 137 | F8: 0.8106508876
A9: Sul | B9: Apiacá | C9: 71 | D9: 37 | E9: 29 | F9: 0.7837837838
A10: Metropolitana | B10: Aracruz | C10: 1465 | D10: 634 | E10: 542 | F10: 0.8548895899
A11: Sul | B11: Atilio Vivacqua | C11: 138 | D11: 64 | E11: 70 | F11: 1.09375
A12: Central | B12: Baixo Guandu | C12: 388 | D12: 163 | E12: 127 | F12: 0.7791411043
A13: Norte | B13: Barra de São Francisco | C13: 553 | D13: 241 | E13: 193 | F13: 0.8008298755
A14: Norte | B14: Boa Esperança | C14: 189 | D14: 77 | E14: 76 | F14: 0.987012987
A15: Sul | B15: Bom Jesus do Norte | C15: 84 | D15: 37 | E15: 38 | F15: 1.027027027
A16: Metropolitana | B16: Brejetuba | C16: 214 | D16: 87 | E16: 72 | F16: 0.8275862069
A17: Sul | B17: Cachoeiro de Itapemirim | C17: 2460 | D17: 1105 | E17: 861 | F17: 0.7791855204
A18: Metropolitana | B18: Cariacica | C18: 4873 | D18: 2069 | E18: 1646 | F18: 0.7955534074
A19: Sul | B19: Castelo | C19: 443 | D19: 192 | E19: 162 | F19: 0.84375
A20: Central | B20: Colatina | C20: 1561 | D20: 669 | E20: 601 | F20: 0.8983557549
A21: Norte | B21: Conceição da Barra | C21: 342 | D21: 131 | E21: 158 | F21: 1.20610687
A22: Metropolitana | B22: Conceição do Castelo | C22: 169 | D22: 78 | E22: 59 | F22: 0.7564102564
A23: Sul | B23: Divino de São Lourenço | C23: 65 | D23: 25 | E23: 16 | F23: 0.64
A24: Metropolitana | B24: Domingos Martins | C24: 417 | D24: 186 | E24: 175 | F24: 0.9408602151
A25: Sul | B25: Dores do Rio Preto | C25: 89 | D25: 34 | E25: 37 | F25: 1.088235294
A26: Norte | B26: Ecoporanga | C26: 266 | D26: 125 | E26: 100 | F26: 0.8
A27: Metropolitana | B27: Fundão | C27: 221 | D27: 94 | E27: 77 | F27: 0.8191489362
A28: Central | B28: Governador Lindenberg | C28: 150 | D28: 72 | E28: 50 | F28: 0.6944444444
A29: Sul | B29: Guaçuí | C29: 396 | D29: 150 | E29: 115 | F29: 0.7666666667
A30: Metropolitana | B30: Guarapari | C30: 1732 | D30: 752 | E30: 633 | F30: 0.8417553191
A31: Metropolitana | B31: Ibatiba | C31: 362 | D31: 153 | E31: 166 | F31: 1.08496732
A32: Metropolitana | B32: Ibiraçu | C32: 154 | D32: 70 | E32: 67 | F32: 0.9571428571
A33: Sul | B33: Ibitirama | C33: 127 | D33: 52 | E33: 54 | F33: 1.038461538
A34: Sul | B34: Iconha | C34: 118 | D34: 47 | E34: 45 | F34: 0.9574468085
A35: Sul | B35: Irupi | C35: 197 | D35: 75 | E35: 90 | F35: 1.2
A36: Metropolitana | B36: Itaguaçu | C36: 135 | D36: 59 | E36: 64 | F36: 1.084745763
A37: Sul | B37: Itapemirim | C37: 541 | D37: 201 | E37: 182 | F37: 0.9054726368
A38: Metropolitana | B38: Itarana | C38: 140 | D38: 65 | E38: 61 | F38: 0.9384615385
A39: Sul | B39: Iúna | C39: 474 | D39: 189 | E39: 161 | F39: 0.8518518519
A40: Norte | B40: Jaguaré | C40: 489 | D40: 212 | E40: 201 | F40: 0.9481132075
A41: Sul | B41: Jerônimo Monteiro | C41: 156 | D41: 59 | E41: 54 | F41: 0.9152542373
A42: Metropolitana | B42: João Neiva | C42: 178 | D42: 70 | E42: 64 | F42: 0.9142857143
A43: Metropolitana | B43: Laranja da Terra | C43: 96 | D43: 43 | E43: 36 | F43: 0.8372093023
A44: Central | B44: Linhares | C44: 2598 | D44: 1125 | E44: 906 | F44: 0.8053333333
A45: Central | B45: Mantenópolis | C45: 161 | D45: 78 | E45: 58 | F45: 0.7435897436
A46: Sul | B46: Marataízes | C46: 570 | D46: 266 | E46: 212 | F46: 0.7969924812
A47: Metropolitana | B47: Marechal Floriano | C47: 227 | D47: 102 | E47: 89 | F47: 0.8725490196
A48: Central | B48: Marilândia | C48: 167 | D48: 61 | E48: 54 | F48: 0.8852459016
A49: Sul | B49: Mimoso do Sul | C49: 262 | D49: 105 | E49: 96 | F49: 0.9142857143
A50: Norte | B50: Montanha | C50: 233 | D50: 76 | E50: 82 | F50: 1.078947368
A51: Norte | B51: Mucurici | C51: 68 | D51: 21 | E51: 32 | F51: 1.523809524
A52: Sul | B52: Muniz Freire | C52: 210 | D52: 86 | E52: 93 | F52: 1.081395349
A53: Sul | B53: Muqui | C53: 163 | D53: 60 | E53: 69 | F53: 1.15
A54: Norte | B54: Nova Venécia | C54: 681 | D54: 301 | E54: 235 | F54: 0.780730897
A55: Central | B55: Pancas | C55: 216 | D55: 91 | E55: 74 | F55: 0.8131868132
A56: Norte | B56: Pedro Canário | C56: 305 | D56: 132 | E56: 116 | F56: 0.8787878788
A57: Norte | B57: Pinheiros | C57: 301 | D57: 109 | E57: 117 | F57: 1.073394495
A58: Sul | B58: Piúma | C58: 309 | D58: 122 | E58: 123 | F58: 1.008196721
A59: Norte | B59: Ponto Belo | C59: 75 | D59: 25 | E59: 28 | F59: 1.12
A60: Sul | B60: Presidente Kennedy | C60: 194 | D60: 94 | E60: 78 | F60: 0.829787234
A61: Central | B61: Rio Bananal | C61: 299 | D61: 130 | E61: 118 | F61: 0.9076923077
A62: Sul | B62: Rio Novo do Sul | C62: 120 | D62: 47 | E62: 37 | F62: 0.7872340426
A63: Metropolitana | B63: Santa Leopoldina | C63: 93 | D63: 32 | E63: 28 | F63: 0.875
A64: Metropolitana | B64: Santa Maria de Jetibá | C64: 682 | D64: 302 | E64: 247 | F64: 0.8178807947
A65: Metropolitana | B65: Santa Teresa | C65: 299 | D65: 120 | E65: 105 | F65: 0.875
A66: Central | B66: São Domingos do Norte | C66: 126 | D66: 58 | E66: 41 | F66: 0.7068965517
A67: Central | B67: São Gabriel da Palha | C67: 440 | D67: 172 | E67: 184 | F67: =E67/D67 -> 1.069767442
A68: Sul | B68: São José do Calçado | C68: 101 | D68: 44 | E68: 37 | F68: 0.8409090909
A69: Norte | B69: São Mateus | C69: 1742 | D69: 613 | E69: 592 | F69: 0.9657422512
A70: Central | B70: São Roque do Canaã | C70: 131 | D70: 77 | E70: 55 | F70: 0.7142857143
A71: Metropolitana | B71: Serra | C71: 7393 | D71: 3287 | E71: 2458 | F71: 0.7477943413
A72: Central | B72: Sooretama | C72: 439 | D72: 196 | E72: 186 | F72: 0.9489795918
A73: Sul | B73: Vargem Alta | C73: 265 | D73: 121 | E73: 102 | F73: 0.8429752066
A74: Metropolitana | B74: Venda Nova do Imigrante | C74: 392 | D74: 162 | E74: 138 | F74: 0.8518518519
A75: Metropolitana | B75: Viana | C75: 980 | D75: 430 | E75: 359 | F75: 0.8348837209
A76: Norte | B76: Vila Pavão | C76: 91 | D76: 43 | E76: 57 | F76: 1.325581395
A77: Central | B77: Vila Valério | C77: 259 | D77: 121 | E77: 90 | F77: 0.7438016529
A78: Metropolitana | B78: Vila Velha | C78: 5698 | D78: 2372 | E78: 1854 | F78: 0.781618887
A79: Metropolitana | B79: Vitória | C79: 3748 | D79: 1596 | E79: 1416 | F79: 0.8872180451
B81: Total Norte | C81: =SUMIF($A$2:$A$79,"Norte",C$2:C$79) -> 5520 | D81: =SUMIF($A$2:$A$79,"Norte",D$2:D$79) -> 2196 | E81: =SUMIF($A$2:$A$79,"Norte",E$2:E$79) -> 2065 | F81: 0.9403460838
B82: Total Central | C82: =SUMIF($A$2:$A$79,"CENTRAL",C$2:C$79) -> 7184 | D82: =SUMIF($A$2:$A$79,"CENTRAL",D$2:D$79) -> 3107 | E82: =SUMIF($A$2:$A$79,"CENTRAL",E$2:E$79) -> 2636 | F82: 0.8484068233
B83: Total Metropolitana | C83: =SUMIF($A$2:$A$79,"METROPOLITANA",C$2:C$79) -> 30042 | D83: =SUMIF($A$2:$A$79,"METROPOLITANA",D$2:D$79) -> 12909 | E83: =SUMIF($A$2:$A$79,"METROPOLITANA",E$2:E$79) -> 10476 | F83: 0.8115268417
B84: Total Sul | C84: =SUMIF($A$2:$A$79,"SUL",C$2:C$79) -> 8420 | D84: =SUMIF($A$2:$A$79,"SUL",D$2:D$79) -> 3575 | E84: =SUMIF($A$2:$A$79,"SUL",E$2:E$79) -> 3085 | F84: 0.8629370629
B85: TOTAL ES | C85: =SUM(C2:C79) -> 51166 | D85: =SUM(D2:D79) -> 21787 | E85: =SUM(E2:E79) -> 18262 | F85: =E85/D85 -> 0.8382062698
B86: HOMOGENEIDADE ENTRE MUNICÍPIOS | E86: =COUNTIF(F2:F79,">=0,95") -> 23 | F86: =E86/78 -> 0.2948717949
A89: Vacina e Confia, em 04 de Junho de 2024.**
A90: **Dados referente às doses aplicadas no período de Maio de 2024
A91: Cobertura Calculada por município de procedência da vacinação
A92: 1 População anual extraída do MS/SVS/DASIS - SINASC/DASIS/SVS/MS 2023 (hoje preliminares) referente ao período de março a dezembro de 2023 e SINASC/DASIS/SVS/MS 2024 referente ao período de janeiro a fevereiro de 2024.
A94: ² População proporcional extraída do MS/SVS/DASIS - SINASC/DASIS/SVS/MS 2023 (hoje preliminares) referente ao período de março e abril de 2023 somada a população extraída do SINASC/DASIS/SVS/MS 2024 referente ao período de janeiro e fevereiro de 2024.
A97: Observações:
A98: Imunobiológicos que foram recebidos parcialmente pelo estado no mês da análise, sendo distribuídos em quantidades reduzidas às regionais e municípios: Varicela, Haemophilus influenzae tipo B, Soro Antirrábico Humano.
A99: Imunobiológicos que não foram recebidos pelo estado no mês da análise, não sendo possível a distribuição às regionais e municípios: Meningo C, Tetra viral, Sars-cov-10 Bivalente, DTPa (CRIE) e Sars-Cov2-10 Doses Pediátricas.
A100: Imunobiológicos com indisponibilidade de aquisição e distribuição no mês da análise:

Sheet dTpa gestantes - residência
A1: REGIONAL | B1: MUNICÍPIO | C1: ¹POPULAÇÃO GESTANTE ANUAL | D1: ¹POPULAÇÃO PROPORCIONAL | E1: DOSES APLICADAS dTpa GESTANTES | F1: COBERTURA VACINAL dTpa GESTANTES
A2: Metropolitana | B2: Afonso Cláudio | C2: 374 | D2: 146 | E2: 124 | F2: =E2/D2 -> 0.8493150685
A3: Norte | B3: Água Doce do Norte | C3: 185 | D3: 90 | E3: 57 | F3: =E3/D3 -> 0.6333333333
A4: Central | B4: Águia Branca | C4: 165 | D4: 67 | E4: 44 | F4: 0.6567164179
A5: Sul | B5: Alegre | C5: 330 | D5: 135 | E5: 150 | F5: 1.111111111
A6: Sul | B6: Alfredo Chaves | C6: 148 | D6: 59 | E6: 64 | F6: 1.084745763
A7: Central | B7: Alto Rio Novo | C7: 84 | D7: 27 | E7: 38 | F7: 1.407407407
A8: Sul | B8: Anchieta | C8: 389 | D8: 169 | E8: 131 | F8: 0.775147929
A9: Sul | B9: Apiacá | C9: 71 | D9: 37 | E9: 25 | F9: 0.6756756757
A10: Metropolitana | B10: Aracruz | C10: 1465 | D10: 634 | E10: 481 | F10: 0.7586750789
A11: Sul | B11: Atilio Vivacqua | C11: 138 | D11: 64 | E11: 59 | F11: 0.921875
A12: Central | B12: Baixo Guandu | C12: 388 | D12: 163 | E12: 121 | F12: 0.7423312883
A13: Norte | B13: Barra de São Francisco | C13: 553 | D13: 241 | E13: 197 | F13: 0.8174273859
A14: Norte | B14: Boa Esperança | C14: 189 | D14: 77 | E14: 74 | F14: 0.961038961
A15: Sul | B15: Bom Jesus do Norte | C15: 84 | D15: 37 | E15: 28 | F15: 0.7567567568
A16: Metropolitana | B16: Brejetuba | C16: 214 | D16: 87 | E16: 62 | F16: 0.7126436782
A17: Sul | B17: Cachoeiro de Itapemirim | C17: 2460 | D17: 1105 | E17: 852 | F17: 0.771040724
A18: Metropolitana | B18: Cariacica | C18: 4873 | D18: 2069 | E18: 1869 | F18: 0.9033349444
A19: Sul | B19: Castelo | C19: 443 | D19: 192 | E19: 171 | F19: 0.890625
A20: Central | B20: Colatina | C20: 1561 | D20: 669 | E20: 541 | F20: 0.8086696562
A21: Norte | B21: Conceição da Barra | C21: 342 | D21: 131 | E21: 145 | F21: 1.106870229
A22: Metropolitana | B22: Conceição do Castelo | C22: 169 | D22: 78 | E22: 68 | F22: 0.8717948718
A23: Sul | B23: Divino de São Lourenço | C23: 65 | D23: 25 | E23: 18 | F23: 0.72
A24: Metropolitana | B24: Domingos Martins | C24: 417 | D24: 186 | E24: 195 | F24: 1.048387097
A25: Sul | B25: Dores do Rio Preto | C25: 89 | D25: 34 | E25: 27 | F25: 0.7941176471
A26: Norte | B26: Ecoporanga | C26: 266 | D26: 125 | E26: 107 | F26: 0.856
A27: Metropolitana | B27: Fundão | C27: 221 | D27: 94 | E27: 71 | F27: 0.7553191489
A28: Central | B28: Governador Lindenberg | C28: 150 | D28: 72 | E28: 58 | F28: 0.8055555556
A29: Sul | B29: Guaçuí | C29: 396 | D29: 150 | E29: 103 | F29: 0.6866666667
A30: Metropolitana | B30: Guarapari | C30: 1732 | D30: 752 | E30: 590 | F30: 0.7845744681
A31: Metropolitana | B31: Ibatiba | C31: 362 | D31: 153 | E31: 163 | F31: 1.065359477
A32: Metropolitana | B32: Ibiraçu | C32: 154 | D32: 70 | E32: 77 | F32: 1.1
A33: Sul | B33: Ibitirama | C33: 127 | D33: 52 | E33: 52 | F33: 1
A34: Sul | B34: Iconha | C34: 118 | D34: 47 | E34: 54 | F34: 1.14893617
A35: Sul | B35: Irupi | C35: 197 | D35: 75 | E35: 68 | F35: 0.9066666667
A36: Metropolitana | B36: Itaguaçu | C36: 135 | D36: 59 | E36: 55 | F36: 0.9322033898
A37: Sul | B37: Itapemirim | C37: 541 | D37: 201 | E37: 196 | F37: 0.9751243781
A38: Metropolitana | B38: Itarana | C38: 140 | D38: 65 | E38: 52 | F38: 0.8
A39: Sul | B39: Iúna | C39: 474 | D39: 189 | E39: 160 | F39: 0.8465608466
A40: Norte | B40: Jaguaré | C40: 489 | D40: 212 | E40: 190 | F40: 0.8962264151
A41: Sul | B41: Jerônimo Monteiro | C41: 156 | D41: 59 | E41: 41 | F41: 0.6949152542
A42: Metropolitana | B42: João Neiva | C42: 178 | D42: 70 | E42: 60 | F42: 0.8571428571
A43: Metropolitana | B43: Laranja da Terra | C43: 96 | D43: 43 | E43: 33 | F43: 0.7674418605
A44: Central | B44: Linhares | C44: 2598 | D44: 1125 | E44: 889 | F44: 0.7902222222
A45: Central | B45: Mantenópolis | C45: 161 | D45: 78 | E45: 52 | F45: 0.6666666667
A46: Sul | B46: Marataízes | C46: 570 | D46: 266 | E46: 188 | F46: 0.7067669173
A47: Metropolitana | B47: Marechal Floriano | C47: 227 | D47: 102 | E47: 89 | F47: 0.8725490196
A48: Central | B48: Marilândia | C48: 167 | D48: 61 | E48: 62 | F48: 1.016393443
A49: Sul | B49: Mimoso do Sul | C49: 262 | D49: 105 | E49: 102 | F49: 0.9714285714
A50: Norte | B50: Montanha | C50: 233 | D50: 76 | E50: 83 | F50: 1.092105263
A51: Norte | B51: Mucurici | C51: 68 | D51: 21 | E51: 35 | F51: 1.666666667
A52: Sul | B52: Muniz Freire | C52: 210 | D52: 86 | E52: 78 | F52: 0.9069767442
A53: Sul | B53: Muqui | C53: 163 | D53: 60 | E53: 75 | F53: 1.25
A54: Norte | B54: Nova Venécia | C54: 681 | D54: 301 | E54: 271 | F54: 0.9003322259
A55: Central | B55: Pancas | C55: 216 | D55: 91 | E55: 82 | F55: 0.9010989011
A56: Norte | B56: Pedro Canário | C56: 305 | D56: 132 | E56: 129 | F56: 0.9772727273
A57: Norte | B57: Pinheiros | C57: 301 | D57: 109 | E57: 106 | F57: 0.9724770642
A58: Sul | B58: Piúma | C58: 309 | D58: 122 | E58: 117 | F58: 0.9590163934
A59: Norte | B59: Ponto Belo | C59: 75 | D59: 25 | E59: 37 | F59: 1.48
A60: Sul | B60: Presidente Kennedy | C60: 194 | D60: 94 | E60: 72 | F60: 0.7659574468
A61: Central | B61: Rio Bananal | C61: 299 | D61: 130 | E61: 123 | F61: 0.9461538462
A62: Sul | B62: Rio Novo do Sul | C62: 120 | D62: 47 | E62: 39 | F62: 0.829787234
A63: Metropolitana | B63: Santa Leopoldina | C63: 93 | D63: 32 | E63: 30 | F63: 0.9375
A64: Metropolitana | B64: Santa Maria de Jetibá | C64: 682 | D64: 302 | E64: 211 | F64: 0.6986754967
A65: Metropolitana | B65: Santa Teresa | C65: 299 | D65: 120 | E65: 121 | F65: 1.008333333
A66: Central | B66: São Domingos do Norte | C66: 126 | D66: 58 | E66: 42 | F66: 0.724137931
A67: Central | B67: São Gabriel da Palha | C67: 440 | D67: 172 | E67: 166 | F67: =E67/D67 -> 0.9651162791
A68: Sul | B68: São José do Calçado | C68: 101 | D68: 44 | E68: 36 | F68: 0.8181818182
A69: Norte | B69: São Mateus | C69: 1742 | D69: 613 | E69: 514 | F69: 0.8384991843
A70: Central | B70: São Roque do Canaã | C70: 131 | D70: 77 | E70: 63 | F70: 0.8181818182
A71: Metropolitana | B71: Serra | C71: 7393 | D71: 3287 | E71: 2302 | F71: 0.7003346517
A72: Central | B72: Sooretama | C72: 439 | D72: 196 | E72: 187 | F72: 0.9540816327
A73: Sul | B73: Vargem Alta | C73: 265 | D73: 121 | E73: 102 | F73: 0.8429752066
A74: Metropolitana | B74: Venda Nova do Imigrante | C74: 392 | D74: 162 | E74: 131 | F74: 0.8086419753
A75: Metropolitana | B75: Viana | C75: 980 | D75: 430 | E75: 366 | F75: 0.8511627907
A76: Norte | B76: Vila Pavão | C76: 91 | D76: 43 | E76: 55 | F76: 1.279069767
A77: Central | B77: Vila Valério | C77: 259 | D77: 121 | E77: 88 | F77: 0.7272727273
A78: Metropolitana | B78: Vila Velha | C78: 5698 | D78: 2372 | E78: 1670 | F78: 0.7040472175
A79: Metropolitana | B79: Vitória | C79: 3748 | D79: 1596 | E79: 1228 | F79: 0.7694235589
B81: Total Norte | C81: =SUMIF($A$2:$A$79,"Norte",C$2:C$79) -> 5520 | D81: =SUMIF($A$2:$A$79,"Norte",D$2:D$79) -> 2196 | E81: =SUMIF($A$2:$A$79,"Norte",E$2:E$79) -> 2000 | F81: 0.9107468124
B82: Total Central | C82: =SUMIF($A$2:$A$79,"CENTRAL",C$2:C$79) -> 7184 | D82: =SUMIF($A$2:$A$79,"CENTRAL",D$2:D$79) -> 3107 | E82: =SUMIF($A$2:$A$79,"CENTRAL",E$2:E$79) -> 2556 | F82: 0.822658513
B83: Total Metropolitana | C83: =SUMIF($A$2:$A$79,"METROPOLITANA",C$2:C$79) -> 30042 | D83: =SUMIF($A$2:$A$79,"METROPOLITANA",D$2:D$79) -> 12909 | E83: =SUMIF($A$2:$A$79,"METROPOLITANA",E$2:E$79) -> 10048 | F83: 0.7783716787
B84: Total Sul | C84: =SUMIF($A$2:$A$79,"SUL",C$2:C$79) -> 8420 | D84: =SUMIF($A$2:$A$79,"SUL",D$2:D$79) -> 3575 | E84: =SUMIF($A$2:$A$79,"SUL",E$2:E$79) -> 3008 | F84: 0.8413986014
B85: TOTAL ES | C85: =SUM(C2:C79) -> 51166 | D85: =SUM(D2:D79) -> 21787 | E85: =SUM(E2:E79) -> 17612 | F85: =E85/D85 -> 0.8083719649
B86: HOMOGENEIDADE ENTRE MUNICÍPIOS | E86: =COUNTIF(F2:F79,">=0,95") -> 24 | F86: =E86/78 -> 0.3076923077
A89: Vacina e Confia, em 04 de Junho de 2024.**
A90: **Dados referente às doses aplicadas no período de Maio de 2024
A91: Cobertura Calculada por município de procedência da vacinação
A92: 1 População anual extraída do MS/SVS/DASIS - SINASC/DASIS/SVS/MS 2023 (hoje preliminares) referente ao período de março a dezembro de 2023 e SINASC/DASIS/SVS/MS 2024 referente ao período de janeiro a fevereiro de 2024.
A94: ² População proporcional extraída do MS/SVS/DASIS - SINASC/DASIS/SVS/MS 2023 (hoje preliminares) referente ao período de março e abril de 2023 somada a população extraída do SINASC/DASIS/SVS/MS 2024 referente ao período de janeiro e fevereiro de 2024.
A97: Observações:
A98: Imunobiológicos que foram recebidos parcialmente pelo estado no mês da análise, sendo distribuídos em quantidades reduzidas às regionais e municípios: Varicela, Haemophilus influenzae tipo B, Soro Antirrábico Humano.
A99: Imunobiológicos que não foram recebidos pelo estado no mês da análise, não sendo possível a distribuição às regionais e municípios: Meningo C, Tetra viral, Sars-cov-10 Bivalente, DTPa (CRIE) e Sars-Cov2-10 Doses Pediátricas.
A100: Imunobiológicos com indisponibilidade de aquisição e distribuição no mês da análise:

Sheet PROTEÇÃO

Sheet cálculos1 (hidden)
A1: Regional | B1: Município | C1: Cobertura Vacinal BCG | D1: Cobertura Vacinal Rotavírus | E1: Cobertura Vacinal COVID-19 | F1: Cobertura Vacinal Pentavalente | G1: Cobertura Vacinal Poliomielite | H1: Cobertura Vacinal Pneumo 10 | I1: Cobertura Vacinal Tríplice Viral | J1: Cobertura Vacinal Meningo C | K1: Cobertura Vacinal Febre Amarela | L1: Cobertura Vacinal Hepatite A | M1: Cobertura Varicela | N1: META 90% | O1: META 95% | P1: ATINGIRAM META | Q1: PQA-VS
A2: Metropolitana | B2: Afonso Cláudio | C2: ='CV Rotina <2A - procedência'!H3 -> 0.8698630137 | D2: ='CV Rotina <2A - procedência'!P3 -> 0.9657534247 | E2: ='CV Rotina <2A - procedência'!#REF! ->  | F2: ='CV Rotina <2A - procedência'!J3 -> 1.006849315 | G2: ='CV Rotina <2A - procedência'!L3 -> 1.006849315 | H2: ='CV Rotina <2A - procedência'!N3 -> 0.9452054795 | I2: ='CV Rotina <2A - procedência'!X3 -> 1.164383562 | J2: ='CV Rotina <2A - procedência'!R3 -> 1.034246575 | K2: ='CV Rotina <2A - procedência'!T3 -> 0.9863013699 | L2: ='CV Rotina <2A - procedência'!V3 -> 1 | M2: ='CV Rotina <2A - procedência'!Z3 -> 0.4863013699 | N2: =COUNTIF(C2:E2,">=0,9") -> 1 | O2: =COUNTIFS(F2:M2,">=0,95") -> 6 | P2: =SUM(N2:O2) -> 7 | Q2: =COUNTIF(F2:I2,">=0,95") -> 3
A3: Norte | B3: Água Doce do Norte | C3: ='CV Rotina <2A - procedência'!H4 -> 0.4 | D3: ='CV Rotina <2A - procedência'!P4 -> 0.7444444444 | E3: ='CV Rotina <2A - procedência'!#REF! ->  | F3: ='CV Rotina <2A - procedência'!J4 -> 0.7222222222 | G3: ='CV Rotina <2A - procedência'!L4 -> 0.7222222222 | H3: ='CV Rotina <2A - procedência'!N4 -> 0.7888888889 | I3: ='CV Rotina <2A - procedência'!X4 -> 0.6222222222 | J3: ='CV Rotina <2A - procedência'!R4 -> 0.6888888889 | K3: ='CV Rotina <2A - procedência'!T4 -> 0.6111111111 | L3: ='CV Rotina <2A - procedência'!V4 -> 0.6555555556 | M3: ='CV Rotina <2A - procedência'!Z4 -> 0.3111111111 | N3: =COUNTIF(C3:E3,">=0,9") -> 0 | O3: 0 | P3: =SUM(N3:O3) -> 0 | Q3: =COUNTIF(F3:I3,">=0,95") -> 0
A4: Central | B4: Águia Branca | C4: ='CV Rotina <2A - procedência'!H5 -> 0.6417910448 | D4: ='CV Rotina <2A - procedência'!P5 -> 0.9850746269 | E4: ='CV Rotina <2A - procedência'!#REF! ->  | F4: ='CV Rotina <2A - procedência'!J5 -> 1.089552239 | G4: ='CV Rotina <2A - procedência'!L5 -> 1.074626866 | H4: ='CV Rotina <2A - procedência'!N5 -> 0.9850746269 | I4: ='CV Rotina <2A - procedência'!X5 -> 0.7014925373 | J4: ='CV Rotina <2A - procedência'!R5 -> 1.149253731 | K4: ='CV Rotina <2A - procedência'!T5 -> 0.8955223881 | L4: ='CV Rotina <2A - procedência'!V5 -> 0.6865671642 | M4: ='CV Rotina <2A - procedência'!Z5 -> 0.3432835821 | N4: 1 | O4: 4 | P4: 5 | Q4: 3
A5: Sul | B5: Alegre | C5: ='CV Rotina <2A - procedência'!H6 -> 0.6740740741 | D5: ='CV Rotina <2A - procedência'!P6 -> 0.9851851852 | E5: ='CV Rotina <2A - procedência'!#REF! ->  | F5: ='CV Rotina <2A - procedência'!J6 -> 1.037037037 | G5: ='CV Rotina <2A - procedência'!L6 -> 1.096296296 | H5: ='CV Rotina <2A - procedência'!N6 -> 1.014814815 | I5: ='CV Rotina <2A - procedência'!X6 -> 0.9259259259 | J5: ='CV Rotina <2A - procedência'!R6 -> 1.007407407 | K5: ='CV Rotina <2A - procedência'!T6 -> 1.022222222 | L5: ='CV Rotina <2A - procedência'!V6 -> 0.8148148148 | M5: ='CV Rotina <2A - procedência'!Z6 -> 0.3925925926 | N5: 1 | O5: 5 | P5: 6 | Q5: 3
A6: Sul | B6: Alfredo Chaves | C6: ='CV Rotina <2A - procedência'!H7 -> 0.5254237288 | D6: ='CV Rotina <2A - procedência'!P7 -> 1.322033898 | E6: ='CV Rotina <2A - procedência'!#REF! ->  | F6: ='CV Rotina <2A - procedência'!J7 -> 1.152542373 | G6: ='CV Rotina <2A - procedência'!L7 -> 1.13559322 | H6: ='CV Rotina <2A - procedência'!N7 -> 1.288135593 | I6: ='CV Rotina <2A - procedência'!X7 -> 1.203389831 | J6: ='CV Rotina <2A - procedência'!R7 -> 1.169491525 | K6: ='CV Rotina <2A - procedência'!T7 -> 0.9661016949 | L6: ='CV Rotina <2A - procedência'!V7 -> 1 | M6: ='CV Rotina <2A - procedência'!Z7 -> 0.8305084746 | N6: 1 | O6: 7 | P6: 8 | Q6: 4
A7: Central | B7: Alto Rio Novo | C7: ='CV Rotina <2A - procedência'!H8 -> 0.4444444444 | D7: ='CV Rotina <2A - procedência'!P8 -> 1.481481481 | E7: ='CV Rotina <2A - procedência'!#REF! ->  | F7: ='CV Rotina <2A - procedência'!J8 -> 1.518518519 | G7: ='CV Rotina <2A - procedência'!L8 -> 1.481481481 | H7: ='CV Rotina <2A - procedência'!N8 -> 1.444444444 | I7: ='CV Rotina <2A - procedência'!X8 -> 1.444444444 | J7: ='CV Rotina <2A - procedência'!R8 -> 1.666666667 | K7: ='CV Rotina <2A - procedência'!T8 -> 1.259259259 | L7: ='CV Rotina <2A - procedência'!V8 -> 1.555555556 | M7: ='CV Rotina <2A - procedência'!Z8 -> 0.8148148148 | N7: 1 | O7: 7 | P7: 8 | Q7: 4
A8: Sul | B8: Anchieta | C8: ='CV Rotina <2A - procedência'!H9 -> 0.5384615385 | D8: ='CV Rotina <2A - procedência'!P9 -> 0.9526627219 | E8: ='CV Rotina <2A - procedência'!#REF! ->  | F8: ='CV Rotina <2A - procedência'!J9 -> 0.9763313609 | G8: ='CV Rotina <2A - procedência'!L9 -> 0.9881656805 | H8: ='CV Rotina <2A - procedência'!N9 -> 0.9644970414 | I8: ='CV Rotina <2A - procedência'!X9 -> 0.9526627219 | J8: ='CV Rotina <2A - procedência'!R9 -> 0.9881656805 | K8: ='CV Rotina <2A - procedência'!T9 -> 0.6923076923 | L8: ='CV Rotina <2A - procedência'!V9 -> 0.8520710059 | M8: ='CV Rotina <2A - procedência'!Z9 -> 0.4970414201 | N8: 1 | O8: 5 | P8: 6 | Q8: 4
A9: Sul | B9: Apiacá | C9: ='CV Rotina <2A - procedência'!H10 -> 0.6216216216 | D9: ='CV Rotina <2A - procedência'!P10 -> 0.6486486486 | E9: ='CV Rotina <2A - procedência'!#REF! ->  | F9: ='CV Rotina <2A - procedência'!J10 -> 0.5945945946 | G9: ='CV Rotina <2A - procedência'!L10 -> 0.6216216216 | H9: ='CV Rotina <2A - procedência'!N10 -> 0.6756756757 | I9: ='CV Rotina <2A - procedência'!X10 -> 0.7297297297 | J9: ='CV Rotina <2A - procedência'!R10 -> 0.6216216216 | K9: ='CV Rotina <2A - procedência'!T10 -> 0.6486486486 | L9: ='CV Rotina <2A - procedência'!V10 -> 0.4054054054 | M9: ='CV Rotina <2A - procedência'!Z10 -> 0.2162162162 | N9: 0 | O9: 0 | P9: 0 | Q9: 0
A10: Metropolitana | B10: Aracruz | C10: ='CV Rotina <2A - procedência'!H11 -> 0.9148264984 | D10: ='CV Rotina <2A - procedência'!P11 -> 0.8690851735 | E10: ='CV Rotina <2A - procedência'!#REF! ->  | F10: ='CV Rotina <2A - procedência'!J11 -> 0.8596214511 | G10: ='CV Rotina <2A - procedência'!L11 -> 0.8533123028 | H10: ='CV Rotina <2A - procedência'!N11 -> 0.8753943218 | I10: ='CV Rotina <2A - procedência'!X11 -> 1.028391167 | J10: ='CV Rotina <2A - procedência'!R11 -> 0.8911671924 | K10: ='CV Rotina <2A - procedência'!T11 -> 0.8138801262 | L10: ='CV Rotina <2A - procedência'!V11 -> 0.9858044164 | M10: ='CV Rotina <2A - procedência'!Z11 -> 0.5993690852 | N10: 1 | O10: 2 | P10: 3 | Q10: 1
A11: Sul | B11: Atilio Vivacqua | C11: ='CV Rotina <2A - procedência'!H12 -> 0 | D11: ='CV Rotina <2A - procedência'!P12 -> 0.8125 | E11: ='CV Rotina <2A - procedência'!#REF! ->  | F11: ='CV Rotina <2A - procedência'!J12 -> 0.8125 | G11: ='CV Rotina <2A - procedência'!L12 -> 0.796875 | H11: ='CV Rotina <2A - procedência'!N12 -> 0.8125 | I11: ='CV Rotina <2A - procedência'!X12 -> 1.0625 | J11: ='CV Rotina <2A - procedência'!R12 -> 0.71875 | K11: ='CV Rotina <2A - procedência'!T12 -> 0.75 | L11: ='CV Rotina <2A - procedência'!V12 -> 0.890625 | M11: ='CV Rotina <2A - procedência'!Z12 -> 0.546875 | N11: 0 | O11: 1 | P11: 1 | Q11: 1
A12: Central | B12: Baixo Guandu | C12: ='CV Rotina <2A - procedência'!H13 -> 0.509202454 | D12: ='CV Rotina <2A - procedência'!P13 -> 1.024539877 | E12: ='CV Rotina <2A - procedência'!#REF! ->  | F12: ='CV Rotina <2A - procedência'!J13 -> 0.9693251534 | G12: ='CV Rotina <2A - procedência'!L13 -> 0.9754601227 | H12: ='CV Rotina <2A - procedência'!N13 -> 1.067484663 | I12: ='CV Rotina <2A - procedência'!X13 -> 1.171779141 | J12: ='CV Rotina <2A - procedência'!R13 -> 1.067484663 | K12: ='CV Rotina <2A - procedência'!T13 -> 0.7791411043 | L12: ='CV Rotina <2A - procedência'!V13 -> 0.981595092 | M12: ='CV Rotina <2A - procedência'!Z13 -> 0.5889570552 | N12: 1 | O12: 6 | P12: 7 | Q12: 4
A13: Norte | B13: Barra de São Francisco | C13: ='CV Rotina <2A - procedência'!H14 -> 0.9004149378 | D13: ='CV Rotina <2A - procedência'!P14 -> 0.9128630705 | E13: ='CV Rotina <2A - procedência'!#REF! ->  | F13: ='CV Rotina <2A - procedência'!J14 -> 0.8340248963 | G13: ='CV Rotina <2A - procedência'!L14 -> 0.8257261411 | H13: ='CV Rotina <2A - procedência'!N14 -> 0.9336099585 | I13: ='CV Rotina <2A - procedência'!X14 -> 0.9460580913 | J13: ='CV Rotina <2A - procedência'!R14 -> 0.8838174274 | K13: ='CV Rotina <2A - procedência'!T14 -> 0.8049792531 | L13: ='CV Rotina <2A - procedência'!V14 -> 0.7385892116 | M13: ='CV Rotina <2A - procedência'!Z14 -> 0.6099585062 | N13: 2 | O13: 0 | P13: 2 | Q13: 0
A14: Norte | B14: Boa Esperança | C14: ='CV Rotina <2A - procedência'!H15 -> 0.4025974026 | D14: ='CV Rotina <2A - procedência'!P15 -> 0.987012987 | E14: ='CV Rotina <2A - procedência'!#REF! ->  | F14: ='CV Rotina <2A - procedência'!J15 -> 0.8701298701 | G14: ='CV Rotina <2A - procedência'!L15 -> 0.961038961 | H14: ='CV Rotina <2A - procedência'!N15 -> 0.9350649351 | I14: ='CV Rotina <2A - procedência'!X15 -> 1.181818182 | J14: ='CV Rotina <2A - procedência'!R15 -> 1 | K14: ='CV Rotina <2A - procedência'!T15 -> 0.8961038961 | L14: ='CV Rotina <2A - procedência'!V15 -> 0.8181818182 | M14: ='CV Rotina <2A - procedência'!Z15 -> 0.7402597403 | N14: 1 | O14: 3 | P14: 4 | Q14: 2
A15: Sul | B15: Bom Jesus do Norte | C15: ='CV Rotina <2A - procedência'!H16 -> 1.081081081 | D15: ='CV Rotina <2A - procedência'!P16 -> 1.189189189 | E15: ='CV Rotina <2A - procedência'!#REF! ->  | F15: ='CV Rotina <2A - procedência'!J16 -> 1.513513514 | G15: ='CV Rotina <2A - procedência'!L16 -> 1.459459459 | H15: ='CV Rotina <2A - procedência'!N16 -> 1.243243243 | I15: ='CV Rotina <2A - procedência'!X16 -> 1.459459459 | J15: ='CV Rotina <2A - procedência'!R16 -> 1.243243243 | K15: ='CV Rotina <2A - procedência'!T16 -> 1.216216216 | L15: ='CV Rotina <2A - procedência'!V16 -> 0.4324324324 | M15: ='CV Rotina <2A - procedência'!Z16 -> 0.4594594595 | N15: 2 | O15: 6 | P15: 8 | Q15: 4
A16: Metropolitana | B16: Brejetuba | C16: ='CV Rotina <2A - procedência'!H17 -> 0.816091954 | D16: ='CV Rotina <2A - procedência'!P17 -> 1.022988506 | E16: ='CV Rotina <2A - procedência'!#REF! ->  | F16: ='CV Rotina <2A - procedência'!J17 -> 0.9310344828 | G16: ='CV Rotina <2A - procedência'!L17 -> 0.9310344828 | H16: ='CV Rotina <2A - procedência'!N17 -> 0.9540229885 | I16: ='CV Rotina <2A - procedência'!X17 -> 0.8735632184 | J16: ='CV Rotina <2A - procedência'!R17 -> 0.8390804598 | K16: ='CV Rotina <2A - procedência'!T17 -> 1 | L16: ='CV Rotina <2A - procedência'!V17 -> 0.816091954 | M16: ='CV Rotina <2A - procedência'!Z17 -> 0.4942528736 | N16: 1 | O16: 2 | P16: 3 | Q16: 1
A17: Sul | B17: Cachoeiro de Itapemirim | C17: ='CV Rotina <2A - procedência'!H18 -> 1.933031674 | D17: ='CV Rotina <2A - procedência'!P18 -> 0.7936651584 | E17: ='CV Rotina <2A - procedência'!#REF! ->  | F17: ='CV Rotina <2A - procedência'!J18 -> 0.8162895928 | G17: ='CV Rotina <2A - procedência'!L18 -> 0.8054298643 | H17: ='CV Rotina <2A - procedência'!N18 -> 0.8018099548 | I17: ='CV Rotina <2A - procedência'!X18 -> 0.8606334842 | J17: ='CV Rotina <2A - procedência'!R18 -> 0.771040724 | K17: ='CV Rotina <2A - procedência'!T18 -> 0.6244343891 | L17: ='CV Rotina <2A - procedência'!V18 -> 0.6877828054 | M17: ='CV Rotina <2A - procedência'!Z18 -> 0.3601809955 | N17: 1 | O17: 0 | P17: 1 | Q17: 0
A18: Metropolitana | B18: Cariacica | C18: ='CV Rotina <2A - procedência'!H19 -> 0.5041082649 | D18: ='CV Rotina <2A - procedência'!P19 -> 0.8269695505 | E18: ='CV Rotina <2A - procedência'!#REF! ->  | F18: ='CV Rotina <2A - procedência'!J19 -> 0.8530691155 | G18: ='CV Rotina <2A - procedência'!L19 -> 0.8414693088 | H18: ='CV Rotina <2A - procedência'!N19 -> 0.8656355727 | I18: ='CV Rotina <2A - procedência'!X19 -> 0.9163847269 | J18: ='CV Rotina <2A - procedência'!R19 -> 0.8395360077 | K18: ='CV Rotina <2A - procedência'!T19 -> 0.709521508 | L18: ='CV Rotina <2A - procedência'!V19 -> 0.5611406477 | M18: ='CV Rotina <2A - procedência'!Z19 -> 0.3910101498 | N18: 0 | O18: 0 | P18: 0 | Q18: 0
A19: Sul | B19: Castelo | C19: ='CV Rotina <2A - procedência'!H20 -> 0.5729166667 | D19: ='CV Rotina <2A - procedência'!P20 -> 0.84375 | E19: ='CV Rotina <2A - procedência'!#REF! ->  | F19: ='CV Rotina <2A - procedência'!J20 -> 0.8645833333 | G19: ='CV Rotina <2A - procedência'!L20 -> 0.8645833333 | H19: ='CV Rotina <2A - procedência'!N20 -> 0.8645833333 | I19: ='CV Rotina <2A - procedência'!X20 -> 1.052083333 | J19: ='CV Rotina <2A - procedência'!R20 -> 0.8385416667 | K19: ='CV Rotina <2A - procedência'!T20 -> 0.8333333333 | L19: ='CV Rotina <2A - procedência'!V20 -> 0.6927083333 | M19: ='CV Rotina <2A - procedência'!Z20 -> 0.4895833333 | N19: 0 | O19: 1 | P19: 1 | Q19: 1
A20: Central | B20: Colatina | C20: ='CV Rotina <2A - procedência'!H21 -> 2.201793722 | D20: ='CV Rotina <2A - procedência'!P21 -> 0.822122571 | E20: ='CV Rotina <2A - procedência'!#REF! ->  | F20: ='CV Rotina <2A - procedência'!J21 -> 0.8729446936 | G20: ='CV Rotina <2A - procedência'!L21 -> 0.8550074738 | H20: ='CV Rotina <2A - procedência'!N21 -> 0.8430493274 | I20: ='CV Rotina <2A - procedência'!X21 -> 0.8744394619 | J20: ='CV Rotina <2A - procedência'!R21 -> 0.8041853513 | K20: ='CV Rotina <2A - procedência'!T21 -> 0.7742899851 | L20: ='CV Rotina <2A - procedência'!V21 -> 0.4319880419 | M20: ='CV Rotina <2A - procedência'!Z21 -> 0.4334828102 | N20: 1 | O20: 0 | P20: 1 | Q20: 0
A21: Norte | B21: Conceição da Barra | C21: ='CV Rotina <2A - procedência'!H22 -> 0.09923664122 | D21: ='CV Rotina <2A - procedência'!P22 -> 1.145038168 | E21: ='CV Rotina <2A - procedência'!#REF! ->  | F21: ='CV Rotina <2A - procedência'!J22 -> 1.091603053 | G21: ='CV Rotina <2A - procedência'!L22 -> 1.106870229 | H21: ='CV Rotina <2A - procedência'!N22 -> 1.160305344 | I21: ='CV Rotina <2A - procedência'!X22 -> 1.183206107 | J21: ='CV Rotina <2A - procedência'!R22 -> 1.167938931 | K21: ='CV Rotina <2A - procedência'!T22 -> 1.106870229 | L21: ='CV Rotina <2A - procedência'!V22 -> 0.8473282443 | M21: ='CV Rotina <2A - procedência'!Z22 -> 0.6717557252 | N21: 1 | O21: 6 | P21: 7 | Q21: 4
A22: Metropolitana | B22: Conceição do Castelo | C22: ='CV Rotina <2A - procedência'!H23 -> 0 | D22: ='CV Rotina <2A - procedência'!P23 -> 0.6538461538 | E22: ='CV Rotina <2A - procedência'!#REF! ->  | F22: ='CV Rotina <2A - procedência'!J23 -> 0.7948717949 | G22: ='CV Rotina <2A - procedência'!L23 -> 0.7692307692 | H22: ='CV Rotina <2A - procedência'!N23 -> 0.6666666667 | I22: ='CV Rotina <2A - procedência'!X23 -> 0.6923076923 | J22: ='CV Rotina <2A - procedência'!R23 -> 0.6923076923 | K22: ='CV Rotina <2A - procedência'!T23 -> 0.8333333333 | L22: ='CV Rotina <2A - procedência'!V23 -> 0.7564102564 | M22: ='CV Rotina <2A - procedência'!Z23 -> 0.5769230769 | N22: 0 | O22: 0 | P22: 0 | Q22: 0
A23: Sul | B23: Divino de São Lourenço | C23: ='CV Rotina <2A - procedência'!H24 -> 1 | D23: ='CV Rotina <2A - procedência'!P24 -> 1.28 | E23: ='CV Rotina <2A - procedência'!#REF! ->  | F23: ='CV Rotina <2A - procedência'!J24 -> 1.28 | G23: ='CV Rotina <2A - procedência'!L24 -> 1.28 | H23: ='CV Rotina <2A - procedência'!N24 -> 1.28 | I23: ='CV Rotina <2A - procedência'!X24 -> 0.72 | J23: ='CV Rotina <2A - procedência'!R24 -> 1.4 | K23: ='CV Rotina <2A - procedência'!T24 -> 1.08 | L23: ='CV Rotina <2A - procedência'!V24 -> 0.92 | M23: ='CV Rotina <2A - procedência'!Z24 -> 0.88 | N23: 2 | O23: 5 | P23: 7 | Q23: 3
A24: Metropolitana | B24: Domingos Martins | C24: ='CV Rotina <2A - procedência'!H25 -> 0.1505376344 | D24: ='CV Rotina <2A - procedência'!P25 -> 0.9086021505 | E24: ='CV Rotina <2A - procedência'!#REF! ->  | F24: ='CV Rotina <2A - procedência'!J25 -> 0.8010752688 | G24: ='CV Rotina <2A - procedência'!L25 -> 0.8064516129 | H24: ='CV Rotina <2A - procedência'!N25 -> 0.9408602151 | I24: ='CV Rotina <2A - procedência'!X25 -> 0.9462365591 | J24: ='CV Rotina <2A - procedência'!R25 -> 0.8655913978 | K24: ='CV Rotina <2A - procedência'!T25 -> 0.7849462366 | L24: ='CV Rotina <2A - procedência'!V25 -> 0.7043010753 | M24: ='CV Rotina <2A - procedência'!Z25 -> 0.7741935484 | N24: 1 | O24: 0 | P24: 1 | Q24: 0
A25: Sul | B25: Dores do Rio Preto | C25: ='CV Rotina <2A - procedência'!H26 -> 0.8235294118 | D25: ='CV Rotina <2A - procedência'!P26 -> 1.352941176 | E25: ='CV Rotina <2A - procedência'!#REF! ->  | F25: ='CV Rotina <2A - procedência'!J26 -> 1.235294118 | G25: ='CV Rotina <2A - procedência'!L26 -> 1.323529412 | H25: ='CV Rotina <2A - procedência'!N26 -> 1.411764706 | I25: ='CV Rotina <2A - procedência'!X26 -> 1.470588235 | J25: ='CV Rotina <2A - procedência'!R26 -> 1.352941176 | K25: ='CV Rotina <2A - procedência'!T26 -> 1.117647059 | L25: ='CV Rotina <2A - procedência'!V26 -> 0.8529411765 | M25: ='CV Rotina <2A - procedência'!Z26 -> 0.5294117647 | N25: 1 | O25: 6 | P25: 7 | Q25: 4
A26: Norte | B26: Ecoporanga | C26: ='CV Rotina <2A - procedência'!H27 -> 0.472 | D26: ='CV Rotina <2A - procedência'!P27 -> 0.704 | E26: ='CV Rotina <2A - procedência'!#REF! ->  | F26: ='CV Rotina <2A - procedência'!J27 -> 0.808 | G26: ='CV Rotina <2A - procedência'!L27 -> 0.8 | H26: ='CV Rotina <2A - procedência'!N27 -> 0.736 | I26: ='CV Rotina <2A - procedência'!X27 -> 0.88 | J26: ='CV Rotina <2A - procedência'!R27 -> 0.76 | K26: ='CV Rotina <2A - procedência'!T27 -> 0.768 | L26: ='CV Rotina <2A - procedência'!V27 -> 0.72 | M26: ='CV Rotina <2A - procedência'!Z27 -> 0.608 | N26: 0 | O26: 0 | P26: 0 | Q26: 0
A27: Metropolitana | B27: Fundão | C27: ='CV Rotina <2A - procedência'!H28 -> 0.414893617 | D27: ='CV Rotina <2A - procedência'!P28 -> 1.010638298 | E27: ='CV Rotina <2A - procedência'!#REF! ->  | F27: ='CV Rotina <2A - procedência'!J28 -> 1.021276596 | G27: ='CV Rotina <2A - procedência'!L28 -> 1 | H27: ='CV Rotina <2A - procedência'!N28 -> 0.9893617021 | I27: ='CV Rotina <2A - procedência'!X28 -> 0.829787234 | J27: ='CV Rotina <2A - procedência'!R28 -> 0.9468085106 | K27: ='CV Rotina <2A - procedência'!T28 -> 0.8829787234 | L27: ='CV Rotina <2A - procedência'!V28 -> 0.8936170213 | M27: ='CV Rotina <2A - procedência'!Z28 -> 0.7021276596 | N27: 1 | O27: 3 | P27: 4 | Q27: 3
A28: Central | B28: Governador Lindenberg | C28: ='CV Rotina <2A - procedência'!H29 -> 0.2083333333 | D28: ='CV Rotina <2A - procedência'!P29 -> 0.7361111111 | E28: ='CV Rotina <2A - procedência'!#REF! ->  | F28: ='CV Rotina <2A - procedência'!J29 -> 0.6805555556 | G28: ='CV Rotina <2A - procedência'!L29 -> 0.6388888889 | H28: ='CV Rotina <2A - procedência'!N29 -> 0.7083333333 | I28: ='CV Rotina <2A - procedência'!X29 -> 0.8194444444 | J28: ='CV Rotina <2A - procedência'!R29 -> 0.7083333333 | K28: ='CV Rotina <2A - procedência'!T29 -> 0.7361111111 | L28: ='CV Rotina <2A - procedência'!V29 -> 0.625 | M28: ='CV Rotina <2A - procedência'!Z29 -> 0.4722222222 | N28: 0 | O28: 0 | P28: 0 | Q28: 0
A29: Sul | B29: Guaçuí | C29: ='CV Rotina <2A - procedência'!H30 -> 0.6533333333 | D29: ='CV Rotina <2A - procedência'!P30 -> 0.96 | E29: ='CV Rotina <2A - procedência'!#REF! ->  | F29: ='CV Rotina <2A - procedência'!J30 -> 1.153333333 | G29: ='CV Rotina <2A - procedência'!L30 -> 1.093333333 | H29: ='CV Rotina <2A - procedência'!N30 -> 1.046666667 | I29: ='CV Rotina <2A - procedência'!X30 -> 1.193333333 | J29: ='CV Rotina <2A - procedência'!R30 -> 1.006666667 | K29: ='CV Rotina <2A - procedência'!T30 -> 0.9133333333 | L29: ='CV Rotina <2A - procedência'!V30 -> 0.9 | M29: ='CV Rotina <2A - procedência'!Z30 -> 0.4866666667 | N29: 1 | O29: 5 | P29: 6 | Q29: 4
A30: Metropolitana | B30: Guarapari | C30: ='CV Rotina <2A - procedência'!H31 -> 0.8071808511 | D30: ='CV Rotina <2A - procedência'!P31 -> 0.7872340426 | E30: ='CV Rotina <2A - procedência'!#REF! ->  | F30: ='CV Rotina <2A - procedência'!J31 -> 0.8031914894 | G30: ='CV Rotina <2A - procedência'!L31 -> 0.7739361702 | H30: ='CV Rotina <2A - procedência'!N31 -> 0.8218085106 | I30: ='CV Rotina <2A - procedência'!X31 -> 0.8218085106 | J30: ='CV Rotina <2A - procedência'!R31 -> 0.8138297872 | K30: ='CV Rotina <2A - procedência'!T31 -> 0.6063829787 | L30: ='CV Rotina <2A - procedência'!V31 -> 0.6795212766 | M30: ='CV Rotina <2A - procedência'!Z31 -> 0.5093085106 | N30: 0 | O30: 0 | P30: 0 | Q30: 0
A31: Metropolitana | B31: Ibatiba | C31: ='CV Rotina <2A - procedência'!H32 -> 0.8888888889 | D31: ='CV Rotina <2A - procedência'!P32 -> 0.9281045752 | E31: ='CV Rotina <2A - procedência'!#REF! ->  | F31: ='CV Rotina <2A - procedência'!J32 -> 1.006535948 | G31: ='CV Rotina <2A - procedência'!L32 -> 1.013071895 | H31: ='CV Rotina <2A - procedência'!N32 -> 0.9607843137 | I31: ='CV Rotina <2A - procedência'!X32 -> 0.9019607843 | J31: ='CV Rotina <2A - procedência'!R32 -> 1.045751634 | K31: ='CV Rotina <2A - procedência'!T32 -> 0.9150326797 | L31: ='CV Rotina <2A - procedência'!V32 -> 0.7973856209 | M31: ='CV Rotina <2A - procedência'!Z32 -> 0.1895424837 | N31: 1 | O31: 4 | P31: 5 | Q31: 3
A32: Metropolitana | B32: Ibiraçu | C32: ='CV Rotina <2A - procedência'!H33 -> 0.1857142857 | D32: ='CV Rotina <2A - procedência'!P33 -> 0.7 | E32: ='CV Rotina <2A - procedência'!#REF! ->  | F32: ='CV Rotina <2A - procedência'!J33 -> 0.7571428571 | G32: ='CV Rotina <2A - procedência'!L33 -> 0.7428571429 | H32: ='CV Rotina <2A - procedência'!N33 -> 0.7142857143 | I32: ='CV Rotina <2A - procedência'!X33 -> 0.8 | J32: ='CV Rotina <2A - procedência'!R33 -> 0.7714285714 | K32: ='CV Rotina <2A - procedência'!T33 -> 0.8571428571 | L32: ='CV Rotina <2A - procedência'!V33 -> 0.5285714286 | M32: ='CV Rotina <2A - procedência'!Z33 -> 0.4142857143 | N32: 0 | O32: 0 | P32: 0 | Q32: 0
A33: Sul | B33: Ibitirama | C33: ='CV Rotina <2A - procedência'!H34 -> 0.6346153846 | D33: ='CV Rotina <2A - procedência'!P34 -> 0.9615384615 | E33: ='CV Rotina <2A - procedência'!#REF! ->  | F33: ='CV Rotina <2A - procedência'!J34 -> 0.8653846154 | G33: ='CV Rotina <2A - procedência'!L34 -> 0.8076923077 | H33: ='CV Rotina <2A - procedência'!N34 -> 0.9423076923 | I33: ='CV Rotina <2A - procedência'!X34 -> 1.230769231 | J33: ='CV Rotina <2A - procedência'!R34 -> 0.7884615385 | K33: ='CV Rotina <2A - procedência'!T34 -> 0.6923076923 | L33: ='CV Rotina <2A - procedência'!V34 -> 0.7884615385 | M33: ='CV Rotina <2A - procedência'!Z34 -> 0.7115384615 | N33: 1 | O33: 1 | P33: 2 | Q33: 1
A34: Sul | B34: Iconha | C34: ='CV Rotina <2A - procedência'!H35 -> 0.3617021277 | D34: ='CV Rotina <2A - procedência'!P35 -> 1 | E34: ='CV Rotina <2A - procedência'!#REF! ->  | F34: ='CV Rotina <2A - procedência'!J35 -> 1 | G34: ='CV Rotina <2A - procedência'!L35 -> 0.9574468085 | H34: ='CV Rotina <2A - procedência'!N35 -> 0.9787234043 | I34: ='CV Rotina <2A - procedência'!X35 -> 1.382978723 | J34: ='CV Rotina <2A - procedência'!R35 -> 0.9787234043 | K34: ='CV Rotina <2A - procedência'!T35 -> 1.234042553 | L34: ='CV Rotina <2A - procedência'!V35 -> 0.9361702128 | M34: ='CV Rotina <2A - procedência'!Z35 -> 0.3829787234 | N34: 1 | O34: =COUNTIFS(F34:M34,">=0,95") -> 6 | P34: 7 | Q34: 4
A35: Sul | B35: Irupi | C35: ='CV Rotina <2A - procedência'!H36 -> 0.7066666667 | D35: ='CV Rotina <2A - procedência'!P36 -> 1.24 | E35: ='CV Rotina <2A - procedência'!#REF! ->  | F35: ='CV Rotina <2A - procedência'!J36 -> 1.146666667 | G35: ='CV Rotina <2A - procedência'!L36 -> 1.133333333 | H35: ='CV Rotina <2A - procedência'!N36 -> 1.306666667 | I35: ='CV Rotina <2A - procedência'!X36 -> 1.52 | J35: ='CV Rotina <2A - procedência'!R36 -> 1.253333333 | K35: ='CV Rotina <2A - procedência'!T36 -> 0.96 | L35: ='CV Rotina <2A - procedência'!V36 -> 1.053333333 | M35: ='CV Rotina <2A - procedência'!Z36 -> 0.3066666667 | N35: 1 | O35: 7 | P35: 8 | Q35: 4
A36: Metropolitana | B36: Itaguaçu | C36: ='CV Rotina <2A - procedência'!H37 -> 0.7457627119 | D36: ='CV Rotina <2A - procedência'!P37 -> 0.8474576271 | E36: ='CV Rotina <2A - procedência'!#REF! ->  | F36: ='CV Rotina <2A - procedência'!J37 -> 0.8644067797 | G36: ='CV Rotina <2A - procedência'!L37 -> 0.8644067797 | H36: ='CV Rotina <2A - procedência'!N37 -> 0.8474576271 | I36: ='CV Rotina <2A - procedência'!X37 -> 0.9491525424 | J36: ='CV Rotina <2A - procedência'!R37 -> 0.8983050847 | K36: ='CV Rotina <2A - procedência'!T37 -> 1.016949153 | L36: ='CV Rotina <2A - procedência'!V37 -> 1.050847458 | M36: ='CV Rotina <2A - procedência'!Z37 -> 0.7796610169 | N36: 0 | O36: 2 | P36: 2 | Q36: 0
A37: Sul | B37: Itapemirim | C37: ='CV Rotina <2A - procedência'!H38 -> 0.5323383085 | D37: ='CV Rotina <2A - procedência'!P38 -> 0.9552238806 | E37: ='CV Rotina <2A - procedência'!#REF! ->  | F37: ='CV Rotina <2A - procedência'!J38 -> 0.8955223881 | G37: ='CV Rotina <2A - procedência'!L38 -> 0.8706467662 | H37: ='CV Rotina <2A - procedência'!N38 -> 1.074626866 | I37: ='CV Rotina <2A - procedência'!X38 -> 0.9751243781 | J37: ='CV Rotina <2A - procedência'!R38 -> 0.9502487562 | K37: ='CV Rotina <2A - procedência'!T38 -> 0.592039801 | L37: ='CV Rotina <2A - procedência'!V38 -> 0.8507462687 | M37: ='CV Rotina <2A - procedência'!Z38 -> 0.5373134328 | N37: 1 | O37: 3 | P37: 4 | Q37: 2
A38: Metropolitana | B38: Itarana | C38: ='CV Rotina <2A - procedência'!H39 -> 0.8615384615 | D38: ='CV Rotina <2A - procedência'!P39 -> 0.7538461538 | E38: ='CV Rotina <2A - procedência'!#REF! ->  | F38: ='CV Rotina <2A - procedência'!J39 -> 0.7538461538 | G38: ='CV Rotina <2A - procedência'!L39 -> 0.7538461538 | H38: ='CV Rotina <2A - procedência'!N39 -> 0.7230769231 | I38: ='CV Rotina <2A - procedência'!X39 -> 0.7846153846 | J38: ='CV Rotina <2A - procedência'!R39 -> 0.7230769231 | K38: ='CV Rotina <2A - procedência'!T39 -> 0.9384615385 | L38: ='CV Rotina <2A - procedência'!V39 -> 0.3538461538 | M38: ='CV Rotina <2A - procedência'!Z39 -> 0.5846153846 | N38: 0 | O38: 0 | P38: 0 | Q38: 0
A39: Sul | B39: Iúna | C39: ='CV Rotina <2A - procedência'!H40 -> 0.6984126984 | D39: ='CV Rotina <2A - procedência'!P40 -> 0.9894179894 | E39: ='CV Rotina <2A - procedência'!#REF! ->  | F39: ='CV Rotina <2A - procedência'!J40 -> 1.042328042 | G39: ='CV Rotina <2A - procedência'!L40 -> 1.037037037 | H39: ='CV Rotina <2A - procedência'!N40 -> 0.9947089947 | I39: ='CV Rotina <2A - procedência'!X40 -> 0.9523809524 | J39: ='CV Rotina <2A - procedência'!R40 -> 1.005291005 | K39: ='CV Rotina <2A - procedência'!T40 -> 0.9312169312 | L39: ='CV Rotina <2A - procedência'!V40 -> 0.6984126984 | M39: ='CV Rotina <2A - procedência'!Z40 -> 0.4920634921 | N39: 1 | O39: 5 | P39: 6 | Q39: 4
A40: Norte | B40: Jaguaré | C40: ='CV Rotina <2A - procedência'!H41 -> 0.7358490566 | D40: ='CV Rotina <2A - procedência'!P41 -> 0.8301886792 | E40: ='CV Rotina <2A - procedência'!#REF! ->  | F40: ='CV Rotina <2A - procedência'!J41 -> 0.9481132075 | G40: ='CV Rotina <2A - procedência'!L41 -> 0.9952830189 | H40: ='CV Rotina <2A - procedência'!N41 -> 0.8349056604 | I40: ='CV Rotina <2A - procedência'!X41 -> 0.9056603774 | J40: ='CV Rotina <2A - procedência'!R41 -> 0.8679245283 | K40: ='CV Rotina <2A - procedência'!T41 -> 0.8632075472 | L40: ='CV Rotina <2A - procedência'!V41 -> 0.6886792453 | M40: ='CV Rotina <2A - procedência'!Z41 -> 0.4858490566 | N40: 0 | O40: 1 | P40: 1 | Q40: 1
A41: Sul | B41: Jerônimo Monteiro | C41: ='CV Rotina <2A - procedência'!H42 -> 0.1186440678 | D41: ='CV Rotina <2A - procedência'!P42 -> 1.101694915 | E41: ='CV Rotina <2A - procedência'!#REF! ->  | F41: ='CV Rotina <2A - procedência'!J42 -> 1.220338983 | G41: ='CV Rotina <2A - procedência'!L42 -> 1.254237288 | H41: ='CV Rotina <2A - procedência'!N42 -> 1.101694915 | I41: ='CV Rotina <2A - procedência'!X42 -> 1 | J41: ='CV Rotina <2A - procedência'!R42 -> 1.016949153 | K41: ='CV Rotina <2A - procedência'!T42 -> 1.050847458 | L41: ='CV Rotina <2A - procedência'!V42 -> 0.8983050847 | M41: ='CV Rotina <2A - procedência'!Z42 -> 0.3220338983 | N41: 1 | O41: 6 | P41: 7 | Q41: 4
A42: Metropolitana | B42: João Neiva | C42: ='CV Rotina <2A - procedência'!H43 -> 0.3285714286 | D42: ='CV Rotina <2A - procedência'!P43 -> 0.9571428571 | E42: ='CV Rotina <2A - procedência'!#REF! ->  | F42: ='CV Rotina <2A - procedência'!J43 -> 1.028571429 | G42: ='CV Rotina <2A - procedência'!L43 -> 1.014285714 | H42: ='CV Rotina <2A - procedência'!N43 -> 1 | I42: ='CV Rotina <2A - procedência'!X43 -> 1.185714286 | J42: ='CV Rotina <2A - procedência'!R43 -> 0.9428571429 | K42: ='CV Rotina <2A - procedência'!T43 -> 1.085714286 | L42: ='CV Rotina <2A - procedência'!V43 -> 0.8714285714 | M42: ='CV Rotina <2A - procedência'!Z43 -> 0.4571428571 | N42: 1 | O42: 5 | P42: 6 | Q42: 4
A43: Metropolitana | B43: Laranja da Terra | C43: ='CV Rotina <2A - procedência'!H44 -> 0.6976744186 | D43: ='CV Rotina <2A - procedência'!P44 -> 0.7441860465 | E43: ='CV Rotina <2A - procedência'!#REF! ->  | F43: ='CV Rotina <2A - procedência'!J44 -> 0.976744186 | G43: ='CV Rotina <2A - procedência'!L44 -> 0.976744186 | H43: ='CV Rotina <2A - procedência'!N44 -> 0.7441860465 | I43: ='CV Rotina <2A - procedência'!X44 -> 1.534883721 | J43: ='CV Rotina <2A - procedência'!R44 -> 1 | K43: ='CV Rotina <2A - procedência'!T44 -> 1.348837209 | L43: ='CV Rotina <2A - procedência'!V44 -> 1.046511628 | M43: ='CV Rotina <2A - procedência'!Z44 -> 1.046511628 | N43: 0 | O43: 7 | P43: 7 | Q43: 3
A44: Central | B44: Linhares | C44: ='CV Rotina <2A - procedência'!H45 -> 1.003555556 | D44: ='CV Rotina <2A - procedência'!P45 -> 0.8044444444 | E44: ='CV Rotina <2A - procedência'!#REF! ->  | F44: ='CV Rotina <2A - procedência'!J45 -> 0.8071111111 | G44: ='CV Rotina <2A - procedência'!L45 -> 0.7946666667 | H44: ='CV Rotina <2A - procedência'!N45 -> 0.8035555556 | I44: ='CV Rotina <2A - procedência'!X45 -> 0.7911111111 | J44: ='CV Rotina <2A - procedência'!R45 -> 0.7804444444 | K44: ='CV Rotina <2A - procedência'!T45 -> 0.696 | L44: ='CV Rotina <2A - procedência'!V45 -> 0.608 | M44: ='CV Rotina <2A - procedência'!Z45 -> 0.4151111111 | N44: 1 | O44: 0 | P44: 1 | Q44: 0
A45: Central | B45: Mantenópolis | C45: ='CV Rotina <2A - procedência'!H46 -> 0.3846153846 | D45: ='CV Rotina <2A - procedência'!P46 -> 0.641025641 | E45: ='CV Rotina <2A - procedência'!#REF! ->  | F45: ='CV Rotina <2A - procedência'!J46 -> 0.7435897436 | G45: ='CV Rotina <2A - procedência'!L46 -> 0.8205128205 | H45: ='CV Rotina <2A - procedência'!N46 -> 0.6666666667 | I45: ='CV Rotina <2A - procedência'!X46 -> 0.7692307692 | J45: ='CV Rotina <2A - procedência'!R46 -> 0.6025641026 | K45: ='CV Rotina <2A - procedência'!T46 -> 0.8205128205 | L45: ='CV Rotina <2A - procedência'!V46 -> 0.6923076923 | M45: ='CV Rotina <2A - procedência'!Z46 -> 0.4871794872 | N45: 0 | O45: 0 | P45: 0 | Q45: 0
A46: Sul | B46: Marataízes | C46: ='CV Rotina <2A - procedência'!H47 -> 0.3872180451 | D46: ='CV Rotina <2A - procedência'!P47 -> 0.8233082707 | E46: ='CV Rotina <2A - procedência'!#REF! ->  | F46: ='CV Rotina <2A - procedência'!J47 -> 0.8383458647 | G46: ='CV Rotina <2A - procedência'!L47 -> 0.8458646617 | H46: ='CV Rotina <2A - procedência'!N47 -> 0.8609022556 | I46: ='CV Rotina <2A - procedência'!X47 -> 0.9285714286 | J46: ='CV Rotina <2A - procedência'!R47 -> 0.8421052632 | K46: ='CV Rotina <2A - procedência'!T47 -> 0.6390977444 | L46: ='CV Rotina <2A - procedência'!V47 -> 0.8195488722 | M46: ='CV Rotina <2A - procedência'!Z47 -> 0.4360902256 | N46: 0 | O46: 0 | P46: 0 | Q46: 0
A47: Metropolitana | B47: Marechal Floriano | C47: ='CV Rotina <2A - procedência'!H48 -> 0.2156862745 | D47: ='CV Rotina <2A - procedência'!P48 -> 0.8823529412 | E47: ='CV Rotina <2A - procedência'!#REF! ->  | F47: ='CV Rotina <2A - procedência'!J48 -> 0.7549019608 | G47: ='CV Rotina <2A - procedência'!L48 -> 0.7549019608 | H47: ='CV Rotina <2A - procedência'!N48 -> 0.9019607843 | I47: ='CV Rotina <2A - procedência'!X48 -> 0.9411764706 | J47: ='CV Rotina <2A - procedência'!R48 -> 0.931372549 | K47: ='CV Rotina <2A - procedência'!T48 -> 0.6666666667 | L47: ='CV Rotina <2A - procedência'!V48 -> 0.8039215686 | M47: ='CV Rotina <2A - procedência'!Z48 -> 0.6568627451 | N47: 0 | O47: 0 | P47: 0 | Q47: 0
A48: Central | B48: Marilândia | C48: ='CV Rotina <2A - procedência'!H49 -> 0.4262295082 | D48: ='CV Rotina <2A - procedência'!P49 -> 0.9508196721 | E48: ='CV Rotina <2A - procedência'!#REF! ->  | F48: ='CV Rotina <2A - procedência'!J49 -> 0.9672131148 | G48: ='CV Rotina <2A - procedência'!L49 -> 0.9672131148 | H48: ='CV Rotina <2A - procedência'!N49 -> 0.8360655738 | I48: ='CV Rotina <2A - procedência'!X49 -> 0.8524590164 | J48: ='CV Rotina <2A - procedência'!R49 -> 1.098360656 | K48: ='CV Rotina <2A - procedência'!T49 -> 1.049180328 | L48: ='CV Rotina <2A - procedência'!V49 -> 0.9016393443 | M48: ='CV Rotina <2A - procedência'!Z49 -> 0.737704918 | N48: 1 | O48: 4 | P48: 5 | Q48: 2
A49: Sul | B49: Mimoso do Sul | C49: ='CV Rotina <2A - procedência'!H50 -> 0.180952381 | D49: ='CV Rotina <2A - procedência'!P50 -> 0.6952380952 | E49: ='CV Rotina <2A - procedência'!#REF! ->  | F49: ='CV Rotina <2A - procedência'!J50 -> 0.8 | G49: ='CV Rotina <2A - procedência'!L50 -> 0.7904761905 | H49: ='CV Rotina <2A - procedência'!N50 -> 0.7333333333 | I49: ='CV Rotina <2A - procedência'!X50 -> 0.8571428571 | J49: ='CV Rotina <2A - procedência'!R50 -> 0.8095238095 | K49: ='CV Rotina <2A - procedência'!T50 -> 0.780952381 | L49: ='CV Rotina <2A - procedência'!V50 -> 0.6285714286 | M49: ='CV Rotina <2A - procedência'!Z50 -> 0.5428571429 | N49: 0 | O49: 0 | P49: 0 | Q49: 0
A50: Norte | B50: Montanha | C50: ='CV Rotina <2A - procedência'!H51 -> 0.4736842105 | D50: ='CV Rotina <2A - procedência'!P51 -> 1.355263158 | E50: ='CV Rotina <2A - procedência'!#REF! ->  | F50: ='CV Rotina <2A - procedência'!J51 -> 1.631578947 | G50: ='CV Rotina <2A - procedência'!L51 -> 1.657894737 | H50: ='CV Rotina <2A - procedência'!N51 -> 1.328947368 | I50: ='CV Rotina <2A - procedência'!X51 -> 1.368421053 | J50: ='CV Rotina <2A - procedência'!R51 -> 1.460526316 | K50: ='CV Rotina <2A - procedência'!T51 -> 1.421052632 | L50: ='CV Rotina <2A - procedência'!V51 -> 1.355263158 | M50: ='CV Rotina <2A - procedência'!Z51 -> 0.9342105263 | N50: 1 | O50: 7 | P50: 8 | Q50: 4
A51: Norte | B51: Mucurici | C51: ='CV Rotina <2A - procedência'!H52 -> 0.1904761905 | D51: ='CV Rotina <2A - procedência'!P52 -> 1.666666667 | E51: ='CV Rotina <2A - procedência'!#REF! ->  | F51: ='CV Rotina <2A - procedência'!J52 -> 1.714285714 | G51: ='CV Rotina <2A - procedência'!L52 -> 1.714285714 | H51: ='CV Rotina <2A - procedência'!N52 -> 1.714285714 | I51: ='CV Rotina <2A - procedência'!X52 -> 1.80952381 | J51: ='CV Rotina <2A - procedência'!R52 -> 1.80952381 | K51: ='CV Rotina <2A - procedência'!T52 -> 1.761904762 | L51: ='CV Rotina <2A - procedência'!V52 -> 0.9047619048 | M51: ='CV Rotina <2A - procedência'!Z52 -> 0.8095238095 | N51: 1 | O51: 6 | P51: 7 | Q51: 4
A52: Sul | B52: Muniz Freire | C52: ='CV Rotina <2A - procedência'!H53 -> 0.7674418605 | D52: ='CV Rotina <2A - procedência'!P53 -> 1.139534884 | E52: ='CV Rotina <2A - procedência'!#REF! ->  | F52: ='CV Rotina <2A - procedência'!J53 -> 1.127906977 | G52: ='CV Rotina <2A - procedência'!L53 -> 1.058139535 | H52: ='CV Rotina <2A - procedência'!N53 -> 1.139534884 | I52: ='CV Rotina <2A - procedência'!X53 -> 1.313953488 | J52: ='CV Rotina <2A - procedência'!R53 -> 1.046511628 | K52: ='CV Rotina <2A - procedência'!T53 -> 1.046511628 | L52: ='CV Rotina <2A - procedência'!V53 -> 0.9534883721 | M52: ='CV Rotina <2A - procedência'!Z53 -> 0.5697674419 | N52: 1 | O52: 7 | P52: 8 | Q52: 4
A53: Sul | B53: Muqui | C53: ='CV Rotina <2A - procedência'!H54 -> 0.15 | D53: ='CV Rotina <2A - procedência'!P54 -> 0.9833333333 | E53: ='CV Rotina <2A - procedência'!#REF! ->  | F53: ='CV Rotina <2A - procedência'!J54 -> 1.333333333 | G53: ='CV Rotina <2A - procedência'!L54 -> 1.35 | H53: ='CV Rotina <2A - procedência'!N54 -> 1 | I53: ='CV Rotina <2A - procedência'!X54 -> 1.016666667 | J53: ='CV Rotina <2A - procedência'!R54 -> 1.166666667 | K53: ='CV Rotina <2A - procedência'!T54 -> 1.166666667 | L53: ='CV Rotina <2A - procedência'!V54 -> 0.8833333333 | M53: ='CV Rotina <2A - procedência'!Z54 -> 0.6166666667 | N53: 1 | O53: 6 | P53: 7 | Q53: 4
A54: Norte | B54: Nova Venécia | C54: ='CV Rotina <2A - procedência'!H55 -> 0.5415282392 | D54: ='CV Rotina <2A - procedência'!P55 -> 0.780730897 | E54: ='CV Rotina <2A - procedência'!#REF! ->  | F54: ='CV Rotina <2A - procedência'!J55 -> 0.8936877076 | G54: ='CV Rotina <2A - procedência'!L55 -> 0.8936877076 | H54: ='CV Rotina <2A - procedência'!N55 -> 0.7973421927 | I54: ='CV Rotina <2A - procedência'!X55 -> 0.9136212625 | J54: ='CV Rotina <2A - procedência'!R55 -> 0.8172757475 | K54: ='CV Rotina <2A - procedência'!T55 -> 0.8970099668 | L54: ='CV Rotina <2A - procedência'!V55 -> 0.7275747508 | M54: ='CV Rotina <2A - procedência'!Z55 -> 0.5514950166 | N54: 0 | O54: 0 | P54: 0 | Q54: 0
A55: Central | B55: Pancas | C55: ='CV Rotina <2A - procedência'!H56 -> 0.4945054945 | D55: ='CV Rotina <2A - procedência'!P56 -> 0.9010989011 | E55: ='CV Rotina <2A - procedência'!#REF! ->  | F55: ='CV Rotina <2A - procedência'!J56 -> 0.989010989 | G55: ='CV Rotina <2A - procedência'!L56 -> 0.978021978 | H55: ='CV Rotina <2A - procedência'!N56 -> 0.9120879121 | I55: ='CV Rotina <2A - procedência'!X56 -> 0.8791208791 | J55: ='CV Rotina <2A - procedência'!R56 -> 1.021978022 | K55: ='CV Rotina <2A - procedência'!T56 -> 0.9450549451 | L55: ='CV Rotina <2A - procedência'!V56 -> 0.9120879121 | M55: ='CV Rotina <2A - procedência'!Z56 -> 0.8021978022 | N55: 1 | O55: 3 | P55: 4 | Q55: 2
A56: Norte | B56: Pedro Canário | C56: ='CV Rotina <2A - procedência'!H57 -> 0.05303030303 | D56: ='CV Rotina <2A - procedência'!P57 -> 0.8409090909 | E56: ='CV Rotina <2A - procedência'!#REF! ->  | F56: ='CV Rotina <2A - procedência'!J57 -> 1.068181818 | G56: ='CV Rotina <2A - procedência'!L57 -> 1.060606061 | H56: ='CV Rotina <2A - procedência'!N57 -> 0.8712121212 | I56: ='CV Rotina <2A - procedência'!X57 -> 1.166666667 | J56: ='CV Rotina <2A - procedência'!R57 -> 1.015151515 | K56: ='CV Rotina <2A - procedência'!T57 -> 1 | L56: ='CV Rotina <2A - procedência'!V57 -> 0.6893939394 | M56: ='CV Rotina <2A - procedência'!Z57 -> 0.7045454545 | N56: 0 | O56: 5 | P56: 5 | Q56: 3
A57: Norte | B57: Pinheiros | C57: ='CV Rotina <2A - procedência'!H58 -> 0.07339449541 | D57: ='CV Rotina <2A - procedência'!P58 -> 1.220183486 | E57: ='CV Rotina <2A - procedência'!#REF! ->  | F57: ='CV Rotina <2A - procedência'!J58 -> 1.293577982 | G57: ='CV Rotina <2A - procedência'!L58 -> 1.28440367 | H57: ='CV Rotina <2A - procedência'!N58 -> 1.23853211 | I57: ='CV Rotina <2A - procedência'!X58 -> 1.201834862 | J57: ='CV Rotina <2A - procedência'!R58 -> 1.128440367 | K57: ='CV Rotina <2A - procedência'!T58 -> 1.174311927 | L57: ='CV Rotina <2A - procedência'!V58 -> 0.8440366972 | M57: ='CV Rotina <2A - procedência'!Z58 -> 0.4403669725 | N57: 1 | O57: 6 | P57: 7 | Q57: 4
A58: Sul | B58: Piúma | C58: ='CV Rotina <2A - procedência'!H59 -> 0.6557377049 | D58: ='CV Rotina <2A - procedência'!P59 -> 0.8852459016 | E58: ='CV Rotina <2A - procedência'!#REF! ->  | F58: ='CV Rotina <2A - procedência'!J59 -> 0.9836065574 | G58: ='CV Rotina <2A - procedência'!L59 -> 0.9754098361 | H58: ='CV Rotina <2A - procedência'!N59 -> 0.9590163934 | I58: ='CV Rotina <2A - procedência'!X59 -> 0.9918032787 | J58: ='CV Rotina <2A - procedência'!R59 -> 0.762295082 | K58: ='CV Rotina <2A - procedência'!T59 -> 0.6803278689 | L58: ='CV Rotina <2A - procedência'!V59 -> 0.7295081967 | M58: ='CV Rotina <2A - procedência'!Z59 -> 0.4508196721 | N58: 0 | O58: 4 | P58: 4 | Q58: 4
A59: Norte | B59: Ponto Belo | C59: ='CV Rotina <2A - procedência'!H60 -> 0.16 | D59: ='CV Rotina <2A - procedência'!P60 -> 0.92 | E59: ='CV Rotina <2A - procedência'!#REF! ->  | F59: ='CV Rotina <2A - procedência'!J60 -> 0.68 | G59: ='CV Rotina <2A - procedência'!L60 -> 0.68 | H59: ='CV Rotina <2A - procedência'!N60 -> 0.96 | I59: ='CV Rotina <2A - procedência'!X60 -> 1.08 | J59: ='CV Rotina <2A - procedência'!R60 -> 0.6 | K59: ='CV Rotina <2A - procedência'!T60 -> 1.08 | L59: ='CV Rotina <2A - procedência'!V60 -> 0.52 | M59: ='CV Rotina <2A - procedência'!Z60 -> 0.64 | N59: 1 | O59: 3 | P59: 4 | Q59: 2
A60: Sul | B60: Presidente Kennedy | C60: ='CV Rotina <2A - procedência'!H61 -> 0.09574468085 | D60: ='CV Rotina <2A - procedência'!P61 -> 0.6170212766 | E60: ='CV Rotina <2A - procedência'!#REF! ->  | F60: ='CV Rotina <2A - procedência'!J61 -> 0.7021276596 | G60: ='CV Rotina <2A - procedência'!L61 -> 0.7340425532 | H60: ='CV Rotina <2A - procedência'!N61 -> 0.6276595745 | I60: ='CV Rotina <2A - procedência'!X61 -> 1.063829787 | J60: ='CV Rotina <2A - procedência'!R61 -> 0.6276595745 | K60: ='CV Rotina <2A - procedência'!T61 -> 0.7021276596 | L60: ='CV Rotina <2A - procedência'!V61 -> 0.6914893617 | M60: ='CV Rotina <2A - procedência'!Z61 -> 0.4574468085 | N60: 0 | O60: 1 | P60: 1 | Q60: 1
A61: Central | B61: Rio Bananal | C61: ='CV Rotina <2A - procedência'!H62 -> 0.2076923077 | D61: ='CV Rotina <2A - procedência'!P62 -> 0.8307692308 | E61: ='CV Rotina <2A - procedência'!#REF! ->  | F61: ='CV Rotina <2A - procedência'!J62 -> 0.8846153846 | G61: ='CV Rotina <2A - procedência'!L62 -> 0.8846153846 | H61: ='CV Rotina <2A - procedência'!N62 -> 0.7846153846 | I61: ='CV Rotina <2A - procedência'!X62 -> 1.007692308 | J61: ='CV Rotina <2A - procedência'!R62 -> 0.8 | K61: ='CV Rotina <2A - procedência'!T62 -> 0.9538461538 | L61: ='CV Rotina <2A - procedência'!V62 -> 0.8384615385 | M61: ='CV Rotina <2A - procedência'!Z62 -> 0.5769230769 | N61: 0 | O61: 2 | P61: 2 | Q61: 1
A62: Sul | B62: Rio Novo do Sul | C62: ='CV Rotina <2A - procedência'!H63 -> 0.3829787234 | D62: ='CV Rotina <2A - procedência'!P63 -> 1.063829787 | E62: ='CV Rotina <2A - procedência'!#REF! ->  | F62: ='CV Rotina <2A - procedência'!J63 -> 1.234042553 | G62: ='CV Rotina <2A - procedência'!L63 -> 1.212765957 | H62: ='CV Rotina <2A - procedência'!N63 -> 1.042553191 | I62: ='CV Rotina <2A - procedência'!X63 -> 0.9787234043 | J62: ='CV Rotina <2A - procedência'!R63 -> 1.063829787 | K62: ='CV Rotina <2A - procedência'!T63 -> 0.8936170213 | L62: ='CV Rotina <2A - procedência'!V63 -> 0.9361702128 | M62: ='CV Rotina <2A - procedência'!Z63 -> 0.8510638298 | N62: 1 | O62: 5 | P62: 6 | Q62: 4
A63: Metropolitana | B63: Santa Leopoldina | C63: ='CV Rotina <2A - procedência'!H64 -> 0.375 | D63: ='CV Rotina <2A - procedência'!P64 -> 1.3125 | E63: ='CV Rotina <2A - procedência'!#REF! ->  | F63: ='CV Rotina <2A - procedência'!J64 -> 1.34375 | G63: ='CV Rotina <2A - procedência'!L64 -> 1.3125 | H63: ='CV Rotina <2A - procedência'!N64 -> 1.25 | I63: ='CV Rotina <2A - procedência'!X64 -> 1.65625 | J63: ='CV Rotina <2A - procedência'!R64 -> 1.5625 | K63: ='CV Rotina <2A - procedência'!T64 -> 1.28125 | L63: ='CV Rotina <2A - procedência'!V64 -> 1.5 | M63: ='CV Rotina <2A - procedência'!Z64 -> 0.40625 | N63: 1 | O63: 7 | P63: 8 | Q63: 4
A64: Metropolitana | B64: Santa Maria de Jetibá | C64: ='CV Rotina <2A - procedência'!H65 -> 0.6523178808 | D64: ='CV Rotina <2A - procedência'!P65 -> 0.821192053 | E64: ='CV Rotina <2A - procedência'!#REF! ->  | F64: ='CV Rotina <2A - procedência'!J65 -> 0.798013245 | G64: ='CV Rotina <2A - procedência'!L65 -> 0.7947019868 | H64: ='CV Rotina <2A - procedência'!N65 -> 0.8013245033 | I64: ='CV Rotina <2A - procedência'!X65 -> 0.9072847682 | J64: ='CV Rotina <2A - procedência'!R65 -> 0.7847682119 | K64: ='CV Rotina <2A - procedência'!T65 -> 0.7516556291 | L64: ='CV Rotina <2A - procedência'!V65 -> 0.8675496689 | M64: ='CV Rotina <2A - procedência'!Z65 -> 0.4238410596 | N64: 0 | O64: 0 | P64: 0 | Q64: 0
A65: Metropolitana | B65: Santa Teresa | C65: ='CV Rotina <2A - procedência'!H66 -> 0.7916666667 | D65: ='CV Rotina <2A - procedência'!P66 -> 0.9583333333 | E65: ='CV Rotina <2A - procedência'!#REF! ->  | F65: ='CV Rotina <2A - procedência'!J66 -> 0.975 | G65: ='CV Rotina <2A - procedência'!L66 -> 0.9833333333 | H65: ='CV Rotina <2A - procedência'!N66 -> 0.9916666667 | I65: ='CV Rotina <2A - procedência'!X66 -> 0.8583333333 | J65: ='CV Rotina <2A - procedência'!R66 -> 0.8666666667 | K65: ='CV Rotina <2A - procedência'!T66 -> 0.8 | L65: ='CV Rotina <2A - procedência'!V66 -> 0.725 | M65: ='CV Rotina <2A - procedência'!Z66 -> 0.6666666667 | N65: 1 | O65: 3 | P65: 4 | Q65: 3
A66: Central | B66: São Domingos do Norte | C66: ='CV Rotina <2A - procedência'!H67 -> 0.3275862069 | D66: ='CV Rotina <2A - procedência'!P67 -> 0.8275862069 | E66: ='CV Rotina <2A - procedência'!#REF! ->  | F66: ='CV Rotina <2A - procedência'!J67 -> 0.7586206897 | G66: ='CV Rotina <2A - procedência'!L67 -> 0.775862069 | H66: ='CV Rotina <2A - procedência'!N67 -> 0.8103448276 | I66: ='CV Rotina <2A - procedência'!X67 -> 0.6896551724 | J66: ='CV Rotina <2A - procedência'!R67 -> 0.8275862069 | K66: ='CV Rotina <2A - procedência'!T67 -> 0.8620689655 | L66: ='CV Rotina <2A - procedência'!V67 -> 0.4655172414 | M66: ='CV Rotina <2A - procedência'!Z67 -> 0.4137931034 | N66: 0 | O66: =COUNTIFS(F66:M66,">=0,95") -> 0 | P66: 0 | Q66: 0
A67: Central | B67: São Gabriel da Palha | C67: ='CV Rotina <2A - procedência'!H68 -> 0.5930232558 | D67: ='CV Rotina <2A - procedência'!P68 -> 0.9418604651 | E67: ='CV Rotina <2A - procedência'!#REF! ->  | F67: ='CV Rotina <2A - procedência'!J68 -> 0.9360465116 | G67: ='CV Rotina <2A - procedência'!L68 -> 0.9476744186 | H67: ='CV Rotina <2A - procedência'!N68 -> 0.988372093 | I67: ='CV Rotina <2A - procedência'!X68 -> 0.8895348837 | J67: ='CV Rotina <2A - procedência'!R68 -> 0.9825581395 | K67: ='CV Rotina <2A - procedência'!T68 -> 0.8488372093 | L67: ='CV Rotina <2A - procedência'!V68 -> 0.6686046512 | M67: ='CV Rotina <2A - procedência'!Z68 -> 0.488372093 | N67: =COUNTIF(C67:E67,">=0,9") -> 1 | O67: 2 | P67: =SUM(N67:O67) -> 3 | Q67: =COUNTIF(F67:I67,">=0,95") -> 1
A68: Sul | B68: São José do Calçado | C68: ='CV Rotina <2A - procedência'!H69 -> 0.75 | D68: ='CV Rotina <2A - procedência'!P69 -> 0.8863636364 | E68: ='CV Rotina <2A - procedência'!#REF! ->  | F68: ='CV Rotina <2A - procedência'!J69 -> 1.318181818 | G68: ='CV Rotina <2A - procedência'!L69 -> 1.295454545 | H68: ='CV Rotina <2A - procedência'!N69 -> 1.022727273 | I68: ='CV Rotina <2A - procedência'!X69 -> 1.295454545 | J68: ='CV Rotina <2A - procedência'!R69 -> 1.181818182 | K68: ='CV Rotina <2A - procedência'!T69 -> 0.8863636364 | L68: ='CV Rotina <2A - procedência'!V69 -> 0.9090909091 | M68: ='CV Rotina <2A - procedência'!Z69 -> 0.7727272727 | N68: 0 | O68: 5 | P68: 5 | Q68: 4
A69: Norte | B69: São Mateus | C69: ='CV Rotina <2A - procedência'!H70 -> 1.800978793 | D69: ='CV Rotina <2A - procedência'!P70 -> 1.073409462 | E69: ='CV Rotina <2A - procedência'!#REF! ->  | F69: ='CV Rotina <2A - procedência'!J70 -> 1.185970636 | G69: ='CV Rotina <2A - procedência'!L70 -> 1.16639478 | H69: ='CV Rotina <2A - procedência'!N70 -> 1.156606852 | I69: ='CV Rotina <2A - procedência'!X70 -> 1.050570962 | J69: ='CV Rotina <2A - procedência'!R70 -> 1.073409462 | K69: ='CV Rotina <2A - procedência'!T70 -> 0.8760195759 | L69: ='CV Rotina <2A - procedência'!V70 -> 0.8597063622 | M69: ='CV Rotina <2A - procedência'!Z70 -> 0.5383360522 | N69: 2 | O69: 5 | P69: 7 | Q69: 4
A70: Central | B70: São Roque do Canaã | C70: ='CV Rotina <2A - procedência'!H71 -> 0.2857142857 | D70: ='CV Rotina <2A - procedência'!P71 -> 0.5584415584 | E70: ='CV Rotina <2A - procedência'!#REF! ->  | F70: ='CV Rotina <2A - procedência'!J71 -> 0.5064935065 | G70: ='CV Rotina <2A - procedência'!L71 -> 0.4935064935 | H70: ='CV Rotina <2A - procedência'!N71 -> 0.4935064935 | I70: ='CV Rotina <2A - procedência'!X71 -> 0.8311688312 | J70: ='CV Rotina <2A - procedência'!R71 -> 0.5324675325 | K70: ='CV Rotina <2A - procedência'!T71 -> 0.7012987013 | L70: ='CV Rotina <2A - procedência'!V71 -> 0.5584415584 | M70: ='CV Rotina <2A - procedência'!Z71 -> 0.3636363636 | N70: 0 | O70: 0 | P70: 0 | Q70: 0
A71: Metropolitana | B71: Serra | C71: ='CV Rotina <2A - procedência'!H72 -> 1.038028598 | D71: ='CV Rotina <2A - procedência'!P72 -> 0.7477943413 | E71: ='CV Rotina <2A - procedência'!#REF! ->  | F71: ='CV Rotina <2A - procedência'!J72 -> 0.7909948281 | G71: ='CV Rotina <2A - procedência'!L72 -> 0.7864313964 | H71: ='CV Rotina <2A - procedência'!N72 -> 0.7627015516 | I71: ='CV Rotina <2A - procedência'!X72 -> 0.7715241862 | J71: ='CV Rotina <2A - procedência'!R72 -> 0.7547916033 | K71: ='CV Rotina <2A - procedência'!T72 -> 0.6568299361 | L71: ='CV Rotina <2A - procedência'!V72 -> 0.3288713112 | M71: ='CV Rotina <2A - procedência'!Z72 -> 0.255856404 | N71: 1 | O71: 0 | P71: 1 | Q71: 0
A72: Central | B72: Sooretama | C72: ='CV Rotina <2A - procedência'!H73 -> 0.05102040816 | D72: ='CV Rotina <2A - procedência'!P73 -> 0.7653061224 | E72: ='CV Rotina <2A - procedência'!#REF! ->  | F72: ='CV Rotina <2A - procedência'!J73 -> 0.8469387755 | G72: ='CV Rotina <2A - procedência'!L73 -> 0.862244898 | H72: ='CV Rotina <2A - procedência'!N73 -> 0.7755102041 | I72: ='CV Rotina <2A - procedência'!X73 -> 0.8316326531 | J72: ='CV Rotina <2A - procedência'!R73 -> 0.7142857143 | K72: ='CV Rotina <2A - procedência'!T73 -> 0.806122449 | L72: ='CV Rotina <2A - procedência'!V73 -> 0.8163265306 | M72: ='CV Rotina <2A - procedência'!Z73 -> 0.3673469388 | N72: 0 | O72: 0 | P72: 0 | Q72: 0
A73: Sul | B73: Vargem Alta | C73: ='CV Rotina <2A - procedência'!H74 -> 0.0826446281 | D73: ='CV Rotina <2A - procedência'!P74 -> 0.8429752066 | E73: ='CV Rotina <2A - procedência'!#REF! ->  | F73: ='CV Rotina <2A - procedência'!J74 -> 0.7438016529 | G73: ='CV Rotina <2A - procedência'!L74 -> 0.7438016529 | H73: ='CV Rotina <2A - procedência'!N74 -> 0.8099173554 | I73: ='CV Rotina <2A - procedência'!X74 -> 0.9256198347 | J73: ='CV Rotina <2A - procedência'!R74 -> 0.826446281 | K73: ='CV Rotina <2A - procedência'!T74 -> 0.7768595041 | L73: ='CV Rotina <2A - procedência'!V74 -> 0.7768595041 | M73: ='CV Rotina <2A - procedência'!Z74 -> 0.4545454545 | N73: 0 | O73: 0 | P73: 0 | Q73: 0
A74: Metropolitana | B74: Venda Nova do Imigrante | C74: ='CV Rotina <2A - procedência'!H75 -> 1.061728395 | D74: ='CV Rotina <2A - procedência'!P75 -> 0.8950617284 | E74: ='CV Rotina <2A - procedência'!#REF! ->  | F74: ='CV Rotina <2A - procedência'!J75 -> 1.037037037 | G74: ='CV Rotina <2A - procedência'!L75 -> 1.037037037 | H74: ='CV Rotina <2A - procedência'!N75 -> 0.9197530864 | I74: ='CV Rotina <2A - procedência'!X75 -> 1.067901235 | J74: ='CV Rotina <2A - procedência'!R75 -> 0.9567901235 | K74: ='CV Rotina <2A - procedência'!T75 -> 1.012345679 | L74: ='CV Rotina <2A - procedência'!V75 -> 0.6543209877 | M74: ='CV Rotina <2A - procedência'!Z75 -> 0.4012345679 | N74: 1 | O74: 5 | P74: 6 | Q74: 3
A75: Metropolitana | B75: Viana | C75: ='CV Rotina <2A - procedência'!H76 -> 0.188372093 | D75: ='CV Rotina <2A - procedência'!P76 -> 0.8255813953 | E75: ='CV Rotina <2A - procedência'!#REF! ->  | F75: ='CV Rotina <2A - procedência'!J76 -> 0.8581395349 | G75: ='CV Rotina <2A - procedência'!L76 -> 0.8279069767 | H75: ='CV Rotina <2A - procedência'!N76 -> 0.8674418605 | I75: ='CV Rotina <2A - procedência'!X76 -> 0.8558139535 | J75: ='CV Rotina <2A - procedência'!R76 -> 0.8627906977 | K75: ='CV Rotina <2A - procedência'!T76 -> 0.6162790698 | L75: ='CV Rotina <2A - procedência'!V76 -> 0.6651162791 | M75: ='CV Rotina <2A - procedência'!Z76 -> 0.311627907 | N75: 0 | O75: 0 | P75: 0 | Q75: 0
A76: Norte | B76: Vila Pavão | C76: ='CV Rotina <2A - procedência'!H77 -> 0.6046511628 | D76: ='CV Rotina <2A - procedência'!P77 -> 0.7674418605 | E76: ='CV Rotina <2A - procedência'!#REF! ->  | F76: ='CV Rotina <2A - procedência'!J77 -> 0.8604651163 | G76: ='CV Rotina <2A - procedência'!L77 -> 0.8372093023 | H76: ='CV Rotina <2A - procedência'!N77 -> 0.7674418605 | I76: ='CV Rotina <2A - procedência'!X77 -> 1.418604651 | J76: ='CV Rotina <2A - procedência'!R77 -> 0.8139534884 | K76: ='CV Rotina <2A - procedência'!T77 -> 1.093023256 | L76: ='CV Rotina <2A - procedência'!V77 -> 1.069767442 | M76: ='CV Rotina <2A - procedência'!Z77 -> 0.6744186047 | N76: 0 | O76: 3 | P76: 3 | Q76: 1
A77: Central | B77: Vila Valério | C77: ='CV Rotina <2A - procedência'!H78 -> 0.2314049587 | D77: ='CV Rotina <2A - procedência'!P78 -> 0.7355371901 | E77: ='CV Rotina <2A - procedência'!#REF! ->  | F77: ='CV Rotina <2A - procedência'!J78 -> 0.7107438017 | G77: ='CV Rotina <2A - procedência'!L78 -> 0.6611570248 | H77: ='CV Rotina <2A - procedência'!N78 -> 0.6694214876 | I77: ='CV Rotina <2A - procedência'!X78 -> 0.7107438017 | J77: ='CV Rotina <2A - procedência'!R78 -> 0.7685950413 | K77: ='CV Rotina <2A - procedência'!T78 -> 0.7190082645 | L77: ='CV Rotina <2A - procedência'!V78 -> 0.652892562 | M77: ='CV Rotina <2A - procedência'!Z78 -> 0.4380165289 | N77: 0 | O77: 0 | P77: 0 | Q77: 0
A78: Metropolitana | B78: Vila Velha | C78: ='CV Rotina <2A - procedência'!H79 -> 0.7668634064 | D78: ='CV Rotina <2A - procedência'!P79 -> 0.8022765599 | E78: ='CV Rotina <2A - procedência'!#REF! ->  | F78: ='CV Rotina <2A - procedência'!J79 -> 0.7908937605 | G78: ='CV Rotina <2A - procedência'!L79 -> 0.7900505902 | H78: ='CV Rotina <2A - procedência'!N79 -> 0.7883642496 | I78: ='CV Rotina <2A - procedência'!X79 -> 0.8258853288 | J78: ='CV Rotina <2A - procedência'!R79 -> 0.8039629005 | K78: ='CV Rotina <2A - procedência'!T79 -> 0.673693086 | L78: ='CV Rotina <2A - procedência'!V79 -> 0.5569139966 | M78: ='CV Rotina <2A - procedência'!Z79 -> 0.3596121417 | N78: 0 | O78: 0 | P78: 0 | Q78: 0
A79: Metropolitana | B79: Vitória | C79: ='CV Rotina <2A - procedência'!H80 -> 1.763157895 | D79: ='CV Rotina <2A - procedência'!P80 -> 0.8934837093 | E79: ='CV Rotina <2A - procedência'!#REF! ->  | F79: ='CV Rotina <2A - procedência'!J80 -> 1.001253133 | G79: ='CV Rotina <2A - procedência'!L80 -> 1.001879699 | H79: ='CV Rotina <2A - procedência'!N80 -> 0.8703007519 | I79: ='CV Rotina <2A - procedência'!X80 -> 0.8922305764 | J79: ='CV Rotina <2A - procedência'!R80 -> 0.9348370927 | K79: ='CV Rotina <2A - procedência'!T80 -> 0.7180451128 | L79: ='CV Rotina <2A - procedência'!V80 -> 0.9454887218 | M79: ='CV Rotina <2A - procedência'!Z80 -> 0.4505012531 | N79: 1 | O79: 2 | P79: 3 | Q79: 2
B81: Total Norte | C81: ='CV Rotina <2A - procedência'!H82 -> 0.8488160291 | D81: ='CV Rotina <2A - procedência'!P82 -> 0.9599271403 | E81: ='CV Rotina <2A - procedência'!#REF! ->  | F81: ='CV Rotina <2A - procedência'!J82 -> 1.033697632 | G81: ='CV Rotina <2A - procedência'!L82 -> 1.035063752 | H81: ='CV Rotina <2A - procedência'!N82 -> 0.9936247723 | I81: ='CV Rotina <2A - procedência'!X82 -> 1.031876138 | J81: ='CV Rotina <2A - procedência'!R82 -> 0.9763205829 | K81: ='CV Rotina <2A - procedência'!T82 -> 0.9234972678 | L81: ='CV Rotina <2A - procedência'!V82 -> 0.8000910747 | M81: ='CV Rotina <2A - procedência'!Z82 -> 0.5778688525 | N81: =COUNTIF(C81:E81,">=0,9") -> 1 | O81: =COUNTIFS(F81:M81,">=0,95") -> 5 | P81: =SUM(N81:O81) -> 6 | Q81: =COUNTIF(F81:I81,">=0,95") -> 4
B82: Total Central | C82: ='CV Rotina <2A - procedência'!H83 -> 0.9861602832 | D82: ='CV Rotina <2A - procedência'!P83 -> 0.8274863212 | E82: ='CV Rotina <2A - procedência'!#REF! ->  | F82: ='CV Rotina <2A - procedência'!J83 -> 0.8467975539 | G82: ='CV Rotina <2A - procedência'!L83 -> 0.8384293531 | H82: ='CV Rotina <2A - procedência'!N83 -> 0.8284518828 | I82: ='CV Rotina <2A - procedência'!X83 -> 0.8496942388 | J82: ='CV Rotina <2A - procedência'!R83 -> 0.8255551979 | K82: ='CV Rotina <2A - procedência'!T83 -> 0.775024139 | L82: ='CV Rotina <2A - procedência'!V83 -> 0.6408110718 | M82: ='CV Rotina <2A - procedência'!Z83 -> 0.4583199228 | N82: =COUNTIF(C82:E82,">=0,9") -> 1 | O82: =COUNTIFS(F82:M82,">=0,95") -> 0 | P82: =SUM(N82:O82) -> 1 | Q82: =COUNTIF(F82:I82,">=0,95") -> 0
B83: Total Metropolitana | C83: ='CV Rotina <2A - procedência'!H84 -> 0.8847315826 | D83: ='CV Rotina <2A - procedência'!P84 -> 0.8188085832 | E83: ='CV Rotina <2A - procedência'!#REF! ->  | F83: ='CV Rotina <2A - procedência'!J84 -> 0.8489425982 | G83: ='CV Rotina <2A - procedência'!L84 -> 0.8424355101 | H83: ='CV Rotina <2A - procedência'!N84 -> 0.8274847006 | I83: ='CV Rotina <2A - procedência'!X84 -> 0.864203269 | J83: ='CV Rotina <2A - procedência'!R84 -> 0.8332946007 | K83: ='CV Rotina <2A - procedência'!T84 -> 0.7114416299 | L83: ='CV Rotina <2A - procedência'!V84 -> 0.6135254474 | M83: ='CV Rotina <2A - procedência'!Z84 -> 0.3919745914 | N83: 0 | O83: =COUNTIFS(F83:M83,">=0,95") -> 0 | P83: =SUM(N83:O83) -> 0 | Q83: =COUNTIF(F83:I83,">=0,95") -> 0
B84: Total Sul | C84: ='CV Rotina <2A - procedência'!H85 -> 0.9423776224 | D84: ='CV Rotina <2A - procedência'!P85 -> 0.8931468531 | E84: ='CV Rotina <2A - procedência'!#REF! ->  | F84: ='CV Rotina <2A - procedência'!J85 -> 0.928951049 | G84: ='CV Rotina <2A - procedência'!L85 -> 0.921958042 | H84: ='CV Rotina <2A - procedência'!N85 -> 0.918041958 | I84: ='CV Rotina <2A - procedência'!X85 -> 0.9876923077 | J84: ='CV Rotina <2A - procedência'!R85 -> 0.8886713287 | K84: ='CV Rotina <2A - procedência'!T85 -> 0.7664335664 | L84: ='CV Rotina <2A - procedência'!V85 -> 0.7697902098 | M84: ='CV Rotina <2A - procedência'!Z85 -> 0.4573426573 | N84: 1 | O84: =COUNTIFS(F84:M84,">=0,95") -> 1 | P84: =SUM(N84:O84) -> 2 | Q84: =COUNTIF(F84:I84,">=0,95") -> 1
B85: Total Espírito Santo | C85: ='CV Rotina <2A - procedência'!H86 -> 0.9050351127 | D85: ='CV Rotina <2A - procedência'!P86 -> 0.8464680773 | E85: ='CV Rotina <2A - procedência'!#REF! ->  | F85: ='CV Rotina <2A - procedência'!J86 -> 0.880387387 | G85: ='CV Rotina <2A - procedência'!L86 -> 0.8743287281 | H85: ='CV Rotina <2A - procedência'!N86 -> 0.85922798 | I85: ='CV Rotina <2A - procedência'!X86 -> 0.8992977464 | J85: ='CV Rotina <2A - procedência'!R86 -> 0.8556937623 | K85: ='CV Rotina <2A - procedência'!T86 -> 0.7509065039 | L85: ='CV Rotina <2A - procedência'!V86 -> 0.6618625786 | M85: ='CV Rotina <2A - procedência'!Z86 -> 0.43089916 | N85: 1 | O85: =COUNTIFS(F85:M85,">=0,95") -> 0 | P85: =SUM(N85:O85) -> 1 | Q85: =COUNTIF(F85:I85,">=0,95") -> 0
A88: Fonte: SIPNI/DATASUS, em 09 de junho de 2023.*
A89: Vacina e Confia, em 12 de junho de 2023.**
A90: *Dados referentes às doses aplicadas pelas clínicas particulares de janeiro a maio de 2023
A91: **Dados referente às doses aplicadas no período de janeiro a maio de 2023
A92: Cobertura Calculada por município de vacinação
A93: 1 População proporcional extraída do MS/SVS/DASIS - Sistema de Informações sobre Nascidos Vivos - SINASC
A94: 2000 a 2021 – Estimativas preliminares elaboradas pelo Ministério da Saúde/SVS/DASNT/CGIAE
A95: Nota: Dados preliminares 2021

Sheet cálculos2 (hidden)
A1: Regional | B1: Município | C1: Cobertura Vacinal BCG | D1: Cobertura Vacinal Rotavírus | E1: Cobertura Vacinal COVID-19 | F1: Cobertura Vacinal Pentavalente | G1: Cobertura Vacinal Poliomielite | H1: Cobertura Vacinal Pneumo 10 | I1: Cobertura Vacinal Tríplice Viral | J1: Cobertura Vacinal Meningo C | K1: Cobertura Vacinal Febre Amarela | L1: Cobertura Vacinal Hepatite A | M1: Cobertura Varicela | N1: META 90% | O1: META 95% | P1: ATINGIRAM META | Q1: PQA-VS
A2: Metropolitana | B2: Afonso Cláudio | C2: ='CV Rotina <2A - residência'!H3 -> 0.9246575342 | D2: ='CV Rotina <2A - residência'!P3 -> 1.061643836 | E2: ='CV Rotina <2A - residência'!#REF! ->  | F2: ='CV Rotina <2A - residência'!J3 -> 1.089041096 | G2: ='CV Rotina <2A - residência'!L3 -> 1.095890411 | H2: ='CV Rotina <2A - residência'!N3 -> 1.047945205 | I2: ='CV Rotina <2A - residência'!X3 -> 1.232876712 | J2: ='CV Rotina <2A - residência'!R3 -> 1.095890411 | K2: ='CV Rotina <2A - residência'!T3 -> 1.020547945 | L2: ='CV Rotina <2A - residência'!V3 -> 1.04109589 | M2: ='CV Rotina <2A - residência'!Z3 -> 0.5273972603 | N2: =COUNTIF(C2:E2,">=0,9") -> 2 | O2: =COUNTIFS(F2:M2,">=0,95") -> 7 | P2: =SUM(N2:O2) -> 9 | Q2: =COUNTIF(F2:I2,">=0,95") -> 4
A3: Norte | B3: Água Doce do Norte | C3: ='CV Rotina <2A - residência'!H4 -> 1.077777778 | D3: ='CV Rotina <2A - residência'!P4 -> 0.8111111111 | E3: ='CV Rotina <2A - residência'!#REF! ->  | F3: ='CV Rotina <2A - residência'!J4 -> 0.7666666667 | G3: ='CV Rotina <2A - residência'!L4 -> 0.7777777778 | H3: ='CV Rotina <2A - residência'!N4 -> 0.8222222222 | I3: ='CV Rotina <2A - residência'!X4 -> 0.6111111111 | J3: ='CV Rotina <2A - residência'!R4 -> 0.7555555556 | K3: ='CV Rotina <2A - residência'!T4 -> 0.6333333333 | L3: ='CV Rotina <2A - residência'!V4 -> 0.6 | M3: ='CV Rotina <2A - residência'!Z4 -> 0.2666666667 | N3: =COUNTIF(C3:E3,">=0,9") -> 1 | O3: 0 | P3: =SUM(N3:O3) -> 1 | Q3: =COUNTIF(F3:I3,">=0,95") -> 0
A4: Central | B4: Águia Branca | C4: ='CV Rotina <2A - residência'!H5 -> 1.089552239 | D4: ='CV Rotina <2A - residência'!P5 -> 1.014925373 | E4: ='CV Rotina <2A - residência'!#REF! ->  | F4: ='CV Rotina <2A - residência'!J5 -> 1.074626866 | G4: ='CV Rotina <2A - residência'!L5 -> 1.074626866 | H4: ='CV Rotina <2A - residência'!N5 -> 1.044776119 | I4: ='CV Rotina <2A - residência'!X5 -> 0.7313432836 | J4: ='CV Rotina <2A - residência'!R5 -> 1.089552239 | K4: ='CV Rotina <2A - residência'!T5 -> 0.8955223881 | L4: ='CV Rotina <2A - residência'!V5 -> 0.7014925373 | M4: ='CV Rotina <2A - residência'!Z5 -> 0.3432835821 | N4: 2 | O4: 4 | P4: 6 | Q4: 3
A5: Sul | B5: Alegre | C5: ='CV Rotina <2A - residência'!H6 -> 0.9259259259 | D5: ='CV Rotina <2A - residência'!P6 -> 0.962962963 | E5: ='CV Rotina <2A - residência'!#REF! ->  | F5: ='CV Rotina <2A - residência'!J6 -> 0.962962963 | G5: ='CV Rotina <2A - residência'!L6 -> 1.022222222 | H5: ='CV Rotina <2A - residência'!N6 -> 0.9851851852 | I5: ='CV Rotina <2A - residência'!X6 -> 0.9777777778 | J5: ='CV Rotina <2A - residência'!R6 -> 0.9851851852 | K5: ='CV Rotina <2A - residência'!T6 -> 1 | L5: ='CV Rotina <2A - residência'!V6 -> 0.7777777778 | M5: ='CV Rotina <2A - residência'!Z6 -> 0.3703703704 | N5: 2 | O5: 6 | P5: 8 | Q5: 4
A6: Sul | B6: Alfredo Chaves | C6: ='CV Rotina <2A - residência'!H7 -> 0.7457627119 | D6: ='CV Rotina <2A - residência'!P7 -> 1.254237288 | E6: ='CV Rotina <2A - residência'!#REF! ->  | F6: ='CV Rotina <2A - residência'!J7 -> 1.13559322 | G6: ='CV Rotina <2A - residência'!L7 -> 1.118644068 | H6: ='CV Rotina <2A - residência'!N7 -> 1.220338983 | I6: ='CV Rotina <2A - residência'!X7 -> 1.203389831 | J6: ='CV Rotina <2A - residência'!R7 -> 1.118644068 | K6: ='CV Rotina <2A - residência'!T7 -> 1.016949153 | L6: ='CV Rotina <2A - residência'!V7 -> 0.8474576271 | M6: ='CV Rotina <2A - residência'!Z7 -> 0.6949152542 | N6: 1 | O6: 6 | P6: 7 | Q6: 4
A7: Central | B7: Alto Rio Novo | C7: ='CV Rotina <2A - residência'!H8 -> 1.222222222 | D7: ='CV Rotina <2A - residência'!P8 -> 1.407407407 | E7: ='CV Rotina <2A - residência'!#REF! ->  | F7: ='CV Rotina <2A - residência'!J8 -> 1.481481481 | G7: ='CV Rotina <2A - residência'!L8 -> 1.481481481 | H7: ='CV Rotina <2A - residência'!N8 -> 1.37037037 | I7: ='CV Rotina <2A - residência'!X8 -> 1.37037037 | J7: ='CV Rotina <2A - residência'!R8 -> 1.444444444 | K7: ='CV Rotina <2A - residência'!T8 -> 1.148148148 | L7: ='CV Rotina <2A - residência'!V8 -> 1.222222222 | M7: ='CV Rotina <2A - residência'!Z8 -> 0.5925925926 | N7: 2 | O7: 7 | P7: 9 | Q7: 4
A8: Sul | B8: Anchieta | C8: ='CV Rotina <2A - residência'!H9 -> 0.8520710059 | D8: ='CV Rotina <2A - residência'!P9 -> 0.9763313609 | E8: ='CV Rotina <2A - residência'!#REF! ->  | F8: ='CV Rotina <2A - residência'!J9 -> 1.076923077 | G8: ='CV Rotina <2A - residência'!L9 -> 1.088757396 | H8: ='CV Rotina <2A - residência'!N9 -> 0.9763313609 | I8: ='CV Rotina <2A - residência'!X9 -> 0.9763313609 | J8: ='CV Rotina <2A - residência'!R9 -> 1.041420118 | K8: ='CV Rotina <2A - residência'!T9 -> 0.7573964497 | L8: ='CV Rotina <2A - residência'!V9 -> 0.8402366864 | M8: ='CV Rotina <2A - residência'!Z9 -> 0.4970414201 | N8: 1 | O8: 5 | P8: 6 | Q8: 4
A9: Sul | B9: Apiacá | C9: ='CV Rotina <2A - residência'!H10 -> 0.8378378378 | D9: ='CV Rotina <2A - residência'!P10 -> 0.6216216216 | E9: ='CV Rotina <2A - residência'!#REF! ->  | F9: ='CV Rotina <2A - residência'!J10 -> 0.6216216216 | G9: ='CV Rotina <2A - residência'!L10 -> 0.6216216216 | H9: ='CV Rotina <2A - residência'!N10 -> 0.6486486486 | I9: ='CV Rotina <2A - residência'!X10 -> 0.6756756757 | J9: ='CV Rotina <2A - residência'!R10 -> 0.6216216216 | K9: ='CV Rotina <2A - residência'!T10 -> 0.6216216216 | L9: ='CV Rotina <2A - residência'!V10 -> 0.2702702703 | M9: ='CV Rotina <2A - residência'!Z10 -> 0.1621621622 | N9: 0 | O9: 0 | P9: 0 | Q9: 0
A10: Metropolitana | B10: Aracruz | C10: ='CV Rotina <2A - residência'!H11 -> 0.9305993691 | D10: ='CV Rotina <2A - residência'!P11 -> 0.8611987382 | E10: ='CV Rotina <2A - residência'!#REF! ->  | F10: ='CV Rotina <2A - residência'!J11 -> 0.8422712934 | G10: ='CV Rotina <2A - residência'!L11 -> 0.8375394322 | H10: ='CV Rotina <2A - residência'!N11 -> 0.8659305994 | I10: ='CV Rotina <2A - residência'!X11 -> 1.001577287 | J10: ='CV Rotina <2A - residência'!R11 -> 0.8722397476 | K10: ='CV Rotina <2A - residência'!T11 -> 0.7791798107 | L10: ='CV Rotina <2A - residência'!V11 -> 0.9337539432 | M10: ='CV Rotina <2A - residência'!Z11 -> 0.572555205 | N10: 1 | O10: 1 | P10: 2 | Q10: 1
A11: Sul | B11: Atilio Vivacqua | C11: ='CV Rotina <2A - residência'!H12 -> 0.796875 | D11: ='CV Rotina <2A - residência'!P12 -> 0.78125 | E11: ='CV Rotina <2A - residência'!#REF! ->  | F11: ='CV Rotina <2A - residência'!J12 -> 0.75 | G11: ='CV Rotina <2A - residência'!L12 -> 0.734375 | H11: ='CV Rotina <2A - residência'!N12 -> 0.78125 | I11: ='CV Rotina <2A - residência'!X12 -> 0.984375 | J11: ='CV Rotina <2A - residência'!R12 -> 0.71875 | K11: ='CV Rotina <2A - residência'!T12 -> 0.625 | L11: ='CV Rotina <2A - residência'!V12 -> 0.765625 | M11: ='CV Rotina <2A - residência'!Z12 -> 0.484375 | N11: 0 | O11: 1 | P11: 1 | Q11: 1
A12: Central | B12: Baixo Guandu | C12: ='CV Rotina <2A - residência'!H13 -> 0.9570552147 | D12: ='CV Rotina <2A - residência'!P13 -> 0.9754601227 | E12: ='CV Rotina <2A - residência'!#REF! ->  | F12: ='CV Rotina <2A - residência'!J13 -> 0.9386503067 | G12: ='CV Rotina <2A - residência'!L13 -> 0.9447852761 | H12: ='CV Rotina <2A - residência'!N13 -> 1.006134969 | I12: ='CV Rotina <2A - residência'!X13 -> 1.141104294 | J12: ='CV Rotina <2A - residência'!R13 -> 1.049079755 | K12: ='CV Rotina <2A - residência'!T13 -> 0.7975460123 | L12: ='CV Rotina <2A - residência'!V13 -> 0.963190184 | M12: ='CV Rotina <2A - residência'!Z13 -> 0.5950920245 | N12: 2 | O12: 4 | P12: 6 | Q12: 2
A13: Norte | B13: Barra de São Francisco | C13: ='CV Rotina <2A - residência'!H14 -> 0.9087136929 | D13: ='CV Rotina <2A - residência'!P14 -> 0.8589211618 | E13: ='CV Rotina <2A - residência'!#REF! ->  | F13: ='CV Rotina <2A - residência'!J14 -> 0.867219917 | G13: ='CV Rotina <2A - residência'!L14 -> 0.846473029 | H13: ='CV Rotina <2A - residência'!N14 -> 0.8962655602 | I13: ='CV Rotina <2A - residência'!X14 -> 0.9336099585 | J13: ='CV Rotina <2A - residência'!R14 -> 0.9045643154 | K13: ='CV Rotina <2A - residência'!T14 -> 0.8298755187 | L13: ='CV Rotina <2A - residência'!V14 -> 0.755186722 | M13: ='CV Rotina <2A - residência'!Z14 -> 0.6141078838 | N13: 1 | O13: 0 | P13: 1 | Q13: 0
A14: Norte | B14: Boa Esperança | C14: ='CV Rotina <2A - residência'!H15 -> 0.8831168831 | D14: ='CV Rotina <2A - residência'!P15 -> 1.064935065 | E14: ='CV Rotina <2A - residência'!#REF! ->  | F14: ='CV Rotina <2A - residência'!J15 -> 0.8961038961 | G14: ='CV Rotina <2A - residência'!L15 -> 1 | H14: ='CV Rotina <2A - residência'!N15 -> 1.025974026 | I14: ='CV Rotina <2A - residência'!X15 -> 1.168831169 | J14: ='CV Rotina <2A - residência'!R15 -> 1.064935065 | K14: ='CV Rotina <2A - residência'!T15 -> 0.961038961 | L14: ='CV Rotina <2A - residência'!V15 -> 0.7922077922 | M14: ='CV Rotina <2A - residência'!Z15 -> 0.6883116883 | N14: 1 | O14: 5 | P14: 6 | Q14: 3
A15: Sul | B15: Bom Jesus do Norte | C15: ='CV Rotina <2A - residência'!H16 -> 0.8918918919 | D15: ='CV Rotina <2A - residência'!P16 -> 1.081081081 | E15: ='CV Rotina <2A - residência'!#REF! ->  | F15: ='CV Rotina <2A - residência'!J16 -> 1.405405405 | G15: ='CV Rotina <2A - residência'!L16 -> 1.351351351 | H15: ='CV Rotina <2A - residência'!N16 -> 1.135135135 | I15: ='CV Rotina <2A - residência'!X16 -> 1.054054054 | J15: ='CV Rotina <2A - residência'!R16 -> 1.081081081 | K15: ='CV Rotina <2A - residência'!T16 -> 1.162162162 | L15: ='CV Rotina <2A - residência'!V16 -> 0.2162162162 | M15: ='CV Rotina <2A - residência'!Z16 -> 0.1351351351 | N15: 1 | O15: 6 | P15: 7 | Q15: 4
A16: Metropolitana | B16: Brejetuba | C16: ='CV Rotina <2A - residência'!H17 -> 0.9425287356 | D16: ='CV Rotina <2A - residência'!P17 -> 0.9425287356 | E16: ='CV Rotina <2A - residência'!#REF! ->  | F16: ='CV Rotina <2A - residência'!J17 -> 0.8965517241 | G16: ='CV Rotina <2A - residência'!L17 -> 0.8965517241 | H16: ='CV Rotina <2A - residência'!N17 -> 0.8850574713 | I16: ='CV Rotina <2A - residência'!X17 -> 0.8850574713 | J16: ='CV Rotina <2A - residência'!R17 -> 0.8045977011 | K16: ='CV Rotina <2A - residência'!T17 -> 0.9655172414 | L16: ='CV Rotina <2A - residência'!V17 -> 0.8505747126 | M16: ='CV Rotina <2A - residência'!Z17 -> 0.4712643678 | N16: 2 | O16: 1 | P16: 3 | Q16: 0
A17: Sul | B17: Cachoeiro de Itapemirim | C17: ='CV Rotina <2A - residência'!H18 -> 1.057918552 | D17: ='CV Rotina <2A - residência'!P18 -> 0.7873303167 | E17: ='CV Rotina <2A - residência'!#REF! ->  | F17: ='CV Rotina <2A - residência'!J18 -> 0.814479638 | G17: ='CV Rotina <2A - residência'!L18 -> 0.8018099548 | H17: ='CV Rotina <2A - residência'!N18 -> 0.7936651584 | I17: ='CV Rotina <2A - residência'!X18 -> 0.8841628959 | J17: ='CV Rotina <2A - residência'!R18 -> 0.7547511312 | K17: ='CV Rotina <2A - residência'!T18 -> 0.6488687783 | L17: ='CV Rotina <2A - residência'!V18 -> 0.7031674208 | M17: ='CV Rotina <2A - residência'!Z18 -> 0.3764705882 | N17: 1 | O17: 0 | P17: 1 | Q17: 0
A18: Metropolitana | B18: Cariacica | C18: ='CV Rotina <2A - residência'!H19 -> 0.8351860802 | D18: ='CV Rotina <2A - residência'!P19 -> 0.8419526341 | E18: ='CV Rotina <2A - residência'!#REF! ->  | F18: ='CV Rotina <2A - residência'!J19 -> 0.8743354277 | G18: ='CV Rotina <2A - residência'!L19 -> 0.8617689705 | H18: ='CV Rotina <2A - residência'!N19 -> 0.8791686805 | I18: ='CV Rotina <2A - residência'!X19 -> 0.9188013533 | J18: ='CV Rotina <2A - residência'!R19 -> 0.8477525375 | K18: ='CV Rotina <2A - residência'!T19 -> 0.706138231 | L18: ='CV Rotina <2A - residência'!V19 -> 0.5973900435 | M18: ='CV Rotina <2A - residência'!Z19 -> 0.4011599807 | N18: 0 | O18: 0 | P18: 0 | Q18: 0
A19: Sul | B19: Castelo | C19: ='CV Rotina <2A - residência'!H20 -> 0.8125 | D19: ='CV Rotina <2A - residência'!P20 -> 0.8802083333 | E19: ='CV Rotina <2A - residência'!#REF! ->  | F19: ='CV Rotina <2A - residência'!J20 -> 0.9010416667 | G19: ='CV Rotina <2A - residência'!L20 -> 0.90625 | H19: ='CV Rotina <2A - residência'!N20 -> 0.90625 | I19: ='CV Rotina <2A - residência'!X20 -> 1.020833333 | J19: ='CV Rotina <2A - residência'!R20 -> 0.8697916667 | K19: ='CV Rotina <2A - residência'!T20 -> 0.828125 | L19: ='CV Rotina <2A - residência'!V20 -> 0.6979166667 | M19: ='CV Rotina <2A - residência'!Z20 -> 0.4791666667 | N19: 0 | O19: 1 | P19: 1 | Q19: 1
A20: Central | B20: Colatina | C20: ='CV Rotina <2A - residência'!H21 -> 1.016442451 | D20: ='CV Rotina <2A - residência'!P21 -> 0.8370702541 | E20: ='CV Rotina <2A - residência'!#REF! ->  | F20: ='CV Rotina <2A - residência'!J21 -> 0.8684603886 | G20: ='CV Rotina <2A - residência'!L21 -> 0.8475336323 | H20: ='CV Rotina <2A - residência'!N21 -> 0.8370702541 | I20: ='CV Rotina <2A - residência'!X21 -> 0.889387145 | J20: ='CV Rotina <2A - residência'!R21 -> 0.8370702541 | K20: ='CV Rotina <2A - residência'!T21 -> 0.7937219731 | L20: ='CV Rotina <2A - residência'!V21 -> 0.4813153961 | M20: ='CV Rotina <2A - residência'!Z21 -> 0.4618834081 | N20: 1 | O20: 0 | P20: 1 | Q20: 0
A21: Norte | B21: Conceição da Barra | C21: ='CV Rotina <2A - residência'!H22 -> 0.5954198473 | D21: ='CV Rotina <2A - residência'!P22 -> 1.129770992 | E21: ='CV Rotina <2A - residência'!#REF! ->  | F21: ='CV Rotina <2A - residência'!J22 -> 1.106870229 | G21: ='CV Rotina <2A - residência'!L22 -> 1.13740458 | H21: ='CV Rotina <2A - residência'!N22 -> 1.175572519 | I21: ='CV Rotina <2A - residência'!X22 -> 1.221374046 | J21: ='CV Rotina <2A - residência'!R22 -> 1.190839695 | K21: ='CV Rotina <2A - residência'!T22 -> 1.122137405 | L21: ='CV Rotina <2A - residência'!V22 -> 0.8625954198 | M21: ='CV Rotina <2A - residência'!Z22 -> 0.6641221374 | N21: 1 | O21: 6 | P21: 7 | Q21: 4
A22: Metropolitana | B22: Conceição do Castelo | C22: ='CV Rotina <2A - residência'!H23 -> 0.7179487179 | D22: ='CV Rotina <2A - residência'!P23 -> 0.5641025641 | E22: ='CV Rotina <2A - residência'!#REF! ->  | F22: ='CV Rotina <2A - residência'!J23 -> 0.7051282051 | G22: ='CV Rotina <2A - residência'!L23 -> 0.6666666667 | H22: ='CV Rotina <2A - residência'!N23 -> 0.5769230769 | I22: ='CV Rotina <2A - residência'!X23 -> 0.6923076923 | J22: ='CV Rotina <2A - residência'!R23 -> 0.5769230769 | K22: ='CV Rotina <2A - residência'!T23 -> 0.7179487179 | L22: ='CV Rotina <2A - residência'!V23 -> 0.6923076923 | M22: ='CV Rotina <2A - residência'!Z23 -> 0.5256410256 | N22: 0 | O22: 0 | P22: 0 | Q22: 0
A23: Sul | B23: Divino de São Lourenço | C23: ='CV Rotina <2A - residência'!H24 -> 1.4 | D23: ='CV Rotina <2A - residência'!P24 -> 1.28 | E23: ='CV Rotina <2A - residência'!#REF! ->  | F23: ='CV Rotina <2A - residência'!J24 -> 1.2 | G23: ='CV Rotina <2A - residência'!L24 -> 1.16 | H23: ='CV Rotina <2A - residência'!N24 -> 1.28 | I23: ='CV Rotina <2A - residência'!X24 -> 0.72 | J23: ='CV Rotina <2A - residência'!R24 -> 1.36 | K23: ='CV Rotina <2A - residência'!T24 -> 0.92 | L23: ='CV Rotina <2A - residência'!V24 -> 0.84 | M23: ='CV Rotina <2A - residência'!Z24 -> 0.72 | N23: 2 | O23: 4 | P23: 6 | Q23: 3
A24: Metropolitana | B24: Domingos Martins | C24: ='CV Rotina <2A - residência'!H25 -> 0.7849462366 | D24: ='CV Rotina <2A - residência'!P25 -> 0.8817204301 | E24: ='CV Rotina <2A - residência'!#REF! ->  | F24: ='CV Rotina <2A - residência'!J25 -> 0.8172043011 | G24: ='CV Rotina <2A - residência'!L25 -> 0.811827957 | H24: ='CV Rotina <2A - residência'!N25 -> 0.9086021505 | I24: ='CV Rotina <2A - residência'!X25 -> 0.9301075269 | J24: ='CV Rotina <2A - residência'!R25 -> 0.8333333333 | K24: ='CV Rotina <2A - residência'!T25 -> 0.752688172 | L24: ='CV Rotina <2A - residência'!V25 -> 0.7204301075 | M24: ='CV Rotina <2A - residência'!Z25 -> 0.7795698925 | N24: 0 | O24: 0 | P24: 0 | Q24: 0
A25: Sul | B25: Dores do Rio Preto | C25: ='CV Rotina <2A - residência'!H26 -> 0.7647058824 | D25: ='CV Rotina <2A - residência'!P26 -> 1.205882353 | E25: ='CV Rotina <2A - residência'!#REF! ->  | F25: ='CV Rotina <2A - residência'!J26 -> 1.058823529 | G25: ='CV Rotina <2A - residência'!L26 -> 1.147058824 | H25: ='CV Rotina <2A - residência'!N26 -> 1.264705882 | I25: ='CV Rotina <2A - residência'!X26 -> 1.294117647 | J25: ='CV Rotina <2A - residência'!R26 -> 1.205882353 | K25: ='CV Rotina <2A - residência'!T26 -> 1.029411765 | L25: ='CV Rotina <2A - residência'!V26 -> 0.7352941176 | M25: ='CV Rotina <2A - residência'!Z26 -> 0.3823529412 | N25: 1 | O25: 6 | P25: 7 | Q25: 4
A26: Norte | B26: Ecoporanga | C26: ='CV Rotina <2A - residência'!H27 -> 1.04 | D26: ='CV Rotina <2A - residência'!P27 -> 0.728 | E26: ='CV Rotina <2A - residência'!#REF! ->  | F26: ='CV Rotina <2A - residência'!J27 -> 0.816 | G26: ='CV Rotina <2A - residência'!L27 -> 0.8 | H26: ='CV Rotina <2A - residência'!N27 -> 0.76 | I26: ='CV Rotina <2A - residência'!X27 -> 0.856 | J26: ='CV Rotina <2A - residência'!R27 -> 0.76 | K26: ='CV Rotina <2A - residência'!T27 -> 0.776 | L26: ='CV Rotina <2A - residência'!V27 -> 0.728 | M26: ='CV Rotina <2A - residência'!Z27 -> 0.6 | N26: 1 | O26: 0 | P26: 1 | Q26: 0
A27: Metropolitana | B27: Fundão | C27: ='CV Rotina <2A - residência'!H28 -> 0.7765957447 | D27: ='CV Rotina <2A - residência'!P28 -> 0.8829787234 | E27: ='CV Rotina <2A - residência'!#REF! ->  | F27: ='CV Rotina <2A - residência'!J28 -> 1.053191489 | G27: ='CV Rotina <2A - residência'!L28 -> 1.021276596 | H27: ='CV Rotina <2A - residência'!N28 -> 0.8723404255 | I27: ='CV Rotina <2A - residência'!X28 -> 0.9042553191 | J27: ='CV Rotina <2A - residência'!R28 -> 0.8723404255 | K27: ='CV Rotina <2A - residência'!T28 -> 0.9042553191 | L27: ='CV Rotina <2A - residência'!V28 -> 0.7872340426 | M27: ='CV Rotina <2A - residência'!Z28 -> 0.6276595745 | N27: 0 | O27: 2 | P27: 2 | Q27: 2
A28: Central | B28: Governador Lindenberg | C28: ='CV Rotina <2A - residência'!H29 -> 0.6388888889 | D28: ='CV Rotina <2A - residência'!P29 -> 0.7777777778 | E28: ='CV Rotina <2A - residência'!#REF! ->  | F28: ='CV Rotina <2A - residência'!J29 -> 0.75 | G28: ='CV Rotina <2A - residência'!L29 -> 0.7222222222 | H28: ='CV Rotina <2A - residência'!N29 -> 0.7638888889 | I28: ='CV Rotina <2A - residência'!X29 -> 0.7361111111 | J28: ='CV Rotina <2A - residência'!R29 -> 0.7083333333 | K28: ='CV Rotina <2A - residência'!T29 -> 0.8333333333 | L28: ='CV Rotina <2A - residência'!V29 -> 0.5694444444 | M28: ='CV Rotina <2A - residência'!Z29 -> 0.5 | N28: 0 | O28: 0 | P28: 0 | Q28: 0
A29: Sul | B29: Guaçuí | C29: ='CV Rotina <2A - residência'!H30 -> 0.9333333333 | D29: ='CV Rotina <2A - residência'!P30 -> 0.9933333333 | E29: ='CV Rotina <2A - residência'!#REF! ->  | F29: ='CV Rotina <2A - residência'!J30 -> 1.2 | G29: ='CV Rotina <2A - residência'!L30 -> 1.146666667 | H29: ='CV Rotina <2A - residência'!N30 -> 1.086666667 | I29: ='CV Rotina <2A - residência'!X30 -> 1.18 | J29: ='CV Rotina <2A - residência'!R30 -> 1.066666667 | K29: ='CV Rotina <2A - residência'!T30 -> 0.9133333333 | L29: ='CV Rotina <2A - residência'!V30 -> 0.94 | M29: ='CV Rotina <2A - residência'!Z30 -> 0.5466666667 | N29: 2 | O29: 5 | P29: 7 | Q29: 4
A30: Metropolitana | B30: Guarapari | C30: ='CV Rotina <2A - residência'!H31 -> 0.8949468085 | D30: ='CV Rotina <2A - residência'!P31 -> 0.8204787234 | E30: ='CV Rotina <2A - residência'!#REF! ->  | F30: ='CV Rotina <2A - residência'!J31 -> 0.8257978723 | G30: ='CV Rotina <2A - residência'!L31 -> 0.7992021277 | H30: ='CV Rotina <2A - residência'!N31 -> 0.8497340426 | I30: ='CV Rotina <2A - residência'!X31 -> 0.829787234 | J30: ='CV Rotina <2A - residência'!R31 -> 0.8417553191 | K30: ='CV Rotina <2A - residência'!T31 -> 0.6396276596 | L30: ='CV Rotina <2A - residência'!V31 -> 0.6835106383 | M30: ='CV Rotina <2A - residência'!Z31 -> 0.4933510638 | N30: 0 | O30: 0 | P30: 0 | Q30: 0
A31: Metropolitana | B31: Ibatiba | C31: ='CV Rotina <2A - residência'!H32 -> 0.954248366 | D31: ='CV Rotina <2A - residência'!P32 -> 0.908496732 | E31: ='CV Rotina <2A - residência'!#REF! ->  | F31: ='CV Rotina <2A - residência'!J32 -> 1 | G31: ='CV Rotina <2A - residência'!L32 -> 1 | H31: ='CV Rotina <2A - residência'!N32 -> 0.9411764706 | I31: ='CV Rotina <2A - residência'!X32 -> 0.9019607843 | J31: ='CV Rotina <2A - residência'!R32 -> 1.039215686 | K31: ='CV Rotina <2A - residência'!T32 -> 0.9019607843 | L31: ='CV Rotina <2A - residência'!V32 -> 0.7712418301 | M31: ='CV Rotina <2A - residência'!Z32 -> 0.2156862745 | N31: 2 | O31: 3 | P31: 5 | Q31: 2
A32: Metropolitana | B32: Ibiraçu | C32: ='CV Rotina <2A - residência'!H33 -> 0.8 | D32: ='CV Rotina <2A - residência'!P33 -> 0.7 | E32: ='CV Rotina <2A - residência'!#REF! ->  | F32: ='CV Rotina <2A - residência'!J33 -> 0.7857142857 | G32: ='CV Rotina <2A - residência'!L33 -> 0.7571428571 | H32: ='CV Rotina <2A - residência'!N33 -> 0.7142857143 | I32: ='CV Rotina <2A - residência'!X33 -> 0.7571428571 | J32: ='CV Rotina <2A - residência'!R33 -> 0.7571428571 | K32: ='CV Rotina <2A - residência'!T33 -> 0.8142857143 | L32: ='CV Rotina <2A - residência'!V33 -> 0.5142857143 | M32: ='CV Rotina <2A - residência'!Z33 -> 0.3142857143 | N32: 0 | O32: 0 | P32: 0 | Q32: 0
A33: Sul | B33: Ibitirama | C33: ='CV Rotina <2A - residência'!H34 -> 0.9038461538 | D33: ='CV Rotina <2A - residência'!P34 -> 0.9807692308 | E33: ='CV Rotina <2A - residência'!#REF! ->  | F33: ='CV Rotina <2A - residência'!J34 -> 0.8846153846 | G33: ='CV Rotina <2A - residência'!L34 -> 0.8269230769 | H33: ='CV Rotina <2A - residência'!N34 -> 0.9615384615 | I33: ='CV Rotina <2A - residência'!X34 -> 1.076923077 | J33: ='CV Rotina <2A - residência'!R34 -> 0.8269230769 | K33: ='CV Rotina <2A - residência'!T34 -> 0.6730769231 | L33: ='CV Rotina <2A - residência'!V34 -> 0.75 | M33: ='CV Rotina <2A - residência'!Z34 -> 0.5961538462 | N33: 2 | O33: 2 | P33: 4 | Q33: 2
A34: Sul | B34: Iconha | C34: ='CV Rotina <2A - residência'!H35 -> 0.7021276596 | D34: ='CV Rotina <2A - residência'!P35 -> 1.021276596 | E34: ='CV Rotina <2A - residência'!#REF! ->  | F34: ='CV Rotina <2A - residência'!J35 -> 1.021276596 | G34: ='CV Rotina <2A - residência'!L35 -> 0.9574468085 | H34: ='CV Rotina <2A - residência'!N35 -> 1 | I34: ='CV Rotina <2A - residência'!X35 -> 1.425531915 | J34: ='CV Rotina <2A - residência'!R35 -> 0.8936170213 | K34: ='CV Rotina <2A - residência'!T35 -> 1.021276596 | L34: ='CV Rotina <2A - residência'!V35 -> 0.9787234043 | M34: ='CV Rotina <2A - residência'!Z35 -> 0.5106382979 | N34: 1 | O34: 6 | P34: =SUM(N34:O34) -> 7 | Q34: 4
A35: Sul | B35: Irupi | C35: ='CV Rotina <2A - residência'!H36 -> 0.92 | D35: ='CV Rotina <2A - residência'!P36 -> 1.146666667 | E35: ='CV Rotina <2A - residência'!#REF! ->  | F35: ='CV Rotina <2A - residência'!J36 -> 1.08 | G35: ='CV Rotina <2A - residência'!L36 -> 1.066666667 | H35: ='CV Rotina <2A - residência'!N36 -> 1.213333333 | I35: ='CV Rotina <2A - residência'!X36 -> 1.506666667 | J35: ='CV Rotina <2A - residência'!R36 -> 1.16 | K35: ='CV Rotina <2A - residência'!T36 -> 0.96 | L35: ='CV Rotina <2A - residência'!V36 -> 0.9866666667 | M35: ='CV Rotina <2A - residência'!Z36 -> 0.3866666667 | N35: 2 | O35: 7 | P35: 9 | Q35: 4
A36: Metropolitana | B36: Itaguaçu | C36: ='CV Rotina <2A - residência'!H37 -> 1.06779661 | D36: ='CV Rotina <2A - residência'!P37 -> 0.8644067797 | E36: ='CV Rotina <2A - residência'!#REF! ->  | F36: ='CV Rotina <2A - residência'!J37 -> 0.9152542373 | G36: ='CV Rotina <2A - residência'!L37 -> 0.8813559322 | H36: ='CV Rotina <2A - residência'!N37 -> 0.8644067797 | I36: ='CV Rotina <2A - residência'!X37 -> 0.9491525424 | J36: ='CV Rotina <2A - residência'!R37 -> 0.8983050847 | K36: ='CV Rotina <2A - residência'!T37 -> 0.9322033898 | L36: ='CV Rotina <2A - residência'!V37 -> 1.016949153 | M36: ='CV Rotina <2A - residência'!Z37 -> 0.7288135593 | N36: 1 | O36: 1 | P36: 2 | Q36: 0
A37: Sul | B37: Itapemirim | C37: ='CV Rotina <2A - residência'!H38 -> 0.9104477612 | D37: ='CV Rotina <2A - residência'!P38 -> 0.9552238806 | E37: ='CV Rotina <2A - residência'!#REF! ->  | F37: ='CV Rotina <2A - residência'!J38 -> 0.9402985075 | G37: ='CV Rotina <2A - residência'!L38 -> 0.9253731343 | H37: ='CV Rotina <2A - residência'!N38 -> 1.084577114 | I37: ='CV Rotina <2A - residência'!X38 -> 1 | J37: ='CV Rotina <2A - residência'!R38 -> 0.9950248756 | K37: ='CV Rotina <2A - residência'!T38 -> 0.6368159204 | L37: ='CV Rotina <2A - residência'!V38 -> 0.9452736318 | M37: ='CV Rotina <2A - residência'!Z38 -> 0.5572139303 | N37: 2 | O37: 3 | P37: 5 | Q37: 2
A38: Metropolitana | B38: Itarana | C38: ='CV Rotina <2A - residência'!H39 -> 1.061538462 | D38: ='CV Rotina <2A - residência'!P39 -> 0.7076923077 | E38: ='CV Rotina <2A - residência'!#REF! ->  | F38: ='CV Rotina <2A - residência'!J39 -> 0.7538461538 | G38: ='CV Rotina <2A - residência'!L39 -> 0.7538461538 | H38: ='CV Rotina <2A - residência'!N39 -> 0.7384615385 | I38: ='CV Rotina <2A - residência'!X39 -> 0.7538461538 | J38: ='CV Rotina <2A - residência'!R39 -> 0.7076923077 | K38: ='CV Rotina <2A - residência'!T39 -> 0.9846153846 | L38: ='CV Rotina <2A - residência'!V39 -> 0.4153846154 | M38: ='CV Rotina <2A - residência'!Z39 -> 0.5692307692 | N38: 1 | O38: 1 | P38: 2 | Q38: 0
A39: Sul | B39: Iúna | C39: ='CV Rotina <2A - residência'!H40 -> 0.7142857143 | D39: ='CV Rotina <2A - residência'!P40 -> 0.9947089947 | E39: ='CV Rotina <2A - residência'!#REF! ->  | F39: ='CV Rotina <2A - residência'!J40 -> 1.010582011 | G39: ='CV Rotina <2A - residência'!L40 -> 1.005291005 | H39: ='CV Rotina <2A - residência'!N40 -> 1.005291005 | I39: ='CV Rotina <2A - residência'!X40 -> 0.9682539683 | J39: ='CV Rotina <2A - residência'!R40 -> 0.9947089947 | K39: ='CV Rotina <2A - residência'!T40 -> 0.9259259259 | L39: ='CV Rotina <2A - residência'!V40 -> 0.7195767196 | M39: ='CV Rotina <2A - residência'!Z40 -> 0.4603174603 | N39: 1 | O39: 5 | P39: 6 | Q39: 4
A40: Norte | B40: Jaguaré | C40: ='CV Rotina <2A - residência'!H41 -> 0.9198113208 | D40: ='CV Rotina <2A - residência'!P41 -> 0.8679245283 | E40: ='CV Rotina <2A - residência'!#REF! ->  | F40: ='CV Rotina <2A - residência'!J41 -> 0.9952830189 | G40: ='CV Rotina <2A - residência'!L41 -> 1.051886792 | H40: ='CV Rotina <2A - residência'!N41 -> 0.8867924528 | I40: ='CV Rotina <2A - residência'!X41 -> 0.8726415094 | J40: ='CV Rotina <2A - residência'!R41 -> 0.8962264151 | K40: ='CV Rotina <2A - residência'!T41 -> 0.858490566 | L40: ='CV Rotina <2A - residência'!V41 -> 0.6839622642 | M40: ='CV Rotina <2A - residência'!Z41 -> 0.4858490566 | N40: 1 | O40: 2 | P40: 3 | Q40: 2
A41: Sul | B41: Jerônimo Monteiro | C41: ='CV Rotina <2A - residência'!H42 -> 1.101694915 | D41: ='CV Rotina <2A - residência'!P42 -> 1.169491525 | E41: ='CV Rotina <2A - residência'!#REF! ->  | F41: ='CV Rotina <2A - residência'!J42 -> 1.203389831 | G41: ='CV Rotina <2A - residência'!L42 -> 1.237288136 | H41: ='CV Rotina <2A - residência'!N42 -> 1.186440678 | I41: ='CV Rotina <2A - residência'!X42 -> 1.050847458 | J41: ='CV Rotina <2A - residência'!R42 -> 0.9830508475 | K41: ='CV Rotina <2A - residência'!T42 -> 1.084745763 | L41: ='CV Rotina <2A - residência'!V42 -> 0.8305084746 | M41: ='CV Rotina <2A - residência'!Z42 -> 0.3389830508 | N41: 2 | O41: 6 | P41: 8 | Q41: 4
A42: Metropolitana | B42: João Neiva | C42: ='CV Rotina <2A - residência'!H43 -> 0.8 | D42: ='CV Rotina <2A - residência'!P43 -> 0.9857142857 | E42: ='CV Rotina <2A - residência'!#REF! ->  | F42: ='CV Rotina <2A - residência'!J43 -> 1 | G42: ='CV Rotina <2A - residência'!L43 -> 0.9714285714 | H42: ='CV Rotina <2A - residência'!N43 -> 1 | I42: ='CV Rotina <2A - residência'!X43 -> 1.2 | J42: ='CV Rotina <2A - residência'!R43 -> 0.9285714286 | K42: ='CV Rotina <2A - residência'!T43 -> 0.9857142857 | L42: ='CV Rotina <2A - residência'!V43 -> 0.8142857143 | M42: ='CV Rotina <2A - residência'!Z43 -> 0.4428571429 | N42: 1 | O42: 5 | P42: 6 | Q42: 4
A43: Metropolitana | B43: Laranja da Terra | C43: ='CV Rotina <2A - residência'!H44 -> 0.7906976744 | D43: ='CV Rotina <2A - residência'!P44 -> 0.6744186047 | E43: ='CV Rotina <2A - residência'!#REF! ->  | F43: ='CV Rotina <2A - residência'!J44 -> 0.8372093023 | G43: ='CV Rotina <2A - residência'!L44 -> 0.8372093023 | H43: ='CV Rotina <2A - residência'!N44 -> 0.6744186047 | I43: ='CV Rotina <2A - residência'!X44 -> 1.465116279 | J43: ='CV Rotina <2A - residência'!R44 -> 0.9069767442 | K43: ='CV Rotina <2A - residência'!T44 -> 1.186046512 | L43: ='CV Rotina <2A - residência'!V44 -> 1.023255814 | M43: ='CV Rotina <2A - residência'!Z44 -> 1 | N43: 0 | O43: 4 | P43: 4 | Q43: 1
A44: Central | B44: Linhares | C44: ='CV Rotina <2A - residência'!H45 -> 0.7822222222 | D44: ='CV Rotina <2A - residência'!P45 -> 0.808 | E44: ='CV Rotina <2A - residência'!#REF! ->  | F44: ='CV Rotina <2A - residência'!J45 -> 0.8195555556 | G44: ='CV Rotina <2A - residência'!L45 -> 0.8088888889 | H44: ='CV Rotina <2A - residência'!N45 -> 0.7937777778 | I44: ='CV Rotina <2A - residência'!X45 -> 0.824 | J44: ='CV Rotina <2A - residência'!R45 -> 0.7911111111 | K44: ='CV Rotina <2A - residência'!T45 -> 0.7191111111 | L44: ='CV Rotina <2A - residência'!V45 -> 0.6204444444 | M44: ='CV Rotina <2A - residência'!Z45 -> 0.4133333333 | N44: 0 | O44: 0 | P44: 0 | Q44: 0
A45: Central | B45: Mantenópolis | C45: ='CV Rotina <2A - residência'!H46 -> 0.8333333333 | D45: ='CV Rotina <2A - residência'!P46 -> 0.6538461538 | E45: ='CV Rotina <2A - residência'!#REF! ->  | F45: ='CV Rotina <2A - residência'!J46 -> 0.7179487179 | G45: ='CV Rotina <2A - residência'!L46 -> 0.7820512821 | H45: ='CV Rotina <2A - residência'!N46 -> 0.6794871795 | I45: ='CV Rotina <2A - residência'!X46 -> 0.7435897436 | J45: ='CV Rotina <2A - residência'!R46 -> 0.6282051282 | K45: ='CV Rotina <2A - residência'!T46 -> 0.8333333333 | L45: ='CV Rotina <2A - residência'!V46 -> 0.6538461538 | M45: ='CV Rotina <2A - residência'!Z46 -> 0.4615384615 | N45: 0 | O45: 0 | P45: 0 | Q45: 0
A46: Sul | B46: Marataízes | C46: ='CV Rotina <2A - residência'!H47 -> 0.8270676692 | D46: ='CV Rotina <2A - residência'!P47 -> 0.8082706767 | E46: ='CV Rotina <2A - residência'!#REF! ->  | F46: ='CV Rotina <2A - residência'!J47 -> 0.7894736842 | G46: ='CV Rotina <2A - residência'!L47 -> 0.7932330827 | H46: ='CV Rotina <2A - residência'!N47 -> 0.8421052632 | I46: ='CV Rotina <2A - residência'!X47 -> 0.8759398496 | J46: ='CV Rotina <2A - residência'!R47 -> 0.8233082707 | K46: ='CV Rotina <2A - residência'!T47 -> 0.5827067669 | L46: ='CV Rotina <2A - residência'!V47 -> 0.7105263158 | M46: ='CV Rotina <2A - residência'!Z47 -> 0.3872180451 | N46: 0 | O46: 0 | P46: 0 | Q46: 0
A47: Metropolitana | B47: Marechal Floriano | C47: ='CV Rotina <2A - residência'!H48 -> 0.6764705882 | D47: ='CV Rotina <2A - residência'!P48 -> 0.9117647059 | E47: ='CV Rotina <2A - residência'!#REF! ->  | F47: ='CV Rotina <2A - residência'!J48 -> 0.7843137255 | G47: ='CV Rotina <2A - residência'!L48 -> 0.7843137255 | H47: ='CV Rotina <2A - residência'!N48 -> 0.9117647059 | I47: ='CV Rotina <2A - residência'!X48 -> 0.9509803922 | J47: ='CV Rotina <2A - residência'!R48 -> 0.9215686275 | K47: ='CV Rotina <2A - residência'!T48 -> 0.6568627451 | L47: ='CV Rotina <2A - residência'!V48 -> 0.7254901961 | M47: ='CV Rotina <2A - residência'!Z48 -> 0.5980392157 | N47: 1 | O47: 1 | P47: 2 | Q47: 1
A48: Central | B48: Marilândia | C48: ='CV Rotina <2A - residência'!H49 -> 1 | D48: ='CV Rotina <2A - residência'!P49 -> 1.016393443 | E48: ='CV Rotina <2A - residência'!#REF! ->  | F48: ='CV Rotina <2A - residência'!J49 -> 1.180327869 | G48: ='CV Rotina <2A - residência'!L49 -> 1.180327869 | H48: ='CV Rotina <2A - residência'!N49 -> 0.9672131148 | I48: ='CV Rotina <2A - residência'!X49 -> 0.9508196721 | J48: ='CV Rotina <2A - residência'!R49 -> 1.196721311 | K48: ='CV Rotina <2A - residência'!T49 -> 1.114754098 | L48: ='CV Rotina <2A - residência'!V49 -> 0.9672131148 | M48: ='CV Rotina <2A - residência'!Z49 -> 0.7540983607 | N48: 2 | O48: 7 | P48: 9 | Q48: 4
A49: Sul | B49: Mimoso do Sul | C49: ='CV Rotina <2A - residência'!H50 -> 0.8571428571 | D49: ='CV Rotina <2A - residência'!P50 -> 0.819047619 | E49: ='CV Rotina <2A - residência'!#REF! ->  | F49: ='CV Rotina <2A - residência'!J50 -> 0.9714285714 | G49: ='CV Rotina <2A - residência'!L50 -> 0.9619047619 | H49: ='CV Rotina <2A - residência'!N50 -> 0.8476190476 | I49: ='CV Rotina <2A - residência'!X50 -> 0.9047619048 | J49: ='CV Rotina <2A - residência'!R50 -> 0.9523809524 | K49: ='CV Rotina <2A - residência'!T50 -> 0.780952381 | L49: ='CV Rotina <2A - residência'!V50 -> 0.6952380952 | M49: ='CV Rotina <2A - residência'!Z50 -> 0.5523809524 | N49: 0 | O49: 3 | P49: 3 | Q49: 2
A50: Norte | B50: Montanha | C50: ='CV Rotina <2A - residência'!H51 -> 0.7368421053 | D50: ='CV Rotina <2A - residência'!P51 -> 1.276315789 | E50: ='CV Rotina <2A - residência'!#REF! ->  | F50: ='CV Rotina <2A - residência'!J51 -> 1.539473684 | G50: ='CV Rotina <2A - residência'!L51 -> 1.552631579 | H50: ='CV Rotina <2A - residência'!N51 -> 1.263157895 | I50: ='CV Rotina <2A - residência'!X51 -> 1.302631579 | J50: ='CV Rotina <2A - residência'!R51 -> 1.315789474 | K50: ='CV Rotina <2A - residência'!T51 -> 1.328947368 | L50: ='CV Rotina <2A - residência'!V51 -> 1.263157895 | M50: ='CV Rotina <2A - residência'!Z51 -> 0.8947368421 | N50: 1 | O50: 7 | P50: 8 | Q50: 4
A51: Norte | B51: Mucurici | C51: ='CV Rotina <2A - residência'!H52 -> 0.7142857143 | D51: ='CV Rotina <2A - residência'!P52 -> 1.714285714 | E51: ='CV Rotina <2A - residência'!#REF! ->  | F51: ='CV Rotina <2A - residência'!J52 -> 1.619047619 | G51: ='CV Rotina <2A - residência'!L52 -> 1.619047619 | H51: ='CV Rotina <2A - residência'!N52 -> 1.714285714 | I51: ='CV Rotina <2A - residência'!X52 -> 1.761904762 | J51: ='CV Rotina <2A - residência'!R52 -> 1.619047619 | K51: ='CV Rotina <2A - residência'!T52 -> 1.714285714 | L51: ='CV Rotina <2A - residência'!V52 -> 1 | M51: ='CV Rotina <2A - residência'!Z52 -> 0.9523809524 | N51: 1 | O51: 8 | P51: 9 | Q51: 4
A52: Sul | B52: Muniz Freire | C52: ='CV Rotina <2A - residência'!H53 -> 1.034883721 | D52: ='CV Rotina <2A - residência'!P53 -> 1.127906977 | E52: ='CV Rotina <2A - residência'!#REF! ->  | F52: ='CV Rotina <2A - residência'!J53 -> 1.162790698 | G52: ='CV Rotina <2A - residência'!L53 -> 1.104651163 | H52: ='CV Rotina <2A - residência'!N53 -> 1.151162791 | I52: ='CV Rotina <2A - residência'!X53 -> 1.174418605 | J52: ='CV Rotina <2A - residência'!R53 -> 1.058139535 | K52: ='CV Rotina <2A - residência'!T53 -> 1.058139535 | L52: ='CV Rotina <2A - residência'!V53 -> 0.9534883721 | M52: ='CV Rotina <2A - residência'!Z53 -> 0.523255814 | N52: 2 | O52: 7 | P52: 9 | Q52: 4
A53: Sul | B53: Muqui | C53: ='CV Rotina <2A - residência'!H54 -> 1.066666667 | D53: ='CV Rotina <2A - residência'!P54 -> 0.9166666667 | E53: ='CV Rotina <2A - residência'!#REF! ->  | F53: ='CV Rotina <2A - residência'!J54 -> 1.233333333 | G53: ='CV Rotina <2A - residência'!L54 -> 1.25 | H53: ='CV Rotina <2A - residência'!N54 -> 0.95 | I53: ='CV Rotina <2A - residência'!X54 -> 1.05 | J53: ='CV Rotina <2A - residência'!R54 -> 1.066666667 | K53: ='CV Rotina <2A - residência'!T54 -> 1.2 | L53: ='CV Rotina <2A - residência'!V54 -> 0.8833333333 | M53: ='CV Rotina <2A - residência'!Z54 -> 0.5666666667 | N53: 2 | O53: 6 | P53: 8 | Q53: 4
A54: Norte | B54: Nova Venécia | C54: ='CV Rotina <2A - residência'!H55 -> 0.877076412 | D54: ='CV Rotina <2A - residência'!P55 -> 0.8205980066 | E54: ='CV Rotina <2A - residência'!#REF! ->  | F54: ='CV Rotina <2A - residência'!J55 -> 0.9568106312 | G54: ='CV Rotina <2A - residência'!L55 -> 0.9601328904 | H54: ='CV Rotina <2A - residência'!N55 -> 0.8571428571 | I54: ='CV Rotina <2A - residência'!X55 -> 0.9003322259 | J54: ='CV Rotina <2A - residência'!R55 -> 0.877076412 | K54: ='CV Rotina <2A - residência'!T55 -> 0.8936877076 | L54: ='CV Rotina <2A - residência'!V55 -> 0.7441860465 | M54: ='CV Rotina <2A - residência'!Z55 -> 0.561461794 | N54: 0 | O54: 2 | P54: 2 | Q54: 2
A55: Central | B55: Pancas | C55: ='CV Rotina <2A - residência'!H56 -> 0.956043956 | D55: ='CV Rotina <2A - residência'!P56 -> 0.989010989 | E55: ='CV Rotina <2A - residência'!#REF! ->  | F55: ='CV Rotina <2A - residência'!J56 -> 1.10989011 | G55: ='CV Rotina <2A - residência'!L56 -> 1.098901099 | H55: ='CV Rotina <2A - residência'!N56 -> 1.010989011 | I55: ='CV Rotina <2A - residência'!X56 -> 0.967032967 | J55: ='CV Rotina <2A - residência'!R56 -> 1.098901099 | K55: ='CV Rotina <2A - residência'!T56 -> 0.956043956 | L55: ='CV Rotina <2A - residência'!V56 -> 0.9230769231 | M55: ='CV Rotina <2A - residência'!Z56 -> 0.8351648352 | N55: 2 | O55: 6 | P55: 8 | Q55: 4
A56: Norte | B56: Pedro Canário | C56: ='CV Rotina <2A - residência'!H57 -> 0.5454545455 | D56: ='CV Rotina <2A - residência'!P57 -> 0.8181818182 | E56: ='CV Rotina <2A - residência'!#REF! ->  | F56: ='CV Rotina <2A - residência'!J57 -> 1.068181818 | G56: ='CV Rotina <2A - residência'!L57 -> 1.045454545 | H56: ='CV Rotina <2A - residência'!N57 -> 0.8560606061 | I56: ='CV Rotina <2A - residência'!X57 -> 1.234848485 | J56: ='CV Rotina <2A - residência'!R57 -> 0.9545454545 | K56: ='CV Rotina <2A - residência'!T57 -> 0.9621212121 | L56: ='CV Rotina <2A - residência'!V57 -> 0.7424242424 | M56: ='CV Rotina <2A - residência'!Z57 -> 0.7348484848 | N56: 0 | O56: 5 | P56: 5 | Q56: 3
A57: Norte | B57: Pinheiros | C57: ='CV Rotina <2A - residência'!H58 -> 0.4862385321 | D57: ='CV Rotina <2A - residência'!P58 -> 1.073394495 | E57: ='CV Rotina <2A - residência'!#REF! ->  | F57: ='CV Rotina <2A - residência'!J58 -> 1.229357798 | G57: ='CV Rotina <2A - residência'!L58 -> 1.220183486 | H57: ='CV Rotina <2A - residência'!N58 -> 1.119266055 | I57: ='CV Rotina <2A - residência'!X58 -> 1.256880734 | J57: ='CV Rotina <2A - residência'!R58 -> 1.064220183 | K57: ='CV Rotina <2A - residência'!T58 -> 1.091743119 | L57: ='CV Rotina <2A - residência'!V58 -> 0.871559633 | M57: ='CV Rotina <2A - residência'!Z58 -> 0.4678899083 | N57: 1 | O57: 6 | P57: 7 | Q57: 4
A58: Sul | B58: Piúma | C58: ='CV Rotina <2A - residência'!H59 -> 0.868852459 | D58: ='CV Rotina <2A - residência'!P59 -> 0.8852459016 | E58: ='CV Rotina <2A - residência'!#REF! ->  | F58: ='CV Rotina <2A - residência'!J59 -> 0.9754098361 | G58: ='CV Rotina <2A - residência'!L59 -> 0.9672131148 | H58: ='CV Rotina <2A - residência'!N59 -> 0.9590163934 | I58: ='CV Rotina <2A - residência'!X59 -> 1.057377049 | J58: ='CV Rotina <2A - residência'!R59 -> 0.8114754098 | K58: ='CV Rotina <2A - residência'!T59 -> 0.7131147541 | L58: ='CV Rotina <2A - residência'!V59 -> 0.7540983607 | M58: ='CV Rotina <2A - residência'!Z59 -> 0.5081967213 | N58: 0 | O58: 4 | P58: 4 | Q58: 4
A59: Norte | B59: Ponto Belo | C59: ='CV Rotina <2A - residência'!H60 -> 0.76 | D59: ='CV Rotina <2A - residência'!P60 -> 1 | E59: ='CV Rotina <2A - residência'!#REF! ->  | F59: ='CV Rotina <2A - residência'!J60 -> 0.72 | G59: ='CV Rotina <2A - residência'!L60 -> 0.72 | H59: ='CV Rotina <2A - residência'!N60 -> 1.04 | I59: ='CV Rotina <2A - residência'!X60 -> 1.04 | J59: ='CV Rotina <2A - residência'!R60 -> 0.92 | K59: ='CV Rotina <2A - residência'!T60 -> 1.12 | L59: ='CV Rotina <2A - residência'!V60 -> 0.6 | M59: ='CV Rotina <2A - residência'!Z60 -> 0.6 | N59: 1 | O59: 3 | P59: 4 | Q59: 2
A60: Sul | B60: Presidente Kennedy | C60: ='CV Rotina <2A - residência'!H61 -> 1 | D60: ='CV Rotina <2A - residência'!P61 -> 0.6489361702 | E60: ='CV Rotina <2A - residência'!#REF! ->  | F60: ='CV Rotina <2A - residência'!J61 -> 0.7234042553 | G60: ='CV Rotina <2A - residência'!L61 -> 0.7659574468 | H60: ='CV Rotina <2A - residência'!N61 -> 0.6382978723 | I60: ='CV Rotina <2A - residência'!X61 -> 1.010638298 | J60: ='CV Rotina <2A - residência'!R61 -> 0.6382978723 | K60: ='CV Rotina <2A - residência'!T61 -> 0.7021276596 | L60: ='CV Rotina <2A - residência'!V61 -> 0.7234042553 | M60: ='CV Rotina <2A - residência'!Z61 -> 0.5 | N60: 1 | O60: 1 | P60: 2 | Q60: 1
A61: Central | B61: Rio Bananal | C61: ='CV Rotina <2A - residência'!H62 -> 0.7846153846 | D61: ='CV Rotina <2A - residência'!P62 -> 0.7769230769 | E61: ='CV Rotina <2A - residência'!#REF! ->  | F61: ='CV Rotina <2A - residência'!J62 -> 0.8153846154 | G61: ='CV Rotina <2A - residência'!L62 -> 0.8153846154 | H61: ='CV Rotina <2A - residência'!N62 -> 0.7307692308 | I61: ='CV Rotina <2A - residência'!X62 -> 0.9384615385 | J61: ='CV Rotina <2A - residência'!R62 -> 0.7769230769 | K61: ='CV Rotina <2A - residência'!T62 -> 0.9230769231 | L61: ='CV Rotina <2A - residência'!V62 -> 0.8230769231 | M61: ='CV Rotina <2A - residência'!Z62 -> 0.5384615385 | N61: 0 | O61: 0 | P61: 0 | Q61: 0
A62: Sul | B62: Rio Novo do Sul | C62: ='CV Rotina <2A - residência'!H63 -> 0.7234042553 | D62: ='CV Rotina <2A - residência'!P63 -> 1.085106383 | E62: ='CV Rotina <2A - residência'!#REF! ->  | F62: ='CV Rotina <2A - residência'!J63 -> 1.042553191 | G62: ='CV Rotina <2A - residência'!L63 -> 1 | H62: ='CV Rotina <2A - residência'!N63 -> 1.042553191 | I62: ='CV Rotina <2A - residência'!X63 -> 0.9574468085 | J62: ='CV Rotina <2A - residência'!R63 -> 1 | K62: ='CV Rotina <2A - residência'!T63 -> 1 | L62: ='CV Rotina <2A - residência'!V63 -> 0.7659574468 | M62: ='CV Rotina <2A - residência'!Z63 -> 0.6595744681 | N62: 1 | O62: 6 | P62: 7 | Q62: 4
A63: Metropolitana | B63: Santa Leopoldina | C63: ='CV Rotina <2A - residência'!H64 -> 0.6875 | D63: ='CV Rotina <2A - residência'!P64 -> 1.25 | E63: ='CV Rotina <2A - residência'!#REF! ->  | F63: ='CV Rotina <2A - residência'!J64 -> 1.375 | G63: ='CV Rotina <2A - residência'!L64 -> 1.34375 | H63: ='CV Rotina <2A - residência'!N64 -> 1.1875 | I63: ='CV Rotina <2A - residência'!X64 -> 1.78125 | J63: ='CV Rotina <2A - residência'!R64 -> 1.53125 | K63: ='CV Rotina <2A - residência'!T64 -> 1.25 | L63: ='CV Rotina <2A - residência'!V64 -> 1.46875 | M63: ='CV Rotina <2A - residência'!Z64 -> 0.4375 | N63: 1 | O63: 7 | P63: 8 | Q63: 4
A64: Metropolitana | B64: Santa Maria de Jetibá | C64: ='CV Rotina <2A - residência'!H65 -> 0.7450331126 | D64: ='CV Rotina <2A - residência'!P65 -> 0.8112582781 | E64: ='CV Rotina <2A - residência'!#REF! ->  | F64: ='CV Rotina <2A - residência'!J65 -> 0.7483443709 | G64: ='CV Rotina <2A - residência'!L65 -> 0.7483443709 | H64: ='CV Rotina <2A - residência'!N65 -> 0.7947019868 | I64: ='CV Rotina <2A - residência'!X65 -> 0.8741721854 | J64: ='CV Rotina <2A - residência'!R65 -> 0.7516556291 | K64: ='CV Rotina <2A - residência'!T65 -> 0.7152317881 | L64: ='CV Rotina <2A - residência'!V65 -> 0.8245033113 | M64: ='CV Rotina <2A - residência'!Z65 -> 0.417218543 | N64: 0 | O64: 0 | P64: 0 | Q64: 0
A65: Metropolitana | B65: Santa Teresa | C65: ='CV Rotina <2A - residência'!H66 -> 0.9666666667 | D65: ='CV Rotina <2A - residência'!P66 -> 1.066666667 | E65: ='CV Rotina <2A - residência'!#REF! ->  | F65: ='CV Rotina <2A - residência'!J66 -> 1.033333333 | G65: ='CV Rotina <2A - residência'!L66 -> 1.033333333 | H65: ='CV Rotina <2A - residência'!N66 -> 1.058333333 | I65: ='CV Rotina <2A - residência'!X66 -> 0.9166666667 | J65: ='CV Rotina <2A - residência'!R66 -> 0.9583333333 | K65: ='CV Rotina <2A - residência'!T66 -> 0.9416666667 | L65: ='CV Rotina <2A - residência'!V66 -> 0.7666666667 | M65: ='CV Rotina <2A - residência'!Z66 -> 0.675 | N65: 2 | O65: 4 | P65: 6 | Q65: 3
A66: Central | B66: São Domingos do Norte | C66: ='CV Rotina <2A - residência'!H67 -> 0.7931034483 | D66: ='CV Rotina <2A - residência'!P67 -> 0.7931034483 | E66: ='CV Rotina <2A - residência'!#REF! ->  | F66: ='CV Rotina <2A - residência'!J67 -> 0.7931034483 | G66: ='CV Rotina <2A - residência'!L67 -> 0.8103448276 | H66: ='CV Rotina <2A - residência'!N67 -> 0.8275862069 | I66: ='CV Rotina <2A - residência'!X67 -> 0.6724137931 | J66: ='CV Rotina <2A - residência'!R67 -> 0.8965517241 | K66: ='CV Rotina <2A - residência'!T67 -> 0.7931034483 | L66: ='CV Rotina <2A - residência'!V67 -> 0.4482758621 | M66: ='CV Rotina <2A - residência'!Z67 -> 0.4137931034 | N66: 0 | O66: =COUNTIFS(F66:M66,">=0,95") -> 0 | P66: 0 | Q66: 0
